{"text_format":"1","workbook":"xlsx","n_sheets":16,"sheets":["Tasas EG","Asistencia Funeraria","Enfermedades Graves","Tasa AP Familiar","AP Familiar","AP Individual","AP Colectivo","AP PTA (Asiento)","AP Escolar","Crucero","AP Viajero","Colectivo de Vida","Saldo Deudor","Coberturas AP - CV","Calculador","CSG1960"],"not_rendered":{"charts":0,"images":1,"macros":1,"external_links":0,"defined_names":87,"comments":3,"pivot_tables":0},"unopened":[],"bounds":{"document_bytes":16777216,"sheet_cells":100000,"rows_first":2000,"rows_last":500,"rows_between":2000,"halvings":0,"cell_chars":16384,"cell_head_chars":4096},"cells_cut":0,"cells_raw":0,"read":"whole","date_system":"1900"}

{"sheet":"Tasas EG","index":0,"n_rows":55,"n_cols":10,"rows_kept":55,"cut":false,"hidden":true,"merged":[[0,0,0,2],[0,4,0,6]]}
["Por Edad Alcanzada",null,null,null,"Por Rango de Edad"]
["Edad","Hombre","Mujer",null,"Rango Edad","Hombre","Mujer",null,"Costo Fijo",21.71]
[18,0.68069999999999997,0.68689999999999996,null,18,0.88160000000000005,0.93310000000000004]
[19,0.68069999999999997,0.68689999999999996,null,19,0.88160000000000005,0.93310000000000004]
[20,0.68069999999999997,0.68689999999999996,null,20,0.88160000000000005,0.93310000000000004]
[21,0.75209999999999999,0.75880000000000003,null,21,0.88160000000000005,0.93310000000000004]
[22,0.82789999999999997,0.81910000000000005,null,22,0.88160000000000005,0.93310000000000004]
[23,0.87519999999999998,0.92020000000000002,null,23,0.88160000000000005,0.93310000000000004]
[24,0.96519999999999995,1.0190999999999999,null,24,0.88160000000000005,0.93310000000000004]
[25,1.0228999999999999,1.1403000000000001,null,25,0.88160000000000005,0.93310000000000004]
[26,1.0798000000000001,1.2589999999999999,null,26,1.3358000000000001,1.6898]
[27,1.149,1.3581000000000001,null,27,1.3358000000000001,1.6898]
[28,1.2733000000000001,1.5759000000000001,null,28,1.3358000000000001,1.6898]
[29,1.3559000000000001,1.7630999999999999,null,29,1.3358000000000001,1.6898]
[30,1.4906999999999999,1.9328000000000001,null,30,1.3358000000000001,1.6898]
[31,1.6509,2.1147999999999998,null,31,2.1985000000000001,2.8494000000000002]
[32,1.7909999999999999,2.3479000000000001,null,32,2.1985000000000001,2.8494000000000002]
[33,2.0184000000000002,2.6286,null,33,2.1985000000000001,2.8494000000000002]
[34,2.2816999999999998,2.9479000000000002,null,34,2.1985000000000001,2.8494000000000002]
[35,2.5278999999999998,3.2743000000000002,null,35,2.1985000000000001,2.8494000000000002]
[36,2.8378999999999999,3.6190000000000002,null,36,4.0975000000000001,4.7093999999999996]
[37,3.1909000000000001,3.9578000000000002,null,37,4.0975000000000001,4.7093999999999996]
[38,3.6936,4.4089999999999998,null,38,4.0975000000000001,4.7093999999999996]
[39,4.2680999999999996,4.8575999999999997,null,39,4.0975000000000001,4.7093999999999996]
[40,4.8540000000000001,5.3273999999999999,null,40,4.0975000000000001,4.7093999999999996]
[41,5.42,5.8098000000000001,null,41,7.1563999999999997,7.3669000000000002]
[42,6.1196999999999999,6.2851999999999997,null,42,7.1563999999999997,7.3669000000000002]
[43,6.7050000000000001,6.8852000000000002,null,43,7.1563999999999997,7.3669000000000002]
[44,7.3367000000000004,7.5439999999999996,null,44,7.1563999999999997,7.3669000000000002]
[45,8.1112000000000002,8.3040000000000003,null,45,7.1563999999999997,7.3669000000000002]
[46,8.9441000000000006,9.0736000000000008,null,46,12.1516,11.535299999999999]
[47,9.7556999999999992,9.8528000000000002,null,47,12.1516,11.535299999999999]
[48,11.1547,10.8674,null,48,12.1516,11.535299999999999]
[49,12.616199999999999,11.885300000000001,null,49,12.1516,11.535299999999999]
[50,14.0702,12.909000000000001,null,50,12.1516,11.535299999999999]
[51,15.45,13.8347,null,51,20.088000000000001,16.953600000000002]
[52,16.9102,14.9633,null,52,20.088000000000001,16.953600000000002]
[53,18.891400000000001,16.160900000000002,null,53,20.088000000000001,16.953600000000002]
[54,20.729700000000001,17.276599999999998,null,54,20.088000000000001,16.953600000000002]
[55,22.659700000000001,18.7041,null,55,20.088000000000001,16.953600000000002]
[56,24.840199999999999,20.075900000000001,null,56,31.387799999999999,24.127400000000002]
[57,27.0153,21.4193,null,57,31.387799999999999,24.127400000000002]
[58,29.612200000000001,22.886199999999999,null,58,31.387799999999999,24.127400000000002]
[59,32.2684,24.600200000000001,null,59,31.387799999999999,24.127400000000002]
[60,35.041899999999998,26.514099999999999,null,60,31.387799999999999,24.127400000000002]
[61,37.869999999999997,28.186199999999999,null,61,45.9711,31.852599999999999]
[62,40.544699999999999,29.9434,null,62,45.9711,31.852599999999999]
[63,43.790900000000001,31.232600000000001,null,63,45.9711,31.852599999999999]
[64,47.1188,32.469000000000001,null,64,45.9711,31.852599999999999]
[65,50.447600000000001,33.433399999999999,null,65,45.9711,31.852599999999999]
[66,53.6693,34.5822,null,66,62.787599999999998,38.546599999999998]
[67,56.797899999999998,35.670900000000003,null,67,62.787599999999998,38.546599999999998]
[68,60.399000000000001,37.368600000000001,null,68,62.787599999999998,38.546599999999998]
[69,63.924300000000002,39.053600000000003,null,69,62.787599999999998,38.546599999999998]
[70,67.862899999999996,40.908799999999999,null,70,62.787599999999998,38.546599999999998]

{"sheet":"Asistencia Funeraria","index":1,"n_rows":61,"n_cols":16,"rows_kept":61,"cut":false,"hidden":true,"merged":[[11,2,11,4],[16,0,16,5],[17,0,17,5],[13,0,13,1],[11,0,11,1],[15,0,15,6],[9,0,9,1],[0,3,3,6],[5,0,5,7],[7,0,7,1],[7,2,7,4],[7,6,7,7]]}
[null,null,null,"Asistencia Funeraria"]
[]
[]
[]
[null,null,null,null,null,"drojas","CUMPLI02","Comercial_13122017"]
["Datos Generales"]
[]
["Solicitante:",null,"<Nombre del Solicitante>",null,null,"Corredor:","<Corredor del Solicitante>"]
[]
["Edad:",null,45,null,null,"Fecha:",{"$f":"TODAY()","v":"2018-07-26"}]
[]
["Plan:",null,"Asistencia Funeraria Nacional Individual",null,null,"Esquema:","Individual"]
[]
["Cantidad de Titulares:",null,10]
[]
["Datos de la Cotización"]
["COBERTURAS",null,null,null,null,null,"PRIMA"]
[{"$f":"C12","v":"Asistencia Funeraria Nacional Individual"},null,null,null,null,null,{"$f":"Tabla_AF[[#All],[Prima Anual Fija]]","v":9.76}]
[null,null,null,null,null,"Descuento",{"$f":"-IF(G12=\"Colectiva\", IF(C$14<=4,0,IF(C$14<=20,0.05,IF(C$14<=50,0.1,IF(C$14<=100,0.15,0.2)))),0)*G18","v":0}]
[null,null,null,null,"PROPUESTA DEBE CANCELARSE EN ÚNICO PAGO AL CONTADO","Impuestos (5%)",{"$f":"SUM(G18:G19)*0.05","v":0.48799999999999999}]
[null,null,null,{"$f":"ROUND(G21,2)*C$14","v":102.5},null,"Prima Anual con Impuestos",{"$f":"SUM(G18:G20)","v":10.247999999999999}]
[]
[null,null,null,{"$f":"D21/12","v":8.5416666666666661},null,"Prima Mensual con Impuestos (10 Pagos)",{"$f":"G21/10","v":1.0247999999999999}]
[null,null,null,null,null,null,null,null,52.94]
[]
[null,null,null,null,null,null,null,null,null,9.76]
[]
[]
[]
[]
[]
[]
[]
[]
[]
[]
[]
[]
[]
[]
[]
[]
[]
[]
[]
[]
[]
[]
[]
[]
[]
[]
[]
[]
[]
[]
[]
[]
[]
[]
[null,null,null,null,null,null,null,null,null,null,null,null,null,23,25,50]

{"sheet":"Enfermedades Graves","index":2,"n_rows":26,"n_cols":24,"rows_kept":26,"cut":false,"hidden":true,"merged":[[0,4,3,9],[5,0,5,9],[7,0,7,1],[7,2,7,4],[13,0,13,1],[13,5,13,6],[16,7,16,9],[17,7,17,9],[7,7,7,9],[9,7,9,9],[9,2,9,3],[15,0,15,9],[16,0,16,6],[17,0,17,6],[9,0,9,1],[11,0,11,1],[9,4,9,5]]}
[null,null,null,null,"Enfermedades Graves"]
[]
[]
[]
[null,null,null,null,null,null,null,null,"drojas","CUMPLI02","Comercial_07112017"]
["Datos Generales"]
[]
["Solicitante:",null,"<Nombre del Solicitante>",null,null,null,"Ocupación:","<Ocupación del Solicitante>"]
[]
["Esquema de Tarifa:",null,"Rango de Edad",null,{"$f":"IF(C10=\"Rango de Edad\", IF(C12<26, \"18 - 25 AÑOS\", IF(C12<31, \"26 - 30 AÑOS\", IF(C12<36, \"31 - 35 AÑOS\", IF(C12<41, \"36 - 40 AÑOS\", IF(C12<46, \"41 - 45 AÑOS\", IF(C12<51, \"46 - 50 AÑOS\", IF(C12<56, \"51 - 55 AÑOS\", IF(C12<61, \"56 - 60 AÑOS\", IF(C12<66, \"61 - 65 AÑOS\", \"66 - 70 AÑOS\"))))))))),\"\")","v":"41 - 45 AÑOS"},null,"Corredor:","<Corredor del Solicitante>"]
[]
["Edad:",null,45,null,null,null,"Fecha:",{"$f":"TODAY()","v":"2018-07-26"}]
[]
["Genero:",null,"M",null,null,"Recargo por Sobremortalidad",null,0.5]
[]
["Datos de la Cotización"]
["COBERTURAS",null,null,null,null,null,null,"SUMA ASEGURADA",null,null,"PRIMA"]
["Enfermedades Graves",null,null,null,null,null,null,50000,null,null,{"$f":"ROUND((IF(C10=\"Edad Alcanzada\",VLOOKUP(C12,'Tasas EG'!A$3:C$55,IF(C14=\"M\",2,3),FALSE), VLOOKUP(C12,'Tasas EG'!E$3:G$55,IF(C14=\"M\",2,3),FALSE))*(1+$H$14)*H18/1000),2)+'Tasas EG'!J2","v":558.44000000000005}]
[null,null,null,null,null,null,null,null,null,"Impuestos (5%)",{"$f":"K18*0.05","v":27.922000000000004}]
[null,null,null,null,null,null,null,null,null,"Prima Anual con Impuestos",{"$f":"SUM(K$18:K$19)","v":586.36200000000008},null,null,null,null,null,null,null,null,49,50,12.5]
["Esta cotización no representa una garantía de emisión de seguro de Enfermedades Graves y tiene una validez de 30 días"]
[]
[null,null,null,null,null,null,null,null,null,"Prima Semestral con Impuestos",{"$f":"K20/2","v":293.18100000000004}]
[null,null,null,null,null,null,null,null,null,"Prima Trimestral con Impuestos",{"$f":"K20/4","v":146.59050000000002}]
[null,null,null,null,null,null,null,null,null,"Prima Mensual con Impuestos",{"$f":"K20/12","v":48.863500000000009}]
[null,null,null,null,null,null,null,null,null,null,null,2.2000000000000002,0.25,0,0.5,0.15,0.15,0.15,4,49,50,50,0.5,0.25]

{"sheet":"Tasa AP Familiar","index":3,"n_rows":6,"n_cols":11,"rows_kept":6,"cut":false,"hidden":true,"merged":[]}
[null,{"$f":"+'AP Familiar'!I16","v":100000},{"$f":"+VLOOKUP(B1,$J$2:$K$6,2,FALSE)","v":4}]
[null,null,null,null,null,null,null,null,null,25000,2]
[null,null,25,50,100,150,200,null,null,50000,3]
[null,"Asegurado y Cónyuge",80.81,118.16,192.87,267.57,342.28,null,null,100000,4]
[null,"Asegurado e Hijos",68.88,94.65,146.19,197.73,249.28,null,null,150000,5]
[null,"Asegurado Cónyuge e Hijos",109.28,153.72999999999999,242.63,331.52,420.42,null,null,200000,6]

{"sheet":"AP Familiar","index":4,"n_rows":35,"n_cols":23,"rows_kept":35,"cut":false,"hidden":true,"merged":[[26,0,30,6],[14,8,14,9],[15,8,15,9],[16,8,16,9],[17,8,17,9],[18,8,18,9],[19,8,19,9],[20,8,20,9],[16,0,16,6],[17,0,17,6],[21,8,21,9],[23,8,23,9],[22,0,22,6],[22,8,22,9],[25,0,25,6],[11,2,11,4],[5,0,5,9],[15,0,15,6],[11,0,11,1],[13,0,13,9],[14,0,14,6],[0,4,3,9],[7,0,7,1],[7,2,7,4],[7,7,7,9],[9,0,9,1]]}
[null,null,null,null,"Accidentes Personales Familiar"]
[]
[]
[]
[null,null,null,null,null,null,null,"drojas","CUMPLI02","28082017v8","Comercial_07112017"]
["Datos Generales"]
[]
["Solicitante:",null,"<Nombre del Solicitante>",null,null,null,"Corredor:","<Corredor del Solicitante>"]
[]
["Edad del Solicitante:",null,50,null,null,null,"Fecha:",{"$f":"TODAY()","v":"2018-07-26"}]
[]
["Plan:",null,"Asegurado Cónyuge e Hijos"]
[]
["Datos de la Cotización"]
["COBERTURAS",null,null,null,null,null,null,"DEDUCIBLE","SUMA ASEGURADA"]
["Muerte Accidental",null,null,null,null,null,null,null,100000]
["Homicidio Culposo",null,null,null,null,null,null,null,{"$f":"+I16","v":100000}]
["Homicidio Doloso",null,null,null,null,null,null,null,{"$f":"+I17","v":100000}]
["Adelanto por Desmembramiento por Accidente",null,null,null,null,null,null,null,100000]
["Adelanto por ITP por Accidente",null,null,null,null,null,null,null,100000]
["Adelanto por Gasto Funerario",null,null,null,null,null,null,null,3000]
["Gastos Médicos por Accidente",null,null,null,null,null,null,75,3000]
["  Renta diaria por Hospitalización por Accidente",null,null,null,null,null,null,"2 días",100]
["Asistencia Médica Móvil (AMM)",null,null,null,null,null,null,null,"Incluido"]
[null,null,null,null,null,null,null,null,"Prima Anual sin Impuestos",{"$f":"+IF(OR(C10<18,C10>65),\"\",VLOOKUP($C$12,'Tasa AP Familiar'!$B$4:$G$6,'Tasa AP Familiar'!$C$1,FALSE))","v":242.63}]
["Observaciones",null,null,null,null,null,null,null,"Impuestos (5%)",{"$f":"IF(J25=\"\",\"\",ROUND(J25*0.05,2))","v":12.13}]
[{"$f":"+IF(OR(C12='Tasa AP Familiar'!$B$5,C12='Tasa AP Familiar'!$B$6),\"La Suma Asegurada para los hijos corresponde al 30% de la Suma Asegurada del Asegurado Titular.\nLa cobertura Adelanto por ITP por Accidente, no esta incluida para los hijos.\"&\" \nLas coberturas de Adelanto por Gasto Funerario, Gastos Médicos por Accidente, Renta Diaria por Hospitalización por Accidente y Asistencia Médica Móvil, no sufren alteración.\",\"\")","v":"La Suma Asegurada para los hijos corresponde al 30% de la Suma Asegurada del Asegurado Titular.\nLa cobertura Adelanto por ITP por Accidente, no esta incluida para los hijos. \nLas coberturas de Adelanto por Gasto Funerario, Gastos Médicos por Accidente, Renta Diaria por Hospitalización por Accidente y Asistencia Médica Móvil, no sufren alteración."},null,null,null,null,null,null,null,"Prima Anual con Impuestos",{"$f":"IF(J25=\"\",\"\",SUM(J25:J26))","v":254.76},null,null,null,null,null,null,null,null,49,50,12.5]
[]
[null,null,null,null,null,null,null,null,"Prima Semestral con Impuestos",{"$f":"ROUND(J27/2,2)","v":127.38}]
[null,null,null,null,null,null,null,null,"Prima Trimestral con Impuestos",{"$f":"ROUND(J27/4,2)","v":63.69}]
[null,null,null,null,null,null,null,null,"Prima Mensual con Impuestos",{"$f":"ROUND(J27/12,2)","v":21.23}]
[]
["Esta cotización no representa una garantía de emisión de seguro de AP Familiar y tiene una validez de 30 días"]
[]
[null,null,null,null,null,null,null,null,null,null,2.2000000000000002,0.25,0,0.5,0.15,0.15,0.15,4,49,50,50,0.5,0.25]

{"sheet":"AP Individual","index":5,"n_rows":46,"n_cols":29,"rows_kept":46,"cut":false,"hidden":false,"merged":[[35,0,35,6],[36,0,36,6],[37,0,37,6],[38,0,38,6],[35,7,35,8],[36,7,36,8],[37,7,37,8],[38,7,38,8],[27,7,27,8],[28,7,28,8],[29,7,29,8],[30,7,30,8],[22,7,22,8],[23,7,23,8],[24,7,24,8],[25,7,25,8],[26,7,26,8],[20,7,20,8],[17,7,17,8],[18,7,18,8],[16,7,16,8],[21,7,21,8],[28,0,28,6],[34,0,34,6],[0,4,3,10],[9,8,9,10],[5,0,5,10],[7,0,7,1],[9,0,9,1],[7,2,7,4],[7,6,7,7],[7,8,7,10],[9,6,9,7],[11,6,11,7],[15,0,15,10],[11,0,11,1],[16,0,16,6],[19,7,19,8],[34,7,34,8],[31,0,31,6],[32,0,32,6],[33,0,33,6],[31,7,31,8],[13,0,13,1],[29,0,29,6],[30,0,30,6],[32,7,32,8],[33,7,33,8],[17,0,17,6],[18,0,18,6],[19,0,19,6],[20,0,20,6],[21,0,21,6],[22,0,22,6],[23,0,23,6],[24,0,24,6],[25,0,25,6],[26,0,26,6],[27,0,27,6]]}
[null,null,null,null,"Accidentes Personales - Plan Individual"]
[]
[]
[]
[null,null,null,null,null,null,null,null,null,"ahill","VIDA05","Comercial_13122017"]
["Datos Generales"]
[]
["Solicitante:",null,"<Nombre del Solicitante>",null,null,null,"Ocupación:",null,"<Ocupación del Solicitante>"]
[]
["Días de Cobertura:",null,365,null,null,null,"Corredor:",null,"<Corredor del Solicitante>"]
[]
["Edad:",null,20,null,null,null,"Fecha:",null,{"$f":"TODAY()","v":"2018-07-26"}]
[]
["Clasificación:",null,"C"]
[]
["Datos de la Cotización"]
["COBERTURAS",null,null,null,null,null,null,"SUMA ASEGURADA",null,"DEDUCIBLE","TASA","PRIMA"]
["Muerte Accidental",null,null,null,null,null,null,90000,null,null,{"$f":"IF(H$18=0,\"\",Calculador!$I$8)","v":2.2000000000000002},{"$f":"IF(ISERROR(H$18*K$18/1000), 0, H$18*K$18/1000)","v":198.00000000000003}]
["Adelanto por Desmembramiento por Accidente",null,null,null,null,null,null,"incluido",null,null,null,0]
["Adelanto por Incapacidad Total y Permanente por Accidente",null,null,null,null,null,null,"incluido",null,null,null,0]
["Muerte en Transporte Público",null,null,null,null,null,null,"incluido",null,null,null,0]
["Homicidio Culposo",null,null,null,null,null,null,"incluido",null,null,null,0]
["Adelanto por Gastos Funerarios",null,null,null,null,null,null,{"$f":"CONCATENATE(\"Hasta B/.\", IF(H$18*0.2>3000, \" 3,000\", H$18*0.2), \".00\", \" (incluido)\")","v":"Hasta B/. 3,000.00 (incluido)"},null,null,null,0]
["Beneficio de Homicidio Doloso",null,null,null,null,null,null,null,null,null,{"$f":"IF(H$24=0, \"\", Calculador!$I$9)","v":""},{"$f":"IF(ISERROR(H$24*K24/1000), \"\", H$24*K24/1000)","v":""}]
["Gastos Médicos por Accidente",null,null,null,null,null,null,null,null,{"$f":"IF(AND(H$25>0, H$25<=1000), 25, IF(AND(H$25>=1500, H$25<=2500),50, IF(H$25=0,\"\",100)))","v":""},null,{"$f":"IF(H$25=0, \"\", Calculador!$I$10)","v":""}]
["Muerte Accidental en Avión Privado",null,null,null,null,null,null,null,null,null,{"$f":"IF(H$26=0, \"\", Calculador!$I$11)","v":""},{"$f":"IF(ISERROR(H$26*K26/1000),\"\",H$26*K26/1000)","v":""}]
["Muerte en Accidente de Tránsito",null,null,null,null,null,null,null,null,null,{"$f":"IF(H$27=0, \"\", Calculador!I12)","v":""},{"$f":"IF(ISERROR(H$27*K$27/1000),\"\",H$27*K$27/1000)","v":""}]
["Muerte como Conductor en Accidente de Tránsito",null,null,null,null,null,null,null,null,null,{"$f":"IF(H$28=0, \"\", Calculador!I13)","v":""},{"$f":"IF(ISERROR(H$28*K$28/1000),\"\",H$28*K$28/1000)","v":""}]
["Muerte en Cajero Automático",null,null,null,null,null,null,null,null,null,{"$f":"IF(H$29=0, \"\", Calculador!I14)","v":""},{"$f":"IF(ISERROR(H$29*K$29/1000),\"\",H$29*K$29/1000)","v":""}]
["Renta Diaria por Incapacidad Temporal por Accidente",null,null,null,null,null,null,null,null,{"$f":"IF(H$30>0, \"5 días\", \"\")","v":""},{"$f":"IF(H$30=0, \"\", Calculador!I15)","v":""},{"$f":"IF(ISERROR(H$30*K$30/1000),\"\",H$30*K$30)","v":""}]
["Renta Diaria por Hospitalización por Accidente",null,null,null,null,null,null,null,null,{"$f":"IF(H$31>0, \"3 días\", \"\")","v":""},null,{"$f":"IF(H$31=0, \"\", Calculador!I16)","v":""}]
["Renta Diaria por Hospitalización en Cuidados Intensivos por Accidente",null,null,null,null,null,null,null,null,{"$f":"IF(H$32>0, \"3 días\", \"\")","v":""},null,{"$f":"IF(H$31=0, \"\", Calculador!I17)","v":""}]
["Renta Diaria por Hospitalización ambos cónyuges por Accidente",null,null,null,null,null,null,null,null,{"$f":"IF(H$33>0, \"3 días\", \"\")","v":""},null,{"$f":"IF(H$31=0, \"\", Calculador!I18)","v":""}]
["Renta Anual al cónyuge en caso de Muerte Accidental",null,null,null,null,null,null,null,null,null,{"$f":"IF(H$34=0, \"\", Calculador!I19)","v":""},{"$f":"IF(ISERROR(H$34*K$34/1000),\"\",H$34*K$34/1000)","v":""}]
["Renta Anual por escolaridad en caso de Muerte Accidental",null,null,null,null,null,null,null,null,null,{"$f":"IF(H$35=0, \"\", Calculador!I20)","v":""},{"$f":"IF(ISERROR(H$35*K$35/1000),\"\",H$35*K$35/1000)","v":""}]
["Servicio de Asistencia Médica Móvil",null,null,null,null,null,null,null,null,null,null,{"$f":"IF(OR(H$36=0, H$36 = \"No\"), \"\", Calculador!I21)","v":""}]
["Servicio de Orientación Médica",null,null,null,null,null,null,null,null,null,null,{"$f":"IF(OR(H$37=0, H$37 = \"No\"), \"\", Calculador!I22)","v":""}]
["Servicio de Emergencia Odontológica Completa Familiar",null,null,null,null,null,null,null,null,null,null,{"$f":"IF(OR(H$38=0, H$38 = \"No\"), \"\", Calculador!I23)","v":""}]
["Asistencia Funeraria Nacional Familiar",null,null,null,null,null,null,null,null,null,null,{"$f":"IF(OR(H$39=0, H$39 = \"No\"), \"\", Calculador!I24)","v":""}]
[null,null,null,null,null,null,null,null,null,null,"Sub-Total",{"$f":"SUM(L$18:L$39)","v":198.00000000000003}]
[null,"Esta cotización no representa una garantía de emisión de seguro de Accidentes Personales y tiene una validez de 30 días",null,null,null,null,null,null,null,null,"Descuento",{"$f":"-IF(C$10 = 15, 0.85, IF(C$10=21, 0.8, IF(C$10=30, 0.7, IF(C$10=60, 0.6, IF(C$10=90, 0.42, IF(C$10=180, 0.37, IF(C$10=210,0.3, IF(C$10=240,0.2, IF(C$10=270,0.12, 0)))))))))*L$40","v":0}]
[null,null,null,null,null,null,null,null,null,null,"Impuestos (5%)",{"$f":"SUM(L$40:L$41)*0.05","v":9.9000000000000021}]
[null,null,null,null,null,null,"Prima Mensual con Impuestos (10 Pagos)",{"$f":"IF(OR(L$43<25, C$10 < 365), 0, L$43/10)","v":20.790000000000003},null,null,"Prima Anual con Impuestos",{"$f":"SUM(L$40:L$42)","v":207.90000000000003},null,null,null,null,null,null,null,null,null,50,12.5]
[null,null,null,null,null,null,null,null,null,null,null,null,2.2000000000000002,0.25,0,0.5,0.15,0.15,0.15,4,null,50,25,0.5,0.25]
[null,null,null,null,null,null,null,null,null,null,null,null,1,0.25,0,0.5,0.15,0.15,0.15,2.5,null,null,null,0.5,0.25,1.98,6.6,4.03,9.76]
[null,null,null,null,null,null,null,null,null,null,null,null,null,null,null,null,null,null,null,null,23,25,50]

{"sheet":"AP Colectivo","index":6,"n_rows":73,"n_cols":18,"rows_kept":73,"cut":false,"hidden":false,"merged":[[27,0,27,4],[28,0,28,4],[29,0,29,4],[30,0,30,4],[5,0,5,7],[7,0,7,1],[13,0,13,1],[23,0,23,4],[21,0,21,4],[22,0,22,4],[16,0,16,4],[17,0,17,4],[18,0,18,4],[15,0,15,7],[25,0,25,4],[26,0,26,4],[24,0,24,4],[19,0,19,4],[20,0,20,4],[0,3,3,8],[7,6,7,8],[7,2,7,4],[9,0,9,1],[11,0,11,1],[9,6,9,8]]}
[null,null,null,"Accidentes Personales - Plan Colectivo"]
[]
[]
[]
[null,null,null,null,null,null,"ahill","VIDA05","Comercial_13122017"]
["Datos Generales"]
[]
["Solicitante:",null,"<Nombre del Solicitante>",null,null,"Ocupación:","<Ocupación del Solicitante>"]
[]
["Edad Promedio:",null,40,null,null,"Corredor:","<Corredor del Solicitante>"]
[]
["Clasificación:",null,"B",null,null,"Fecha:",{"$f":"TODAY()","v":"2018-07-26"}]
[]
["Cantidad de Asegurados:",null,50,null,null,"Días de Cobertura:",365]
[]
["Datos de la Cotización"]
["COBERTURAS",null,null,null,null,"SUMA ASEGURADA","DEDUCIBLE","TASA","PRIMA"]
["Muerte Accidental",null,null,null,null,25000,null,{"$f":"IF(F$18=0, \"\",Calculador!Q8)","v":1.6},{"$f":"IF(ISERROR(F$18*H$18/1000), 0, F$18*H$18/1000)","v":40}]
["Adelanto por Desmembramiento por Accidente",null,null,null,null,"incluido",null,null,0]
["Adelanto por Incapacidad Total y Permanente por Accidente",null,null,null,null,"incluido",null,null,0]
["Homicidio Culposo",null,null,null,null,"incluido",null,null,0]
["Adelanto por Gastos Funerarios",null,null,null,null,{"$f":"CONCATENATE(\"Hasta B/.\", IF(F$18*0.2>3000, 3000, F$18*0.2), \".00\", \" (incluido)\")","v":"Hasta B/.3000.00 (incluido)"},null,null,0]
["Beneficio de Homicidio Doloso",null,null,null,null,null,null,{"$f":"IF(F$23=0, \"\", Calculador!$Q$9)","v":""},{"$f":"IF(ISERROR(F$23*H23/1000), \"\", F$23*H23/1000)","v":""}]
["Muerte en Transporte Público",null,null,null,null,null,null,{"$f":"IF(F$24=0, \"\",Calculador!Q10)","v":""},{"$f":"IF(ISERROR(F$24*H24/1000), \"\", F$24*H24/1000)","v":""}]
["Gastos Médicos por Accidente",null,null,null,null,null,{"$f":"IF(AND(F$25>0, F$25<=1000), 25, IF(AND(F$25>=1500, F$25<=2500),50, IF(F$25=0,\"\",100)))","v":""},null,{"$f":"IF(F$25=0, \"\", Calculador!Q11)","v":""}]
["Renta Diaria por Incapacidad Temporal por Accidente",null,null,null,null,null,{"$f":"IF(F$26>0, \"5 días\", \"\")","v":""},{"$f":"IF(F$26=0, \"\", Calculador!Q12)","v":""},{"$f":"IF(ISERROR(F$26*H26), \"\", F$26*H26)","v":""}]
["Renta Diaria por Hospitalización por Accidente",null,null,null,null,null,{"$f":"IF(F$27>0, \"3 días\", \"\")","v":""},null,{"$f":"IF(F$27=0, \"\", Calculador!Q13)","v":""}]
["Servicio de Asistencia Médica Móvil",null,null,null,null,null,null,null,{"$f":"IF(OR(F28=0,F28 = \"No\"), \"\", Calculador!Q14)","v":""}]
["Servicio de Orientación Médica",null,null,null,null,null,null,null,{"$f":"IF(OR(F$29=0, F$29 = \"No\"), \"\", Calculador!Q15)","v":""}]
["Servicio de Emergencia Odontológica Completa Familiar",null,null,null,null,null,null,null,{"$f":"IF(OR(F$30=0, F$30 = \"No\"), \"\", Calculador!Q16)","v":""}]
["Asistencia Funeraria Nacional Familiar",null,null,null,null,null,null,null,{"$f":"IF(OR(F$31=0, F$31 = \"No\"), \"\", Calculador!Q17)","v":""}]
[null,null,null,null,null,null,null,"Sub-Total",{"$f":"SUM(I$18:I$31)","v":40}]
[null,"Esta cotización no representa una garantía de emisión de seguro de Accidentes Personales y tiene una validez de 30 días",null,null,null,null,null,"Descuento",{"$f":"-((IF(OR(C$14<=9,G$14<365),0,IF(C$14<=15,0.1,IF(C$14<=20,0.13,IF(C$14<=29,0.15,IF(C$14<=59,0.2,IF(C$14<=99,0.25,IF(C$14<=249,0.3,0.35))))))))+IF(G$14=15,0.85,IF(G$14=21,0.8,IF(G$14=30,0.7,IF(G$14=60,0.6,IF(G$14=90,0.42,IF(G$14=180,0.37,IF(G$14=210,0.3,IF(G$14=240,0.2,IF(G$14=270,0.12,0))))))))))*(I32-SUM(I28:I31))-IF(C$14<=4,0,IF(C$14<=20,0.05,IF(C$14<=50,0.1,IF(C$14<=100,0.15,0.2))))*SUM(I31:I31)","v":-8}]
[null,null,null,null,null,null,null,"Impuestos (5%)",{"$f":"SUM(I$32:I$33)*0.05","v":1.6}]
[null,null,null,"Prima Anual del Colectivo con Impuestos",{"$f":"ROUND(I$35,2)*C$14","v":1680},null,null,"Prima Anual por Persona con Impuestos",{"$f":"SUM(I$32:I$34)","v":33.6}]
[]
[null,null,null,"Prima Mensual del Colectivo con Impuestos (12 Pagos)",{"$f":"IF(OR(E$35<25, G$14 < 365), 0, E$35/12)","v":140},null,null,"Prima Mensual por Persona con Impuestos",{"$f":"IF(OR(E$35<25, G$14 < 365), 0, I$35/12)","v":2.8000000000000003}]
[null,null,null,null,null,null,null,null,null,2.2000000000000002,0.25,null,93.5,null,23]
[]
[]
[]
[]
[]
[]
[]
[]
[]
[]
[]
[]
[]
[]
[]
[]
[]
[]
[]
[]
[]
[]
[]
[]
[]
[]
[]
[]
[]
[]
[]
[]
[]
[]
[null,null,null,null,null,null,null,null,null,null,null,null,null,null,null,23,25,50]

{"sheet":"AP PTA (Asiento)","index":7,"n_rows":36,"n_cols":17,"rows_kept":36,"cut":false,"hidden":false,"merged":[[31,5,31,6],[28,5,28,6],[29,5,29,6],[30,5,30,6],[28,0,28,4],[29,0,29,4],[30,0,30,4],[31,0,31,4],[25,0,25,8],[26,0,26,4],[26,5,26,6],[27,5,27,6],[27,0,27,4],[18,5,18,6],[19,5,19,6],[17,5,17,6],[17,0,17,4],[18,0,18,4],[19,0,19,4],[16,5,16,6],[9,0,9,1],[9,6,9,8],[11,0,11,1],[13,0,13,8],[14,0,14,4],[14,5,14,6],[15,5,15,6],[15,0,15,4],[16,0,16,4],[5,0,5,8],[7,0,7,1],[7,6,7,7],[0,3,3,9],[7,2,7,3]]}
[null,null,null,"Accidentes Personales - PTA (Asiento)"]
[]
[]
[]
[null,null,null,null,null,null,null,"drojas","CUMPLI02","Comercial_13122017"]
["Datos Generales"]
[null,null,null,null,null,null,null,null,null,null,null,null,null,null,null,null,"Transporte Público Uber"]
["Solicitante:",null,"<Nombre del Solicitante>",null,null,"Vehiculo:","Transporte Público Provincial",null,null,null,null,null,null,null,null,null,"Transporte Público Provincial"]
[null,null,null,null,null,null,null,null,null,null,null,null,null,null,null,null,"Transporte Público Ruta Interna"]
["Cantidad de Pasajeros:",null,15,"* sin considerar el conductor",null,"Corredor:","<Corredor del Solicitante>",null,null,null,null,null,null,null,null,null,"Transporte Público Vehiculo Modificado"]
[null,null,null,null,null,null,null,null,null,null,null,null,null,null,null,null,"Transporte Público Taxi Rural"]
["Cantidad de Vehiculos:",null,1,null,null,"Fecha:",{"$f":"TODAY()","v":"2018-07-26"},null,null,null,null,null,null,null,null,null,"Transporte de Empleados"]
[null,null,null,null,null,null,null,null,null,null,null,null,null,null,null,null,"Transporte Colegial"]
["Datos de la Cotización - Pasajeros",null,null,null,null,null,null,null,null,null,null,null,null,null,null,null,"Transporte de Turismo"]
["COBERTURAS",null,null,null,null,"SUMA ASEGURADA",null,"DEDUCIBLE","TASA","PRIMA",null,null,null,null,null,null,"Transporte Comercial de Carga"]
["Muerte Accidental",null,null,null,null,15000,null,null,{"$f":"IF(F$16=0, \"\",Calculador!$AA$8*D$22)","v":0.45},{"$f":"IF(ISERROR(F$16*I$16/1000), 0, F$16*I$16/1000)","v":6.75},null,null,null,null,null,null,"Mensajería - Motos"]
["Adelanto por Desmembramiento por Accidente",null,null,null,null,"incluido",null,null,null,0]
["Adelanto por Incapacidad Total y Permanente por Accidente",null,null,null,null,"incluido",null,null,null,0]
["Gastos Médicos por Accidente",null,null,null,null,0,null,{"$f":"IF(AND(F$19>0, F$19<=1000), 25, IF(AND(F$19>=1500, F$19<=2500),50, IF(F$19=0,\"\",100)))","v":""},null,{"$f":"IF(F$19=0, \"\", Calculador!AA9*D$22)","v":""}]
["Renta Diaria por Incapacidad Temporal por Accidente",null,null,null,null,null,null,{"$f":"IF(F$20>0, \"3 días\", \"\")","v":""},{"$f":"IF(F$20=0, \"\",Calculador!AA10* D$22)","v":""},{"$f":"IF(ISERROR(F$20*I$20/1000),\"\",F$20*I$20)","v":""}]
[null,null,null,null,null,null,null,null,"Sub-Total",{"$f":"SUM(J$16:J$20)","v":6.75}]
[null,null,"Factor de Exposición del Riesgo",{"$f":"IF(G$8=\"Transporte Público Provincial\", 0.45, IF(G$8=\"Transporte Público Ruta Interna\", 0.4, IF(G$8=\"Transporte Público Vehiculo Modificado\", 0.35, IF(G$8=\"Transporte Público Taxi Rural\", 0.95, IF(G$8=\"Transporte de Empleados\", 0.5, IF(G$8=\"Transporte de Turismo\", 0.5, IF(G$8=\"Transporte Colegial\", 0.4, IF(G$8=\"Transporte Comercial de Carga\", 0.68,  IF(G$8=\"Transporte Público Uber\", 1.1,  2.06)))))))))","v":0.45},null,null,null,null,"Descuento",{"$f":"-IF(C$10*C$12<=9,0,IF(C$10*C$12<=15,0.1,IF(C$10*C$12<=20,0.13,IF(C$10*C$12<=29,0.15,IF(C$10*C$12<=59,0.2,IF(C$10*C$12<=99,0.25,IF(C$10*C$12<=249,0.3,0.35)))))))*J$21","v":-0.67500000000000004}]
[null,null,null,null,null,null,null,null,"Impuestos (5%)",{"$f":"SUM(J$21:J$22)*0.05","v":0.30375000000000002}]
[null,null,null,null,null,null,null,null,"Prima Anual por Pasajero con Impuestos",{"$f":"SUM(J$21:J$23)","v":6.3787500000000001}]
[]
["Datos de la Cotización - Conductor"]
["COBERTURAS",null,null,null,null,"SUMA ASEGURADA",null,"DEDUCIBLE","TASA","PRIMA"]
["Muerte Accidental",null,null,null,null,20000,null,null,{"$f":"IF(F$28=0, \"\",Calculador!$AA$12*D$22)","v":0.72000000000000008},{"$f":"IF(ISERROR(F$28*I$28/1000), 0, F$28*I$28/1000)","v":14.400000000000002}]
["Adelanto por Desmembramiento por Accidente",null,null,null,null,"incluido",null,null,null,0]
["Adelanto por Incapacidad Total y Permanente por Accidente",null,null,null,null,"incluido",null,null,null,0]
["Gastos Médicos por Accidente",null,null,null,null,0,null,{"$f":"IF(AND(F$31>0, F$31<=1000), 25, IF(AND(F$31>=1500, F$31<=2500),50, IF(F$31=0,\"\",100)))","v":""},null,{"$f":"IF(F$31=0, \"\", Calculador!$AA$13*D$22)","v":""}]
["Renta Diaria por Incapacidad Temporal por Accidente",null,null,null,null,null,null,{"$f":"IF(F$32>0, \"3 días\", \"\")","v":""},{"$f":"IF(F$32=0, \"\",Calculador!$AA$14*D$22)","v":""},{"$f":"IF(ISERROR(F$32*I$32/1000),\"\",F$32*I$32)","v":""}]
[null,null,null,null,null,null,null,null,"Sub-Total",{"$f":"SUM(J$28:J$32)","v":14.400000000000002}]
["Esta cotización no representa una garantía de emisión de seguro de Accidentes Personales y tiene una validez de 30 días",null,null,null,null,null,null,null,"Impuestos (5%)",{"$f":"SUM(J$33:J$33)*0.05","v":0.7200000000000002}]
[null,null,null,null,null,null,null,null,"Prima Anual Conductor con Impuestos",{"$f":"SUM(J$33:J$34)","v":15.120000000000003}]
[null,null,null,"Prima Anual Total con Impuestos",{"$f":"IF(G$8<>\"Mensajería - Motos\", (J$35*C$12)+ (C$10*C$12*J$24), J$35)","v":110.80125000000001}]

{"sheet":"AP Escolar","index":8,"n_rows":61,"n_cols":18,"rows_kept":61,"cut":false,"hidden":false,"merged":[[19,0,19,4],[9,0,9,1],[0,3,3,8],[5,0,5,7],[7,0,7,1],[7,2,7,4],[7,6,7,8],[17,0,17,4],[18,0,18,4],[11,0,11,1],[13,0,13,7],[14,0,14,4],[15,0,15,4],[16,0,16,4]]}
[null,null,null,"Accidentes Personales - Plan Escolar"]
[]
[]
[]
[null,null,null,null,null,null,"drojas","CUMPLI02","Comercial_13122017"]
["Datos Generales"]
[]
["Colegio:",null,"<Nombre del Colegio Solicitante>",null,null,"Corredor:","<Corredor del Solicitante>"]
[]
["Cantidad de Estudiantes:",null,100,null,null,"Cantidad de Administrativos:",5]
[]
["Cantidad de Profesores:",null,11,null,null,"Fecha:",{"$f":"TODAY()","v":"2018-07-26"}]
[]
["Datos de la Cotización"]
["COBERTURAS",null,null,null,null,"SUMA ASEGURADA","DEDUCIBLE","TASA","PRIMA"]
["Muerte Accidental",null,null,null,null,2000,null,{"$f":"IF(F$16=0, \"\",Calculador!G31*E$22)","v":0.22000000000000003},{"$f":"IF(ISERROR(F$16*H$16/1000), 0, F$16*H$16/1000)","v":0.44000000000000006}]
["Adelanto por Gastos Funerarios",null,null,null,null,{"$f":"CONCATENATE(\"Hasta B/.\", IF(F$16*0.2>3000, 3000, F$16*0.2), \".00\", \" (incluido)\")","v":"Hasta B/.400.00 (incluido)"},null,null,0]
["Desmembramiento por Accidente",null,null,null,null,null,null,{"$f":"IF(F$18=0, \"\",Calculador!G32*E$22)","v":""},{"$f":"IF(ISERROR(F$18*H$18/1000), \"\", F$18*H$18/1000)","v":""}]
["Gastos Médicos por Accidente",null,null,null,null,500,{"$f":"IF(AND(F$19>0, F$19<=1000), 25, IF(AND(F$19>=1500, F$19<=2500),50, IF(F$19=0,\"\",100)))","v":25},null,{"$f":"IF(F$19=0, \"\", Calculador!G33*E$22)","v":3.28}]
["Servicio de Asistencia Médica Móvil",null,null,null,null,null,null,null,{"$f":"IF(OR(F$20=0, F$20 = \"No\"), \"\", Calculador!G34)","v":""}]
[null,null,null,null,null,null,null,"Sub-Total",{"$f":"SUM(I$16:I$20)","v":3.7199999999999998}]
[null,null,null,"Factor de Exposición del Riesgo",0.4,null,null,"Descuento",{"$f":"-IF((C$10+C$12+G$10)<=20, 0, IF((C$10+C$12+G$10)<=50, 0.05, IF((C$10+C$12+G$10)<=70, 0.06, IF((C$10+C$12+G$10)<=100, 0.07, IF((C$10+C$12+G$10)<=249, 0.08, IF((C$10+C$12+G$10)<=499, 0.1, IF((C$10+C$12+G$10)<=749, 0.2, IF((C$10+C$12+G$10)<=999, 0.15, IF((C$10+C$12+G$10)<=4999, 0.1, 0.1)))))))))*I$21","v":-0.29759999999999998}]
[null,null,null,null,null,null,null,"Impuestos (5%)",{"$f":"SUM(I$21:I$22)*0.05","v":0.17111999999999999}]
[null,null,null,"Prima Periodo Escolar del Colectivo con Impuestos",{"$f":"I$24*(C$10+C$12+G$10)","v":416.84832},null,null,"Prima Periodo Escolar por Persona con Impuestos",{"$f":"SUM(I$21:I$23)","v":3.5935199999999998}]
[]
[]
[]
[]
[]
[null,null,null,null,null,null,null,null,null,2.2000000000000002,0.3,0.44,46.5]
[]
[]
[]
[]
[]
[]
[]
[]
[]
[]
[]
[]
[]
[]
[]
[]
[]
[]
[]
[]
[]
[]
[]
[]
[]
[]
[]
[]
[]
[]
[null,null,null,null,null,null,null,null,null,null,null,null,null,null,null,23,25,50]

{"sheet":"Crucero","index":9,"n_rows":59,"n_cols":20,"rows_kept":59,"cut":false,"hidden":true,"merged":[[9,0,9,1],[9,6,9,8],[0,3,3,8],[5,0,5,7],[7,0,7,1],[7,2,7,4],[7,6,7,8],[17,0,17,4],[18,0,18,4],[11,0,11,1],[13,0,13,7],[14,0,14,4],[15,0,15,4],[16,0,16,4]]}
[null,null,null,"Accidentes Personales - Crucero"]
[]
[]
[]
[null,null,null,null,null,null,"drojas","CUMPLI02","Comercial_07112017"]
["Datos Generales"]
[]
["Solicitante:",null,"<Nombre del Solicitante>",null,null,"Línea de Crucero:","<Linea del Crucero a Utilizar>"]
[]
["Edad:",null,25,null,null,"Corredor:","<Corredor del Solicitante>"]
[]
["Días de Cobertura",null,3,null,null,"Fecha:",{"$f":"TODAY()","v":"2018-07-26"}]
[]
["Datos de la Cotización"]
["COBERTURAS",null,null,null,null,"SUMA ASEGURADA","DEDUCIBLE","TASA","PRIMA"]
["Muerte Accidental",null,null,null,null,250000,null,{"$f":"IF(F$16=0, \"\",Calculador!AJ8*E$21)","v":0.16500000000000001},{"$f":"IF(ISERROR(F$16*H$16/1000), 0, F$16*H$16/1000)","v":41.25}]
["Adelanto por Desmembramiento por Accidente",null,null,null,null,"incluido",null,null,0]
["Adelanto por Incapacidad Total y Permanente por Accidente",null,null,null,null,"incluido",null,null,0]
["Gastos Médicos por Accidente",null,null,null,null,null,{"$f":"IF(AND(F$19>0, F$19<=1000), 25, IF(AND(F$19>=1500, F$19<=2500),50, IF(F$19=0,\"\",100)))","v":""},null,{"$f":" IF(F$19=0, \"\",Calculador!AJ9*E$21)","v":""}]
[null,null,null,null,null,null,null,"Sub-Total",{"$f":"SUM(I$16:I$19)","v":41.25}]
[null,null,null,"Factor de Exposición del Riesgo",{"$f":"IF(C$12=30, 0.4, IF(C$12=24,0.365, IF(C$12=16,  0.335, IF(C$12=14, 0.305, IF(C$12=8, 0.22, IF(C$12=5, 0.19, IF(C$12=3, 0.165, 0.5)))))))","v":0.16500000000000001},null,null,"Impuestos (5%)",{"$f":"SUM(I$20:I$20)*0.05","v":2.0625}]
[null,null,null,null,null,null,null,"Prima Total con Impuestos",{"$f":"SUM(I$20:I$21)","v":43.3125}]
[]
[null,null,null,null,null,null,null,null,null,null,243.75]
[]
[]
[]
[]
[]
[]
[]
[]
[]
[]
[]
[]
[]
[]
[]
[]
[]
[]
[]
[]
[]
[]
[]
[]
[]
[]
[]
[]
[]
[]
[]
[]
[]
[]
[null,null,null,null,null,null,null,null,null,null,null,null,null,null,null,null,null,23,25,50]

{"sheet":"AP Viajero","index":10,"n_rows":58,"n_cols":16,"rows_kept":58,"cut":false,"hidden":false,"merged":[[0,3,3,6],[7,0,7,1],[7,2,7,4],[9,0,9,1],[18,0,18,4],[7,6,7,7],[5,0,5,7],[11,0,11,1],[13,0,13,6],[14,0,14,4],[15,0,15,4],[16,0,16,4],[17,0,17,4]]}
[null,null,null,"Accidentes Personales - Viajero"]
[]
[]
[]
[null,null,null,null,null,"drojas","CUMPLI02","Comercial_13122017"]
["Datos Generales"]
[]
["Solicitante:",null,"<Nombre del Solicitante>",null,null,"Corredor:","<Corredor del Solicitante>"]
[]
["Edad:",null,30,null,null,"Suma Asegurada:",150000]
[]
["Días de Cobertura",null,5,null,null,"Fecha:",{"$f":"TODAY()","v":"2018-07-26"}]
[]
["Datos de la Cotización"]
["COBERTURAS",null,null,null,null,"SUMA ASEGURADA","DEDUCIBLE"]
["Muerte Accidental",null,null,null,null,{"$f":"G$10","v":150000}]
["Adelanto por Desmembramiento por Accidente",null,null,null,null,"incluido"]
["Adelanto por Incapacidad Total y Permanente por Accidente",null,null,null,null,"incluido"]
["Gastos Médicos por Accidente",null,null,null,null,{"$f":"+G10*10%","v":15000},{"$f":"IF(AND(F$19>0, F$19<=1000), 25, IF(AND(F$19>=1500, F$19<=2500),50, IF(F$19=0,\"\",100)))","v":100}]
[]
[null,null,"PROPUESTA DEBE CANCELARSE EN ÚNICO PAGO AL CONTADO",null,null,"Prima Total con Impuestos",{"$f":"Calculador!$Q$34","v":9.16}]
[null,null,null,null,null,null,null,null,14.59]
[]
[]
[]
[]
[]
[]
[]
[]
[]
[]
[]
[]
[]
[]
[]
[]
[]
[]
[]
[]
[]
[]
[]
[]
[]
[]
[]
[]
[]
[]
[]
[]
[]
[]
[]
[null,null,null,null,null,null,null,null,null,null,null,null,null,23,25,50]

{"sheet":"Colectivo de Vida","index":11,"n_rows":42,"n_cols":27,"rows_kept":42,"cut":false,"hidden":false,"merged":[[33,0,33,5],[33,6,33,7],[13,0,13,1],[28,0,28,5],[28,6,28,7],[23,0,23,5],[23,6,23,7],[24,0,24,5],[24,6,24,7],[20,0,20,5],[20,6,20,7],[21,0,21,5],[21,6,21,7],[22,0,22,5],[22,6,22,7],[15,0,15,9],[16,0,16,5],[16,6,16,7],[29,0,29,5],[29,6,29,7],[34,0,34,5],[34,6,34,7],[25,0,25,5],[25,6,25,7],[26,0,26,5],[26,6,26,7],[27,0,27,5],[27,6,27,7],[30,0,30,5],[30,6,30,7],[31,0,31,5],[31,6,31,7],[32,0,32,5],[32,6,32,7],[17,0,17,5],[17,6,17,7],[19,0,19,5],[19,6,19,7],[18,0,18,5],[18,6,18,7],[9,0,9,1],[9,5,9,6],[9,7,9,9],[11,0,11,1],[11,5,11,6],[0,4,3,9],[5,0,5,9],[7,0,7,1],[7,2,7,4],[7,5,7,6],[7,7,7,9]]}
[null,null,null,null,"Colectivo de Vida - Grupo"]
[]
[]
[]
[null,null,null,null,null,null,null,null,"drojas","CUMPLI02","Comercial_13122017",null,null,null,null,null,null,null,null,null,null,null,null,null,null,null,"Servicio de Emergencia Odontológica sin Endodoncia"]
["Datos Generales",null,null,null,null,null,null,null,null,null,null,null,null,null,null,null,null,null,null,null,null,null,null,null,null,null,"Servicio de Emergencia Odontológica Completa"]
[null,null,null,null,null,null,null,null,null,null,null,null,null,null,null,null,null,null,null,null,null,null,null,null,null,null,"Servicio de Emergencia Odontológica Completa + Prevención"]
["Solicitante:",null,"<Nombre del Solicitante>",null,null,"Ocupación:",null,"<Ocupación del Solicitante>",null,null,null,null,null,null,null,null,null,null,null,null,null,null,null,null,null,null,"Servicio Odontológico Amplio sin Endodoncia"]
[null,null,null,null,null,null,null,null,null,null,null,null,null,null,null,null,null,null,null,null,null,null,null,null,null,null,"Servicio Odontológico Amplio"]
["Edad Promedio:",null,40,null,null,"Corredor:",null,"<Corredor del Solicitante>",null,null,null,null,null,null,null,null,null,null,null,null,null,null,null,null,null,null,"Servicio de Emergencia Odontológica sin Endodoncia Familiar"]
[null,null,null,null,null,null,null,null,null,null,null,null,null,null,null,null,null,null,null,null,null,null,null,null,null,null,"Servicio de Emergencia Odontológica Completa Familiar"]
["Clasificación:",null,"C",null,null,"Fecha:",null,{"$f":"TODAY()","v":"2018-07-26"},null,null,null,null,null,null,null,null,null,null,null,null,null,null,null,null,null,null,"Servicio de Emergencia Odontológica Completa + Prevención Familiar"]
[null,null,null,null,null,null,null,null,null,null,null,null,null,null,null,null,null,null,null,null,null,null,null,null,null,null,"Servicio Odontológico Amplio sin Endodoncia Familiar"]
["Cantidad de Asegurados:",null,10,null,null,null,null,null,null,null,null,null,null,null,null,null,null,null,null,null,null,null,null,null,null,null,"Servicio Odontológico Amplio Familiar"]
[]
["Datos de la Cotización"]
["COBERTURAS",null,null,null,null,null,"SUMA ASEGURADA",null,"DEDUCIBLE","TASA","PRIMA"]
["Muerte por Cualquier Causa",null,null,null,null,null,25000,null,null,{"$f":"IF(G$18=0, \"\",Calculador!AC35)","v":3.3499999999999996},{"$f":"IF(ISERROR(G$18*J$18/1000), 0, G$18*J$18/1000)","v":83.749999999999986}]
["Adelanto por Gastos Funerarios",null,null,null,null,null,{"$f":"CONCATENATE(\"Hasta B/.\", IF(G$18*0.2>3000, 3000, G$18*0.2), \".00\", \" (incluido)\")","v":"Hasta B/.3000.00 (incluido)"},null,null,null,0]
["Muerte Accidental",null,null,null,null,null,null,null,null,{"$f":"IF(G$20=0, \"\",Calculador!AC36)","v":""},{"$f":"IF(ISERROR(G$20*J$20/1000), \"\", G$20*J$20/1000)","v":""}]
["Adelanto por Incapacidad Total y Permanente por Accidente",null,null,null,null,null,null,null,null,{"$f":"IF(G$21=0, \"\",Calculador!AC37)","v":""},{"$f":"IF(ISERROR(G$21*J$21/1000), \"\", G$21*J$21/1000)","v":""}]
["Adelanto del Básico por Cancer",null,null,null,null,null,null,null,null,{"$f":"IF(G$22=0, \"\",Calculador!AC38)","v":""},{"$f":"IF(ISERROR(G$22*J$22/1000), \"\", G$22*J$22/1000)","v":""}]
["Pago Adicional por Cancer",null,null,null,null,null,null,null,null,{"$f":"IF(G$23=0, \"\",Calculador!AC39)","v":""},{"$f":"IF(ISERROR(G$23*J$23/1000), \"\", G$23*J$23/1000)","v":""}]
["Pago Adicional por Gastos Funerarios",null,null,null,null,null,null,null,null,{"$f":"IF(G$24=0, \"\",J$18)","v":""},{"$f":"IF(ISERROR(G$24*J$24/1000), \"\", G$24*J$24/1000)","v":""}]
["Muerte en Transporte Público",null,null,null,null,null,null,null,null,{"$f":"IF(G$25=0, \"\",Calculador!AC40)","v":""},{"$f":"IF(ISERROR(G$25*J$25/1000), \"\", G$25*J$25/1000)","v":""}]
["Muerte Natural Cónyuge",null,null,null,null,null,null,null,null,{"$f":"IF(G$26=0, \"\",Calculador!AC41)","v":""},{"$f":"IF(ISERROR(G$26*J$26/1000), \"\", G$26*J$26/1000)","v":""}]
["Muerte Natural Hijos",null,null,null,null,null,null,null,null,{"$f":"IF(G$27=0, \"\",Calculador!AC42)","v":""},{"$f":"IF(ISERROR(G$27*J$27/1000), \"\", G$27*J$27/1000)","v":""}]
["Adelanto por Enfermedades Graves",null,null,null,null,null,null,null,null,{"$f":"IF(G$28=0, \"\",#REF!)","v":""},{"$f":"IF(ISERROR(G$28*J$28/1000), \"\", G$28*J$28/1000)","v":""}]
["Gastos Médicos por Accidente",null,null,null,null,null,null,null,{"$f":"IF(AND(G$29>0, G$29<=1000), 25, IF(AND(G$29>=1500, G$29<=2500),50, IF(G$29=0,\"\",100)))","v":""},null,{"$f":"IF(G$29=0, \"\", Calculador!AC43)","v":""}]
["Renta Diaria por Hospitalización por Accidente",null,null,null,null,null,null,null,{"$f":"IF(G$30>0, \"3 días\", \"\")","v":""},null,{"$f":"IF(G$30=0, \"\",Calculador!AC44)","v":""}]
["Renta Diaria por Incapacidad Temporal por Accidente",null,null,null,null,null,null,null,{"$f":"IF(G$31>0, \"5 días\", \"\")","v":""},{"$f":"IF(G$31=0, \"\",Calculador!AC45)","v":""},{"$f":"IF(ISERROR(G$31*J$31), \"\", G$31*J$31)","v":""}]
["Servicio de Asistencia Médica Móvil",null,null,null,null,null,null,null,null,null,{"$f":"IF(OR(G$32=0, G$32 = \"No\"), \"\", Calculador!AC46)","v":""}]
["Servicio de Orientación Médica",null,null,null,null,null,null,null,null,null,{"$f":"IF(OR(G$33=0, G$33 = \"No\"), \"\", Calculador!AC47)","v":""}]
["Servicio de Emergencia Odontológica sin Endodoncia",null,null,null,null,null,null,null,null,null,{"$f":"IF(OR(G$34=0, G$34 = \"No\"), \"\", Calculador!AC48)","v":""}]
["Asistencia Funeraria Nacional Individual",null,null,null,null,null,null,null,null,null,{"$f":"IF(OR(G$35=0, G$35 = \"No\"), \"\", Calculador!AC49)","v":""}]
[null,null,null,null,null,null,null,null,null,"Sub-Total",{"$f":"SUM(K$18:K$35)","v":83.749999999999986}]
[null,null,null,"Costos de Adquisición",0.4,null,null,null,null,"Descuento",{"$f":"-(IF(C$14<=9,0,IF(C$14<=15,0.1,IF(C$14<=20,0.13,IF(C$14<=29,0.15,IF(C$14<=59,0.2,IF(C$14<=99,0.25,IF(C$14<=249,0.3,0.35)))))))*(K$36-SUM(K32:K35)))-IF(C$14<=4,0,IF(C$14<=20,0.05,IF(C$14<=50,0.1,IF(C$14<=100,0.15,0.2))))*SUM(K35:K35)","v":-8.3749999999999982}]
[null,null,null,null,null,null,null,null,null,"Impuestos (5%)",{"$f":"SUM(K$36:K$37)*0.05","v":3.7687499999999994}]
[null,null,null,null,"Prima Anual del Colectivo con Impuestos",{"$f":"ROUND(K$39,2)*C$14","v":791.4},null,null,null,"Prima Anual por Persona con Impuestos",{"$f":"SUM(K$36:K$38)","v":79.143749999999983},null,null,null,null,null,null,null,null,null,100]
[]
[null,null,null,null,"Prima Mensual del Colectivo con Impuestos (12 Pagos)",{"$f":"IF(F$39 < 25, 0,ROUND(F$39,2)/12)","v":65.95},null,null,null,"Prima Mensual por Persona con Impuestos",{"$f":"IF(F$39 < 25, 0, ROUND(K$39,2)/12)","v":6.5949999999999998}]
[null,null,null,null,null,null,null,null,null,null,null,0.72,null,null,null,null,null,null,null,null,23]

{"sheet":"Saldo Deudor","index":12,"n_rows":32,"n_cols":7,"rows_kept":32,"cut":false,"hidden":true,"merged":[[13,0,13,1],[7,0,7,1],[7,2,7,4],[5,0,5,6],[0,3,3,6],[9,0,9,1],[11,0,11,1],[25,0,25,4],[26,0,26,4],[27,0,27,4],[22,0,22,4],[23,0,23,4],[24,0,24,4],[19,0,19,4],[20,0,20,4],[21,0,21,4],[15,0,15,5],[16,0,16,4],[17,0,17,4],[18,0,18,4]]}
[null,null,null,"Colectivo de Vida - Saldo Deudor"]
[]
[]
[]
[null,null,null,null,"drojas","CUMPLI02","Comercial_07112017"]
["Datos Generales"]
[]
["Solicitante:",null,"<Nombre del Solicitante>",null,null,"Ocupación:","<Ocupación del Solicitante>"]
[]
["Edad Promedio:",null,30,null,null,"Corredor:","<Corredor del Solicitante>"]
[]
["Clasificación:",null,"A",null,null,"Fecha:",{"$f":"TODAY()","v":"2018-07-26"}]
[]
["Cantidad de Asegurados:",null,10]
[]
["Datos de la Cotización"]
["COBERTURAS",null,null,null,null,"(SI / NO)","TASA ANUAL POR MILLAR"]
["Muerte por Cualquier Causa",null,null,null,null,"SI",{"$f":"Calculador!I44","v":2}]
["Adelanto por Gastos Funerarios",null,null,null,null,{"$f":"F$18","v":"SI"},0]
["Muerte Accidental",null,null,null,null,"NO",{"$f":"IF(F$20=\"NO\", \"\",Calculador!I46)","v":""}]
["Adelanto por Incapacidad Total y Permanente por Accidente",null,null,null,null,"NO",{"$f":"IF(F$21=\"NO\", \"\",Calculador!I47)","v":""}]
["Adelanto del Básico por Cancer",null,null,null,null,"NO",{"$f":"IF(F$22=\"NO\", \"\",Calculador!I48)","v":""}]
["Pago Adicional por Cancer",null,null,null,null,"NO",{"$f":"IF(F$23=\"NO\", \"\",Calculador!I49)","v":""}]
["Pago Adicional por Gastos Funerarios",null,null,null,null,"NO",{"$f":"IF(F$24=\"NO\", \"\",G$18)","v":""}]
["Muerte en Transporte Público",null,null,null,null,"NO",{"$f":"IF(F$25=\"NO\", \"\",Calculador!I51)","v":""}]
["Muerte Natural Cónyuge",null,null,null,null,"NO",{"$f":"IF(F$26=\"NO\", \"\",Calculador!I52)","v":""}]
["Muerte Natural Hijos",null,null,null,null,"NO",{"$f":"IF(F$27=\"NO\", \"\",Calculador!I53)","v":""}]
["Adelanto por Enfermedades Graves",null,null,null,null,"NO",{"$f":"IF(F$28=\"NO\", \"\",Calculador!I54)","v":""}]
[null,null,null,null,null,"Sub-Total",{"$f":"SUM(G$18:G$28)","v":2}]
[null,"Costos de Adquisición",0.4,null,null,"Descuento",{"$f":"-IF(C$14<=9,0,IF(C$14<=15,0.1,IF(C$14<=20,0.13,IF(C$14<=29,0.15,IF(C$14<=59,0.2,IF(C$14<=99,0.25,IF(C$14<=249,0.3,0.35)))))))*G$29","v":-0.2}]
[null,null,null,null,null,"Impuestos (5%)",{"$f":"SUM(G$29:G$30)*0.05","v":9.0000000000000011E-2}]
[null,null,null,null,null,"Tasa Anual por Millar por Persona con Impuestos",{"$f":"SUM(G$29:G$31)","v":1.8900000000000001}]

{"sheet":"Coberturas AP - CV","index":13,"n_rows":732,"n_cols":30,"rows_kept":732,"cut":false,"hidden":true,"merged":[]}
["Concatenado","Cobertura","Suma Asegurada Mínima","Suma Asegurada Máxima","Suma Asegurada Fija","Exposición Fija","Edad Mínima","Edad Máxima","Edad Permanencia","Producto","Ramo Subramo","Ramo","Rol","Tasa Anual por Millar","Prima Anual Fija","Deducible","Indemnización Máxima","Clasificación Riesgo","Tipo de Beneficio","Observaciones"]
[{"$f":"+Tabla1[[#This Row],[Producto]]&Tabla1[[#This Row],[Cobertura]]&Tabla1[[#This Row],[Edad Mínima]]&Tabla1[[#This Row],[Clasificación Riesgo]]","v":"AP IndividualMuerte Accidental17A"},"Muerte Accidental",1000,1580000,0,0,17,60,75,"AP Individual","0703 - Plan Normal","07 - Accidentes Personales",0,1,0,0,0,"A","Básico"]
[{"$f":"+Tabla1[[#This Row],[Producto]]&Tabla1[[#This Row],[Cobertura]]&Tabla1[[#This Row],[Edad Mínima]]&Tabla1[[#This Row],[Clasificación Riesgo]]","v":"AP IndividualMuerte Accidental17B"},"Muerte Accidental",1000,1580000,0,0,17,60,75,"AP Individual","0703 - Plan Normal","07 - Accidentes Personales",0,1.6,0,0,0,"B","Básico"]
[{"$f":"+Tabla1[[#This Row],[Producto]]&Tabla1[[#This Row],[Cobertura]]&Tabla1[[#This Row],[Edad Mínima]]&Tabla1[[#This Row],[Clasificación Riesgo]]","v":"AP IndividualMuerte Accidental17C"},"Muerte Accidental",1000,1580000,0,0,17,60,75,"AP Individual","0703 - Plan Normal","07 - Accidentes Personales",0,2.2000000000000002,0,0,0,"C","Básico"]
[{"$f":"+Tabla1[[#This Row],[Producto]]&Tabla1[[#This Row],[Cobertura]]&Tabla1[[#This Row],[Edad Mínima]]&Tabla1[[#This Row],[Clasificación Riesgo]]","v":"AP IndividualMuerte Accidental61A"},"Muerte Accidental",1000,1580000,0,0,61,70,75,"AP Individual","0703 - Plan Normal","07 - Accidentes Personales",0,1.6,0,0,0,"A","Básico"]
[{"$f":"+Tabla1[[#This Row],[Producto]]&Tabla1[[#This Row],[Cobertura]]&Tabla1[[#This Row],[Edad Mínima]]&Tabla1[[#This Row],[Clasificación Riesgo]]","v":"AP IndividualMuerte Accidental61B"},"Muerte Accidental",1000,1580000,0,0,61,70,75,"AP Individual","0703 - Plan Normal","07 - Accidentes Personales",0,2.2999999999999998,0,0,0,"B","Básico"]
[{"$f":"+Tabla1[[#This Row],[Producto]]&Tabla1[[#This Row],[Cobertura]]&Tabla1[[#This Row],[Edad Mínima]]&Tabla1[[#This Row],[Clasificación Riesgo]]","v":"AP IndividualMuerte Accidental61C"},"Muerte Accidental",1000,1580000,0,0,61,70,75,"AP Individual","0703 - Plan Normal","07 - Accidentes Personales",0,3.25,0,0,0,"C","Básico"]
[{"$f":"+Tabla1[[#This Row],[Producto]]&Tabla1[[#This Row],[Cobertura]]&Tabla1[[#This Row],[Edad Mínima]]&Tabla1[[#This Row],[Clasificación Riesgo]]","v":"AP IndividualMuerte Accidental71A"},"Muerte Accidental",1000,100000,0,0,71,75,75,"AP Individual","0703 - Plan Normal","07 - Accidentes Personales",0,1.65,0,0,0,"A","Básico"]
[{"$f":"+Tabla1[[#This Row],[Producto]]&Tabla1[[#This Row],[Cobertura]]&Tabla1[[#This Row],[Edad Mínima]]&Tabla1[[#This Row],[Clasificación Riesgo]]","v":"AP IndividualMuerte Accidental71B"},"Muerte Accidental",1000,100000,0,0,71,75,75,"AP Individual","0703 - Plan Normal","07 - Accidentes Personales",0,2.4,0,0,0,"B","Básico"]
[{"$f":"+Tabla1[[#This Row],[Producto]]&Tabla1[[#This Row],[Cobertura]]&Tabla1[[#This Row],[Edad Mínima]]&Tabla1[[#This Row],[Clasificación Riesgo]]","v":"AP IndividualMuerte Accidental71C"},"Muerte Accidental",1000,100000,0,0,71,75,75,"AP Individual","0703 - Plan Normal","07 - Accidentes Personales",0,3,0,0,0,"C","Básico"]
[null,"Adelanto por Incapacidad Total y Permanente por Accidente",0,0,"Suma Asegurada de Muerte Accidental",0,18,65,70,"AP Individual","0703 - Plan Normal","07 - Accidentes Personales",0,0,0,0,0,"A","Básico","Beneficio incluido en la tarifa de Muerte Accidental"]
[null,"Adelanto por Incapacidad Total y Permanente por Accidente",0,0,"Suma Asegurada de Muerte Accidental",0,18,65,70,"AP Individual","0703 - Plan Normal","07 - Accidentes Personales",0,0,0,0,0,"B","Básico","Beneficio incluido en la tarifa de Muerte Accidental"]
[null,"Adelanto por Incapacidad Total y Permanente por Accidente",0,0,"Suma Asegurada de Muerte Accidental",0,18,65,70,"AP Individual","0703 - Plan Normal","07 - Accidentes Personales",0,0,0,0,0,"C","Básico","Beneficio incluido en la tarifa de Muerte Accidental"]
[null,"Muerte en Transporte Público",0,0,"Suma Asegurada de Muerte Accidental",0,17,65,70,"AP Individual","0703 - Plan Normal","07 - Accidentes Personales",0,0,0,0,100000,"A","Básico","Beneficio incluido en la tarifa de Muerte Accidental"]
[null,"Muerte en Transporte Público",0,0,"Suma Asegurada de Muerte Accidental",0,17,65,70,"AP Individual","0703 - Plan Normal","07 - Accidentes Personales",0,0,0,0,100000,"B","Básico","Beneficio incluido en la tarifa de Muerte Accidental"]
[null,"Muerte en Transporte Público",0,0,"Suma Asegurada de Muerte Accidental",0,17,65,70,"AP Individual","0703 - Plan Normal","07 - Accidentes Personales",0,0,0,0,100000,"C","Básico","Beneficio incluido en la tarifa de Muerte Accidental"]
[null,"Adelanto por Desmembramiento por Accidente",0,0,"Suma Asegurada de Muerte Accidental",0,17,65,70,"AP Individual","0703 - Plan Normal","07 - Accidentes Personales",0,0,0,0,0,"A","Básico","Beneficio incluido en la tarifa de Muerte Accidental"]
[null,"Adelanto por Desmembramiento por Accidente",0,0,"Suma Asegurada de Muerte Accidental",0,17,65,70,"AP Individual","0703 - Plan Normal","07 - Accidentes Personales",0,0,0,0,0,"B","Básico","Beneficio incluido en la tarifa de Muerte Accidental"]
[null,"Adelanto por Desmembramiento por Accidente",0,0,"Suma Asegurada de Muerte Accidental",0,17,65,70,"AP Individual","0703 - Plan Normal","07 - Accidentes Personales",0,0,0,0,0,"C","Básico","Beneficio incluido en la tarifa de Muerte Accidental"]
[null,"Homicidio Culposo",0,0,"Suma Asegurada de Muerte Accidental",0,17,70,75,"AP Individual","0703 - Plan Normal","07 - Accidentes Personales",0,0,0,0,0,"A","Básico","Beneficio incluido en la tarifa de Muerte Accidental"]
[null,"Homicidio Culposo",0,0,"Suma Asegurada de Muerte Accidental",0,17,70,75,"AP Individual","0703 - Plan Normal","07 - Accidentes Personales",0,0,0,0,0,"B","Básico","Beneficio incluido en la tarifa de Muerte Accidental"]
[null,"Homicidio Culposo",0,0,"Suma Asegurada de Muerte Accidental",0,17,70,75,"AP Individual","0703 - Plan Normal","07 - Accidentes Personales",0,0,0,0,0,"C","Básico","Beneficio incluido en la tarifa de Muerte Accidental"]
[null,"Adelanto por Gastos Funerarios",0,3000,"20% de la Suma Asegurada de Muerte Accidental",0,17,65,70,"AP Individual","0703 - Plan Normal","07 - Accidentes Personales",0,0,0,0,0,"A","Básico","Beneficio incluido en la tarifa de Muerte Accidental"]
[null,"Adelanto por Gastos Funerarios",0,3000,"20% de la Suma Asegurada de Muerte Accidental",0,17,65,70,"AP Individual","0703 - Plan Normal","07 - Accidentes Personales",0,0,0,0,0,"B","Básico","Beneficio incluido en la tarifa de Muerte Accidental"]
[null,"Adelanto por Gastos Funerarios",0,3000,"20% de la Suma Asegurada de Muerte Accidental",0,17,65,70,"AP Individual","0703 - Plan Normal","07 - Accidentes Personales",0,0,0,0,0,"C","Básico","Beneficio incluido en la tarifa de Muerte Accidental"]
[null,"Beneficio Doloso",1000,100000,"Suma Asegurada de Muerte Accidental",0,18,70,75,"AP Individual","0703 - Plan Normal","07 - Accidentes Personales",0,0.25,0,0,0,"A","Adicional"]
[null,"Beneficio Doloso",1000,100000,"Suma Asegurada de Muerte Accidental",0,18,70,75,"AP Individual","0703 - Plan Normal","07 - Accidentes Personales",0,0.25,0,0,0,"B","Adicional"]
[null,"Beneficio Doloso",1000,100000,"Suma Asegurada de Muerte Accidental",0,18,70,75,"AP Individual","0703 - Plan Normal","07 - Accidentes Personales",0,0.3,0,0,0,"C","Adicional"]
[{"$f":"+Tabla1[[#This Row],[Cobertura]]&Tabla1[[#This Row],[Suma Asegurada Fija]]&Tabla1[[#This Row],[Clasificación Riesgo]]","v":"Gastos Médicos500A"},"Gastos Médicos",0,0,500,0,17,65,70,"AP Individual","0703 - Plan Normal","07 - Accidentes Personales",0,0,8.1999999999999993,25,0,"A","Adicional","Cobertura máxima del 10% de la Suma Asegurada en Muerte Accidental"]
[{"$f":"+Tabla1[[#This Row],[Cobertura]]&Tabla1[[#This Row],[Suma Asegurada Fija]]&Tabla1[[#This Row],[Clasificación Riesgo]]","v":"Gastos Médicos500B"},"Gastos Médicos",0,0,500,0,17,65,70,"AP Individual","0703 - Plan Normal","07 - Accidentes Personales",0,0,12,25,0,"B","Adicional","Cobertura máxima del 10% de la Suma Asegurada en Muerte Accidental"]
[{"$f":"+Tabla1[[#This Row],[Cobertura]]&Tabla1[[#This Row],[Suma Asegurada Fija]]&Tabla1[[#This Row],[Clasificación Riesgo]]","v":"Gastos Médicos500C"},"Gastos Médicos",0,0,500,0,17,65,70,"AP Individual","0703 - Plan Normal","07 - Accidentes Personales",0,0,16,25,0,"C","Adicional","Cobertura máxima del 10% de la Suma Asegurada en Muerte Accidental"]
[{"$f":"+Tabla1[[#This Row],[Cobertura]]&Tabla1[[#This Row],[Suma Asegurada Fija]]&Tabla1[[#This Row],[Clasificación Riesgo]]","v":"Gastos Médicos1000A"},"Gastos Médicos",0,0,1000,0,17,65,70,"AP Individual","0703 - Plan Normal","07 - Accidentes Personales",0,0,12,25,0,"A","Adicional","Cobertura máxima del 10% de la Suma Asegurada en Muerte Accidental"]
[{"$f":"+Tabla1[[#This Row],[Cobertura]]&Tabla1[[#This Row],[Suma Asegurada Fija]]&Tabla1[[#This Row],[Clasificación Riesgo]]","v":"Gastos Médicos1000B"},"Gastos Médicos",0,0,1000,0,17,65,70,"AP Individual","0703 - Plan Normal","07 - Accidentes Personales",0,0,21.58,25,0,"B","Adicional","Cobertura máxima del 10% de la Suma Asegurada en Muerte Accidental"]
[{"$f":"+Tabla1[[#This Row],[Cobertura]]&Tabla1[[#This Row],[Suma Asegurada Fija]]&Tabla1[[#This Row],[Clasificación Riesgo]]","v":"Gastos Médicos1000C"},"Gastos Médicos",0,0,1000,0,17,65,70,"AP Individual","0703 - Plan Normal","07 - Accidentes Personales",0,0,26,25,0,"C","Adicional","Cobertura máxima del 10% de la Suma Asegurada en Muerte Accidental"]
[{"$f":"+Tabla1[[#This Row],[Cobertura]]&Tabla1[[#This Row],[Suma Asegurada Fija]]&Tabla1[[#This Row],[Clasificación Riesgo]]","v":"Gastos Médicos1500A"},"Gastos Médicos",0,0,1500,0,17,65,70,"AP Individual","0703 - Plan Normal","07 - Accidentes Personales",0,0,16,50,0,"A","Adicional","Cobertura máxima del 10% de la Suma Asegurada en Muerte Accidental"]
[{"$f":"+Tabla1[[#This Row],[Cobertura]]&Tabla1[[#This Row],[Suma Asegurada Fija]]&Tabla1[[#This Row],[Clasificación Riesgo]]","v":"Gastos Médicos1500B"},"Gastos Médicos",0,0,1500,0,17,65,70,"AP Individual","0703 - Plan Normal","07 - Accidentes Personales",0,0,27,50,0,"B","Adicional","Cobertura máxima del 10% de la Suma Asegurada en Muerte Accidental"]
[{"$f":"+Tabla1[[#This Row],[Cobertura]]&Tabla1[[#This Row],[Suma Asegurada Fija]]&Tabla1[[#This Row],[Clasificación Riesgo]]","v":"Gastos Médicos1500C"},"Gastos Médicos",0,0,1500,0,17,65,70,"AP Individual","0703 - Plan Normal","07 - Accidentes Personales",0,0,36,50,0,"C","Adicional","Cobertura máxima del 10% de la Suma Asegurada en Muerte Accidental"]
[{"$f":"+Tabla1[[#This Row],[Cobertura]]&Tabla1[[#This Row],[Suma Asegurada Fija]]&Tabla1[[#This Row],[Clasificación Riesgo]]","v":"Gastos Médicos2000A"},"Gastos Médicos",0,0,2000,0,17,65,70,"AP Individual","0703 - Plan Normal","07 - Accidentes Personales",0,0,21,50,0,"A","Adicional","Cobertura máxima del 10% de la Suma Asegurada en Muerte Accidental"]
[{"$f":"+Tabla1[[#This Row],[Cobertura]]&Tabla1[[#This Row],[Suma Asegurada Fija]]&Tabla1[[#This Row],[Clasificación Riesgo]]","v":"Gastos Médicos2000B"},"Gastos Médicos",0,0,2000,0,17,65,70,"AP Individual","0703 - Plan Normal","07 - Accidentes Personales",0,0,39.5,50,0,"B","Adicional","Cobertura máxima del 10% de la Suma Asegurada en Muerte Accidental"]
[{"$f":"+Tabla1[[#This Row],[Cobertura]]&Tabla1[[#This Row],[Suma Asegurada Fija]]&Tabla1[[#This Row],[Clasificación Riesgo]]","v":"Gastos Médicos2000C"},"Gastos Médicos",0,0,2000,0,17,65,70,"AP Individual","0703 - Plan Normal","07 - Accidentes Personales",0,0,46.5,50,0,"C","Adicional","Cobertura máxima del 10% de la Suma Asegurada en Muerte Accidental"]
[{"$f":"+Tabla1[[#This Row],[Cobertura]]&Tabla1[[#This Row],[Suma Asegurada Fija]]&Tabla1[[#This Row],[Clasificación Riesgo]]","v":"Gastos Médicos2500A"},"Gastos Médicos",0,0,2500,0,17,65,70,"AP Individual","0703 - Plan Normal","07 - Accidentes Personales",0,0,25,50,0,"A","Adicional","Cobertura máxima del 10% de la Suma Asegurada en Muerte Accidental"]
[{"$f":"+Tabla1[[#This Row],[Cobertura]]&Tabla1[[#This Row],[Suma Asegurada Fija]]&Tabla1[[#This Row],[Clasificación Riesgo]]","v":"Gastos Médicos2500B"},"Gastos Médicos",0,0,2500,0,17,65,70,"AP Individual","0703 - Plan Normal","07 - Accidentes Personales",0,0,45,50,0,"B","Adicional","Cobertura máxima del 10% de la Suma Asegurada en Muerte Accidental"]
[{"$f":"+Tabla1[[#This Row],[Cobertura]]&Tabla1[[#This Row],[Suma Asegurada Fija]]&Tabla1[[#This Row],[Clasificación Riesgo]]","v":"Gastos Médicos2500C"},"Gastos Médicos",0,0,2500,0,17,65,70,"AP Individual","0703 - Plan Normal","07 - Accidentes Personales",0,0,56.5,50,0,"C","Adicional","Cobertura máxima del 10% de la Suma Asegurada en Muerte Accidental",null,null,null,null,null,null,null,null,null,{"$f":"+V29&'Coberturas AP - CV'!$B$5136","v":""}]
[{"$f":"+Tabla1[[#This Row],[Cobertura]]&Tabla1[[#This Row],[Suma Asegurada Fija]]&Tabla1[[#This Row],[Clasificación Riesgo]]","v":"Gastos Médicos3000A"},"Gastos Médicos",0,0,3000,0,17,65,70,"AP Individual","0703 - Plan Normal","07 - Accidentes Personales",0,0,30,100,0,"A","Adicional","Cobertura máxima del 10% de la Suma Asegurada en Muerte Accidental"]
[{"$f":"+Tabla1[[#This Row],[Cobertura]]&Tabla1[[#This Row],[Suma Asegurada Fija]]&Tabla1[[#This Row],[Clasificación Riesgo]]","v":"Gastos Médicos3000B"},"Gastos Médicos",0,0,3000,0,17,65,70,"AP Individual","0703 - Plan Normal","07 - Accidentes Personales",0,0,53.5,100,0,"B","Adicional","Cobertura máxima del 10% de la Suma Asegurada en Muerte Accidental"]
[{"$f":"+Tabla1[[#This Row],[Cobertura]]&Tabla1[[#This Row],[Suma Asegurada Fija]]&Tabla1[[#This Row],[Clasificación Riesgo]]","v":"Gastos Médicos3000C"},"Gastos Médicos",0,0,3000,0,17,65,70,"AP Individual","0703 - Plan Normal","07 - Accidentes Personales",0,0,68,100,0,"C","Adicional","Cobertura máxima del 10% de la Suma Asegurada en Muerte Accidental"]
[{"$f":"+Tabla1[[#This Row],[Cobertura]]&Tabla1[[#This Row],[Suma Asegurada Fija]]&Tabla1[[#This Row],[Clasificación Riesgo]]","v":"Gastos Médicos4000A"},"Gastos Médicos",0,0,4000,0,17,65,70,"AP Individual","0703 - Plan Normal","07 - Accidentes Personales",0,0,40.5,100,0,"A","Adicional","Cobertura máxima del 10% de la Suma Asegurada en Muerte Accidental"]
[{"$f":"+Tabla1[[#This Row],[Cobertura]]&Tabla1[[#This Row],[Suma Asegurada Fija]]&Tabla1[[#This Row],[Clasificación Riesgo]]","v":"Gastos Médicos4000B"},"Gastos Médicos",0,0,4000,0,17,65,70,"AP Individual","0703 - Plan Normal","07 - Accidentes Personales",0,0,70.5,100,0,"B","Adicional","Cobertura máxima del 10% de la Suma Asegurada en Muerte Accidental"]
[{"$f":"+Tabla1[[#This Row],[Cobertura]]&Tabla1[[#This Row],[Suma Asegurada Fija]]&Tabla1[[#This Row],[Clasificación Riesgo]]","v":"Gastos Médicos4000C"},"Gastos Médicos",0,0,4000,0,17,65,70,"AP Individual","0703 - Plan Normal","07 - Accidentes Personales",0,0,93.5,100,0,"C","Adicional","Cobertura máxima del 10% de la Suma Asegurada en Muerte Accidental"]
[{"$f":"+Tabla1[[#This Row],[Cobertura]]&Tabla1[[#This Row],[Suma Asegurada Fija]]&Tabla1[[#This Row],[Clasificación Riesgo]]","v":"Gastos Médicos5000A"},"Gastos Médicos",0,0,5000,0,17,65,70,"AP Individual","0703 - Plan Normal","07 - Accidentes Personales",0,0,48.5,100,0,"A","Adicional","Cobertura máxima del 10% de la Suma Asegurada en Muerte Accidental"]
[{"$f":"+Tabla1[[#This Row],[Cobertura]]&Tabla1[[#This Row],[Suma Asegurada Fija]]&Tabla1[[#This Row],[Clasificación Riesgo]]","v":"Gastos Médicos5000B"},"Gastos Médicos",0,0,5000,0,17,65,70,"AP Individual","0703 - Plan Normal","07 - Accidentes Personales",0,0,85,100,0,"B","Adicional","Cobertura máxima del 10% de la Suma Asegurada en Muerte Accidental"]
[{"$f":"+Tabla1[[#This Row],[Cobertura]]&Tabla1[[#This Row],[Suma Asegurada Fija]]&Tabla1[[#This Row],[Clasificación Riesgo]]","v":"Gastos Médicos5000C"},"Gastos Médicos",0,0,5000,0,17,65,70,"AP Individual","0703 - Plan Normal","07 - Accidentes Personales",0,0,112,100,0,"C","Adicional","Cobertura máxima del 10% de la Suma Asegurada en Muerte Accidental"]
[{"$f":"+Tabla1[[#This Row],[Cobertura]]&Tabla1[[#This Row],[Suma Asegurada Fija]]&Tabla1[[#This Row],[Clasificación Riesgo]]","v":"Gastos Médicos6000A"},"Gastos Médicos",0,0,6000,0,17,65,70,"AP Individual","0703 - Plan Normal","07 - Accidentes Personales",0,0,58.5,100,0,"A","Adicional","Cobertura máxima del 10% de la Suma Asegurada en Muerte Accidental"]
[{"$f":"+Tabla1[[#This Row],[Cobertura]]&Tabla1[[#This Row],[Suma Asegurada Fija]]&Tabla1[[#This Row],[Clasificación Riesgo]]","v":"Gastos Médicos6000B"},"Gastos Médicos",0,0,6000,0,17,65,70,"AP Individual","0703 - Plan Normal","07 - Accidentes Personales",0,0,102.6,100,0,"B","Adicional","Cobertura máxima del 10% de la Suma Asegurada en Muerte Accidental"]
[{"$f":"+Tabla1[[#This Row],[Cobertura]]&Tabla1[[#This Row],[Suma Asegurada Fija]]&Tabla1[[#This Row],[Clasificación Riesgo]]","v":"Gastos Médicos6000C"},"Gastos Médicos",0,0,6000,0,17,65,70,"AP Individual","0703 - Plan Normal","07 - Accidentes Personales",0,0,137.76,100,0,"C","Adicional","Cobertura máxima del 10% de la Suma Asegurada en Muerte Accidental"]
[{"$f":"+Tabla1[[#This Row],[Cobertura]]&Tabla1[[#This Row],[Suma Asegurada Fija]]&Tabla1[[#This Row],[Clasificación Riesgo]]","v":"Gastos Médicos7000A"},"Gastos Médicos",0,0,7000,0,17,65,70,"AP Individual","0703 - Plan Normal","07 - Accidentes Personales",0,0,68.25,100,0,"A","Adicional","Cobertura máxima del 10% de la Suma Asegurada en Muerte Accidental"]
[{"$f":"+Tabla1[[#This Row],[Cobertura]]&Tabla1[[#This Row],[Suma Asegurada Fija]]&Tabla1[[#This Row],[Clasificación Riesgo]]","v":"Gastos Médicos7000B"},"Gastos Médicos",0,0,7000,0,17,65,70,"AP Individual","0703 - Plan Normal","07 - Accidentes Personales",0,0,119.7,100,0,"B","Adicional","Cobertura máxima del 10% de la Suma Asegurada en Muerte Accidental"]
[{"$f":"+Tabla1[[#This Row],[Cobertura]]&Tabla1[[#This Row],[Suma Asegurada Fija]]&Tabla1[[#This Row],[Clasificación Riesgo]]","v":"Gastos Médicos7000C"},"Gastos Médicos",0,0,7000,0,17,65,70,"AP Individual","0703 - Plan Normal","07 - Accidentes Personales",0,0,160.72,100,0,"C","Adicional","Cobertura máxima del 10% de la Suma Asegurada en Muerte Accidental"]
[{"$f":"+Tabla1[[#This Row],[Cobertura]]&Tabla1[[#This Row],[Suma Asegurada Fija]]&Tabla1[[#This Row],[Clasificación Riesgo]]","v":"Gastos Médicos8000A"},"Gastos Médicos",0,0,8000,0,17,65,70,"AP Individual","0703 - Plan Normal","07 - Accidentes Personales",0,0,78,100,0,"A","Adicional","Cobertura máxima del 10% de la Suma Asegurada en Muerte Accidental"]
[{"$f":"+Tabla1[[#This Row],[Cobertura]]&Tabla1[[#This Row],[Suma Asegurada Fija]]&Tabla1[[#This Row],[Clasificación Riesgo]]","v":"Gastos Médicos8000B"},"Gastos Médicos",0,0,8000,0,17,65,70,"AP Individual","0703 - Plan Normal","07 - Accidentes Personales",0,0,136.80000000000001,100,0,"B","Adicional","Cobertura máxima del 10% de la Suma Asegurada en Muerte Accidental"]
[{"$f":"+Tabla1[[#This Row],[Cobertura]]&Tabla1[[#This Row],[Suma Asegurada Fija]]&Tabla1[[#This Row],[Clasificación Riesgo]]","v":"Gastos Médicos8000C"},"Gastos Médicos",0,0,8000,0,17,65,70,"AP Individual","0703 - Plan Normal","07 - Accidentes Personales",0,0,183.68,100,0,"C","Adicional","Cobertura máxima del 10% de la Suma Asegurada en Muerte Accidental"]
[{"$f":"+Tabla1[[#This Row],[Cobertura]]&Tabla1[[#This Row],[Suma Asegurada Fija]]&Tabla1[[#This Row],[Clasificación Riesgo]]","v":"Gastos Médicos9000A"},"Gastos Médicos",0,0,9000,0,17,65,70,"AP Individual","0703 - Plan Normal","07 - Accidentes Personales",0,0,87.75,100,0,"A","Adicional","Cobertura máxima del 10% de la Suma Asegurada en Muerte Accidental"]
[{"$f":"+Tabla1[[#This Row],[Cobertura]]&Tabla1[[#This Row],[Suma Asegurada Fija]]&Tabla1[[#This Row],[Clasificación Riesgo]]","v":"Gastos Médicos9000B"},"Gastos Médicos",0,0,9000,0,17,65,70,"AP Individual","0703 - Plan Normal","07 - Accidentes Personales",0,0,153.9,100,0,"B","Adicional","Cobertura máxima del 10% de la Suma Asegurada en Muerte Accidental"]
[{"$f":"+Tabla1[[#This Row],[Cobertura]]&Tabla1[[#This Row],[Suma Asegurada Fija]]&Tabla1[[#This Row],[Clasificación Riesgo]]","v":"Gastos Médicos9000C"},"Gastos Médicos",0,0,9000,0,17,65,70,"AP Individual","0703 - Plan Normal","07 - Accidentes Personales",0,0,206.64,100,0,"C","Adicional","Cobertura máxima del 10% de la Suma Asegurada en Muerte Accidental"]
[{"$f":"+Tabla1[[#This Row],[Cobertura]]&Tabla1[[#This Row],[Suma Asegurada Fija]]&Tabla1[[#This Row],[Clasificación Riesgo]]","v":"Gastos Médicos10000A"},"Gastos Médicos",0,0,10000,0,17,65,70,"AP Individual","0703 - Plan Normal","07 - Accidentes Personales",0,0,97.5,100,0,"A","Adicional","Cobertura máxima del 10% de la Suma Asegurada en Muerte Accidental"]
[{"$f":"+Tabla1[[#This Row],[Cobertura]]&Tabla1[[#This Row],[Suma Asegurada Fija]]&Tabla1[[#This Row],[Clasificación Riesgo]]","v":"Gastos Médicos10000B"},"Gastos Médicos",0,0,10000,0,17,65,70,"AP Individual","0703 - Plan Normal","07 - Accidentes Personales",0,0,171,100,0,"B","Adicional","Cobertura máxima del 10% de la Suma Asegurada en Muerte Accidental"]
[{"$f":"+Tabla1[[#This Row],[Cobertura]]&Tabla1[[#This Row],[Suma Asegurada Fija]]&Tabla1[[#This Row],[Clasificación Riesgo]]","v":"Gastos Médicos10000C"},"Gastos Médicos",0,0,10000,0,17,65,70,"AP Individual","0703 - Plan Normal","07 - Accidentes Personales",0,0,229.6,100,0,"C","Adicional","Cobertura máxima del 10% de la Suma Asegurada en Muerte Accidental"]
[{"$f":"+Tabla1[[#This Row],[Cobertura]]&Tabla1[[#This Row],[Suma Asegurada Fija]]&Tabla1[[#This Row],[Clasificación Riesgo]]","v":"Gastos Médicos11000A"},"Gastos Médicos",0,0,11000,0,17,65,70,"AP Individual","0703 - Plan Normal","07 - Accidentes Personales",0,0,107.25,100,0,"A","Adicional","Cobertura máxima del 10% de la Suma Asegurada en Muerte Accidental"]
[{"$f":"+Tabla1[[#This Row],[Cobertura]]&Tabla1[[#This Row],[Suma Asegurada Fija]]&Tabla1[[#This Row],[Clasificación Riesgo]]","v":"Gastos Médicos11000B"},"Gastos Médicos",0,0,11000,0,17,65,70,"AP Individual","0703 - Plan Normal","07 - Accidentes Personales",0,0,188.1,100,0,"B","Adicional","Cobertura máxima del 10% de la Suma Asegurada en Muerte Accidental"]
[{"$f":"+Tabla1[[#This Row],[Cobertura]]&Tabla1[[#This Row],[Suma Asegurada Fija]]&Tabla1[[#This Row],[Clasificación Riesgo]]","v":"Gastos Médicos11000C"},"Gastos Médicos",0,0,11000,0,17,65,70,"AP Individual","0703 - Plan Normal","07 - Accidentes Personales",0,0,252.56,100,0,"C","Adicional","Cobertura máxima del 10% de la Suma Asegurada en Muerte Accidental"]
[{"$f":"+Tabla1[[#This Row],[Cobertura]]&Tabla1[[#This Row],[Suma Asegurada Fija]]&Tabla1[[#This Row],[Clasificación Riesgo]]","v":"Gastos Médicos12000A"},"Gastos Médicos",0,0,12000,0,17,65,70,"AP Individual","0703 - Plan Normal","07 - Accidentes Personales",0,0,117,100,0,"A","Adicional","Cobertura máxima del 10% de la Suma Asegurada en Muerte Accidental"]
[{"$f":"+Tabla1[[#This Row],[Cobertura]]&Tabla1[[#This Row],[Suma Asegurada Fija]]&Tabla1[[#This Row],[Clasificación Riesgo]]","v":"Gastos Médicos12000B"},"Gastos Médicos",0,0,12000,0,17,65,70,"AP Individual","0703 - Plan Normal","07 - Accidentes Personales",0,0,205.20000000000002,100,0,"B","Adicional","Cobertura máxima del 10% de la Suma Asegurada en Muerte Accidental"]
[{"$f":"+Tabla1[[#This Row],[Cobertura]]&Tabla1[[#This Row],[Suma Asegurada Fija]]&Tabla1[[#This Row],[Clasificación Riesgo]]","v":"Gastos Médicos12000C"},"Gastos Médicos",0,0,12000,0,17,65,70,"AP Individual","0703 - Plan Normal","07 - Accidentes Personales",0,0,275.52,100,0,"C","Adicional","Cobertura máxima del 10% de la Suma Asegurada en Muerte Accidental"]
[{"$f":"+Tabla1[[#This Row],[Cobertura]]&Tabla1[[#This Row],[Suma Asegurada Fija]]&Tabla1[[#This Row],[Clasificación Riesgo]]","v":"Gastos Médicos13000A"},"Gastos Médicos",0,0,13000,0,17,65,70,"AP Individual","0703 - Plan Normal","07 - Accidentes Personales",0,0,126.75,100,0,"A","Adicional","Cobertura máxima del 10% de la Suma Asegurada en Muerte Accidental"]
[{"$f":"+Tabla1[[#This Row],[Cobertura]]&Tabla1[[#This Row],[Suma Asegurada Fija]]&Tabla1[[#This Row],[Clasificación Riesgo]]","v":"Gastos Médicos13000B"},"Gastos Médicos",0,0,13000,0,17,65,70,"AP Individual","0703 - Plan Normal","07 - Accidentes Personales",0,0,222.3,100,0,"B","Adicional","Cobertura máxima del 10% de la Suma Asegurada en Muerte Accidental"]
[{"$f":"+Tabla1[[#This Row],[Cobertura]]&Tabla1[[#This Row],[Suma Asegurada Fija]]&Tabla1[[#This Row],[Clasificación Riesgo]]","v":"Gastos Médicos13000C"},"Gastos Médicos",0,0,13000,0,17,65,70,"AP Individual","0703 - Plan Normal","07 - Accidentes Personales",0,0,298.48,100,0,"C","Adicional","Cobertura máxima del 10% de la Suma Asegurada en Muerte Accidental"]
[{"$f":"+Tabla1[[#This Row],[Cobertura]]&Tabla1[[#This Row],[Suma Asegurada Fija]]&Tabla1[[#This Row],[Clasificación Riesgo]]","v":"Gastos Médicos14000A"},"Gastos Médicos",0,0,14000,0,17,65,70,"AP Individual","0703 - Plan Normal","07 - Accidentes Personales",0,0,136.5,100,0,"A","Adicional","Cobertura máxima del 10% de la Suma Asegurada en Muerte Accidental"]
[{"$f":"+Tabla1[[#This Row],[Cobertura]]&Tabla1[[#This Row],[Suma Asegurada Fija]]&Tabla1[[#This Row],[Clasificación Riesgo]]","v":"Gastos Médicos14000B"},"Gastos Médicos",0,0,14000,0,17,65,70,"AP Individual","0703 - Plan Normal","07 - Accidentes Personales",0,0,239.40000000000003,100,0,"B","Adicional","Cobertura máxima del 10% de la Suma Asegurada en Muerte Accidental"]
[{"$f":"+Tabla1[[#This Row],[Cobertura]]&Tabla1[[#This Row],[Suma Asegurada Fija]]&Tabla1[[#This Row],[Clasificación Riesgo]]","v":"Gastos Médicos14000C"},"Gastos Médicos",0,0,14000,0,17,65,70,"AP Individual","0703 - Plan Normal","07 - Accidentes Personales",0,0,321.44,100,0,"C","Adicional","Cobertura máxima del 10% de la Suma Asegurada en Muerte Accidental"]
[{"$f":"+Tabla1[[#This Row],[Cobertura]]&Tabla1[[#This Row],[Suma Asegurada Fija]]&Tabla1[[#This Row],[Clasificación Riesgo]]","v":"Gastos Médicos15000A"},"Gastos Médicos",0,0,15000,0,17,65,70,"AP Individual","0703 - Plan Normal","07 - Accidentes Personales",0,0,146.25,100,0,"A","Adicional","Cobertura máxima del 10% de la Suma Asegurada en Muerte Accidental"]
[{"$f":"+Tabla1[[#This Row],[Cobertura]]&Tabla1[[#This Row],[Suma Asegurada Fija]]&Tabla1[[#This Row],[Clasificación Riesgo]]","v":"Gastos Médicos15000B"},"Gastos Médicos",0,0,15000,0,17,65,70,"AP Individual","0703 - Plan Normal","07 - Accidentes Personales",0,0,256.5,100,0,"B","Adicional","Cobertura máxima del 10% de la Suma Asegurada en Muerte Accidental"]
[{"$f":"+Tabla1[[#This Row],[Cobertura]]&Tabla1[[#This Row],[Suma Asegurada Fija]]&Tabla1[[#This Row],[Clasificación Riesgo]]","v":"Gastos Médicos15000C"},"Gastos Médicos",0,0,15000,0,17,65,70,"AP Individual","0703 - Plan Normal","07 - Accidentes Personales",0,0,344.40000000000003,100,0,"C","Adicional","Cobertura máxima del 10% de la Suma Asegurada en Muerte Accidental"]
[{"$f":"+Tabla1[[#This Row],[Cobertura]]&Tabla1[[#This Row],[Suma Asegurada Fija]]&Tabla1[[#This Row],[Clasificación Riesgo]]","v":"Gastos Médicos16000A"},"Gastos Médicos",0,0,16000,0,17,65,70,"AP Individual","0703 - Plan Normal","07 - Accidentes Personales",0,0,156,100,0,"A","Adicional","Cobertura máxima del 10% de la Suma Asegurada en Muerte Accidental"]
[{"$f":"+Tabla1[[#This Row],[Cobertura]]&Tabla1[[#This Row],[Suma Asegurada Fija]]&Tabla1[[#This Row],[Clasificación Riesgo]]","v":"Gastos Médicos16000B"},"Gastos Médicos",0,0,16000,0,17,65,70,"AP Individual","0703 - Plan Normal","07 - Accidentes Personales",0,0,273.60000000000002,100,0,"B","Adicional","Cobertura máxima del 10% de la Suma Asegurada en Muerte Accidental"]
[{"$f":"+Tabla1[[#This Row],[Cobertura]]&Tabla1[[#This Row],[Suma Asegurada Fija]]&Tabla1[[#This Row],[Clasificación Riesgo]]","v":"Gastos Médicos16000C"},"Gastos Médicos",0,0,16000,0,17,65,70,"AP Individual","0703 - Plan Normal","07 - Accidentes Personales",0,0,367.36,100,0,"C","Adicional","Cobertura máxima del 10% de la Suma Asegurada en Muerte Accidental"]
[{"$f":"+Tabla1[[#This Row],[Cobertura]]&Tabla1[[#This Row],[Suma Asegurada Fija]]&Tabla1[[#This Row],[Clasificación Riesgo]]","v":"Gastos Médicos17000A"},"Gastos Médicos",0,0,17000,0,17,65,70,"AP Individual","0703 - Plan Normal","07 - Accidentes Personales",0,0,165.75,100,0,"A","Adicional","Cobertura máxima del 10% de la Suma Asegurada en Muerte Accidental"]
[{"$f":"+Tabla1[[#This Row],[Cobertura]]&Tabla1[[#This Row],[Suma Asegurada Fija]]&Tabla1[[#This Row],[Clasificación Riesgo]]","v":"Gastos Médicos17000B"},"Gastos Médicos",0,0,17000,0,17,65,70,"AP Individual","0703 - Plan Normal","07 - Accidentes Personales",0,0,290.70000000000005,100,0,"B","Adicional","Cobertura máxima del 10% de la Suma Asegurada en Muerte Accidental"]
[{"$f":"+Tabla1[[#This Row],[Cobertura]]&Tabla1[[#This Row],[Suma Asegurada Fija]]&Tabla1[[#This Row],[Clasificación Riesgo]]","v":"Gastos Médicos17000C"},"Gastos Médicos",0,0,17000,0,17,65,70,"AP Individual","0703 - Plan Normal","07 - Accidentes Personales",0,0,390.32,100,0,"C","Adicional","Cobertura máxima del 10% de la Suma Asegurada en Muerte Accidental"]
[{"$f":"+Tabla1[[#This Row],[Cobertura]]&Tabla1[[#This Row],[Suma Asegurada Fija]]&Tabla1[[#This Row],[Clasificación Riesgo]]","v":"Gastos Médicos18000A"},"Gastos Médicos",0,0,18000,0,17,65,70,"AP Individual","0703 - Plan Normal","07 - Accidentes Personales",0,0,175.5,100,0,"A","Adicional","Cobertura máxima del 10% de la Suma Asegurada en Muerte Accidental"]
[{"$f":"+Tabla1[[#This Row],[Cobertura]]&Tabla1[[#This Row],[Suma Asegurada Fija]]&Tabla1[[#This Row],[Clasificación Riesgo]]","v":"Gastos Médicos18000B"},"Gastos Médicos",0,0,18000,0,17,65,70,"AP Individual","0703 - Plan Normal","07 - Accidentes Personales",0,0,307.8,100,0,"B","Adicional","Cobertura máxima del 10% de la Suma Asegurada en Muerte Accidental"]
[{"$f":"+Tabla1[[#This Row],[Cobertura]]&Tabla1[[#This Row],[Suma Asegurada Fija]]&Tabla1[[#This Row],[Clasificación Riesgo]]","v":"Gastos Médicos18000C"},"Gastos Médicos",0,0,18000,0,17,65,70,"AP Individual","0703 - Plan Normal","07 - Accidentes Personales",0,0,413.28000000000003,100,0,"C","Adicional","Cobertura máxima del 10% de la Suma Asegurada en Muerte Accidental"]
[{"$f":"+Tabla1[[#This Row],[Cobertura]]&Tabla1[[#This Row],[Suma Asegurada Fija]]&Tabla1[[#This Row],[Clasificación Riesgo]]","v":"Gastos Médicos19000A"},"Gastos Médicos",0,0,19000,0,17,65,70,"AP Individual","0703 - Plan Normal","07 - Accidentes Personales",0,0,185.25,100,0,"A","Adicional","Cobertura máxima del 10% de la Suma Asegurada en Muerte Accidental"]
[{"$f":"+Tabla1[[#This Row],[Cobertura]]&Tabla1[[#This Row],[Suma Asegurada Fija]]&Tabla1[[#This Row],[Clasificación Riesgo]]","v":"Gastos Médicos19000B"},"Gastos Médicos",0,0,19000,0,17,65,70,"AP Individual","0703 - Plan Normal","07 - Accidentes Personales",0,0,324.90000000000003,100,0,"B","Adicional","Cobertura máxima del 10% de la Suma Asegurada en Muerte Accidental"]
[{"$f":"+Tabla1[[#This Row],[Cobertura]]&Tabla1[[#This Row],[Suma Asegurada Fija]]&Tabla1[[#This Row],[Clasificación Riesgo]]","v":"Gastos Médicos19000C"},"Gastos Médicos",0,0,19000,0,17,65,70,"AP Individual","0703 - Plan Normal","07 - Accidentes Personales",0,0,436.24,100,0,"C","Adicional","Cobertura máxima del 10% de la Suma Asegurada en Muerte Accidental"]
[{"$f":"+Tabla1[[#This Row],[Cobertura]]&Tabla1[[#This Row],[Suma Asegurada Fija]]&Tabla1[[#This Row],[Clasificación Riesgo]]","v":"Gastos Médicos20000A"},"Gastos Médicos",0,0,20000,0,17,65,70,"AP Individual","0703 - Plan Normal","07 - Accidentes Personales",0,0,195,100,0,"A","Adicional","Cobertura máxima del 10% de la Suma Asegurada en Muerte Accidental"]
[{"$f":"+Tabla1[[#This Row],[Cobertura]]&Tabla1[[#This Row],[Suma Asegurada Fija]]&Tabla1[[#This Row],[Clasificación Riesgo]]","v":"Gastos Médicos20000B"},"Gastos Médicos",0,0,20000,0,17,65,70,"AP Individual","0703 - Plan Normal","07 - Accidentes Personales",0,0,342,100,0,"B","Adicional","Cobertura máxima del 10% de la Suma Asegurada en Muerte Accidental"]
[{"$f":"+Tabla1[[#This Row],[Cobertura]]&Tabla1[[#This Row],[Suma Asegurada Fija]]&Tabla1[[#This Row],[Clasificación Riesgo]]","v":"Gastos Médicos20000C"},"Gastos Médicos",0,0,20000,0,17,65,70,"AP Individual","0703 - Plan Normal","07 - Accidentes Personales",0,0,459.20000000000005,100,0,"C","Adicional","Cobertura máxima del 10% de la Suma Asegurada en Muerte Accidental"]
[{"$f":"+Tabla1[[#This Row],[Cobertura]]&Tabla1[[#This Row],[Suma Asegurada Fija]]&Tabla1[[#This Row],[Clasificación Riesgo]]","v":"Gastos Médicos21000A"},"Gastos Médicos",0,0,21000,0,17,65,70,"AP Individual","0703 - Plan Normal","07 - Accidentes Personales",0,0,204.75,100,0,"A","Adicional","Cobertura máxima del 10% de la Suma Asegurada en Muerte Accidental"]
[{"$f":"+Tabla1[[#This Row],[Cobertura]]&Tabla1[[#This Row],[Suma Asegurada Fija]]&Tabla1[[#This Row],[Clasificación Riesgo]]","v":"Gastos Médicos21000B"},"Gastos Médicos",0,0,21000,0,17,65,70,"AP Individual","0703 - Plan Normal","07 - Accidentes Personales",0,0,359.1,100,0,"B","Adicional","Cobertura máxima del 10% de la Suma Asegurada en Muerte Accidental"]
[{"$f":"+Tabla1[[#This Row],[Cobertura]]&Tabla1[[#This Row],[Suma Asegurada Fija]]&Tabla1[[#This Row],[Clasificación Riesgo]]","v":"Gastos Médicos21000C"},"Gastos Médicos",0,0,21000,0,17,65,70,"AP Individual","0703 - Plan Normal","07 - Accidentes Personales",0,0,482.16,100,0,"C","Adicional","Cobertura máxima del 10% de la Suma Asegurada en Muerte Accidental"]
[{"$f":"+Tabla1[[#This Row],[Cobertura]]&Tabla1[[#This Row],[Suma Asegurada Fija]]&Tabla1[[#This Row],[Clasificación Riesgo]]","v":"Gastos Médicos22000A"},"Gastos Médicos",0,0,22000,0,17,65,70,"AP Individual","0703 - Plan Normal","07 - Accidentes Personales",0,0,214.5,100,0,"A","Adicional","Cobertura máxima del 10% de la Suma Asegurada en Muerte Accidental"]
[{"$f":"+Tabla1[[#This Row],[Cobertura]]&Tabla1[[#This Row],[Suma Asegurada Fija]]&Tabla1[[#This Row],[Clasificación Riesgo]]","v":"Gastos Médicos22000B"},"Gastos Médicos",0,0,22000,0,17,65,70,"AP Individual","0703 - Plan Normal","07 - Accidentes Personales",0,0,376.20000000000005,100,0,"B","Adicional","Cobertura máxima del 10% de la Suma Asegurada en Muerte Accidental"]
[{"$f":"+Tabla1[[#This Row],[Cobertura]]&Tabla1[[#This Row],[Suma Asegurada Fija]]&Tabla1[[#This Row],[Clasificación Riesgo]]","v":"Gastos Médicos22000C"},"Gastos Médicos",0,0,22000,0,17,65,70,"AP Individual","0703 - Plan Normal","07 - Accidentes Personales",0,0,505.12,100,0,"C","Adicional","Cobertura máxima del 10% de la Suma Asegurada en Muerte Accidental"]
[{"$f":"+Tabla1[[#This Row],[Cobertura]]&Tabla1[[#This Row],[Suma Asegurada Fija]]&Tabla1[[#This Row],[Clasificación Riesgo]]","v":"Gastos Médicos23000A"},"Gastos Médicos",0,0,23000,0,17,65,70,"AP Individual","0703 - Plan Normal","07 - Accidentes Personales",0,0,224.25,100,0,"A","Adicional","Cobertura máxima del 10% de la Suma Asegurada en Muerte Accidental"]
[{"$f":"+Tabla1[[#This Row],[Cobertura]]&Tabla1[[#This Row],[Suma Asegurada Fija]]&Tabla1[[#This Row],[Clasificación Riesgo]]","v":"Gastos Médicos23000B"},"Gastos Médicos",0,0,23000,0,17,65,70,"AP Individual","0703 - Plan Normal","07 - Accidentes Personales",0,0,393.3,100,0,"B","Adicional","Cobertura máxima del 10% de la Suma Asegurada en Muerte Accidental"]
[{"$f":"+Tabla1[[#This Row],[Cobertura]]&Tabla1[[#This Row],[Suma Asegurada Fija]]&Tabla1[[#This Row],[Clasificación Riesgo]]","v":"Gastos Médicos23000C"},"Gastos Médicos",0,0,23000,0,17,65,70,"AP Individual","0703 - Plan Normal","07 - Accidentes Personales",0,0,528.08000000000004,100,0,"C","Adicional","Cobertura máxima del 10% de la Suma Asegurada en Muerte Accidental"]
[{"$f":"+Tabla1[[#This Row],[Cobertura]]&Tabla1[[#This Row],[Suma Asegurada Fija]]&Tabla1[[#This Row],[Clasificación Riesgo]]","v":"Gastos Médicos24000A"},"Gastos Médicos",0,0,24000,0,17,65,70,"AP Individual","0703 - Plan Normal","07 - Accidentes Personales",0,0,234,100,0,"A","Adicional","Cobertura máxima del 10% de la Suma Asegurada en Muerte Accidental"]
[{"$f":"+Tabla1[[#This Row],[Cobertura]]&Tabla1[[#This Row],[Suma Asegurada Fija]]&Tabla1[[#This Row],[Clasificación Riesgo]]","v":"Gastos Médicos24000B"},"Gastos Médicos",0,0,24000,0,17,65,70,"AP Individual","0703 - Plan Normal","07 - Accidentes Personales",0,0,410.40000000000003,100,0,"B","Adicional","Cobertura máxima del 10% de la Suma Asegurada en Muerte Accidental"]
[{"$f":"+Tabla1[[#This Row],[Cobertura]]&Tabla1[[#This Row],[Suma Asegurada Fija]]&Tabla1[[#This Row],[Clasificación Riesgo]]","v":"Gastos Médicos24000C"},"Gastos Médicos",0,0,24000,0,17,65,70,"AP Individual","0703 - Plan Normal","07 - Accidentes Personales",0,0,551.04,100,0,"C","Adicional","Cobertura máxima del 10% de la Suma Asegurada en Muerte Accidental"]
[{"$f":"+Tabla1[[#This Row],[Cobertura]]&Tabla1[[#This Row],[Suma Asegurada Fija]]&Tabla1[[#This Row],[Clasificación Riesgo]]","v":"Gastos Médicos25000A"},"Gastos Médicos",0,0,25000,0,17,65,70,"AP Individual","0703 - Plan Normal","07 - Accidentes Personales",0,0,243.75,100,0,"A","Adicional","Cobertura máxima del 10% de la Suma Asegurada en Muerte Accidental"]
[{"$f":"+Tabla1[[#This Row],[Cobertura]]&Tabla1[[#This Row],[Suma Asegurada Fija]]&Tabla1[[#This Row],[Clasificación Riesgo]]","v":"Gastos Médicos25000B"},"Gastos Médicos",0,0,25000,0,17,65,70,"AP Individual","0703 - Plan Normal","07 - Accidentes Personales",0,0,427.50000000000006,100,0,"B","Adicional","Cobertura máxima del 10% de la Suma Asegurada en Muerte Accidental"]
[{"$f":"+Tabla1[[#This Row],[Cobertura]]&Tabla1[[#This Row],[Suma Asegurada Fija]]&Tabla1[[#This Row],[Clasificación Riesgo]]","v":"Gastos Médicos25000C"},"Gastos Médicos",0,0,25000,0,17,65,70,"AP Individual","0703 - Plan Normal","07 - Accidentes Personales",0,0,574,100,0,"C","Adicional","Cobertura máxima del 10% de la Suma Asegurada en Muerte Accidental"]
[{"$f":"+Tabla1[[#This Row],[Cobertura]]&Tabla1[[#This Row],[Suma Asegurada Fija]]&Tabla1[[#This Row],[Clasificación Riesgo]]","v":"Gastos Médicos26000A"},"Gastos Médicos",0,0,26000,0,17,65,70,"AP Individual","0703 - Plan Normal","07 - Accidentes Personales",0,0,253.5,100,0,"A","Adicional","Cobertura máxima del 10% de la Suma Asegurada en Muerte Accidental"]
[{"$f":"+Tabla1[[#This Row],[Cobertura]]&Tabla1[[#This Row],[Suma Asegurada Fija]]&Tabla1[[#This Row],[Clasificación Riesgo]]","v":"Gastos Médicos26000B"},"Gastos Médicos",0,0,26000,0,17,65,70,"AP Individual","0703 - Plan Normal","07 - Accidentes Personales",0,0,444.6,100,0,"B","Adicional","Cobertura máxima del 10% de la Suma Asegurada en Muerte Accidental"]
[{"$f":"+Tabla1[[#This Row],[Cobertura]]&Tabla1[[#This Row],[Suma Asegurada Fija]]&Tabla1[[#This Row],[Clasificación Riesgo]]","v":"Gastos Médicos26000C"},"Gastos Médicos",0,0,26000,0,17,65,70,"AP Individual","0703 - Plan Normal","07 - Accidentes Personales",0,0,596.96,100,0,"C","Adicional","Cobertura máxima del 10% de la Suma Asegurada en Muerte Accidental"]
[{"$f":"+Tabla1[[#This Row],[Cobertura]]&Tabla1[[#This Row],[Suma Asegurada Fija]]&Tabla1[[#This Row],[Clasificación Riesgo]]","v":"Gastos Médicos27000A"},"Gastos Médicos",0,0,27000,0,17,65,70,"AP Individual","0703 - Plan Normal","07 - Accidentes Personales",0,0,263.25,100,0,"A","Adicional","Cobertura máxima del 10% de la Suma Asegurada en Muerte Accidental"]
[{"$f":"+Tabla1[[#This Row],[Cobertura]]&Tabla1[[#This Row],[Suma Asegurada Fija]]&Tabla1[[#This Row],[Clasificación Riesgo]]","v":"Gastos Médicos27000B"},"Gastos Médicos",0,0,27000,0,17,65,70,"AP Individual","0703 - Plan Normal","07 - Accidentes Personales",0,0,461.70000000000005,100,0,"B","Adicional","Cobertura máxima del 10% de la Suma Asegurada en Muerte Accidental"]
[{"$f":"+Tabla1[[#This Row],[Cobertura]]&Tabla1[[#This Row],[Suma Asegurada Fija]]&Tabla1[[#This Row],[Clasificación Riesgo]]","v":"Gastos Médicos27000C"},"Gastos Médicos",0,0,27000,0,17,65,70,"AP Individual","0703 - Plan Normal","07 - Accidentes Personales",0,0,619.92000000000007,100,0,"C","Adicional","Cobertura máxima del 10% de la Suma Asegurada en Muerte Accidental"]
[{"$f":"+Tabla1[[#This Row],[Cobertura]]&Tabla1[[#This Row],[Suma Asegurada Fija]]&Tabla1[[#This Row],[Clasificación Riesgo]]","v":"Gastos Médicos28000A"},"Gastos Médicos",0,0,28000,0,17,65,70,"AP Individual","0703 - Plan Normal","07 - Accidentes Personales",0,0,273,100,0,"A","Adicional","Cobertura máxima del 10% de la Suma Asegurada en Muerte Accidental"]
[{"$f":"+Tabla1[[#This Row],[Cobertura]]&Tabla1[[#This Row],[Suma Asegurada Fija]]&Tabla1[[#This Row],[Clasificación Riesgo]]","v":"Gastos Médicos28000B"},"Gastos Médicos",0,0,28000,0,17,65,70,"AP Individual","0703 - Plan Normal","07 - Accidentes Personales",0,0,478.80000000000007,100,0,"B","Adicional","Cobertura máxima del 10% de la Suma Asegurada en Muerte Accidental"]
[{"$f":"+Tabla1[[#This Row],[Cobertura]]&Tabla1[[#This Row],[Suma Asegurada Fija]]&Tabla1[[#This Row],[Clasificación Riesgo]]","v":"Gastos Médicos28000C"},"Gastos Médicos",0,0,28000,0,17,65,70,"AP Individual","0703 - Plan Normal","07 - Accidentes Personales",0,0,642.88,100,0,"C","Adicional","Cobertura máxima del 10% de la Suma Asegurada en Muerte Accidental"]
[{"$f":"+Tabla1[[#This Row],[Cobertura]]&Tabla1[[#This Row],[Suma Asegurada Fija]]&Tabla1[[#This Row],[Clasificación Riesgo]]","v":"Gastos Médicos29000A"},"Gastos Médicos",0,0,29000,0,17,65,70,"AP Individual","0703 - Plan Normal","07 - Accidentes Personales",0,0,282.75,100,0,"A","Adicional","Cobertura máxima del 10% de la Suma Asegurada en Muerte Accidental"]
[{"$f":"+Tabla1[[#This Row],[Cobertura]]&Tabla1[[#This Row],[Suma Asegurada Fija]]&Tabla1[[#This Row],[Clasificación Riesgo]]","v":"Gastos Médicos29000B"},"Gastos Médicos",0,0,29000,0,17,65,70,"AP Individual","0703 - Plan Normal","07 - Accidentes Personales",0,0,495.90000000000003,100,0,"B","Adicional","Cobertura máxima del 10% de la Suma Asegurada en Muerte Accidental"]
[{"$f":"+Tabla1[[#This Row],[Cobertura]]&Tabla1[[#This Row],[Suma Asegurada Fija]]&Tabla1[[#This Row],[Clasificación Riesgo]]","v":"Gastos Médicos29000C"},"Gastos Médicos",0,0,29000,0,17,65,70,"AP Individual","0703 - Plan Normal","07 - Accidentes Personales",0,0,665.84,100,0,"C","Adicional","Cobertura máxima del 10% de la Suma Asegurada en Muerte Accidental"]
[{"$f":"+Tabla1[[#This Row],[Cobertura]]&Tabla1[[#This Row],[Suma Asegurada Fija]]&Tabla1[[#This Row],[Clasificación Riesgo]]","v":"Gastos Médicos30000A"},"Gastos Médicos",0,0,30000,0,17,65,70,"AP Individual","0703 - Plan Normal","07 - Accidentes Personales",0,0,292.5,100,0,"A","Adicional","Cobertura máxima del 10% de la Suma Asegurada en Muerte Accidental"]
[{"$f":"+Tabla1[[#This Row],[Cobertura]]&Tabla1[[#This Row],[Suma Asegurada Fija]]&Tabla1[[#This Row],[Clasificación Riesgo]]","v":"Gastos Médicos30000B"},"Gastos Médicos",0,0,30000,0,17,65,70,"AP Individual","0703 - Plan Normal","07 - Accidentes Personales",0,0,513,100,0,"B","Adicional","Cobertura máxima del 10% de la Suma Asegurada en Muerte Accidental"]
[{"$f":"+Tabla1[[#This Row],[Cobertura]]&Tabla1[[#This Row],[Suma Asegurada Fija]]&Tabla1[[#This Row],[Clasificación Riesgo]]","v":"Gastos Médicos30000C"},"Gastos Médicos",0,0,30000,0,17,65,70,"AP Individual","0703 - Plan Normal","07 - Accidentes Personales",0,0,688.80000000000007,100,0,"C","Adicional","Cobertura máxima del 10% de la Suma Asegurada en Muerte Accidental"]
[{"$f":"+Tabla1[[#This Row],[Cobertura]]&Tabla1[[#This Row],[Suma Asegurada Fija]]&Tabla1[[#This Row],[Clasificación Riesgo]]","v":"Gastos Médicos0A"},"Gastos Médicos",10001,30000,0,0,17,65,70,"AP Individual","0703 - Plan Normal","07 - Accidentes Personales",0,9.75,0,100,30000,"A","Adicional","Cobertura máxima del 10% de la Suma Asegurada en Muerte Accidental"]
[{"$f":"+Tabla1[[#This Row],[Cobertura]]&Tabla1[[#This Row],[Suma Asegurada Fija]]&Tabla1[[#This Row],[Clasificación Riesgo]]","v":"Gastos Médicos0B"},"Gastos Médicos",10001,30000,0,0,17,65,70,"AP Individual","0703 - Plan Normal","07 - Accidentes Personales",0,17.100000000000001,0,100,30000,"B","Adicional","Cobertura máxima del 10% de la Suma Asegurada en Muerte Accidental"]
[{"$f":"+Tabla1[[#This Row],[Cobertura]]&Tabla1[[#This Row],[Suma Asegurada Fija]]&Tabla1[[#This Row],[Clasificación Riesgo]]","v":"Gastos Médicos0C"},"Gastos Médicos",10001,30000,0,0,17,65,70,"AP Individual","0703 - Plan Normal","07 - Accidentes Personales",0,22.96,0,100,30000,"C","Adicional","Cobertura máxima del 10% de la Suma Asegurada en Muerte Accidental"]
[null,"Muerte Accidental en Avión Privado",1000,100000,0,0,17,65,70,"AP Individual","0703 - Plan Normal","07 - Accidentes Personales",0,0.5,0,0,100000,"A","Adicional"]
[null,"Muerte Accidental en Avión Privado",1000,100000,0,0,17,65,70,"AP Individual","0703 - Plan Normal","07 - Accidentes Personales",0,0.5,0,0,100000,"B","Adicional"]
[null,"Muerte Accidental en Avión Privado",1000,100000,0,0,17,65,70,"AP Individual","0703 - Plan Normal","07 - Accidentes Personales",0,0.5,0,0,100000,"C","Adicional"]
[null,"Muerte en Accidente de Tránsito",1000,100000,0,0,17,65,70,"AP Individual","0703 - Plan Normal","07 - Accidentes Personales",0,0.15,0,0,100000,"A","Adicional"]
[null,"Muerte en Accidente de Tránsito",1000,100000,0,0,17,65,70,"AP Individual","0703 - Plan Normal","07 - Accidentes Personales",0,0.15,0,0,100000,"B","Adicional"]
[null,"Muerte en Accidente de Tránsito",1000,100000,0,0,17,65,70,"AP Individual","0703 - Plan Normal","07 - Accidentes Personales",0,0.15,0,0,100000,"C","Adicional"]
[null,"Muerte como Conductor en Accidente de Tránsito",1000,100000,0,0,18,65,70,"AP Individual","0703 - Plan Normal","07 - Accidentes Personales",0,0.15,0,0,100000,"A","Adicional"]
[null,"Muerte como Conductor en Accidente de Tránsito",1000,100000,0,0,18,65,70,"AP Individual","0703 - Plan Normal","07 - Accidentes Personales",0,0.15,0,0,100000,"B","Adicional"]
[null,"Muerte como Conductor en Accidente de Tránsito",1000,100000,0,0,18,65,70,"AP Individual","0703 - Plan Normal","07 - Accidentes Personales",0,0.15,0,0,100000,"C","Adicional"]
[null,"Muerte en Cajero Automático",1000,100000,0,0,17,65,70,"AP Individual","0703 - Plan Normal","07 - Accidentes Personales",0,0.15,0,0,100000,"A","Adicional"]
[null,"Muerte en Cajero Automático",1000,100000,0,0,17,65,70,"AP Individual","0703 - Plan Normal","07 - Accidentes Personales",0,0.15,0,0,100000,"B","Adicional"]
[null,"Muerte en Cajero Automático",1000,100000,0,0,17,65,70,"AP Individual","0703 - Plan Normal","07 - Accidentes Personales",0,0.15,0,0,100000,"C","Adicional"]
[null,"Renta Diaria por Incapacidad Temporal por Accidente",1,30,0,0,18,65,70,"AP Individual","0703 - Plan Normal","07 - Accidentes Personales",0,2.5,0,"5 días","60 días","A","Adicional"]
[null,"Renta Diaria por Incapacidad Temporal por Accidente",1,30,0,0,18,65,70,"AP Individual","0703 - Plan Normal","07 - Accidentes Personales",0,4,0,"5 días","60 días","B","Adicional"]
[null,"Renta Diaria por Incapacidad Temporal por Accidente",1,30,0,0,18,65,70,"AP Individual","0703 - Plan Normal","07 - Accidentes Personales",0,6,0,"5 días","60 días","C","Adicional"]
[null,"Renta Diaria por Hospitalización por Accidente",0,0,25,0,17,65,70,"AP Individual","0703 - Plan Normal","07 - Accidentes Personales",0,0,23,"3 días","60 días","A","Adicional"]
[null,"Renta Diaria por Hospitalización por Accidente",0,0,25,0,17,65,70,"AP Individual","0703 - Plan Normal","07 - Accidentes Personales",0,0,23,"3 días","60 días","B","Adicional"]
[null,"Renta Diaria por Hospitalización por Accidente",0,0,25,0,17,65,70,"AP Individual","0703 - Plan Normal","07 - Accidentes Personales",0,0,23,"3 días","60 días","C","Adicional"]
[null,"Renta Diaria por Hospitalización por Accidente",0,0,50,0,17,65,70,"AP Individual","0703 - Plan Normal","07 - Accidentes Personales",0,0,49,"3 días","60 días","A","Adicional"]
[null,"Renta Diaria por Hospitalización por Accidente",0,0,50,0,17,65,70,"AP Individual","0703 - Plan Normal","07 - Accidentes Personales",0,0,49,"3 días","60 días","B","Adicional"]
[null,"Renta Diaria por Hospitalización por Accidente",0,0,50,0,17,65,70,"AP Individual","0703 - Plan Normal","07 - Accidentes Personales",0,0,49,"3 días","60 días","C","Adicional"]
[null,"Renta Diaria por Hospitalización por Accidente",0,0,100,0,17,65,70,"AP Individual","0703 - Plan Normal","07 - Accidentes Personales",0,0,100,"3 días","60 días","A","Adicional"]
[null,"Renta Diaria por Hospitalización por Accidente",0,0,100,0,17,65,70,"AP Individual","0703 - Plan Normal","07 - Accidentes Personales",0,0,100,"3 días","60 días","B","Adicional"]
[null,"Renta Diaria por Hospitalización por Accidente",0,0,100,0,17,65,70,"AP Individual","0703 - Plan Normal","07 - Accidentes Personales",0,0,100,"3 días","60 días","C","Adicional"]
[null,"Renta Diaria por Hospitalización en Cuidados Intensivos por Accidente",0,0,25,0,17,65,70,"AP Individual","0703 - Plan Normal","07 - Accidentes Personales",0,0,12.5,"3 días","60 días","A","Adicional"]
[null,"Renta Diaria por Hospitalización en Cuidados Intensivos por Accidente",0,0,25,0,17,65,70,"AP Individual","0703 - Plan Normal","07 - Accidentes Personales",0,0,12.5,"3 días","60 días","B","Adicional"]
[null,"Renta Diaria por Hospitalización en Cuidados Intensivos por Accidente",0,0,25,0,17,65,70,"AP Individual","0703 - Plan Normal","07 - Accidentes Personales",0,0,12.5,"3 días","60 días","C","Adicional"]
[null,"Renta Diaria por Hospitalización en Cuidados Intensivos por Accidente",0,0,50,0,17,65,70,"AP Individual","0703 - Plan Normal","07 - Accidentes Personales",0,0,25,"3 días","60 días","A","Adicional"]
[null,"Renta Diaria por Hospitalización en Cuidados Intensivos por Accidente",0,0,50,0,17,65,70,"AP Individual","0703 - Plan Normal","07 - Accidentes Personales",0,0,25,"3 días","60 días","B","Adicional"]
[null,"Renta Diaria por Hospitalización en Cuidados Intensivos por Accidente",0,0,50,0,17,65,70,"AP Individual","0703 - Plan Normal","07 - Accidentes Personales",0,0,25,"3 días","60 días","C","Adicional"]
[null,"Renta Diaria por Hospitalización en Cuidados Intensivos por Accidente",0,0,100,0,17,65,70,"AP Individual","0703 - Plan Normal","07 - Accidentes Personales",0,0,50,"3 días","60 días","A","Adicional"]
[null,"Renta Diaria por Hospitalización en Cuidados Intensivos por Accidente",0,0,100,0,17,65,70,"AP Individual","0703 - Plan Normal","07 - Accidentes Personales",0,0,50,"3 días","60 días","B","Adicional"]
[null,"Renta Diaria por Hospitalización en Cuidados Intensivos por Accidente",0,0,100,0,17,65,70,"AP Individual","0703 - Plan Normal","07 - Accidentes Personales",0,0,50,"3 días","60 días","C","Adicional"]
[null,"Renta Diaria por Hospitalización ambos cónyuges por Accidente",0,0,25,0,18,65,70,"AP Individual","0703 - Plan Normal","07 - Accidentes Personales",0,0,12.5,"3 días","60 días","A","Adicional"]
[null,"Renta Diaria por Hospitalización ambos cónyuges por Accidente",0,0,25,0,18,65,70,"AP Individual","0703 - Plan Normal","07 - Accidentes Personales",0,0,12.5,"3 días","60 días","B","Adicional"]
[null,"Renta Diaria por Hospitalización ambos cónyuges por Accidente",0,0,25,0,18,65,70,"AP Individual","0703 - Plan Normal","07 - Accidentes Personales",0,0,12.5,"3 días","60 días","C","Adicional"]
[null,"Renta Diaria por Hospitalización ambos cónyuges por Accidente",0,0,50,0,18,65,70,"AP Individual","0703 - Plan Normal","07 - Accidentes Personales",0,0,25,"3 días","60 días","A","Adicional"]
[null,"Renta Diaria por Hospitalización ambos cónyuges por Accidente",0,0,50,0,18,65,70,"AP Individual","0703 - Plan Normal","07 - Accidentes Personales",0,0,25,"3 días","60 días","B","Adicional"]
[null,"Renta Diaria por Hospitalización ambos cónyuges por Accidente",0,0,50,0,18,65,70,"AP Individual","0703 - Plan Normal","07 - Accidentes Personales",0,0,25,"3 días","60 días","C","Adicional"]
[null,"Renta Diaria por Hospitalización ambos cónyuges por Accidente",0,0,100,0,18,65,70,"AP Individual","0703 - Plan Normal","07 - Accidentes Personales",0,0,50,"3 días","60 días","A","Adicional"]
[null,"Renta Diaria por Hospitalización ambos cónyuges por Accidente",0,0,100,0,18,65,70,"AP Individual","0703 - Plan Normal","07 - Accidentes Personales",0,0,50,"3 días","60 días","B","Adicional"]
[null,"Renta Diaria por Hospitalización ambos cónyuges por Accidente",0,0,100,0,18,65,70,"AP Individual","0703 - Plan Normal","07 - Accidentes Personales",0,0,50,"3 días","60 días","C","Adicional"]
[null,"Renta Anual al Cónyuge en caso de muerte accidental",1000,10000,0,0,18,65,70,"AP Individual","0703 - Plan Normal","07 - Accidentes Personales",0,0.5,0,0,10000,"A","Adicional","Indemnización pagaderá al cónyuge en 5 anualidades mientras viva"]
[null,"Renta Anual al Cónyuge en caso de muerte accidental",1000,10000,0,0,18,65,70,"AP Individual","0703 - Plan Normal","07 - Accidentes Personales",0,0.5,0,0,10000,"B","Adicional","Indemnización pagaderá al cónyuge en 5 anualidades mientras viva"]
[null,"Renta Anual al Cónyuge en caso de muerte accidental",1000,10000,0,0,18,65,70,"AP Individual","0703 - Plan Normal","07 - Accidentes Personales",0,0.5,0,0,10000,"C","Adicional","Indemnización pagaderá al cónyuge en 5 anualidades mientras viva"]
[null,"Renta Anual por Escolaridad en caso de muerte accidental",1000,10000,0,0,18,65,70,"AP Individual","0703 - Plan Normal","07 - Accidentes Personales",0,0.25,0,0,10000,"A","Adicional","Indemnización pagadera a los beneficiarios en 1 anualidad"]
[null,"Renta Anual por Escolaridad en caso de muerte accidental",1000,10000,0,0,18,65,70,"AP Individual","0703 - Plan Normal","07 - Accidentes Personales",0,0.25,0,0,10000,"B","Adicional","Indemnización pagadera a los beneficiarios en 1 anualidad"]
[null,"Renta Anual por Escolaridad en caso de muerte accidental",1000,10000,0,0,18,65,70,"AP Individual","0703 - Plan Normal","07 - Accidentes Personales",0,0.25,0,0,10000,"C","Adicional","Indemnización pagadera a los beneficiarios en 1 anualidad"]
[null,"Servicio de Emergencia Odontológica sin Endodoncia",0,0,0,0,2,65,70,"AP Individual","0703 - Plan Normal","07 - Accidentes Personales",0,0,4.03,0,0,"A","Adicional"]
[null,"Servicio de Emergencia Odontológica Completa",0,0,0,0,2,65,70,"AP Individual","0703 - Plan Normal","07 - Accidentes Personales",0,0,4.75,0,0,"A","Adicional"]
[null,"Servicio de Emergencia Odontológica sin Endodoncia Familiar",0,0,0,0,2,65,70,"AP Individual","0703 - Plan Normal","07 - Accidentes Personales",0,0,14.12,0,0,"A","Adicional"]
[null,"Servicio de Emergencia Odontológica Completa Familiar",0,0,0,0,2,65,70,"AP Individual","0703 - Plan Normal","07 - Accidentes Personales",0,0,16.61,0,0,"A","Adicional"]
[null,"Servicio de Asistencia Médica Móvil",0,0,0,0,2,65,70,"AP Individual","0703 - Plan Normal","07 - Accidentes Personales",0,0,1.98,0,0,"A","Adicional"]
[null,"Servicio de Orientación Médica",0,0,0,0,2,65,70,"AP Individual","0703 - Plan Normal","07 - Accidentes Personales",0,0,6.6,0,0,"A","Adicional"]
[null,"Asistencia Funeraria Nacional Individual",0,0,0,0,2,65,70,"AP Individual","0703 - Plan Normal","07 - Accidentes Personales",0,0,9.76,0,0,"A","Adicional"]
[null,"Asistencia Funeraria Individual con Repatriación",0,0,0,0,2,65,70,"AP Individual","0703 - Plan Normal","07 - Accidentes Personales",0,0,14.64,0,0,"A","Adicional"]
[null,"Asistencia Funeraria con Expatriación",0,0,0,0,2,65,70,"AP Individual","0703 - Plan Normal","07 - Accidentes Personales",0,0,19.739999999999998,0,0,"A","Adicional"]
[null,"Asistencia Funeraria Nacional Familiar",0,0,0,0,2,65,70,"AP Individual","0703 - Plan Normal","07 - Accidentes Personales",0,0,70.98,0,0,"A","Adicional"]
[null,"Asistencia Funeraria Nacional Familiar + Progenitores",0,0,0,0,2,65,70,"AP Individual","0703 - Plan Normal","07 - Accidentes Personales",0,0,155.05000000000001,0,0,"A","Adicional"]
[null,"Muerte Accidental",1000,30000,0,0,0,0,0,"PTA (Asiento)","0702 - Cobertura PTA","07 - Accidentes Personales","Pasajero",1,0,0,0,"A","Básico"]
[null,"Muerte Accidental",1000,30000,0,0,0,0,0,"PTA (Asiento)","0702 - Cobertura PTA","07 - Accidentes Personales","Conductor",1.6,0,0,0,"B","Básico"]
[null,"Muerte Accidental",1000,30000,0,0,0,0,0,"PTA (Asiento)","0702 - Cobertura PTA","07 - Accidentes Personales","Conductor",2.2000000000000002,0,0,0,"C","Básico"]
[null,"Adelanto por Incapacidad Total y Permanente por Accidente",0,0,"Suma Asegurada de Muerte Accidental",0,0,0,0,"PTA (Asiento)","0702 - Cobertura PTA","07 - Accidentes Personales","Pasajero",0,0,0,0,"A","Básico","Beneficio incluido en la tarifa de Muerte Accidental / No aplica para menores de edad"]
[null,"Adelanto por Incapacidad Total y Permanente por Accidente",0,0,"Suma Asegurada de Muerte Accidental",0,0,0,0,"PTA (Asiento)","0702 - Cobertura PTA","07 - Accidentes Personales","Conductor",0,0,0,0,"B","Básico","Beneficio incluido en la tarifa de Muerte Accidental / No aplica para menores de edad"]
[null,"Adelanto por Incapacidad Total y Permanente por Accidente",0,0,"Suma Asegurada de Muerte Accidental",0,0,0,0,"PTA (Asiento)","0702 - Cobertura PTA","07 - Accidentes Personales","Conductor",0,0,0,0,"C","Básico","Beneficio incluido en la tarifa de Muerte Accidental / No aplica para menores de edad"]
[null,"Adelanto por Desmembramiento por Accidente",0,0,"Suma Asegurada de Muerte Accidental",0,0,0,0,"PTA (Asiento)","0702 - Cobertura PTA","07 - Accidentes Personales","Pasajero",0,0,0,0,"A","Básico","Beneficio incluido en la tarifa de Muerte Accidental"]
[null,"Adelanto por Desmembramiento por Accidente",0,0,"Suma Asegurada de Muerte Accidental",0,0,0,0,"PTA (Asiento)","0702 - Cobertura PTA","07 - Accidentes Personales","Conductor",0,0,0,0,"B","Básico","Beneficio incluido en la tarifa de Muerte Accidental"]
[null,"Adelanto por Desmembramiento por Accidente",0,0,"Suma Asegurada de Muerte Accidental",0,0,0,0,"PTA (Asiento)","0702 - Cobertura PTA","07 - Accidentes Personales","Conductor",0,0,0,0,"C","Básico","Beneficio incluido en la tarifa de Muerte Accidental"]
[{"$f":"Tabla1[[#This Row],[Rol]]&Tabla1[[#This Row],[Cobertura]]&Tabla1[[#This Row],[Suma Asegurada Fija]]","v":"PasajeroGastos Médicos500"},"Gastos Médicos",0,0,500,0,0,0,0,"PTA (Asiento)","0702 - Cobertura PTA","07 - Accidentes Personales","Pasajero",0,8.1999999999999993,25,0,"A","Adicional","Cobertura máxima del 10% de la Suma Asegurada en Muerte Accidental"]
[{"$f":"Tabla1[[#This Row],[Rol]]&Tabla1[[#This Row],[Cobertura]]&Tabla1[[#This Row],[Suma Asegurada Fija]]","v":"ConductorGastos Médicos500"},"Gastos Médicos",0,0,500,0,0,0,0,"PTA (Asiento)","0702 - Cobertura PTA","07 - Accidentes Personales","Conductor",0,12,25,0,"B","Adicional","Cobertura máxima del 10% de la Suma Asegurada en Muerte Accidental"]
[{"$f":"Tabla1[[#This Row],[Rol]]&Tabla1[[#This Row],[Cobertura]]&Tabla1[[#This Row],[Suma Asegurada Fija]]","v":"ConductorGastos Médicos500"},"Gastos Médicos",0,0,500,0,0,0,0,"PTA (Asiento)","0702 - Cobertura PTA","07 - Accidentes Personales","Conductor",0,16,25,0,"C","Adicional","Cobertura máxima del 10% de la Suma Asegurada en Muerte Accidental"]
[{"$f":"Tabla1[[#This Row],[Rol]]&Tabla1[[#This Row],[Cobertura]]&Tabla1[[#This Row],[Suma Asegurada Fija]]","v":"PasajeroGastos Médicos1000"},"Gastos Médicos",0,0,1000,0,0,0,0,"PTA (Asiento)","0702 - Cobertura PTA","07 - Accidentes Personales","Pasajero",0,12,25,0,"A","Adicional","Cobertura máxima del 10% de la Suma Asegurada en Muerte Accidental"]
[{"$f":"Tabla1[[#This Row],[Rol]]&Tabla1[[#This Row],[Cobertura]]&Tabla1[[#This Row],[Suma Asegurada Fija]]","v":"ConductorGastos Médicos1000"},"Gastos Médicos",0,0,1000,0,0,0,0,"PTA (Asiento)","0702 - Cobertura PTA","07 - Accidentes Personales","Conductor",0,21.58,25,0,"B","Adicional","Cobertura máxima del 10% de la Suma Asegurada en Muerte Accidental"]
[{"$f":"Tabla1[[#This Row],[Rol]]&Tabla1[[#This Row],[Cobertura]]&Tabla1[[#This Row],[Suma Asegurada Fija]]","v":"ConductorGastos Médicos1000"},"Gastos Médicos",0,0,1000,0,0,0,0,"PTA (Asiento)","0702 - Cobertura PTA","07 - Accidentes Personales","Conductor",0,27,25,0,"C","Adicional","Cobertura máxima del 10% de la Suma Asegurada en Muerte Accidental"]
[{"$f":"Tabla1[[#This Row],[Rol]]&Tabla1[[#This Row],[Cobertura]]&Tabla1[[#This Row],[Suma Asegurada Fija]]","v":"PasajeroGastos Médicos1500"},"Gastos Médicos",0,0,1500,0,0,0,0,"PTA (Asiento)","0702 - Cobertura PTA","07 - Accidentes Personales","Pasajero",0,16,50,0,"A","Adicional","Cobertura máxima del 10% de la Suma Asegurada en Muerte Accidental"]
[{"$f":"Tabla1[[#This Row],[Rol]]&Tabla1[[#This Row],[Cobertura]]&Tabla1[[#This Row],[Suma Asegurada Fija]]","v":"ConductorGastos Médicos1500"},"Gastos Médicos",0,0,1500,0,0,0,0,"PTA (Asiento)","0702 - Cobertura PTA","07 - Accidentes Personales","Conductor",0,27,50,0,"B","Adicional","Cobertura máxima del 10% de la Suma Asegurada en Muerte Accidental"]
[{"$f":"Tabla1[[#This Row],[Rol]]&Tabla1[[#This Row],[Cobertura]]&Tabla1[[#This Row],[Suma Asegurada Fija]]","v":"ConductorGastos Médicos1500"},"Gastos Médicos",0,0,1500,0,0,0,0,"PTA (Asiento)","0702 - Cobertura PTA","07 - Accidentes Personales","Conductor",0,39.5,50,0,"C","Adicional","Cobertura máxima del 10% de la Suma Asegurada en Muerte Accidental"]
[{"$f":"Tabla1[[#This Row],[Rol]]&Tabla1[[#This Row],[Cobertura]]&Tabla1[[#This Row],[Suma Asegurada Fija]]","v":"PasajeroGastos Médicos2000"},"Gastos Médicos",0,0,2000,0,0,0,0,"PTA (Asiento)","0702 - Cobertura PTA","07 - Accidentes Personales","Pasajero",0,21,50,0,"A","Adicional","Cobertura máxima del 10% de la Suma Asegurada en Muerte Accidental"]
[{"$f":"Tabla1[[#This Row],[Rol]]&Tabla1[[#This Row],[Cobertura]]&Tabla1[[#This Row],[Suma Asegurada Fija]]","v":"ConductorGastos Médicos2000"},"Gastos Médicos",0,0,2000,0,0,0,0,"PTA (Asiento)","0702 - Cobertura PTA","07 - Accidentes Personales","Conductor",0,39.5,50,0,"B","Adicional","Cobertura máxima del 10% de la Suma Asegurada en Muerte Accidental"]
[{"$f":"Tabla1[[#This Row],[Rol]]&Tabla1[[#This Row],[Cobertura]]&Tabla1[[#This Row],[Suma Asegurada Fija]]","v":"ConductorGastos Médicos2000"},"Gastos Médicos",0,0,2000,0,0,0,0,"PTA (Asiento)","0702 - Cobertura PTA","07 - Accidentes Personales","Conductor",0,46.5,50,0,"C","Adicional","Cobertura máxima del 10% de la Suma Asegurada en Muerte Accidental"]
[{"$f":"Tabla1[[#This Row],[Rol]]&Tabla1[[#This Row],[Cobertura]]&Tabla1[[#This Row],[Suma Asegurada Fija]]","v":"PasajeroGastos Médicos2500"},"Gastos Médicos",0,0,2500,0,0,0,0,"PTA (Asiento)","0702 - Cobertura PTA","07 - Accidentes Personales","Pasajero",0,25,50,0,"A","Adicional","Cobertura máxima del 10% de la Suma Asegurada en Muerte Accidental"]
[{"$f":"Tabla1[[#This Row],[Rol]]&Tabla1[[#This Row],[Cobertura]]&Tabla1[[#This Row],[Suma Asegurada Fija]]","v":"ConductorGastos Médicos2500"},"Gastos Médicos",0,0,2500,0,0,0,0,"PTA (Asiento)","0702 - Cobertura PTA","07 - Accidentes Personales","Conductor",0,45,50,0,"B","Adicional","Cobertura máxima del 10% de la Suma Asegurada en Muerte Accidental"]
[{"$f":"Tabla1[[#This Row],[Rol]]&Tabla1[[#This Row],[Cobertura]]&Tabla1[[#This Row],[Suma Asegurada Fija]]","v":"ConductorGastos Médicos2500"},"Gastos Médicos",0,0,2500,0,0,0,0,"PTA (Asiento)","0702 - Cobertura PTA","07 - Accidentes Personales","Conductor",0,56.5,50,0,"C","Adicional","Cobertura máxima del 10% de la Suma Asegurada en Muerte Accidental"]
[{"$f":"Tabla1[[#This Row],[Rol]]&Tabla1[[#This Row],[Cobertura]]&Tabla1[[#This Row],[Suma Asegurada Fija]]","v":"PasajeroGastos Médicos3000"},"Gastos Médicos",0,0,3000,0,0,0,0,"PTA (Asiento)","0702 - Cobertura PTA","07 - Accidentes Personales","Pasajero",0,30,100,0,"A","Adicional","Cobertura máxima del 10% de la Suma Asegurada en Muerte Accidental"]
[{"$f":"Tabla1[[#This Row],[Rol]]&Tabla1[[#This Row],[Cobertura]]&Tabla1[[#This Row],[Suma Asegurada Fija]]","v":"ConductorGastos Médicos3000"},"Gastos Médicos",0,0,3000,0,0,0,0,"PTA (Asiento)","0702 - Cobertura PTA","07 - Accidentes Personales","Conductor",0,53.5,100,0,"B","Adicional","Cobertura máxima del 10% de la Suma Asegurada en Muerte Accidental"]
[{"$f":"Tabla1[[#This Row],[Rol]]&Tabla1[[#This Row],[Cobertura]]&Tabla1[[#This Row],[Suma Asegurada Fija]]","v":"ConductorGastos Médicos3000"},"Gastos Médicos",0,0,3000,0,0,0,0,"PTA (Asiento)","0702 - Cobertura PTA","07 - Accidentes Personales","Conductor",0,68,100,0,"C","Adicional","Cobertura máxima del 10% de la Suma Asegurada en Muerte Accidental"]
[null,"Renta Diaria por Incapacidad Temporal por Accidente",1,5,0,0,0,0,0,"PTA (Asiento)","0702 - Cobertura PTA","07 - Accidentes Personales","Pasajero",2.5,0,"5 días","60 días","A","Adicional","No aplica para menores de edad"]
[null,"Renta Diaria por Incapacidad Temporal por Accidente",1,5,0,0,0,0,0,"PTA (Asiento)","0702 - Cobertura PTA","07 - Accidentes Personales","Conductor",4,0,"5 días","60 días","B","Adicional","No aplica para menores de edad"]
[null,"Renta Diaria por Incapacidad Temporal por Accidente",1,5,0,0,0,0,0,"PTA (Asiento)","0702 - Cobertura PTA","07 - Accidentes Personales","Conductor",6,0,"5 días","60 días","C","Adicional","No aplica para menores de edad"]
[{"$f":"+Tabla1[[#This Row],[Producto]]&Tabla1[[#This Row],[Cobertura]]&Tabla1[[#This Row],[Edad Mínima]]&Tabla1[[#This Row],[Clasificación Riesgo]]","v":"Colectivo de APMuerte Accidental17A"},"Muerte Accidental",1000,1580000,0,0,17,60,75,"Colectivo de AP","0708 - Plan Normal Grupo","07 - Accidentes Personales",0,1,0,0,0,"A","Básico"]
[{"$f":"+Tabla1[[#This Row],[Producto]]&Tabla1[[#This Row],[Cobertura]]&Tabla1[[#This Row],[Edad Mínima]]&Tabla1[[#This Row],[Clasificación Riesgo]]","v":"Colectivo de APMuerte Accidental17B"},"Muerte Accidental",1000,1580000,0,0,17,60,75,"Colectivo de AP","0708 - Plan Normal Grupo","07 - Accidentes Personales",0,1.6,0,0,0,"B","Básico"]
[{"$f":"+Tabla1[[#This Row],[Producto]]&Tabla1[[#This Row],[Cobertura]]&Tabla1[[#This Row],[Edad Mínima]]&Tabla1[[#This Row],[Clasificación Riesgo]]","v":"Colectivo de APMuerte Accidental17C"},"Muerte Accidental",1000,1580000,0,0,17,60,75,"Colectivo de AP","0708 - Plan Normal Grupo","07 - Accidentes Personales",0,2.2000000000000002,0,0,0,"C","Básico"]
[{"$f":"+Tabla1[[#This Row],[Producto]]&Tabla1[[#This Row],[Cobertura]]&Tabla1[[#This Row],[Edad Mínima]]&Tabla1[[#This Row],[Clasificación Riesgo]]","v":"Colectivo de APMuerte Accidental61A"},"Muerte Accidental",1000,1580000,0,0,61,70,75,"Colectivo de AP","0708 - Plan Normal Grupo","07 - Accidentes Personales",0,1.6,0,0,0,"A","Básico"]
[{"$f":"+Tabla1[[#This Row],[Producto]]&Tabla1[[#This Row],[Cobertura]]&Tabla1[[#This Row],[Edad Mínima]]&Tabla1[[#This Row],[Clasificación Riesgo]]","v":"Colectivo de APMuerte Accidental61B"},"Muerte Accidental",1000,1580000,0,0,61,70,75,"Colectivo de AP","0708 - Plan Normal Grupo","07 - Accidentes Personales",0,2.2999999999999998,0,0,0,"B","Básico"]
[{"$f":"+Tabla1[[#This Row],[Producto]]&Tabla1[[#This Row],[Cobertura]]&Tabla1[[#This Row],[Edad Mínima]]&Tabla1[[#This Row],[Clasificación Riesgo]]","v":"Colectivo de APMuerte Accidental61C"},"Muerte Accidental",1000,1580000,0,0,61,70,75,"Colectivo de AP","0708 - Plan Normal Grupo","07 - Accidentes Personales",0,3.25,0,0,0,"C","Básico"]
[{"$f":"+Tabla1[[#This Row],[Producto]]&Tabla1[[#This Row],[Cobertura]]&Tabla1[[#This Row],[Edad Mínima]]&Tabla1[[#This Row],[Clasificación Riesgo]]","v":"Colectivo de APMuerte Accidental71A"},"Muerte Accidental",1000,100000,0,0,71,75,75,"Colectivo de AP","0708 - Plan Normal Grupo","07 - Accidentes Personales",0,1.65,0,0,0,"A","Básico"]
[{"$f":"+Tabla1[[#This Row],[Producto]]&Tabla1[[#This Row],[Cobertura]]&Tabla1[[#This Row],[Edad Mínima]]&Tabla1[[#This Row],[Clasificación Riesgo]]","v":"Colectivo de APMuerte Accidental71B"},"Muerte Accidental",1000,100000,0,0,71,75,75,"Colectivo de AP","0708 - Plan Normal Grupo","07 - Accidentes Personales",0,2.4,0,0,0,"B","Básico"]
[{"$f":"+Tabla1[[#This Row],[Producto]]&Tabla1[[#This Row],[Cobertura]]&Tabla1[[#This Row],[Edad Mínima]]&Tabla1[[#This Row],[Clasificación Riesgo]]","v":"Colectivo de APMuerte Accidental71C"},"Muerte Accidental",1000,100000,0,0,71,75,75,"Colectivo de AP","0708 - Plan Normal Grupo","07 - Accidentes Personales",0,3,0,0,0,"C","Básico"]
[null,"Adelanto por Incapacidad Total y Permanente por Accidente",0,0,"Suma Asegurada de Muerte Accidental",0,18,65,70,"Colectivo de AP","0708 - Plan Normal Grupo","07 - Accidentes Personales",0,0,0,0,0,"A","Básico"]
[null,"Adelanto por Incapacidad Total y Permanente por Accidente",0,0,"Suma Asegurada de Muerte Accidental",0,18,65,70,"Colectivo de AP","0708 - Plan Normal Grupo","07 - Accidentes Personales",0,0,0,0,0,"B","Básico"]
[null,"Adelanto por Incapacidad Total y Permanente por Accidente",0,0,"Suma Asegurada de Muerte Accidental",0,18,65,70,"Colectivo de AP","0708 - Plan Normal Grupo","07 - Accidentes Personales",0,0,0,0,0,"C","Básico"]
[{"$f":"+Tabla1[[#This Row],[Cobertura]]&Tabla1[[#This Row],[Clasificación Riesgo]]","v":"Muerte en Transporte PúblicoA"},"Muerte en Transporte Público",0,0,"Suma Asegurada de Muerte Accidental",0,17,65,70,"Colectivo de AP","0708 - Plan Normal Grupo","07 - Accidentes Personales",0,0.2,0,0,100000,"A","Adicional"]
[{"$f":"+Tabla1[[#This Row],[Cobertura]]&Tabla1[[#This Row],[Clasificación Riesgo]]","v":"Muerte en Transporte PúblicoB"},"Muerte en Transporte Público",0,0,"Suma Asegurada de Muerte Accidental",0,17,65,70,"Colectivo de AP","0708 - Plan Normal Grupo","07 - Accidentes Personales",0,0.32,0,0,100000,"B","Adicional"]
[{"$f":"+Tabla1[[#This Row],[Cobertura]]&Tabla1[[#This Row],[Clasificación Riesgo]]","v":"Muerte en Transporte PúblicoC"},"Muerte en Transporte Público",0,0,"Suma Asegurada de Muerte Accidental",0,17,65,70,"Colectivo de AP","0708 - Plan Normal Grupo","07 - Accidentes Personales",0,0.44,0,0,100000,"C","Adicional"]
[null,"Adelanto por Desmembramiento por Accidente",0,0,"Suma Asegurada de Muerte Accidental",0,17,65,70,"Colectivo de AP","0708 - Plan Normal Grupo","07 - Accidentes Personales",0,0,0,0,0,"A","Básico","Beneficio incluido en la tarifa de Muerte Accidental"]
[null,"Adelanto por Desmembramiento por Accidente",0,0,"Suma Asegurada de Muerte Accidental",0,17,65,70,"Colectivo de AP","0708 - Plan Normal Grupo","07 - Accidentes Personales",0,0,0,0,0,"B","Básico","Beneficio incluido en la tarifa de Muerte Accidental"]
[null,"Adelanto por Desmembramiento por Accidente",0,0,"Suma Asegurada de Muerte Accidental",0,17,65,70,"Colectivo de AP","0708 - Plan Normal Grupo","07 - Accidentes Personales",0,0,0,0,0,"C","Básico","Beneficio incluido en la tarifa de Muerte Accidental"]
[null,"Homicidio Culposo",0,0,"Suma Asegurada de Muerte Accidental",0,17,70,75,"Colectivo de AP","0708 - Plan Normal Grupo","07 - Accidentes Personales",0,0,0,0,0,"A","Básico","Beneficio incluido en la tarifa de Muerte Accidental"]
[null,"Homicidio Culposo",0,0,"Suma Asegurada de Muerte Accidental",0,17,70,75,"Colectivo de AP","0708 - Plan Normal Grupo","07 - Accidentes Personales",0,0,0,0,0,"B","Básico","Beneficio incluido en la tarifa de Muerte Accidental"]
[null,"Homicidio Culposo",0,0,"Suma Asegurada de Muerte Accidental",0,17,70,75,"Colectivo de AP","0708 - Plan Normal Grupo","07 - Accidentes Personales",0,0,0,0,0,"C","Básico","Beneficio incluido en la tarifa de Muerte Accidental"]
[null,"Adelanto por Gastos Funerarios",0,3000,"20% de la Suma Asegurada de Muerte Accidental",0,17,65,70,"Colectivo de AP","0708 - Plan Normal Grupo","07 - Accidentes Personales",0,0,0,0,0,"A","Básico","Beneficio incluido en la tarifa de Muerte Accidental"]
[null,"Adelanto por Gastos Funerarios",0,3000,"20% de la Suma Asegurada de Muerte Accidental",0,17,65,70,"Colectivo de AP","0708 - Plan Normal Grupo","07 - Accidentes Personales",0,0,0,0,0,"B","Básico","Beneficio incluido en la tarifa de Muerte Accidental"]
[null,"Adelanto por Gastos Funerarios",0,3000,"20% de la Suma Asegurada de Muerte Accidental",0,17,65,70,"Colectivo de AP","0708 - Plan Normal Grupo","07 - Accidentes Personales",0,0,0,0,0,"C","Básico","Beneficio incluido en la tarifa de Muerte Accidental"]
[{"$f":"+Tabla1[[#This Row],[Cobertura]]&Tabla1[[#This Row],[Clasificación Riesgo]]","v":"Beneficio DolosoA"},"Beneficio Doloso",1000,100000,"Suma Asegurada de Muerte Accidental",0,18,70,75,"Colectivo de AP","0708 - Plan Normal Grupo","07 - Accidentes Personales",0,0.25,0,0,0,"A","Adicional"]
[{"$f":"+Tabla1[[#This Row],[Cobertura]]&Tabla1[[#This Row],[Clasificación Riesgo]]","v":"Beneficio DolosoB"},"Beneficio Doloso",1000,100000,"Suma Asegurada de Muerte Accidental",0,18,70,75,"Colectivo de AP","0708 - Plan Normal Grupo","07 - Accidentes Personales",0,0.25,0,0,0,"B","Adicional"]
[{"$f":"+Tabla1[[#This Row],[Cobertura]]&Tabla1[[#This Row],[Clasificación Riesgo]]","v":"Beneficio DolosoC"},"Beneficio Doloso",1000,100000,"Suma Asegurada de Muerte Accidental",0,18,70,75,"Colectivo de AP","0708 - Plan Normal Grupo","07 - Accidentes Personales",0,0.3,0,0,0,"C","Adicional"]
[{"$f":"+Tabla1[[#This Row],[Cobertura]]&Tabla1[[#This Row],[Suma Asegurada Fija]]&Tabla1[[#This Row],[Clasificación Riesgo]]","v":"Gastos Médicos500A"},"Gastos Médicos",0,0,500,0,17,65,70,"Colectivo de AP","0708 - Plan Normal Grupo","07 - Accidentes Personales",0,0,8.1999999999999993,25,0,"A","Adicional","Cobertura máxima del 10% de la Suma Asegurada en Muerte Accidental"]
[{"$f":"+Tabla1[[#This Row],[Cobertura]]&Tabla1[[#This Row],[Suma Asegurada Fija]]&Tabla1[[#This Row],[Clasificación Riesgo]]","v":"Gastos Médicos500B"},"Gastos Médicos",0,0,500,0,17,65,70,"Colectivo de AP","0708 - Plan Normal Grupo","07 - Accidentes Personales",0,0,12,25,0,"B","Adicional","Cobertura máxima del 10% de la Suma Asegurada en Muerte Accidental"]
[{"$f":"+Tabla1[[#This Row],[Cobertura]]&Tabla1[[#This Row],[Suma Asegurada Fija]]&Tabla1[[#This Row],[Clasificación Riesgo]]","v":"Gastos Médicos500C"},"Gastos Médicos",0,0,500,0,17,65,70,"Colectivo de AP","0708 - Plan Normal Grupo","07 - Accidentes Personales",0,0,16,25,0,"C","Adicional","Cobertura máxima del 10% de la Suma Asegurada en Muerte Accidental"]
[{"$f":"+Tabla1[[#This Row],[Cobertura]]&Tabla1[[#This Row],[Suma Asegurada Fija]]&Tabla1[[#This Row],[Clasificación Riesgo]]","v":"Gastos Médicos1000A"},"Gastos Médicos",0,0,1000,0,17,65,70,"Colectivo de AP","0708 - Plan Normal Grupo","07 - Accidentes Personales",0,0,12,25,0,"A","Adicional","Cobertura máxima del 10% de la Suma Asegurada en Muerte Accidental"]
[{"$f":"+Tabla1[[#This Row],[Cobertura]]&Tabla1[[#This Row],[Suma Asegurada Fija]]&Tabla1[[#This Row],[Clasificación Riesgo]]","v":"Gastos Médicos1000B"},"Gastos Médicos",0,0,1000,0,17,65,70,"Colectivo de AP","0708 - Plan Normal Grupo","07 - Accidentes Personales",0,0,21.58,25,0,"B","Adicional","Cobertura máxima del 10% de la Suma Asegurada en Muerte Accidental"]
[{"$f":"+Tabla1[[#This Row],[Cobertura]]&Tabla1[[#This Row],[Suma Asegurada Fija]]&Tabla1[[#This Row],[Clasificación Riesgo]]","v":"Gastos Médicos1000C"},"Gastos Médicos",0,0,1000,0,17,65,70,"Colectivo de AP","0708 - Plan Normal Grupo","07 - Accidentes Personales",0,0,26,25,0,"C","Adicional","Cobertura máxima del 10% de la Suma Asegurada en Muerte Accidental"]
[{"$f":"+Tabla1[[#This Row],[Cobertura]]&Tabla1[[#This Row],[Suma Asegurada Fija]]&Tabla1[[#This Row],[Clasificación Riesgo]]","v":"Gastos Médicos1500A"},"Gastos Médicos",0,0,1500,0,17,65,70,"Colectivo de AP","0708 - Plan Normal Grupo","07 - Accidentes Personales",0,0,16,50,0,"A","Adicional","Cobertura máxima del 10% de la Suma Asegurada en Muerte Accidental"]
[{"$f":"+Tabla1[[#This Row],[Cobertura]]&Tabla1[[#This Row],[Suma Asegurada Fija]]&Tabla1[[#This Row],[Clasificación Riesgo]]","v":"Gastos Médicos1500B"},"Gastos Médicos",0,0,1500,0,17,65,70,"Colectivo de AP","0708 - Plan Normal Grupo","07 - Accidentes Personales",0,0,27,50,0,"B","Adicional","Cobertura máxima del 10% de la Suma Asegurada en Muerte Accidental"]
[{"$f":"+Tabla1[[#This Row],[Cobertura]]&Tabla1[[#This Row],[Suma Asegurada Fija]]&Tabla1[[#This Row],[Clasificación Riesgo]]","v":"Gastos Médicos1500C"},"Gastos Médicos",0,0,1500,0,17,65,70,"Colectivo de AP","0708 - Plan Normal Grupo","07 - Accidentes Personales",0,0,36,50,0,"C","Adicional","Cobertura máxima del 10% de la Suma Asegurada en Muerte Accidental"]
[{"$f":"+Tabla1[[#This Row],[Cobertura]]&Tabla1[[#This Row],[Suma Asegurada Fija]]&Tabla1[[#This Row],[Clasificación Riesgo]]","v":"Gastos Médicos2000A"},"Gastos Médicos",0,0,2000,0,17,65,70,"Colectivo de AP","0708 - Plan Normal Grupo","07 - Accidentes Personales",0,0,21,50,0,"A","Adicional","Cobertura máxima del 10% de la Suma Asegurada en Muerte Accidental"]
[{"$f":"+Tabla1[[#This Row],[Cobertura]]&Tabla1[[#This Row],[Suma Asegurada Fija]]&Tabla1[[#This Row],[Clasificación Riesgo]]","v":"Gastos Médicos2000B"},"Gastos Médicos",0,0,2000,0,17,65,70,"Colectivo de AP","0708 - Plan Normal Grupo","07 - Accidentes Personales",0,0,39.5,50,0,"B","Adicional","Cobertura máxima del 10% de la Suma Asegurada en Muerte Accidental"]
[{"$f":"+Tabla1[[#This Row],[Cobertura]]&Tabla1[[#This Row],[Suma Asegurada Fija]]&Tabla1[[#This Row],[Clasificación Riesgo]]","v":"Gastos Médicos2000C"},"Gastos Médicos",0,0,2000,0,17,65,70,"Colectivo de AP","0708 - Plan Normal Grupo","07 - Accidentes Personales",0,0,46.5,50,0,"C","Adicional","Cobertura máxima del 10% de la Suma Asegurada en Muerte Accidental"]
[{"$f":"+Tabla1[[#This Row],[Cobertura]]&Tabla1[[#This Row],[Suma Asegurada Fija]]&Tabla1[[#This Row],[Clasificación Riesgo]]","v":"Gastos Médicos2500A"},"Gastos Médicos",0,0,2500,0,17,65,70,"Colectivo de AP","0708 - Plan Normal Grupo","07 - Accidentes Personales",0,0,25,50,0,"A","Adicional","Cobertura máxima del 10% de la Suma Asegurada en Muerte Accidental"]
[{"$f":"+Tabla1[[#This Row],[Cobertura]]&Tabla1[[#This Row],[Suma Asegurada Fija]]&Tabla1[[#This Row],[Clasificación Riesgo]]","v":"Gastos Médicos2500B"},"Gastos Médicos",0,0,2500,0,17,65,70,"Colectivo de AP","0708 - Plan Normal Grupo","07 - Accidentes Personales",0,0,45,50,0,"B","Adicional","Cobertura máxima del 10% de la Suma Asegurada en Muerte Accidental"]
[{"$f":"+Tabla1[[#This Row],[Cobertura]]&Tabla1[[#This Row],[Suma Asegurada Fija]]&Tabla1[[#This Row],[Clasificación Riesgo]]","v":"Gastos Médicos2500C"},"Gastos Médicos",0,0,2500,0,17,65,70,"Colectivo de AP","0708 - Plan Normal Grupo","07 - Accidentes Personales",0,0,56.5,50,0,"C","Adicional","Cobertura máxima del 10% de la Suma Asegurada en Muerte Accidental"]
[{"$f":"+Tabla1[[#This Row],[Cobertura]]&Tabla1[[#This Row],[Suma Asegurada Fija]]&Tabla1[[#This Row],[Clasificación Riesgo]]","v":"Gastos Médicos3000A"},"Gastos Médicos",0,0,3000,0,17,65,70,"Colectivo de AP","0708 - Plan Normal Grupo","07 - Accidentes Personales",0,0,30,100,0,"A","Adicional","Cobertura máxima del 10% de la Suma Asegurada en Muerte Accidental"]
[{"$f":"+Tabla1[[#This Row],[Cobertura]]&Tabla1[[#This Row],[Suma Asegurada Fija]]&Tabla1[[#This Row],[Clasificación Riesgo]]","v":"Gastos Médicos3000B"},"Gastos Médicos",0,0,3000,0,17,65,70,"Colectivo de AP","0708 - Plan Normal Grupo","07 - Accidentes Personales",0,0,53.5,100,0,"B","Adicional","Cobertura máxima del 10% de la Suma Asegurada en Muerte Accidental"]
[{"$f":"+Tabla1[[#This Row],[Cobertura]]&Tabla1[[#This Row],[Suma Asegurada Fija]]&Tabla1[[#This Row],[Clasificación Riesgo]]","v":"Gastos Médicos3000C"},"Gastos Médicos",0,0,3000,0,17,65,70,"Colectivo de AP","0708 - Plan Normal Grupo","07 - Accidentes Personales",0,0,68,100,0,"C","Adicional","Cobertura máxima del 10% de la Suma Asegurada en Muerte Accidental"]
[{"$f":"+Tabla1[[#This Row],[Cobertura]]&Tabla1[[#This Row],[Suma Asegurada Fija]]&Tabla1[[#This Row],[Clasificación Riesgo]]","v":"Gastos Médicos4000A"},"Gastos Médicos",0,0,4000,0,17,65,70,"Colectivo de AP","0708 - Plan Normal Grupo","07 - Accidentes Personales",0,0,40.5,100,0,"A","Adicional","Cobertura máxima del 10% de la Suma Asegurada en Muerte Accidental"]
[{"$f":"+Tabla1[[#This Row],[Cobertura]]&Tabla1[[#This Row],[Suma Asegurada Fija]]&Tabla1[[#This Row],[Clasificación Riesgo]]","v":"Gastos Médicos4000B"},"Gastos Médicos",0,0,4000,0,17,65,70,"Colectivo de AP","0708 - Plan Normal Grupo","07 - Accidentes Personales",0,0,70.5,100,0,"B","Adicional","Cobertura máxima del 10% de la Suma Asegurada en Muerte Accidental"]
[{"$f":"+Tabla1[[#This Row],[Cobertura]]&Tabla1[[#This Row],[Suma Asegurada Fija]]&Tabla1[[#This Row],[Clasificación Riesgo]]","v":"Gastos Médicos4000C"},"Gastos Médicos",0,0,4000,0,17,65,70,"Colectivo de AP","0708 - Plan Normal Grupo","07 - Accidentes Personales",0,0,93.5,100,0,"C","Adicional","Cobertura máxima del 10% de la Suma Asegurada en Muerte Accidental"]
[{"$f":"+Tabla1[[#This Row],[Cobertura]]&Tabla1[[#This Row],[Suma Asegurada Fija]]&Tabla1[[#This Row],[Clasificación Riesgo]]","v":"Gastos Médicos5000A"},"Gastos Médicos",0,0,5000,0,17,65,70,"Colectivo de AP","0708 - Plan Normal Grupo","07 - Accidentes Personales",0,0,48.5,100,0,"A","Adicional","Cobertura máxima del 10% de la Suma Asegurada en Muerte Accidental"]
[{"$f":"+Tabla1[[#This Row],[Cobertura]]&Tabla1[[#This Row],[Suma Asegurada Fija]]&Tabla1[[#This Row],[Clasificación Riesgo]]","v":"Gastos Médicos5000B"},"Gastos Médicos",0,0,5000,0,17,65,70,"Colectivo de AP","0708 - Plan Normal Grupo","07 - Accidentes Personales",0,0,85,100,0,"B","Adicional","Cobertura máxima del 10% de la Suma Asegurada en Muerte Accidental"]
[{"$f":"+Tabla1[[#This Row],[Cobertura]]&Tabla1[[#This Row],[Suma Asegurada Fija]]&Tabla1[[#This Row],[Clasificación Riesgo]]","v":"Gastos Médicos5000C"},"Gastos Médicos",0,0,5000,0,17,65,70,"Colectivo de AP","0708 - Plan Normal Grupo","07 - Accidentes Personales",0,0,112,100,0,"C","Adicional","Cobertura máxima del 10% de la Suma Asegurada en Muerte Accidental"]
[{"$f":"+Tabla1[[#This Row],[Cobertura]]&Tabla1[[#This Row],[Suma Asegurada Fija]]&Tabla1[[#This Row],[Clasificación Riesgo]]","v":"Gastos Médicos6000A"},"Gastos Médicos",0,0,6000,0,17,65,70,"Colectivo de AP","0708 - Plan Normal Grupo","07 - Accidentes Personales",0,0,58.5,100,0,"A","Adicional","Cobertura máxima del 10% de la Suma Asegurada en Muerte Accidental"]
[{"$f":"+Tabla1[[#This Row],[Cobertura]]&Tabla1[[#This Row],[Suma Asegurada Fija]]&Tabla1[[#This Row],[Clasificación Riesgo]]","v":"Gastos Médicos6000B"},"Gastos Médicos",0,0,6000,0,17,65,70,"Colectivo de AP","0708 - Plan Normal Grupo","07 - Accidentes Personales",0,0,102.6,100,0,"B","Adicional","Cobertura máxima del 10% de la Suma Asegurada en Muerte Accidental"]
[{"$f":"+Tabla1[[#This Row],[Cobertura]]&Tabla1[[#This Row],[Suma Asegurada Fija]]&Tabla1[[#This Row],[Clasificación Riesgo]]","v":"Gastos Médicos6000C"},"Gastos Médicos",0,0,6000,0,17,65,70,"Colectivo de AP","0708 - Plan Normal Grupo","07 - Accidentes Personales",0,0,137.76,100,0,"C","Adicional","Cobertura máxima del 10% de la Suma Asegurada en Muerte Accidental"]
[{"$f":"+Tabla1[[#This Row],[Cobertura]]&Tabla1[[#This Row],[Suma Asegurada Fija]]&Tabla1[[#This Row],[Clasificación Riesgo]]","v":"Gastos Médicos7000A"},"Gastos Médicos",0,0,7000,0,17,65,70,"Colectivo de AP","0708 - Plan Normal Grupo","07 - Accidentes Personales",0,0,68.25,100,0,"A","Adicional","Cobertura máxima del 10% de la Suma Asegurada en Muerte Accidental"]
[{"$f":"+Tabla1[[#This Row],[Cobertura]]&Tabla1[[#This Row],[Suma Asegurada Fija]]&Tabla1[[#This Row],[Clasificación Riesgo]]","v":"Gastos Médicos7000B"},"Gastos Médicos",0,0,7000,0,17,65,70,"Colectivo de AP","0708 - Plan Normal Grupo","07 - Accidentes Personales",0,0,119.7,100,0,"B","Adicional","Cobertura máxima del 10% de la Suma Asegurada en Muerte Accidental"]
[{"$f":"+Tabla1[[#This Row],[Cobertura]]&Tabla1[[#This Row],[Suma Asegurada Fija]]&Tabla1[[#This Row],[Clasificación Riesgo]]","v":"Gastos Médicos7000C"},"Gastos Médicos",0,0,7000,0,17,65,70,"Colectivo de AP","0708 - Plan Normal Grupo","07 - Accidentes Personales",0,0,160.72,100,0,"C","Adicional","Cobertura máxima del 10% de la Suma Asegurada en Muerte Accidental"]
[{"$f":"+Tabla1[[#This Row],[Cobertura]]&Tabla1[[#This Row],[Suma Asegurada Fija]]&Tabla1[[#This Row],[Clasificación Riesgo]]","v":"Gastos Médicos8000A"},"Gastos Médicos",0,0,8000,0,17,65,70,"Colectivo de AP","0708 - Plan Normal Grupo","07 - Accidentes Personales",0,0,78,100,0,"A","Adicional","Cobertura máxima del 10% de la Suma Asegurada en Muerte Accidental"]
[{"$f":"+Tabla1[[#This Row],[Cobertura]]&Tabla1[[#This Row],[Suma Asegurada Fija]]&Tabla1[[#This Row],[Clasificación Riesgo]]","v":"Gastos Médicos8000B"},"Gastos Médicos",0,0,8000,0,17,65,70,"Colectivo de AP","0708 - Plan Normal Grupo","07 - Accidentes Personales",0,0,136.80000000000001,100,0,"B","Adicional","Cobertura máxima del 10% de la Suma Asegurada en Muerte Accidental"]
[{"$f":"+Tabla1[[#This Row],[Cobertura]]&Tabla1[[#This Row],[Suma Asegurada Fija]]&Tabla1[[#This Row],[Clasificación Riesgo]]","v":"Gastos Médicos8000C"},"Gastos Médicos",0,0,8000,0,17,65,70,"Colectivo de AP","0708 - Plan Normal Grupo","07 - Accidentes Personales",0,0,183.68,100,0,"C","Adicional","Cobertura máxima del 10% de la Suma Asegurada en Muerte Accidental"]
[{"$f":"+Tabla1[[#This Row],[Cobertura]]&Tabla1[[#This Row],[Suma Asegurada Fija]]&Tabla1[[#This Row],[Clasificación Riesgo]]","v":"Gastos Médicos9000A"},"Gastos Médicos",0,0,9000,0,17,65,70,"Colectivo de AP","0708 - Plan Normal Grupo","07 - Accidentes Personales",0,0,87.75,100,0,"A","Adicional","Cobertura máxima del 10% de la Suma Asegurada en Muerte Accidental"]
[{"$f":"+Tabla1[[#This Row],[Cobertura]]&Tabla1[[#This Row],[Suma Asegurada Fija]]&Tabla1[[#This Row],[Clasificación Riesgo]]","v":"Gastos Médicos9000B"},"Gastos Médicos",0,0,9000,0,17,65,70,"Colectivo de AP","0708 - Plan Normal Grupo","07 - Accidentes Personales",0,0,153.9,100,0,"B","Adicional","Cobertura máxima del 10% de la Suma Asegurada en Muerte Accidental"]
[{"$f":"+Tabla1[[#This Row],[Cobertura]]&Tabla1[[#This Row],[Suma Asegurada Fija]]&Tabla1[[#This Row],[Clasificación Riesgo]]","v":"Gastos Médicos9000C"},"Gastos Médicos",0,0,9000,0,17,65,70,"Colectivo de AP","0708 - Plan Normal Grupo","07 - Accidentes Personales",0,0,206.64,100,0,"C","Adicional","Cobertura máxima del 10% de la Suma Asegurada en Muerte Accidental"]
[{"$f":"+Tabla1[[#This Row],[Cobertura]]&Tabla1[[#This Row],[Suma Asegurada Fija]]&Tabla1[[#This Row],[Clasificación Riesgo]]","v":"Gastos Médicos10000A"},"Gastos Médicos",0,0,10000,0,17,65,70,"Colectivo de AP","0708 - Plan Normal Grupo","07 - Accidentes Personales",0,0,97.5,100,0,"A","Adicional","Cobertura máxima del 10% de la Suma Asegurada en Muerte Accidental"]
[{"$f":"+Tabla1[[#This Row],[Cobertura]]&Tabla1[[#This Row],[Suma Asegurada Fija]]&Tabla1[[#This Row],[Clasificación Riesgo]]","v":"Gastos Médicos10000B"},"Gastos Médicos",0,0,10000,0,17,65,70,"Colectivo de AP","0708 - Plan Normal Grupo","07 - Accidentes Personales",0,0,171,100,0,"B","Adicional","Cobertura máxima del 10% de la Suma Asegurada en Muerte Accidental"]
[{"$f":"+Tabla1[[#This Row],[Cobertura]]&Tabla1[[#This Row],[Suma Asegurada Fija]]&Tabla1[[#This Row],[Clasificación Riesgo]]","v":"Gastos Médicos10000C"},"Gastos Médicos",0,0,10000,0,17,65,70,"Colectivo de AP","0708 - Plan Normal Grupo","07 - Accidentes Personales",0,0,229.6,100,0,"C","Adicional","Cobertura máxima del 10% de la Suma Asegurada en Muerte Accidental"]
[{"$f":"+Tabla1[[#This Row],[Cobertura]]&Tabla1[[#This Row],[Suma Asegurada Fija]]&Tabla1[[#This Row],[Clasificación Riesgo]]","v":"Gastos Médicos11000A"},"Gastos Médicos",0,0,11000,0,17,65,70,"Colectivo de AP","0708 - Plan Normal Grupo","07 - Accidentes Personales",0,0,107.25,100,0,"A","Adicional","Cobertura máxima del 10% de la Suma Asegurada en Muerte Accidental"]
[{"$f":"+Tabla1[[#This Row],[Cobertura]]&Tabla1[[#This Row],[Suma Asegurada Fija]]&Tabla1[[#This Row],[Clasificación Riesgo]]","v":"Gastos Médicos11000B"},"Gastos Médicos",0,0,11000,0,17,65,70,"Colectivo de AP","0708 - Plan Normal Grupo","07 - Accidentes Personales",0,0,188.1,100,0,"B","Adicional","Cobertura máxima del 10% de la Suma Asegurada en Muerte Accidental"]
[{"$f":"+Tabla1[[#This Row],[Cobertura]]&Tabla1[[#This Row],[Suma Asegurada Fija]]&Tabla1[[#This Row],[Clasificación Riesgo]]","v":"Gastos Médicos11000C"},"Gastos Médicos",0,0,11000,0,17,65,70,"Colectivo de AP","0708 - Plan Normal Grupo","07 - Accidentes Personales",0,0,252.56,100,0,"C","Adicional","Cobertura máxima del 10% de la Suma Asegurada en Muerte Accidental"]
[{"$f":"+Tabla1[[#This Row],[Cobertura]]&Tabla1[[#This Row],[Suma Asegurada Fija]]&Tabla1[[#This Row],[Clasificación Riesgo]]","v":"Gastos Médicos12000A"},"Gastos Médicos",0,0,12000,0,17,65,70,"Colectivo de AP","0708 - Plan Normal Grupo","07 - Accidentes Personales",0,0,117,100,0,"A","Adicional","Cobertura máxima del 10% de la Suma Asegurada en Muerte Accidental"]
[{"$f":"+Tabla1[[#This Row],[Cobertura]]&Tabla1[[#This Row],[Suma Asegurada Fija]]&Tabla1[[#This Row],[Clasificación Riesgo]]","v":"Gastos Médicos12000B"},"Gastos Médicos",0,0,12000,0,17,65,70,"Colectivo de AP","0708 - Plan Normal Grupo","07 - Accidentes Personales",0,0,205.20000000000002,100,0,"B","Adicional","Cobertura máxima del 10% de la Suma Asegurada en Muerte Accidental"]
[{"$f":"+Tabla1[[#This Row],[Cobertura]]&Tabla1[[#This Row],[Suma Asegurada Fija]]&Tabla1[[#This Row],[Clasificación Riesgo]]","v":"Gastos Médicos12000C"},"Gastos Médicos",0,0,12000,0,17,65,70,"Colectivo de AP","0708 - Plan Normal Grupo","07 - Accidentes Personales",0,0,275.52,100,0,"C","Adicional","Cobertura máxima del 10% de la Suma Asegurada en Muerte Accidental"]
[{"$f":"+Tabla1[[#This Row],[Cobertura]]&Tabla1[[#This Row],[Suma Asegurada Fija]]&Tabla1[[#This Row],[Clasificación Riesgo]]","v":"Gastos Médicos13000A"},"Gastos Médicos",0,0,13000,0,17,65,70,"Colectivo de AP","0708 - Plan Normal Grupo","07 - Accidentes Personales",0,0,126.75,100,0,"A","Adicional","Cobertura máxima del 10% de la Suma Asegurada en Muerte Accidental"]
[{"$f":"+Tabla1[[#This Row],[Cobertura]]&Tabla1[[#This Row],[Suma Asegurada Fija]]&Tabla1[[#This Row],[Clasificación Riesgo]]","v":"Gastos Médicos13000B"},"Gastos Médicos",0,0,13000,0,17,65,70,"Colectivo de AP","0708 - Plan Normal Grupo","07 - Accidentes Personales",0,0,222.3,100,0,"B","Adicional","Cobertura máxima del 10% de la Suma Asegurada en Muerte Accidental"]
[{"$f":"+Tabla1[[#This Row],[Cobertura]]&Tabla1[[#This Row],[Suma Asegurada Fija]]&Tabla1[[#This Row],[Clasificación Riesgo]]","v":"Gastos Médicos13000C"},"Gastos Médicos",0,0,13000,0,17,65,70,"Colectivo de AP","0708 - Plan Normal Grupo","07 - Accidentes Personales",0,0,298.48,100,0,"C","Adicional","Cobertura máxima del 10% de la Suma Asegurada en Muerte Accidental"]
[{"$f":"+Tabla1[[#This Row],[Cobertura]]&Tabla1[[#This Row],[Suma Asegurada Fija]]&Tabla1[[#This Row],[Clasificación Riesgo]]","v":"Gastos Médicos14000A"},"Gastos Médicos",0,0,14000,0,17,65,70,"Colectivo de AP","0708 - Plan Normal Grupo","07 - Accidentes Personales",0,0,136.5,100,0,"A","Adicional","Cobertura máxima del 10% de la Suma Asegurada en Muerte Accidental"]
[{"$f":"+Tabla1[[#This Row],[Cobertura]]&Tabla1[[#This Row],[Suma Asegurada Fija]]&Tabla1[[#This Row],[Clasificación Riesgo]]","v":"Gastos Médicos14000B"},"Gastos Médicos",0,0,14000,0,17,65,70,"Colectivo de AP","0708 - Plan Normal Grupo","07 - Accidentes Personales",0,0,239.40000000000003,100,0,"B","Adicional","Cobertura máxima del 10% de la Suma Asegurada en Muerte Accidental"]
[{"$f":"+Tabla1[[#This Row],[Cobertura]]&Tabla1[[#This Row],[Suma Asegurada Fija]]&Tabla1[[#This Row],[Clasificación Riesgo]]","v":"Gastos Médicos14000C"},"Gastos Médicos",0,0,14000,0,17,65,70,"Colectivo de AP","0708 - Plan Normal Grupo","07 - Accidentes Personales",0,0,321.44,100,0,"C","Adicional","Cobertura máxima del 10% de la Suma Asegurada en Muerte Accidental"]
[{"$f":"+Tabla1[[#This Row],[Cobertura]]&Tabla1[[#This Row],[Suma Asegurada Fija]]&Tabla1[[#This Row],[Clasificación Riesgo]]","v":"Gastos Médicos15000A"},"Gastos Médicos",0,0,15000,0,17,65,70,"Colectivo de AP","0708 - Plan Normal Grupo","07 - Accidentes Personales",0,0,146.25,100,0,"A","Adicional","Cobertura máxima del 10% de la Suma Asegurada en Muerte Accidental"]
[{"$f":"+Tabla1[[#This Row],[Cobertura]]&Tabla1[[#This Row],[Suma Asegurada Fija]]&Tabla1[[#This Row],[Clasificación Riesgo]]","v":"Gastos Médicos15000B"},"Gastos Médicos",0,0,15000,0,17,65,70,"Colectivo de AP","0708 - Plan Normal Grupo","07 - Accidentes Personales",0,0,256.5,100,0,"B","Adicional","Cobertura máxima del 10% de la Suma Asegurada en Muerte Accidental"]
[{"$f":"+Tabla1[[#This Row],[Cobertura]]&Tabla1[[#This Row],[Suma Asegurada Fija]]&Tabla1[[#This Row],[Clasificación Riesgo]]","v":"Gastos Médicos15000C"},"Gastos Médicos",0,0,15000,0,17,65,70,"Colectivo de AP","0708 - Plan Normal Grupo","07 - Accidentes Personales",0,0,344.40000000000003,100,0,"C","Adicional","Cobertura máxima del 10% de la Suma Asegurada en Muerte Accidental"]
[{"$f":"+Tabla1[[#This Row],[Cobertura]]&Tabla1[[#This Row],[Suma Asegurada Fija]]&Tabla1[[#This Row],[Clasificación Riesgo]]","v":"Gastos Médicos16000A"},"Gastos Médicos",0,0,16000,0,17,65,70,"Colectivo de AP","0708 - Plan Normal Grupo","07 - Accidentes Personales",0,0,156,100,0,"A","Adicional","Cobertura máxima del 10% de la Suma Asegurada en Muerte Accidental"]
[{"$f":"+Tabla1[[#This Row],[Cobertura]]&Tabla1[[#This Row],[Suma Asegurada Fija]]&Tabla1[[#This Row],[Clasificación Riesgo]]","v":"Gastos Médicos16000B"},"Gastos Médicos",0,0,16000,0,17,65,70,"Colectivo de AP","0708 - Plan Normal Grupo","07 - Accidentes Personales",0,0,273.60000000000002,100,0,"B","Adicional","Cobertura máxima del 10% de la Suma Asegurada en Muerte Accidental"]
[{"$f":"+Tabla1[[#This Row],[Cobertura]]&Tabla1[[#This Row],[Suma Asegurada Fija]]&Tabla1[[#This Row],[Clasificación Riesgo]]","v":"Gastos Médicos16000C"},"Gastos Médicos",0,0,16000,0,17,65,70,"Colectivo de AP","0708 - Plan Normal Grupo","07 - Accidentes Personales",0,0,367.36,100,0,"C","Adicional","Cobertura máxima del 10% de la Suma Asegurada en Muerte Accidental"]
[{"$f":"+Tabla1[[#This Row],[Cobertura]]&Tabla1[[#This Row],[Suma Asegurada Fija]]&Tabla1[[#This Row],[Clasificación Riesgo]]","v":"Gastos Médicos17000A"},"Gastos Médicos",0,0,17000,0,17,65,70,"Colectivo de AP","0708 - Plan Normal Grupo","07 - Accidentes Personales",0,0,165.75,100,0,"A","Adicional","Cobertura máxima del 10% de la Suma Asegurada en Muerte Accidental"]
[{"$f":"+Tabla1[[#This Row],[Cobertura]]&Tabla1[[#This Row],[Suma Asegurada Fija]]&Tabla1[[#This Row],[Clasificación Riesgo]]","v":"Gastos Médicos17000B"},"Gastos Médicos",0,0,17000,0,17,65,70,"Colectivo de AP","0708 - Plan Normal Grupo","07 - Accidentes Personales",0,0,290.70000000000005,100,0,"B","Adicional","Cobertura máxima del 10% de la Suma Asegurada en Muerte Accidental"]
[{"$f":"+Tabla1[[#This Row],[Cobertura]]&Tabla1[[#This Row],[Suma Asegurada Fija]]&Tabla1[[#This Row],[Clasificación Riesgo]]","v":"Gastos Médicos17000C"},"Gastos Médicos",0,0,17000,0,17,65,70,"Colectivo de AP","0708 - Plan Normal Grupo","07 - Accidentes Personales",0,0,390.32,100,0,"C","Adicional","Cobertura máxima del 10% de la Suma Asegurada en Muerte Accidental"]
[{"$f":"+Tabla1[[#This Row],[Cobertura]]&Tabla1[[#This Row],[Suma Asegurada Fija]]&Tabla1[[#This Row],[Clasificación Riesgo]]","v":"Gastos Médicos18000A"},"Gastos Médicos",0,0,18000,0,17,65,70,"Colectivo de AP","0708 - Plan Normal Grupo","07 - Accidentes Personales",0,0,175.5,100,0,"A","Adicional","Cobertura máxima del 10% de la Suma Asegurada en Muerte Accidental"]
[{"$f":"+Tabla1[[#This Row],[Cobertura]]&Tabla1[[#This Row],[Suma Asegurada Fija]]&Tabla1[[#This Row],[Clasificación Riesgo]]","v":"Gastos Médicos18000B"},"Gastos Médicos",0,0,18000,0,17,65,70,"Colectivo de AP","0708 - Plan Normal Grupo","07 - Accidentes Personales",0,0,307.8,100,0,"B","Adicional","Cobertura máxima del 10% de la Suma Asegurada en Muerte Accidental"]
[{"$f":"+Tabla1[[#This Row],[Cobertura]]&Tabla1[[#This Row],[Suma Asegurada Fija]]&Tabla1[[#This Row],[Clasificación Riesgo]]","v":"Gastos Médicos18000C"},"Gastos Médicos",0,0,18000,0,17,65,70,"Colectivo de AP","0708 - Plan Normal Grupo","07 - Accidentes Personales",0,0,413.28000000000003,100,0,"C","Adicional","Cobertura máxima del 10% de la Suma Asegurada en Muerte Accidental"]
[{"$f":"+Tabla1[[#This Row],[Cobertura]]&Tabla1[[#This Row],[Suma Asegurada Fija]]&Tabla1[[#This Row],[Clasificación Riesgo]]","v":"Gastos Médicos19000A"},"Gastos Médicos",0,0,19000,0,17,65,70,"Colectivo de AP","0708 - Plan Normal Grupo","07 - Accidentes Personales",0,0,185.25,100,0,"A","Adicional","Cobertura máxima del 10% de la Suma Asegurada en Muerte Accidental"]
[{"$f":"+Tabla1[[#This Row],[Cobertura]]&Tabla1[[#This Row],[Suma Asegurada Fija]]&Tabla1[[#This Row],[Clasificación Riesgo]]","v":"Gastos Médicos19000B"},"Gastos Médicos",0,0,19000,0,17,65,70,"Colectivo de AP","0708 - Plan Normal Grupo","07 - Accidentes Personales",0,0,324.90000000000003,100,0,"B","Adicional","Cobertura máxima del 10% de la Suma Asegurada en Muerte Accidental"]
[{"$f":"+Tabla1[[#This Row],[Cobertura]]&Tabla1[[#This Row],[Suma Asegurada Fija]]&Tabla1[[#This Row],[Clasificación Riesgo]]","v":"Gastos Médicos19000C"},"Gastos Médicos",0,0,19000,0,17,65,70,"Colectivo de AP","0708 - Plan Normal Grupo","07 - Accidentes Personales",0,0,436.24,100,0,"C","Adicional","Cobertura máxima del 10% de la Suma Asegurada en Muerte Accidental"]
[{"$f":"+Tabla1[[#This Row],[Cobertura]]&Tabla1[[#This Row],[Suma Asegurada Fija]]&Tabla1[[#This Row],[Clasificación Riesgo]]","v":"Gastos Médicos20000A"},"Gastos Médicos",0,0,20000,0,17,65,70,"Colectivo de AP","0708 - Plan Normal Grupo","07 - Accidentes Personales",0,0,195,100,0,"A","Adicional","Cobertura máxima del 10% de la Suma Asegurada en Muerte Accidental"]
[{"$f":"+Tabla1[[#This Row],[Cobertura]]&Tabla1[[#This Row],[Suma Asegurada Fija]]&Tabla1[[#This Row],[Clasificación Riesgo]]","v":"Gastos Médicos20000B"},"Gastos Médicos",0,0,20000,0,17,65,70,"Colectivo de AP","0708 - Plan Normal Grupo","07 - Accidentes Personales",0,0,342,100,0,"B","Adicional","Cobertura máxima del 10% de la Suma Asegurada en Muerte Accidental"]
[{"$f":"+Tabla1[[#This Row],[Cobertura]]&Tabla1[[#This Row],[Suma Asegurada Fija]]&Tabla1[[#This Row],[Clasificación Riesgo]]","v":"Gastos Médicos20000C"},"Gastos Médicos",0,0,20000,0,17,65,70,"Colectivo de AP","0708 - Plan Normal Grupo","07 - Accidentes Personales",0,0,459.20000000000005,100,0,"C","Adicional","Cobertura máxima del 10% de la Suma Asegurada en Muerte Accidental"]
[{"$f":"+Tabla1[[#This Row],[Cobertura]]&Tabla1[[#This Row],[Suma Asegurada Fija]]&Tabla1[[#This Row],[Clasificación Riesgo]]","v":"Gastos Médicos21000A"},"Gastos Médicos",0,0,21000,0,17,65,70,"Colectivo de AP","0708 - Plan Normal Grupo","07 - Accidentes Personales",0,0,204.75,100,0,"A","Adicional","Cobertura máxima del 10% de la Suma Asegurada en Muerte Accidental"]
[{"$f":"+Tabla1[[#This Row],[Cobertura]]&Tabla1[[#This Row],[Suma Asegurada Fija]]&Tabla1[[#This Row],[Clasificación Riesgo]]","v":"Gastos Médicos21000B"},"Gastos Médicos",0,0,21000,0,17,65,70,"Colectivo de AP","0708 - Plan Normal Grupo","07 - Accidentes Personales",0,0,359.1,100,0,"B","Adicional","Cobertura máxima del 10% de la Suma Asegurada en Muerte Accidental"]
[{"$f":"+Tabla1[[#This Row],[Cobertura]]&Tabla1[[#This Row],[Suma Asegurada Fija]]&Tabla1[[#This Row],[Clasificación Riesgo]]","v":"Gastos Médicos21000C"},"Gastos Médicos",0,0,21000,0,17,65,70,"Colectivo de AP","0708 - Plan Normal Grupo","07 - Accidentes Personales",0,0,482.16,100,0,"C","Adicional","Cobertura máxima del 10% de la Suma Asegurada en Muerte Accidental"]
[{"$f":"+Tabla1[[#This Row],[Cobertura]]&Tabla1[[#This Row],[Suma Asegurada Fija]]&Tabla1[[#This Row],[Clasificación Riesgo]]","v":"Gastos Médicos22000A"},"Gastos Médicos",0,0,22000,0,17,65,70,"Colectivo de AP","0708 - Plan Normal Grupo","07 - Accidentes Personales",0,0,214.5,100,0,"A","Adicional","Cobertura máxima del 10% de la Suma Asegurada en Muerte Accidental"]
[{"$f":"+Tabla1[[#This Row],[Cobertura]]&Tabla1[[#This Row],[Suma Asegurada Fija]]&Tabla1[[#This Row],[Clasificación Riesgo]]","v":"Gastos Médicos22000B"},"Gastos Médicos",0,0,22000,0,17,65,70,"Colectivo de AP","0708 - Plan Normal Grupo","07 - Accidentes Personales",0,0,376.20000000000005,100,0,"B","Adicional","Cobertura máxima del 10% de la Suma Asegurada en Muerte Accidental"]
[{"$f":"+Tabla1[[#This Row],[Cobertura]]&Tabla1[[#This Row],[Suma Asegurada Fija]]&Tabla1[[#This Row],[Clasificación Riesgo]]","v":"Gastos Médicos22000C"},"Gastos Médicos",0,0,22000,0,17,65,70,"Colectivo de AP","0708 - Plan Normal Grupo","07 - Accidentes Personales",0,0,505.12,100,0,"C","Adicional","Cobertura máxima del 10% de la Suma Asegurada en Muerte Accidental"]
[{"$f":"+Tabla1[[#This Row],[Cobertura]]&Tabla1[[#This Row],[Suma Asegurada Fija]]&Tabla1[[#This Row],[Clasificación Riesgo]]","v":"Gastos Médicos23000A"},"Gastos Médicos",0,0,23000,0,17,65,70,"Colectivo de AP","0708 - Plan Normal Grupo","07 - Accidentes Personales",0,0,224.25,100,0,"A","Adicional","Cobertura máxima del 10% de la Suma Asegurada en Muerte Accidental"]
[{"$f":"+Tabla1[[#This Row],[Cobertura]]&Tabla1[[#This Row],[Suma Asegurada Fija]]&Tabla1[[#This Row],[Clasificación Riesgo]]","v":"Gastos Médicos23000B"},"Gastos Médicos",0,0,23000,0,17,65,70,"Colectivo de AP","0708 - Plan Normal Grupo","07 - Accidentes Personales",0,0,393.3,100,0,"B","Adicional","Cobertura máxima del 10% de la Suma Asegurada en Muerte Accidental"]
[{"$f":"+Tabla1[[#This Row],[Cobertura]]&Tabla1[[#This Row],[Suma Asegurada Fija]]&Tabla1[[#This Row],[Clasificación Riesgo]]","v":"Gastos Médicos23000C"},"Gastos Médicos",0,0,23000,0,17,65,70,"Colectivo de AP","0708 - Plan Normal Grupo","07 - Accidentes Personales",0,0,528.08000000000004,100,0,"C","Adicional","Cobertura máxima del 10% de la Suma Asegurada en Muerte Accidental"]
[{"$f":"+Tabla1[[#This Row],[Cobertura]]&Tabla1[[#This Row],[Suma Asegurada Fija]]&Tabla1[[#This Row],[Clasificación Riesgo]]","v":"Gastos Médicos24000A"},"Gastos Médicos",0,0,24000,0,17,65,70,"Colectivo de AP","0708 - Plan Normal Grupo","07 - Accidentes Personales",0,0,234,100,0,"A","Adicional","Cobertura máxima del 10% de la Suma Asegurada en Muerte Accidental"]
[{"$f":"+Tabla1[[#This Row],[Cobertura]]&Tabla1[[#This Row],[Suma Asegurada Fija]]&Tabla1[[#This Row],[Clasificación Riesgo]]","v":"Gastos Médicos24000B"},"Gastos Médicos",0,0,24000,0,17,65,70,"Colectivo de AP","0708 - Plan Normal Grupo","07 - Accidentes Personales",0,0,410.40000000000003,100,0,"B","Adicional","Cobertura máxima del 10% de la Suma Asegurada en Muerte Accidental"]
[{"$f":"+Tabla1[[#This Row],[Cobertura]]&Tabla1[[#This Row],[Suma Asegurada Fija]]&Tabla1[[#This Row],[Clasificación Riesgo]]","v":"Gastos Médicos24000C"},"Gastos Médicos",0,0,24000,0,17,65,70,"Colectivo de AP","0708 - Plan Normal Grupo","07 - Accidentes Personales",0,0,551.04,100,0,"C","Adicional","Cobertura máxima del 10% de la Suma Asegurada en Muerte Accidental"]
[{"$f":"+Tabla1[[#This Row],[Cobertura]]&Tabla1[[#This Row],[Suma Asegurada Fija]]&Tabla1[[#This Row],[Clasificación Riesgo]]","v":"Gastos Médicos25000A"},"Gastos Médicos",0,0,25000,0,17,65,70,"Colectivo de AP","0708 - Plan Normal Grupo","07 - Accidentes Personales",0,0,243.75,100,0,"A","Adicional","Cobertura máxima del 10% de la Suma Asegurada en Muerte Accidental"]
[{"$f":"+Tabla1[[#This Row],[Cobertura]]&Tabla1[[#This Row],[Suma Asegurada Fija]]&Tabla1[[#This Row],[Clasificación Riesgo]]","v":"Gastos Médicos25000B"},"Gastos Médicos",0,0,25000,0,17,65,70,"Colectivo de AP","0708 - Plan Normal Grupo","07 - Accidentes Personales",0,0,427.50000000000006,100,0,"B","Adicional","Cobertura máxima del 10% de la Suma Asegurada en Muerte Accidental"]
[{"$f":"+Tabla1[[#This Row],[Cobertura]]&Tabla1[[#This Row],[Suma Asegurada Fija]]&Tabla1[[#This Row],[Clasificación Riesgo]]","v":"Gastos Médicos25000C"},"Gastos Médicos",0,0,25000,0,17,65,70,"Colectivo de AP","0708 - Plan Normal Grupo","07 - Accidentes Personales",0,0,574,100,0,"C","Adicional","Cobertura máxima del 10% de la Suma Asegurada en Muerte Accidental"]
[{"$f":"+Tabla1[[#This Row],[Cobertura]]&Tabla1[[#This Row],[Suma Asegurada Fija]]&Tabla1[[#This Row],[Clasificación Riesgo]]","v":"Gastos Médicos26000A"},"Gastos Médicos",0,0,26000,0,17,65,70,"Colectivo de AP","0708 - Plan Normal Grupo","07 - Accidentes Personales",0,0,253.5,100,0,"A","Adicional","Cobertura máxima del 10% de la Suma Asegurada en Muerte Accidental"]
[{"$f":"+Tabla1[[#This Row],[Cobertura]]&Tabla1[[#This Row],[Suma Asegurada Fija]]&Tabla1[[#This Row],[Clasificación Riesgo]]","v":"Gastos Médicos26000B"},"Gastos Médicos",0,0,26000,0,17,65,70,"Colectivo de AP","0708 - Plan Normal Grupo","07 - Accidentes Personales",0,0,444.6,100,0,"B","Adicional","Cobertura máxima del 10% de la Suma Asegurada en Muerte Accidental"]
[{"$f":"+Tabla1[[#This Row],[Cobertura]]&Tabla1[[#This Row],[Suma Asegurada Fija]]&Tabla1[[#This Row],[Clasificación Riesgo]]","v":"Gastos Médicos26000C"},"Gastos Médicos",0,0,26000,0,17,65,70,"Colectivo de AP","0708 - Plan Normal Grupo","07 - Accidentes Personales",0,0,596.96,100,0,"C","Adicional","Cobertura máxima del 10% de la Suma Asegurada en Muerte Accidental"]
[{"$f":"+Tabla1[[#This Row],[Cobertura]]&Tabla1[[#This Row],[Suma Asegurada Fija]]&Tabla1[[#This Row],[Clasificación Riesgo]]","v":"Gastos Médicos27000A"},"Gastos Médicos",0,0,27000,0,17,65,70,"Colectivo de AP","0708 - Plan Normal Grupo","07 - Accidentes Personales",0,0,263.25,100,0,"A","Adicional","Cobertura máxima del 10% de la Suma Asegurada en Muerte Accidental"]
[{"$f":"+Tabla1[[#This Row],[Cobertura]]&Tabla1[[#This Row],[Suma Asegurada Fija]]&Tabla1[[#This Row],[Clasificación Riesgo]]","v":"Gastos Médicos27000B"},"Gastos Médicos",0,0,27000,0,17,65,70,"Colectivo de AP","0708 - Plan Normal Grupo","07 - Accidentes Personales",0,0,461.70000000000005,100,0,"B","Adicional","Cobertura máxima del 10% de la Suma Asegurada en Muerte Accidental"]
[{"$f":"+Tabla1[[#This Row],[Cobertura]]&Tabla1[[#This Row],[Suma Asegurada Fija]]&Tabla1[[#This Row],[Clasificación Riesgo]]","v":"Gastos Médicos27000C"},"Gastos Médicos",0,0,27000,0,17,65,70,"Colectivo de AP","0708 - Plan Normal Grupo","07 - Accidentes Personales",0,0,619.92000000000007,100,0,"C","Adicional","Cobertura máxima del 10% de la Suma Asegurada en Muerte Accidental"]
[{"$f":"+Tabla1[[#This Row],[Cobertura]]&Tabla1[[#This Row],[Suma Asegurada Fija]]&Tabla1[[#This Row],[Clasificación Riesgo]]","v":"Gastos Médicos28000A"},"Gastos Médicos",0,0,28000,0,17,65,70,"Colectivo de AP","0708 - Plan Normal Grupo","07 - Accidentes Personales",0,0,273,100,0,"A","Adicional","Cobertura máxima del 10% de la Suma Asegurada en Muerte Accidental"]
[{"$f":"+Tabla1[[#This Row],[Cobertura]]&Tabla1[[#This Row],[Suma Asegurada Fija]]&Tabla1[[#This Row],[Clasificación Riesgo]]","v":"Gastos Médicos28000B"},"Gastos Médicos",0,0,28000,0,17,65,70,"Colectivo de AP","0708 - Plan Normal Grupo","07 - Accidentes Personales",0,0,478.80000000000007,100,0,"B","Adicional","Cobertura máxima del 10% de la Suma Asegurada en Muerte Accidental"]
[{"$f":"+Tabla1[[#This Row],[Cobertura]]&Tabla1[[#This Row],[Suma Asegurada Fija]]&Tabla1[[#This Row],[Clasificación Riesgo]]","v":"Gastos Médicos28000C"},"Gastos Médicos",0,0,28000,0,17,65,70,"Colectivo de AP","0708 - Plan Normal Grupo","07 - Accidentes Personales",0,0,642.88,100,0,"C","Adicional","Cobertura máxima del 10% de la Suma Asegurada en Muerte Accidental"]
[{"$f":"+Tabla1[[#This Row],[Cobertura]]&Tabla1[[#This Row],[Suma Asegurada Fija]]&Tabla1[[#This Row],[Clasificación Riesgo]]","v":"Gastos Médicos29000A"},"Gastos Médicos",0,0,29000,0,17,65,70,"Colectivo de AP","0708 - Plan Normal Grupo","07 - Accidentes Personales",0,0,282.75,100,0,"A","Adicional","Cobertura máxima del 10% de la Suma Asegurada en Muerte Accidental"]
[{"$f":"+Tabla1[[#This Row],[Cobertura]]&Tabla1[[#This Row],[Suma Asegurada Fija]]&Tabla1[[#This Row],[Clasificación Riesgo]]","v":"Gastos Médicos29000B"},"Gastos Médicos",0,0,29000,0,17,65,70,"Colectivo de AP","0708 - Plan Normal Grupo","07 - Accidentes Personales",0,0,495.90000000000003,100,0,"B","Adicional","Cobertura máxima del 10% de la Suma Asegurada en Muerte Accidental"]
[{"$f":"+Tabla1[[#This Row],[Cobertura]]&Tabla1[[#This Row],[Suma Asegurada Fija]]&Tabla1[[#This Row],[Clasificación Riesgo]]","v":"Gastos Médicos29000C"},"Gastos Médicos",0,0,29000,0,17,65,70,"Colectivo de AP","0708 - Plan Normal Grupo","07 - Accidentes Personales",0,0,665.84,100,0,"C","Adicional","Cobertura máxima del 10% de la Suma Asegurada en Muerte Accidental"]
[{"$f":"+Tabla1[[#This Row],[Cobertura]]&Tabla1[[#This Row],[Suma Asegurada Fija]]&Tabla1[[#This Row],[Clasificación Riesgo]]","v":"Gastos Médicos30000A"},"Gastos Médicos",0,0,30000,0,17,65,70,"Colectivo de AP","0708 - Plan Normal Grupo","07 - Accidentes Personales",0,0,292.5,100,0,"A","Adicional","Cobertura máxima del 10% de la Suma Asegurada en Muerte Accidental"]
[{"$f":"+Tabla1[[#This Row],[Cobertura]]&Tabla1[[#This Row],[Suma Asegurada Fija]]&Tabla1[[#This Row],[Clasificación Riesgo]]","v":"Gastos Médicos30000B"},"Gastos Médicos",0,0,30000,0,17,65,70,"Colectivo de AP","0708 - Plan Normal Grupo","07 - Accidentes Personales",0,0,513,100,0,"B","Adicional","Cobertura máxima del 10% de la Suma Asegurada en Muerte Accidental"]
[{"$f":"+Tabla1[[#This Row],[Cobertura]]&Tabla1[[#This Row],[Suma Asegurada Fija]]&Tabla1[[#This Row],[Clasificación Riesgo]]","v":"Gastos Médicos30000C"},"Gastos Médicos",0,0,30000,0,17,65,70,"Colectivo de AP","0708 - Plan Normal Grupo","07 - Accidentes Personales",0,0,688.80000000000007,100,0,"C","Adicional","Cobertura máxima del 10% de la Suma Asegurada en Muerte Accidental"]
[{"$f":"+Tabla1[[#This Row],[Cobertura]]&Tabla1[[#This Row],[Suma Asegurada Fija]]&Tabla1[[#This Row],[Clasificación Riesgo]]","v":"Gastos Médicos0A"},"Gastos Médicos",10001,30000,0,0,17,65,70,"Colectivo de AP","0708 - Plan Normal Grupo","07 - Accidentes Personales",0,9.75,0,100,30000,"A","Adicional","Cobertura máxima del 10% de la Suma Asegurada en Muerte Accidental"]
[{"$f":"+Tabla1[[#This Row],[Cobertura]]&Tabla1[[#This Row],[Suma Asegurada Fija]]&Tabla1[[#This Row],[Clasificación Riesgo]]","v":"Gastos Médicos0B"},"Gastos Médicos",10001,30000,0,0,17,65,70,"Colectivo de AP","0708 - Plan Normal Grupo","07 - Accidentes Personales",0,17.100000000000001,0,100,30000,"B","Adicional","Cobertura máxima del 10% de la Suma Asegurada en Muerte Accidental"]
[{"$f":"+Tabla1[[#This Row],[Cobertura]]&Tabla1[[#This Row],[Suma Asegurada Fija]]&Tabla1[[#This Row],[Clasificación Riesgo]]","v":"Gastos Médicos0C"},"Gastos Médicos",10001,30000,0,0,17,65,70,"Colectivo de AP","0708 - Plan Normal Grupo","07 - Accidentes Personales",0,22.96,0,100,30000,"C","Adicional","Cobertura máxima del 10% de la Suma Asegurada en Muerte Accidental"]
[{"$f":"+Tabla1[[#This Row],[Cobertura]]&Tabla1[[#This Row],[Clasificación Riesgo]]","v":"Renta Diaria por Incapacidad Temporal por AccidenteA"},"Renta Diaria por Incapacidad Temporal por Accidente",1,30,0,0,18,65,70,"Colectivo de AP","0708 - Plan Normal Grupo","07 - Accidentes Personales",0,2.5,0,"5 días","60 días","A","Adicional"]
[{"$f":"+Tabla1[[#This Row],[Cobertura]]&Tabla1[[#This Row],[Clasificación Riesgo]]","v":"Renta Diaria por Incapacidad Temporal por AccidenteB"},"Renta Diaria por Incapacidad Temporal por Accidente",1,30,0,0,18,65,70,"Colectivo de AP","0708 - Plan Normal Grupo","07 - Accidentes Personales",0,4,0,"5 días","60 días","B","Adicional"]
[{"$f":"+Tabla1[[#This Row],[Cobertura]]&Tabla1[[#This Row],[Clasificación Riesgo]]","v":"Renta Diaria por Incapacidad Temporal por AccidenteC"},"Renta Diaria por Incapacidad Temporal por Accidente",1,30,0,0,18,65,70,"Colectivo de AP","0708 - Plan Normal Grupo","07 - Accidentes Personales",0,6,0,"5 días","60 días","C","Adicional"]
[{"$f":"+Tabla1[[#This Row],[Cobertura]]&Tabla1[[#This Row],[Suma Asegurada Fija]]&Tabla1[[#This Row],[Clasificación Riesgo]]","v":"Renta Diaria por Hospitalización por Accidente25A"},"Renta Diaria por Hospitalización por Accidente",0,0,25,0,17,65,70,"Colectivo de AP","0708 - Plan Normal Grupo","07 - Accidentes Personales",0,0,23,"3 días","60 días","A","Adicional"]
[{"$f":"+Tabla1[[#This Row],[Cobertura]]&Tabla1[[#This Row],[Suma Asegurada Fija]]&Tabla1[[#This Row],[Clasificación Riesgo]]","v":"Renta Diaria por Hospitalización por Accidente25B"},"Renta Diaria por Hospitalización por Accidente",0,0,25,0,17,65,70,"Colectivo de AP","0708 - Plan Normal Grupo","07 - Accidentes Personales",0,0,23,"3 días","60 días","B","Adicional"]
[{"$f":"+Tabla1[[#This Row],[Cobertura]]&Tabla1[[#This Row],[Suma Asegurada Fija]]&Tabla1[[#This Row],[Clasificación Riesgo]]","v":"Renta Diaria por Hospitalización por Accidente25C"},"Renta Diaria por Hospitalización por Accidente",0,0,25,0,17,65,70,"Colectivo de AP","0708 - Plan Normal Grupo","07 - Accidentes Personales",0,0,23,"3 días","60 días","C","Adicional"]
[{"$f":"+Tabla1[[#This Row],[Cobertura]]&Tabla1[[#This Row],[Suma Asegurada Fija]]&Tabla1[[#This Row],[Clasificación Riesgo]]","v":"Renta Diaria por Hospitalización por Accidente50A"},"Renta Diaria por Hospitalización por Accidente",0,0,50,0,17,65,70,"Colectivo de AP","0708 - Plan Normal Grupo","07 - Accidentes Personales",0,0,49,"3 días","60 días","A","Adicional"]
[{"$f":"+Tabla1[[#This Row],[Cobertura]]&Tabla1[[#This Row],[Suma Asegurada Fija]]&Tabla1[[#This Row],[Clasificación Riesgo]]","v":"Renta Diaria por Hospitalización por Accidente50B"},"Renta Diaria por Hospitalización por Accidente",0,0,50,0,17,65,70,"Colectivo de AP","0708 - Plan Normal Grupo","07 - Accidentes Personales",0,0,49,"3 días","60 días","B","Adicional"]
[{"$f":"+Tabla1[[#This Row],[Cobertura]]&Tabla1[[#This Row],[Suma Asegurada Fija]]&Tabla1[[#This Row],[Clasificación Riesgo]]","v":"Renta Diaria por Hospitalización por Accidente50C"},"Renta Diaria por Hospitalización por Accidente",0,0,50,0,17,65,70,"Colectivo de AP","0708 - Plan Normal Grupo","07 - Accidentes Personales",0,0,49,"3 días","60 días","C","Adicional"]
[{"$f":"+Tabla1[[#This Row],[Cobertura]]&Tabla1[[#This Row],[Suma Asegurada Fija]]&Tabla1[[#This Row],[Clasificación Riesgo]]","v":"Renta Diaria por Hospitalización por Accidente100A"},"Renta Diaria por Hospitalización por Accidente",0,0,100,0,17,65,70,"Colectivo de AP","0708 - Plan Normal Grupo","07 - Accidentes Personales",0,0,100,"3 días","60 días","A","Adicional"]
[{"$f":"+Tabla1[[#This Row],[Cobertura]]&Tabla1[[#This Row],[Suma Asegurada Fija]]&Tabla1[[#This Row],[Clasificación Riesgo]]","v":"Renta Diaria por Hospitalización por Accidente100B"},"Renta Diaria por Hospitalización por Accidente",0,0,100,0,17,65,70,"Colectivo de AP","0708 - Plan Normal Grupo","07 - Accidentes Personales",0,0,100,"3 días","60 días","B","Adicional"]
[{"$f":"+Tabla1[[#This Row],[Cobertura]]&Tabla1[[#This Row],[Suma Asegurada Fija]]&Tabla1[[#This Row],[Clasificación Riesgo]]","v":"Renta Diaria por Hospitalización por Accidente100C"},"Renta Diaria por Hospitalización por Accidente",0,0,100,0,17,65,70,"Colectivo de AP","0708 - Plan Normal Grupo","07 - Accidentes Personales",0,0,100,"3 días","60 días","C","Adicional"]
[null,"Servicio de Emergencia Odontológica sin Endodoncia",0,0,0,0,2,65,70,"Colectivo de AP","0708 - Plan Normal Grupo","07 - Accidentes Personales",0,0,4.03,0,0,"A","Adicional"]
[null,"Servicio de Emergencia Odontológica Completa",0,0,0,0,2,65,70,"Colectivo de AP","0708 - Plan Normal Grupo","07 - Accidentes Personales",0,0,4.75,0,0,"A","Adicional"]
[null,"Servicio de Emergencia Odontológica sin Endodoncia Familiar",0,0,0,0,2,65,70,"Colectivo de AP","0708 - Plan Normal Grupo","07 - Accidentes Personales",0,0,14.12,0,0,"A","Adicional"]
[null,"Servicio de Emergencia Odontológica Completa Familiar",0,0,0,0,2,65,70,"Colectivo de AP","0708 - Plan Normal Grupo","07 - Accidentes Personales",0,0,16.61,0,0,"A","Adicional"]
[null,"Servicio de Asistencia Médica Móvil",0,0,0,0,2,65,70,"Colectivo de AP","0708 - Plan Normal Grupo","07 - Accidentes Personales",0,0,1.98,0,0,"A","Adicional"]
[null,"Servicio de Orientación Médica",0,0,0,0,2,65,70,"Colectivo de AP","0708 - Plan Normal Grupo","07 - Accidentes Personales",0,0,6.6,0,0,"A","Adicional"]
[null,"Asistencia Funeraria Nacional Individual",0,0,0,0,2,65,70,"Colectivo de AP","0708 - Plan Normal Grupo","07 - Accidentes Personales",0,0,9.76,0,0,"A","Adicional"]
[null,"Asistencia Funeraria Individual con Repatriación",0,0,0,0,2,65,70,"Colectivo de AP","0708 - Plan Normal Grupo","07 - Accidentes Personales",0,0,14.64,0,0,"A","Adicional"]
[null,"Asistencia Funeraria con Expatriación",0,0,0,0,2,65,70,"Colectivo de AP","0708 - Plan Normal Grupo","07 - Accidentes Personales",0,0,19.739999999999998,0,0,"A","Adicional"]
[null,"Asistencia Funeraria Nacional Familiar",0,0,0,0,2,65,70,"Colectivo de AP","0708 - Plan Normal Grupo","07 - Accidentes Personales",0,0,70.98,0,0,"A","Adicional"]
[null,"Asistencia Funeraria Nacional Familiar + Progenitores",0,0,0,0,2,65,70,"Colectivo de AP","0708 - Plan Normal Grupo","07 - Accidentes Personales",0,0,155.05000000000001,0,0,"A","Adicional"]
[{"$f":"+Tabla1[[#This Row],[Producto]]&Tabla1[[#This Row],[Cobertura]]&Tabla1[[#This Row],[Edad Mínima]]","v":"CruceroMuerte Accidental17"},"Muerte Accidental",1000,250000,0,0,17,60,75,"Crucero","0703 - Plan Normal","07 - Accidentes Personales",0,1,0,0,0,"A","Básico"]
[{"$f":"+Tabla1[[#This Row],[Producto]]&Tabla1[[#This Row],[Cobertura]]&Tabla1[[#This Row],[Edad Mínima]]","v":"CruceroMuerte Accidental61"},"Muerte Accidental",1000,250000,0,0,61,70,75,"Crucero","0703 - Plan Normal","07 - Accidentes Personales",0,1.6,0,0,0,"A","Básico"]
[{"$f":"+Tabla1[[#This Row],[Producto]]&Tabla1[[#This Row],[Cobertura]]&Tabla1[[#This Row],[Edad Mínima]]","v":"CruceroMuerte Accidental71"},"Muerte Accidental",1000,50000,0,0,71,75,75,"Crucero","0703 - Plan Normal","07 - Accidentes Personales",0,1.65,0,0,0,"A","Básico"]
[null,"Adelanto por Incapacidad Total y Permanente por Accidente",0,0,"Suma Asegurada de Muerte Accidental",0,18,65,70,"Crucero","0703 - Plan Normal","07 - Accidentes Personales",0,0,0,0,0,"A","Básico","Beneficio incluido en la tarifa de Muerte Accidental"]
[null,"Adelanto por Desmembramiento por Accidente",0,0,"Suma Asegurada de Muerte Accidental",0,17,65,70,"Crucero","0703 - Plan Normal","07 - Accidentes Personales",0,0,0,0,0,"A","Básico","Beneficio incluido en la tarifa de Muerte Accidental"]
[{"$f":"+Tabla1[[#This Row],[Producto]]&Tabla1[[#This Row],[Cobertura]]&Tabla1[[#This Row],[Suma Asegurada Fija]]","v":"CruceroGastos Médicos500"},"Gastos Médicos",0,0,500,0,18,65,65,"Crucero","0703 - Plan Normal","07 - Accidentes Personales",0,0,8.1999999999999993,25,0,"A","Adicional","Cobertura máxima del 10% de la Suma Asegurada en Muerte Accidental"]
[{"$f":"+Tabla1[[#This Row],[Producto]]&Tabla1[[#This Row],[Cobertura]]&Tabla1[[#This Row],[Suma Asegurada Fija]]","v":"CruceroGastos Médicos1000"},"Gastos Médicos",0,0,1000,0,18,65,65,"Crucero","0703 - Plan Normal","07 - Accidentes Personales",0,0,12,25,0,"A","Adicional","Cobertura máxima del 10% de la Suma Asegurada en Muerte Accidental"]
[{"$f":"+Tabla1[[#This Row],[Producto]]&Tabla1[[#This Row],[Cobertura]]&Tabla1[[#This Row],[Suma Asegurada Fija]]","v":"CruceroGastos Médicos1500"},"Gastos Médicos",0,0,1500,0,18,65,65,"Crucero","0703 - Plan Normal","07 - Accidentes Personales",0,0,16,50,0,"A","Adicional","Cobertura máxima del 10% de la Suma Asegurada en Muerte Accidental"]
[{"$f":"+Tabla1[[#This Row],[Producto]]&Tabla1[[#This Row],[Cobertura]]&Tabla1[[#This Row],[Suma Asegurada Fija]]","v":"CruceroGastos Médicos2000"},"Gastos Médicos",0,0,2000,0,18,65,65,"Crucero","0703 - Plan Normal","07 - Accidentes Personales",0,0,21,50,0,"A","Adicional","Cobertura máxima del 10% de la Suma Asegurada en Muerte Accidental"]
[{"$f":"+Tabla1[[#This Row],[Producto]]&Tabla1[[#This Row],[Cobertura]]&Tabla1[[#This Row],[Suma Asegurada Fija]]","v":"CruceroGastos Médicos2500"},"Gastos Médicos",0,0,2500,0,18,65,65,"Crucero","0703 - Plan Normal","07 - Accidentes Personales",0,0,25,50,0,"A","Adicional","Cobertura máxima del 10% de la Suma Asegurada en Muerte Accidental"]
[{"$f":"+Tabla1[[#This Row],[Producto]]&Tabla1[[#This Row],[Cobertura]]&Tabla1[[#This Row],[Suma Asegurada Fija]]","v":"CruceroGastos Médicos3000"},"Gastos Médicos",0,0,3000,0,18,65,65,"Crucero","0703 - Plan Normal","07 - Accidentes Personales",0,0,30,100,0,"A","Adicional","Cobertura máxima del 10% de la Suma Asegurada en Muerte Accidental"]
[{"$f":"+Tabla1[[#This Row],[Producto]]&Tabla1[[#This Row],[Cobertura]]&Tabla1[[#This Row],[Suma Asegurada Fija]]","v":"CruceroGastos Médicos4000"},"Gastos Médicos",0,0,4000,0,18,65,65,"Crucero","0703 - Plan Normal","07 - Accidentes Personales",0,0,40.5,100,0,"A","Adicional","Cobertura máxima del 10% de la Suma Asegurada en Muerte Accidental"]
[{"$f":"+Tabla1[[#This Row],[Producto]]&Tabla1[[#This Row],[Cobertura]]&Tabla1[[#This Row],[Suma Asegurada Fija]]","v":"CruceroGastos Médicos5000"},"Gastos Médicos",0,0,5000,0,18,65,65,"Crucero","0703 - Plan Normal","07 - Accidentes Personales",0,0,48.5,100,0,"A","Adicional","Cobertura máxima del 10% de la Suma Asegurada en Muerte Accidental"]
[{"$f":"+Tabla1[[#This Row],[Producto]]&Tabla1[[#This Row],[Cobertura]]&Tabla1[[#This Row],[Suma Asegurada Fija]]","v":"CruceroGastos Médicos6000"},"Gastos Médicos",0,0,6000,0,18,65,65,"Crucero","0703 - Plan Normal","07 - Accidentes Personales",0,0,58.5,100,0,"A","Adicional","Cobertura máxima del 10% de la Suma Asegurada en Muerte Accidental"]
[{"$f":"+Tabla1[[#This Row],[Producto]]&Tabla1[[#This Row],[Cobertura]]&Tabla1[[#This Row],[Suma Asegurada Fija]]","v":"CruceroGastos Médicos7000"},"Gastos Médicos",0,0,7000,0,18,65,65,"Crucero","0703 - Plan Normal","07 - Accidentes Personales",0,0,68.25,100,0,"A","Adicional","Cobertura máxima del 10% de la Suma Asegurada en Muerte Accidental"]
[{"$f":"+Tabla1[[#This Row],[Producto]]&Tabla1[[#This Row],[Cobertura]]&Tabla1[[#This Row],[Suma Asegurada Fija]]","v":"CruceroGastos Médicos8000"},"Gastos Médicos",0,0,8000,0,18,65,65,"Crucero","0703 - Plan Normal","07 - Accidentes Personales",0,0,78,100,0,"A","Adicional","Cobertura máxima del 10% de la Suma Asegurada en Muerte Accidental"]
[{"$f":"+Tabla1[[#This Row],[Producto]]&Tabla1[[#This Row],[Cobertura]]&Tabla1[[#This Row],[Suma Asegurada Fija]]","v":"CruceroGastos Médicos9000"},"Gastos Médicos",0,0,9000,0,18,65,65,"Crucero","0703 - Plan Normal","07 - Accidentes Personales",0,0,87.75,100,0,"A","Adicional","Cobertura máxima del 10% de la Suma Asegurada en Muerte Accidental"]
[{"$f":"+Tabla1[[#This Row],[Producto]]&Tabla1[[#This Row],[Cobertura]]&Tabla1[[#This Row],[Suma Asegurada Fija]]","v":"CruceroGastos Médicos10000"},"Gastos Médicos",0,0,10000,0,18,65,65,"Crucero","0703 - Plan Normal","07 - Accidentes Personales",0,0,97.5,100,0,"A","Adicional","Cobertura máxima del 10% de la Suma Asegurada en Muerte Accidental"]
[{"$f":"+Tabla1[[#This Row],[Producto]]&Tabla1[[#This Row],[Cobertura]]&Tabla1[[#This Row],[Suma Asegurada Fija]]","v":"CruceroGastos Médicos11000"},"Gastos Médicos",0,0,11000,0,17,65,65,"Crucero","0703 - Plan Normal","07 - Accidentes Personales",0,0,107.25,100,0,"A","Adicional","Cobertura máxima del 10% de la Suma Asegurada en Muerte Accidental"]
[{"$f":"+Tabla1[[#This Row],[Producto]]&Tabla1[[#This Row],[Cobertura]]&Tabla1[[#This Row],[Suma Asegurada Fija]]","v":"CruceroGastos Médicos12000"},"Gastos Médicos",0,0,12000,0,17,65,65,"Crucero","0703 - Plan Normal","07 - Accidentes Personales",0,0,117,100,0,"A","Adicional","Cobertura máxima del 10% de la Suma Asegurada en Muerte Accidental"]
[{"$f":"+Tabla1[[#This Row],[Producto]]&Tabla1[[#This Row],[Cobertura]]&Tabla1[[#This Row],[Suma Asegurada Fija]]","v":"CruceroGastos Médicos13000"},"Gastos Médicos",0,0,13000,0,17,65,65,"Crucero","0703 - Plan Normal","07 - Accidentes Personales",0,0,126.75,100,0,"A","Adicional","Cobertura máxima del 10% de la Suma Asegurada en Muerte Accidental"]
[{"$f":"+Tabla1[[#This Row],[Producto]]&Tabla1[[#This Row],[Cobertura]]&Tabla1[[#This Row],[Suma Asegurada Fija]]","v":"CruceroGastos Médicos14000"},"Gastos Médicos",0,0,14000,0,17,65,65,"Crucero","0703 - Plan Normal","07 - Accidentes Personales",0,0,136.5,100,0,"A","Adicional","Cobertura máxima del 10% de la Suma Asegurada en Muerte Accidental"]
[{"$f":"+Tabla1[[#This Row],[Producto]]&Tabla1[[#This Row],[Cobertura]]&Tabla1[[#This Row],[Suma Asegurada Fija]]","v":"CruceroGastos Médicos15000"},"Gastos Médicos",0,0,15000,0,17,65,65,"Crucero","0703 - Plan Normal","07 - Accidentes Personales",0,0,146.25,100,0,"A","Adicional","Cobertura máxima del 10% de la Suma Asegurada en Muerte Accidental"]
[{"$f":"+Tabla1[[#This Row],[Producto]]&Tabla1[[#This Row],[Cobertura]]&Tabla1[[#This Row],[Suma Asegurada Fija]]","v":"CruceroGastos Médicos16000"},"Gastos Médicos",0,0,16000,0,17,65,65,"Crucero","0703 - Plan Normal","07 - Accidentes Personales",0,0,156,100,0,"A","Adicional","Cobertura máxima del 10% de la Suma Asegurada en Muerte Accidental"]
[{"$f":"+Tabla1[[#This Row],[Producto]]&Tabla1[[#This Row],[Cobertura]]&Tabla1[[#This Row],[Suma Asegurada Fija]]","v":"CruceroGastos Médicos17000"},"Gastos Médicos",0,0,17000,0,17,65,65,"Crucero","0703 - Plan Normal","07 - Accidentes Personales",0,0,165.75,100,0,"A","Adicional","Cobertura máxima del 10% de la Suma Asegurada en Muerte Accidental"]
[{"$f":"+Tabla1[[#This Row],[Producto]]&Tabla1[[#This Row],[Cobertura]]&Tabla1[[#This Row],[Suma Asegurada Fija]]","v":"CruceroGastos Médicos18000"},"Gastos Médicos",0,0,18000,0,17,65,65,"Crucero","0703 - Plan Normal","07 - Accidentes Personales",0,0,175.5,100,0,"A","Adicional","Cobertura máxima del 10% de la Suma Asegurada en Muerte Accidental"]
[{"$f":"+Tabla1[[#This Row],[Producto]]&Tabla1[[#This Row],[Cobertura]]&Tabla1[[#This Row],[Suma Asegurada Fija]]","v":"CruceroGastos Médicos19000"},"Gastos Médicos",0,0,19000,0,17,65,65,"Crucero","0703 - Plan Normal","07 - Accidentes Personales",0,0,185.25,100,0,"A","Adicional","Cobertura máxima del 10% de la Suma Asegurada en Muerte Accidental"]
[{"$f":"+Tabla1[[#This Row],[Producto]]&Tabla1[[#This Row],[Cobertura]]&Tabla1[[#This Row],[Suma Asegurada Fija]]","v":"CruceroGastos Médicos20000"},"Gastos Médicos",0,0,20000,0,17,65,65,"Crucero","0703 - Plan Normal","07 - Accidentes Personales",0,0,195,100,0,"A","Adicional","Cobertura máxima del 10% de la Suma Asegurada en Muerte Accidental"]
[{"$f":"+Tabla1[[#This Row],[Producto]]&Tabla1[[#This Row],[Cobertura]]&Tabla1[[#This Row],[Suma Asegurada Fija]]","v":"CruceroGastos Médicos21000"},"Gastos Médicos",0,0,21000,0,17,65,65,"Crucero","0703 - Plan Normal","07 - Accidentes Personales",0,0,204.75,100,0,"A","Adicional","Cobertura máxima del 10% de la Suma Asegurada en Muerte Accidental"]
[{"$f":"+Tabla1[[#This Row],[Producto]]&Tabla1[[#This Row],[Cobertura]]&Tabla1[[#This Row],[Suma Asegurada Fija]]","v":"CruceroGastos Médicos22000"},"Gastos Médicos",0,0,22000,0,17,65,65,"Crucero","0703 - Plan Normal","07 - Accidentes Personales",0,0,214.5,100,0,"A","Adicional","Cobertura máxima del 10% de la Suma Asegurada en Muerte Accidental"]
[{"$f":"+Tabla1[[#This Row],[Producto]]&Tabla1[[#This Row],[Cobertura]]&Tabla1[[#This Row],[Suma Asegurada Fija]]","v":"CruceroGastos Médicos23000"},"Gastos Médicos",0,0,23000,0,17,65,65,"Crucero","0703 - Plan Normal","07 - Accidentes Personales",0,0,224.25,100,0,"A","Adicional","Cobertura máxima del 10% de la Suma Asegurada en Muerte Accidental"]
[{"$f":"+Tabla1[[#This Row],[Producto]]&Tabla1[[#This Row],[Cobertura]]&Tabla1[[#This Row],[Suma Asegurada Fija]]","v":"CruceroGastos Médicos24000"},"Gastos Médicos",0,0,24000,0,17,65,65,"Crucero","0703 - Plan Normal","07 - Accidentes Personales",0,0,234,100,0,"A","Adicional","Cobertura máxima del 10% de la Suma Asegurada en Muerte Accidental"]
[{"$f":"+Tabla1[[#This Row],[Producto]]&Tabla1[[#This Row],[Cobertura]]&Tabla1[[#This Row],[Suma Asegurada Fija]]","v":"CruceroGastos Médicos25000"},"Gastos Médicos",0,0,25000,0,17,65,65,"Crucero","0703 - Plan Normal","07 - Accidentes Personales",0,0,243.75,100,0,"A","Adicional","Cobertura máxima del 10% de la Suma Asegurada en Muerte Accidental"]
[null,"Muerte Accidental",1000,6000,0,0,0,0,0,"Escolar","0704 - Plan Escolar","07 - Accidentes Personales",0,0.55000000000000004,0,0,0,"A","Básico"]
[null,"Adelanto por Gastos Funerarios",0,3000,"20% de la Suma Asegurada de Muerte Accidental",0,0,0,0,"Escolar","0704 - Plan Escolar","07 - Accidentes Personales",0,0,0,0,0,"A","Básico","Beneficio incluido en la tarifa de Muerte Accidental"]
[null,"Desmembramiento por Accidente",1000,8500,0,0,0,0,0,"Escolar","0704 - Plan Escolar","07 - Accidentes Personales",0,0.45,0,0,0,"A","Básico"]
[{"$f":"+Tabla1[[#This Row],[Producto]]&Tabla1[[#This Row],[Cobertura]]&Tabla1[[#This Row],[Suma Asegurada Fija]]","v":"EscolarGastos Médicos500"},"Gastos Médicos",0,0,500,0,0,0,0,"Escolar","0704 - Plan Escolar","07 - Accidentes Personales",0,0,8.1999999999999993,25,0,"A","Adicional","Cobertura máxima del 10% de la Suma Asegurada en Muerte Accidental"]
[{"$f":"+Tabla1[[#This Row],[Producto]]&Tabla1[[#This Row],[Cobertura]]&Tabla1[[#This Row],[Suma Asegurada Fija]]","v":"EscolarGastos Médicos1000"},"Gastos Médicos",0,0,1000,0,0,0,0,"Escolar","0704 - Plan Escolar","07 - Accidentes Personales",0,0,12,25,0,"A","Adicional","Cobertura máxima del 10% de la Suma Asegurada en Muerte Accidental"]
[{"$f":"+Tabla1[[#This Row],[Producto]]&Tabla1[[#This Row],[Cobertura]]&Tabla1[[#This Row],[Suma Asegurada Fija]]","v":"EscolarGastos Médicos1500"},"Gastos Médicos",0,0,1500,0,0,0,0,"Escolar","0704 - Plan Escolar","07 - Accidentes Personales",0,0,16,50,0,"A","Adicional","Cobertura máxima del 10% de la Suma Asegurada en Muerte Accidental"]
[{"$f":"+Tabla1[[#This Row],[Producto]]&Tabla1[[#This Row],[Cobertura]]&Tabla1[[#This Row],[Suma Asegurada Fija]]","v":"EscolarGastos Médicos2000"},"Gastos Médicos",0,0,2000,0,0,0,0,"Escolar","0704 - Plan Escolar","07 - Accidentes Personales",0,0,21,50,0,"A","Adicional","Cobertura máxima del 10% de la Suma Asegurada en Muerte Accidental"]
[{"$f":"+Tabla1[[#This Row],[Producto]]&Tabla1[[#This Row],[Cobertura]]&Tabla1[[#This Row],[Suma Asegurada Fija]]","v":"EscolarGastos Médicos2500"},"Gastos Médicos",0,0,2500,0,0,0,0,"Escolar","0704 - Plan Escolar","07 - Accidentes Personales",0,0,25,50,0,"A","Adicional","Cobertura máxima del 10% de la Suma Asegurada en Muerte Accidental"]
[{"$f":"+Tabla1[[#This Row],[Producto]]&Tabla1[[#This Row],[Cobertura]]&Tabla1[[#This Row],[Suma Asegurada Fija]]","v":"EscolarGastos Médicos3000"},"Gastos Médicos",0,0,3000,0,0,0,0,"Escolar","0704 - Plan Escolar","07 - Accidentes Personales",0,0,30,100,0,"A","Adicional","Cobertura máxima del 10% de la Suma Asegurada en Muerte Accidental"]
[{"$f":"+Tabla1[[#This Row],[Producto]]&Tabla1[[#This Row],[Cobertura]]&Tabla1[[#This Row],[Suma Asegurada Fija]]","v":"EscolarGastos Médicos4000"},"Gastos Médicos",0,0,4000,0,0,0,0,"Escolar","0704 - Plan Escolar","07 - Accidentes Personales",0,0,40.5,100,0,"A","Adicional","Cobertura máxima del 10% de la Suma Asegurada en Muerte Accidental"]
[{"$f":"+Tabla1[[#This Row],[Producto]]&Tabla1[[#This Row],[Cobertura]]&Tabla1[[#This Row],[Suma Asegurada Fija]]","v":"EscolarGastos Médicos5000"},"Gastos Médicos",0,0,5000,0,0,0,0,"Escolar","0704 - Plan Escolar","07 - Accidentes Personales",0,0,48.5,100,0,"A","Adicional","Cobertura máxima del 10% de la Suma Asegurada en Muerte Accidental"]
[{"$f":"+Tabla1[[#This Row],[Producto]]&Tabla1[[#This Row],[Cobertura]]&Tabla1[[#This Row],[Suma Asegurada Fija]]","v":"EscolarGastos Médicos6000"},"Gastos Médicos",0,0,6000,0,0,0,0,"Escolar","0704 - Plan Escolar","07 - Accidentes Personales",0,0,58.5,100,0,"A","Adicional","Cobertura máxima del 10% de la Suma Asegurada en Muerte Accidental"]
[{"$f":"+Tabla1[[#This Row],[Producto]]&Tabla1[[#This Row],[Cobertura]]&Tabla1[[#This Row],[Suma Asegurada Fija]]","v":"EscolarGastos Médicos6500"},"Gastos Médicos",0,0,6500,0,0,0,0,"Escolar","0704 - Plan Escolar","07 - Accidentes Personales",0,0,63.38,100,0,"A","Adicional","Cobertura máxima del 10% de la Suma Asegurada en Muerte Accidental"]
[{"$f":"+Tabla1[[#This Row],[Producto]]&Tabla1[[#This Row],[Cobertura]]&Tabla1[[#This Row],[Suma Asegurada Fija]]","v":"EscolarGastos Médicos0"},"Gastos Médicos",5001,6500,0,0,0,0,0,"Escolar","0704 - Plan Escolar","07 - Accidentes Personales",0,9.75,0,100,6500,"A","Adicional","Cobertura máxima del 10% de la Suma Asegurada en Muerte Accidental"]
[null,"Servicio de Asistencia Médica Móvil",0,0,0,0,2,65,70,"Escolar","0704 - Plan Escolar","07 - Accidentes Personales",0,0,1.98,0,0,"A","Adicional"]
[{"$f":"+Tabla1[[#This Row],[Suma Asegurada Fija]]&Tabla1[[#This Row],[Exposición Fija]]&Tabla1[[#This Row],[Edad Mínima]]","v":"50000318"},"Paquete 3 días / $50,000.00 / 18 - 65 Años",0,0,50000,3,18,65,65,"Viajero","0705 - Pólizas Viajeras","07 - Accidentes Personales",0,0,2.74,100,0,"A","Básico","Muerte Accidental + Adelanto por Desmembramiento + Adelanto por ITP + Gastos Médicos (10% Suma Asegurada Muerte Accidental"]
[{"$f":"+Tabla1[[#This Row],[Suma Asegurada Fija]]&Tabla1[[#This Row],[Exposición Fija]]&Tabla1[[#This Row],[Edad Mínima]]","v":"100000318"},"Paquete 3 días / $100,000.00 / 18 - 65 Años",0,0,100000,3,18,65,65,"Viajero","0705 - Pólizas Viajeras","07 - Accidentes Personales",0,0,4.82,100,0,"A","Básico","Muerte Accidental + Adelanto por Desmembramiento + Adelanto por ITP + Gastos Médicos (10% Suma Asegurada Muerte Accidental"]
[{"$f":"+Tabla1[[#This Row],[Suma Asegurada Fija]]&Tabla1[[#This Row],[Exposición Fija]]&Tabla1[[#This Row],[Edad Mínima]]","v":"150000318"},"Paquete 3 días / $150,000.00 / 18 - 65 Años",0,0,150000,3,18,65,65,"Viajero","0705 - Pólizas Viajeras","07 - Accidentes Personales",0,0,6.64,100,0,"A","Básico","Muerte Accidental + Adelanto por Desmembramiento + Adelanto por ITP + Gastos Médicos (10% Suma Asegurada Muerte Accidental"]
[{"$f":"+Tabla1[[#This Row],[Suma Asegurada Fija]]&Tabla1[[#This Row],[Exposición Fija]]&Tabla1[[#This Row],[Edad Mínima]]","v":"200000318"},"Paquete 3 días / $200,000.00 / 18 - 65 Años",0,0,200000,3,18,65,65,"Viajero","0705 - Pólizas Viajeras","07 - Accidentes Personales",0,0,8.3000000000000007,100,0,"A","Básico","Muerte Accidental + Adelanto por Desmembramiento + Adelanto por ITP + Gastos Médicos (10% Suma Asegurada Muerte Accidental"]
[{"$f":"+Tabla1[[#This Row],[Suma Asegurada Fija]]&Tabla1[[#This Row],[Exposición Fija]]&Tabla1[[#This Row],[Edad Mínima]]","v":"250000318"},"Paquete 3 días / $250,000.00 / 18 - 65 Años",0,0,250000,3,18,65,65,"Viajero","0705 - Pólizas Viajeras","07 - Accidentes Personales",0,0,9.9700000000000006,100,0,"A","Básico","Muerte Accidental + Adelanto por Desmembramiento + Adelanto por ITP + Gastos Médicos (10% Suma Asegurada Muerte Accidental"]
[{"$f":"+Tabla1[[#This Row],[Suma Asegurada Fija]]&Tabla1[[#This Row],[Exposición Fija]]&Tabla1[[#This Row],[Edad Mínima]]","v":"50000518"},"Paquete 5 días / $50,000.00 / 18 - 65 Años",0,0,50000,5,18,65,65,"Viajero","0705 - Pólizas Viajeras","07 - Accidentes Personales",0,0,3.78,100,0,"A","Básico","Muerte Accidental + Adelanto por Desmembramiento + Adelanto por ITP + Gastos Médicos (10% Suma Asegurada Muerte Accidental"]
[{"$f":"+Tabla1[[#This Row],[Suma Asegurada Fija]]&Tabla1[[#This Row],[Exposición Fija]]&Tabla1[[#This Row],[Edad Mínima]]","v":"100000518"},"Paquete 5 días / $100,000.00 / 18 - 65 Años",0,0,100000,5,18,65,65,"Viajero","0705 - Pólizas Viajeras","07 - Accidentes Personales",0,0,6.68,100,0,"A","Básico","Muerte Accidental + Adelanto por Desmembramiento + Adelanto por ITP + Gastos Médicos (10% Suma Asegurada Muerte Accidental"]
[{"$f":"+Tabla1[[#This Row],[Suma Asegurada Fija]]&Tabla1[[#This Row],[Exposición Fija]]&Tabla1[[#This Row],[Edad Mínima]]","v":"150000518"},"Paquete 5 días / $150,000.00 / 18 - 65 Años",0,0,150000,5,18,65,65,"Viajero","0705 - Pólizas Viajeras","07 - Accidentes Personales",0,0,9.16,100,0,"A","Básico","Muerte Accidental + Adelanto por Desmembramiento + Adelanto por ITP + Gastos Médicos (10% Suma Asegurada Muerte Accidental"]
[{"$f":"+Tabla1[[#This Row],[Suma Asegurada Fija]]&Tabla1[[#This Row],[Exposición Fija]]&Tabla1[[#This Row],[Edad Mínima]]","v":"200000518"},"Paquete 5 días / $200,000.00 / 18 - 65 Años",0,0,200000,5,18,65,65,"Viajero","0705 - Pólizas Viajeras","07 - Accidentes Personales",0,0,11.46,100,0,"A","Básico","Muerte Accidental + Adelanto por Desmembramiento + Adelanto por ITP + Gastos Médicos (10% Suma Asegurada Muerte Accidental"]
[{"$f":"+Tabla1[[#This Row],[Suma Asegurada Fija]]&Tabla1[[#This Row],[Exposición Fija]]&Tabla1[[#This Row],[Edad Mínima]]","v":"250000518"},"Paquete 5 días / $250,000.00 / 18 - 65 Años",0,0,250000,5,18,65,65,"Viajero","0705 - Pólizas Viajeras","07 - Accidentes Personales",0,0,13.61,100,0,"A","Básico","Muerte Accidental + Adelanto por Desmembramiento + Adelanto por ITP + Gastos Médicos (10% Suma Asegurada Muerte Accidental"]
[{"$f":"+Tabla1[[#This Row],[Suma Asegurada Fija]]&Tabla1[[#This Row],[Exposición Fija]]&Tabla1[[#This Row],[Edad Mínima]]","v":"50000718"},"Paquete 7 días / $50,000.00 / 18 - 65 Años",0,0,50000,7,18,65,65,"Viajero","0705 - Pólizas Viajeras","07 - Accidentes Personales",0,0,4.41,100,0,"A","Básico","Muerte Accidental + Adelanto por Desmembramiento + Adelanto por ITP + Gastos Médicos (10% Suma Asegurada Muerte Accidental"]
[{"$f":"+Tabla1[[#This Row],[Suma Asegurada Fija]]&Tabla1[[#This Row],[Exposición Fija]]&Tabla1[[#This Row],[Edad Mínima]]","v":"100000718"},"Paquete 7 días / $100,000.00 / 18 - 65 Años",0,0,100000,7,18,65,65,"Viajero","0705 - Pólizas Viajeras","07 - Accidentes Personales",0,0,7.76,100,0,"A","Básico","Muerte Accidental + Adelanto por Desmembramiento + Adelanto por ITP + Gastos Médicos (10% Suma Asegurada Muerte Accidental"]
[{"$f":"+Tabla1[[#This Row],[Suma Asegurada Fija]]&Tabla1[[#This Row],[Exposición Fija]]&Tabla1[[#This Row],[Edad Mínima]]","v":"150000718"},"Paquete 7 días / $150,000.00 / 18 - 65 Años",0,0,150000,7,18,65,65,"Viajero","0705 - Pólizas Viajeras","07 - Accidentes Personales",0,0,10.69,100,0,"A","Básico","Muerte Accidental + Adelanto por Desmembramiento + Adelanto por ITP + Gastos Médicos (10% Suma Asegurada Muerte Accidental"]
[{"$f":"+Tabla1[[#This Row],[Suma Asegurada Fija]]&Tabla1[[#This Row],[Exposición Fija]]&Tabla1[[#This Row],[Edad Mínima]]","v":"200000718"},"Paquete 7 días / $200,000.00 / 18 - 65 Años",0,0,200000,7,18,65,65,"Viajero","0705 - Pólizas Viajeras","07 - Accidentes Personales",0,0,13.36,100,0,"A","Básico","Muerte Accidental + Adelanto por Desmembramiento + Adelanto por ITP + Gastos Médicos (10% Suma Asegurada Muerte Accidental"]
[{"$f":"+Tabla1[[#This Row],[Suma Asegurada Fija]]&Tabla1[[#This Row],[Exposición Fija]]&Tabla1[[#This Row],[Edad Mínima]]","v":"250000718"},"Paquete 7 días / $250,000.00 / 18 - 65 Años",0,0,250000,7,18,65,65,"Viajero","0705 - Pólizas Viajeras","07 - Accidentes Personales",0,0,15.88,100,0,"A","Básico","Muerte Accidental + Adelanto por Desmembramiento + Adelanto por ITP + Gastos Médicos (10% Suma Asegurada Muerte Accidental"]
[{"$f":"+Tabla1[[#This Row],[Suma Asegurada Fija]]&Tabla1[[#This Row],[Exposición Fija]]&Tabla1[[#This Row],[Edad Mínima]]","v":"500001018"},"Paquete 10 días / $50,000.00 / 18 - 65 Años",0,0,50000,10,18,65,65,"Viajero","0705 - Pólizas Viajeras","07 - Accidentes Personales",0,0,5.2,100,0,"A","Básico","Muerte Accidental + Adelanto por Desmembramiento + Adelanto por ITP + Gastos Médicos (10% Suma Asegurada Muerte Accidental"]
[{"$f":"+Tabla1[[#This Row],[Suma Asegurada Fija]]&Tabla1[[#This Row],[Exposición Fija]]&Tabla1[[#This Row],[Edad Mínima]]","v":"1000001018"},"Paquete 10 días / $100,000.00 / 18 - 65 Años",0,0,100000,10,18,65,65,"Viajero","0705 - Pólizas Viajeras","07 - Accidentes Personales",0,0,9.9700000000000006,100,0,"A","Básico","Muerte Accidental + Adelanto por Desmembramiento + Adelanto por ITP + Gastos Médicos (10% Suma Asegurada Muerte Accidental"]
[{"$f":"+Tabla1[[#This Row],[Suma Asegurada Fija]]&Tabla1[[#This Row],[Exposición Fija]]&Tabla1[[#This Row],[Edad Mínima]]","v":"1500001018"},"Paquete 10 días / $150,000.00 / 18 - 65 Años",0,0,150000,10,18,65,65,"Viajero","0705 - Pólizas Viajeras","07 - Accidentes Personales",0,0,11.91,100,0,"A","Básico","Muerte Accidental + Adelanto por Desmembramiento + Adelanto por ITP + Gastos Médicos (10% Suma Asegurada Muerte Accidental"]
[{"$f":"+Tabla1[[#This Row],[Suma Asegurada Fija]]&Tabla1[[#This Row],[Exposición Fija]]&Tabla1[[#This Row],[Edad Mínima]]","v":"2000001018"},"Paquete 10 días / $200,000.00 / 18 - 65 Años",0,0,200000,10,18,65,65,"Viajero","0705 - Pólizas Viajeras","07 - Accidentes Personales",0,0,15.57,100,0,"A","Básico","Muerte Accidental + Adelanto por Desmembramiento + Adelanto por ITP + Gastos Médicos (10% Suma Asegurada Muerte Accidental"]
[{"$f":"+Tabla1[[#This Row],[Suma Asegurada Fija]]&Tabla1[[#This Row],[Exposición Fija]]&Tabla1[[#This Row],[Edad Mínima]]","v":"2500001018"},"Paquete 10 días / $250,000.00 / 18 - 65 Años",0,0,250000,10,18,65,65,"Viajero","0705 - Pólizas Viajeras","07 - Accidentes Personales",0,0,17.02,100,0,"A","Básico","Muerte Accidental + Adelanto por Desmembramiento + Adelanto por ITP + Gastos Médicos (10% Suma Asegurada Muerte Accidental"]
[{"$f":"+Tabla1[[#This Row],[Suma Asegurada Fija]]&Tabla1[[#This Row],[Exposición Fija]]&Tabla1[[#This Row],[Edad Mínima]]","v":"500001418"},"Paquete 14 días / $50,000.00 / 18 - 65 Años",0,0,50000,14,18,65,65,"Viajero","0705 - Pólizas Viajeras","07 - Accidentes Personales",0,0,6.06,100,0,"A","Básico","Muerte Accidental + Adelanto por Desmembramiento + Adelanto por ITP + Gastos Médicos (10% Suma Asegurada Muerte Accidental"]
[{"$f":"+Tabla1[[#This Row],[Suma Asegurada Fija]]&Tabla1[[#This Row],[Exposición Fija]]&Tabla1[[#This Row],[Edad Mínima]]","v":"1000001418"},"Paquete 14 días / $100,000.00 / 18 - 65 Años",0,0,100000,14,18,65,65,"Viajero","0705 - Pólizas Viajeras","07 - Accidentes Personales",0,0,10.35,100,0,"A","Básico","Muerte Accidental + Adelanto por Desmembramiento + Adelanto por ITP + Gastos Médicos (10% Suma Asegurada Muerte Accidental"]
[{"$f":"+Tabla1[[#This Row],[Suma Asegurada Fija]]&Tabla1[[#This Row],[Exposición Fija]]&Tabla1[[#This Row],[Edad Mínima]]","v":"1500001418"},"Paquete 14 días / $150,000.00 / 18 - 65 Años",0,0,150000,14,18,65,65,"Viajero","0705 - Pólizas Viajeras","07 - Accidentes Personales",0,0,13.88,100,0,"A","Básico","Muerte Accidental + Adelanto por Desmembramiento + Adelanto por ITP + Gastos Médicos (10% Suma Asegurada Muerte Accidental"]
[{"$f":"+Tabla1[[#This Row],[Suma Asegurada Fija]]&Tabla1[[#This Row],[Exposición Fija]]&Tabla1[[#This Row],[Edad Mínima]]","v":"2000001418"},"Paquete 14 días / $200,000.00 / 18 - 65 Años",0,0,200000,14,18,65,65,"Viajero","0705 - Pólizas Viajeras","07 - Accidentes Personales",0,0,17,100,0,"A","Básico","Muerte Accidental + Adelanto por Desmembramiento + Adelanto por ITP + Gastos Médicos (10% Suma Asegurada Muerte Accidental"]
[{"$f":"+Tabla1[[#This Row],[Suma Asegurada Fija]]&Tabla1[[#This Row],[Exposición Fija]]&Tabla1[[#This Row],[Edad Mínima]]","v":"2500001418"},"Paquete 14 días / $250,000.00 / 18 - 65 Años",0,0,250000,14,18,65,65,"Viajero","0705 - Pólizas Viajeras","07 - Accidentes Personales",0,0,19.850000000000001,100,0,"A","Básico","Muerte Accidental + Adelanto por Desmembramiento + Adelanto por ITP + Gastos Médicos (10% Suma Asegurada Muerte Accidental"]
[{"$f":"+Tabla1[[#This Row],[Suma Asegurada Fija]]&Tabla1[[#This Row],[Exposición Fija]]&Tabla1[[#This Row],[Edad Mínima]]","v":"500002118"},"Paquete 21 días / $50,000.00 / 18 - 65 Años",0,0,50000,21,18,65,65,"Viajero","0705 - Pólizas Viajeras","07 - Accidentes Personales",0,0,7.72,100,0,"A","Básico","Muerte Accidental + Adelanto por Desmembramiento + Adelanto por ITP + Gastos Médicos (10% Suma Asegurada Muerte Accidental"]
[{"$f":"+Tabla1[[#This Row],[Suma Asegurada Fija]]&Tabla1[[#This Row],[Exposición Fija]]&Tabla1[[#This Row],[Edad Mínima]]","v":"1000002118"},"Paquete 21 días / $100,000.00 / 18 - 65 Años",0,0,100000,21,18,65,65,"Viajero","0705 - Pólizas Viajeras","07 - Accidentes Personales",0,0,12.84,100,0,"A","Básico","Muerte Accidental + Adelanto por Desmembramiento + Adelanto por ITP + Gastos Médicos (10% Suma Asegurada Muerte Accidental"]
[{"$f":"+Tabla1[[#This Row],[Suma Asegurada Fija]]&Tabla1[[#This Row],[Exposición Fija]]&Tabla1[[#This Row],[Edad Mínima]]","v":"1500002118"},"Paquete 21 días / $150,000.00 / 18 - 65 Años",0,0,150000,21,18,65,65,"Viajero","0705 - Pólizas Viajeras","07 - Accidentes Personales",0,0,17.079999999999998,100,0,"A","Básico","Muerte Accidental + Adelanto por Desmembramiento + Adelanto por ITP + Gastos Médicos (10% Suma Asegurada Muerte Accidental"]
[{"$f":"+Tabla1[[#This Row],[Suma Asegurada Fija]]&Tabla1[[#This Row],[Exposición Fija]]&Tabla1[[#This Row],[Edad Mínima]]","v":"2000002118"},"Paquete 21 días / $200,000.00 / 18 - 65 Años",0,0,200000,21,18,65,65,"Viajero","0705 - Pólizas Viajeras","07 - Accidentes Personales",0,0,20.86,100,0,"A","Básico","Muerte Accidental + Adelanto por Desmembramiento + Adelanto por ITP + Gastos Médicos (10% Suma Asegurada Muerte Accidental"]
[{"$f":"+Tabla1[[#This Row],[Suma Asegurada Fija]]&Tabla1[[#This Row],[Exposición Fija]]&Tabla1[[#This Row],[Edad Mínima]]","v":"2500002118"},"Paquete 21 días / $250,000.00 / 18 - 65 Años",0,0,250000,21,18,65,65,"Viajero","0705 - Pólizas Viajeras","07 - Accidentes Personales",0,0,23.82,100,0,"A","Básico","Muerte Accidental + Adelanto por Desmembramiento + Adelanto por ITP + Gastos Médicos (10% Suma Asegurada Muerte Accidental"]
[{"$f":"+Tabla1[[#This Row],[Suma Asegurada Fija]]&Tabla1[[#This Row],[Exposición Fija]]&Tabla1[[#This Row],[Edad Mínima]]","v":"500003018"},"Paquete 30 días / $50,000.00 / 18 - 65 Años",0,0,50000,30,18,65,65,"Viajero","0705 - Pólizas Viajeras","07 - Accidentes Personales",0,0,9.58,100,0,"A","Básico","Muerte Accidental + Adelanto por Desmembramiento + Adelanto por ITP + Gastos Médicos (10% Suma Asegurada Muerte Accidental"]
[{"$f":"+Tabla1[[#This Row],[Suma Asegurada Fija]]&Tabla1[[#This Row],[Exposición Fija]]&Tabla1[[#This Row],[Edad Mínima]]","v":"1000003018"},"Paquete 30 días / $100,000.00 / 18 - 65 Años",0,0,100000,30,18,65,65,"Viajero","0705 - Pólizas Viajeras","07 - Accidentes Personales",0,0,16.98,100,0,"A","Básico","Muerte Accidental + Adelanto por Desmembramiento + Adelanto por ITP + Gastos Médicos (10% Suma Asegurada Muerte Accidental"]
[{"$f":"+Tabla1[[#This Row],[Suma Asegurada Fija]]&Tabla1[[#This Row],[Exposición Fija]]&Tabla1[[#This Row],[Edad Mínima]]","v":"1500003018"},"Paquete 30 días / $150,000.00 / 18 - 65 Años",0,0,150000,30,18,65,65,"Viajero","0705 - Pólizas Viajeras","07 - Accidentes Personales",0,0,20.079999999999998,100,0,"A","Básico","Muerte Accidental + Adelanto por Desmembramiento + Adelanto por ITP + Gastos Médicos (10% Suma Asegurada Muerte Accidental"]
[{"$f":"+Tabla1[[#This Row],[Suma Asegurada Fija]]&Tabla1[[#This Row],[Exposición Fija]]&Tabla1[[#This Row],[Edad Mínima]]","v":"2000003018"},"Paquete 30 días / $200,000.00 / 18 - 65 Años",0,0,200000,30,18,65,65,"Viajero","0705 - Pólizas Viajeras","07 - Accidentes Personales",0,0,24.3,100,0,"A","Básico","Muerte Accidental + Adelanto por Desmembramiento + Adelanto por ITP + Gastos Médicos (10% Suma Asegurada Muerte Accidental"]
[{"$f":"+Tabla1[[#This Row],[Suma Asegurada Fija]]&Tabla1[[#This Row],[Exposición Fija]]&Tabla1[[#This Row],[Edad Mínima]]","v":"2500003018"},"Paquete 30 días / $250,000.00 / 18 - 65 Años",0,0,250000,30,18,65,65,"Viajero","0705 - Pólizas Viajeras","07 - Accidentes Personales",0,0,28.46,100,0,"A","Básico","Muerte Accidental + Adelanto por Desmembramiento + Adelanto por ITP + Gastos Médicos (10% Suma Asegurada Muerte Accidental"]
[{"$f":"+Tabla1[[#This Row],[Suma Asegurada Fija]]&Tabla1[[#This Row],[Exposición Fija]]&Tabla1[[#This Row],[Edad Mínima]]","v":"500008018"},"Paquete 80 días / $50,000.00 / 18 - 65 Años",0,0,50000,80,18,65,65,"Viajero","0705 - Pólizas Viajeras","07 - Accidentes Personales",0,0,14.89,100,0,"A","Básico","Muerte Accidental + Adelanto por Desmembramiento + Adelanto por ITP + Gastos Médicos (10% Suma Asegurada Muerte Accidental"]
[{"$f":"+Tabla1[[#This Row],[Suma Asegurada Fija]]&Tabla1[[#This Row],[Exposición Fija]]&Tabla1[[#This Row],[Edad Mínima]]","v":"1000008018"},"Paquete 80 días / $100,000.00 / 18 - 65 Años",0,0,100000,80,18,65,65,"Viajero","0705 - Pólizas Viajeras","07 - Accidentes Personales",0,0,24.69,100,0,"A","Básico","Muerte Accidental + Adelanto por Desmembramiento + Adelanto por ITP + Gastos Médicos (10% Suma Asegurada Muerte Accidental"]
[{"$f":"+Tabla1[[#This Row],[Suma Asegurada Fija]]&Tabla1[[#This Row],[Exposición Fija]]&Tabla1[[#This Row],[Edad Mínima]]","v":"1500008018"},"Paquete 80 días / $150,000.00 / 18 - 65 Años",0,0,150000,80,18,65,65,"Viajero","0705 - Pólizas Viajeras","07 - Accidentes Personales",0,0,30.88,100,0,"A","Básico","Muerte Accidental + Adelanto por Desmembramiento + Adelanto por ITP + Gastos Médicos (10% Suma Asegurada Muerte Accidental"]
[{"$f":"+Tabla1[[#This Row],[Suma Asegurada Fija]]&Tabla1[[#This Row],[Exposición Fija]]&Tabla1[[#This Row],[Edad Mínima]]","v":"2000008018"},"Paquete 80 días / $200,000.00 / 18 - 65 Años",0,0,200000,80,18,65,65,"Viajero","0705 - Pólizas Viajeras","07 - Accidentes Personales",0,0,38.43,100,0,"A","Básico","Muerte Accidental + Adelanto por Desmembramiento + Adelanto por ITP + Gastos Médicos (10% Suma Asegurada Muerte Accidental"]
[{"$f":"+Tabla1[[#This Row],[Suma Asegurada Fija]]&Tabla1[[#This Row],[Exposición Fija]]&Tabla1[[#This Row],[Edad Mínima]]","v":"2500008018"},"Paquete 80 días / $250,000.00 / 18 - 65 Años",0,0,250000,80,18,65,65,"Viajero","0705 - Pólizas Viajeras","07 - Accidentes Personales",0,0,41.03,100,0,"A","Básico","Muerte Accidental + Adelanto por Desmembramiento + Adelanto por ITP + Gastos Médicos (10% Suma Asegurada Muerte Accidental"]
[{"$f":"+Tabla1[[#This Row],[Suma Asegurada Fija]]&Tabla1[[#This Row],[Exposición Fija]]&Tabla1[[#This Row],[Edad Mínima]]","v":"5000012018"},"Paquete 120 días / $50,000.00 / 18 - 65 Años",0,0,50000,120,18,65,65,"Viajero","0705 - Pólizas Viajeras","07 - Accidentes Personales",0,0,19.95,100,0,"A","Básico","Muerte Accidental + Adelanto por Desmembramiento + Adelanto por ITP + Gastos Médicos (10% Suma Asegurada Muerte Accidental"]
[{"$f":"+Tabla1[[#This Row],[Suma Asegurada Fija]]&Tabla1[[#This Row],[Exposición Fija]]&Tabla1[[#This Row],[Edad Mínima]]","v":"10000012018"},"Paquete 120 días / $100,000.00 / 18 - 65 Años",0,0,100000,120,18,65,65,"Viajero","0705 - Pólizas Viajeras","07 - Accidentes Personales",0,0,31.82,100,0,"A","Básico","Muerte Accidental + Adelanto por Desmembramiento + Adelanto por ITP + Gastos Médicos (10% Suma Asegurada Muerte Accidental"]
[{"$f":"+Tabla1[[#This Row],[Suma Asegurada Fija]]&Tabla1[[#This Row],[Exposición Fija]]&Tabla1[[#This Row],[Edad Mínima]]","v":"15000012018"},"Paquete 120 días / $150,000.00 / 18 - 65 Años",0,0,150000,120,18,65,65,"Viajero","0705 - Pólizas Viajeras","07 - Accidentes Personales",0,0,40.6,100,0,"A","Básico","Muerte Accidental + Adelanto por Desmembramiento + Adelanto por ITP + Gastos Médicos (10% Suma Asegurada Muerte Accidental"]
[{"$f":"+Tabla1[[#This Row],[Suma Asegurada Fija]]&Tabla1[[#This Row],[Exposición Fija]]&Tabla1[[#This Row],[Edad Mínima]]","v":"20000012018"},"Paquete 120 días / $200,000.00 / 18 - 65 Años",0,0,200000,120,18,65,65,"Viajero","0705 - Pólizas Viajeras","07 - Accidentes Personales",0,0,47.36,100,0,"A","Básico","Muerte Accidental + Adelanto por Desmembramiento + Adelanto por ITP + Gastos Médicos (10% Suma Asegurada Muerte Accidental"]
[{"$f":"+Tabla1[[#This Row],[Suma Asegurada Fija]]&Tabla1[[#This Row],[Exposición Fija]]&Tabla1[[#This Row],[Edad Mínima]]","v":"25000012018"},"Paquete 120 días / $250,000.00 / 18 - 65 Años",0,0,250000,120,18,65,65,"Viajero","0705 - Pólizas Viajeras","07 - Accidentes Personales",0,0,52.94,100,0,"A","Básico","Muerte Accidental + Adelanto por Desmembramiento + Adelanto por ITP + Gastos Médicos (10% Suma Asegurada Muerte Accidental"]
[{"$f":"+Tabla1[[#This Row],[Suma Asegurada Fija]]&Tabla1[[#This Row],[Exposición Fija]]&Tabla1[[#This Row],[Edad Mínima]]","v":"2500032"},"Paquete 3 días / $25,000.00 / 2 - 17 Años",0,0,25000,3,2,17,17,"Viajero","0705 - Pólizas Viajeras","07 - Accidentes Personales",0,0,1.74,100,0,"A","Básico","$5,000 Muerte Accidental + $25,000 Adelanto por Desmembramiento e ITP + $2,500 Gastos Médicos"]
[{"$f":"+Tabla1[[#This Row],[Suma Asegurada Fija]]&Tabla1[[#This Row],[Exposición Fija]]&Tabla1[[#This Row],[Edad Mínima]]","v":"2500052"},"Paquete 5 días / $25,000.00 / 2 - 17 Años",0,0,25000,5,2,17,17,"Viajero","0705 - Pólizas Viajeras","07 - Accidentes Personales",0,0,2.78,100,0,"A","Básico","$5,000 Muerte Accidental + $25,000 Adelanto por Desmembramiento e ITP + $2,500 Gastos Médicos"]
[{"$f":"+Tabla1[[#This Row],[Suma Asegurada Fija]]&Tabla1[[#This Row],[Exposición Fija]]&Tabla1[[#This Row],[Edad Mínima]]","v":"2500072"},"Paquete 7 días / $25,000.00 / 2 - 17 Años",0,0,25000,7,2,17,17,"Viajero","0705 - Pólizas Viajeras","07 - Accidentes Personales",0,0,3.24,100,0,"A","Básico","$5,000 Muerte Accidental + $25,000 Adelanto por Desmembramiento e ITP + $2,500 Gastos Médicos"]
[{"$f":"+Tabla1[[#This Row],[Suma Asegurada Fija]]&Tabla1[[#This Row],[Exposición Fija]]&Tabla1[[#This Row],[Edad Mínima]]","v":"25000102"},"Paquete 10 días / $25,000.00 / 2 - 17 Años",0,0,25000,10,2,17,17,"Viajero","0705 - Pólizas Viajeras","07 - Accidentes Personales",0,0,3.81,100,0,"A","Básico","$5,000 Muerte Accidental + $25,000 Adelanto por Desmembramiento e ITP + $2,500 Gastos Médicos"]
[{"$f":"+Tabla1[[#This Row],[Suma Asegurada Fija]]&Tabla1[[#This Row],[Exposición Fija]]&Tabla1[[#This Row],[Edad Mínima]]","v":"25000142"},"Paquete 14 días / $25,000.00 / 2 - 17 Años",0,0,25000,14,2,17,17,"Viajero","0705 - Pólizas Viajeras","07 - Accidentes Personales",0,0,4.4800000000000004,100,0,"A","Básico","$5,000 Muerte Accidental + $25,000 Adelanto por Desmembramiento e ITP + $2,500 Gastos Médicos"]
[{"$f":"+Tabla1[[#This Row],[Suma Asegurada Fija]]&Tabla1[[#This Row],[Exposición Fija]]&Tabla1[[#This Row],[Edad Mínima]]","v":"25000212"},"Paquete 21 días / $25,000.00 / 2 - 17 Años",0,0,25000,21,2,17,17,"Viajero","0705 - Pólizas Viajeras","07 - Accidentes Personales",0,0,5.71,100,0,"A","Básico","$5,000 Muerte Accidental + $25,000 Adelanto por Desmembramiento e ITP + $2,500 Gastos Médicos"]
[{"$f":"+Tabla1[[#This Row],[Suma Asegurada Fija]]&Tabla1[[#This Row],[Exposición Fija]]&Tabla1[[#This Row],[Edad Mínima]]","v":"25000302"},"Paquete 30 días / $25,000.00 / 2 - 17 Años",0,0,25000,30,2,17,17,"Viajero","0705 - Pólizas Viajeras","07 - Accidentes Personales",0,0,7,100,0,"A","Básico","$5,000 Muerte Accidental + $25,000 Adelanto por Desmembramiento e ITP + $2,500 Gastos Médicos"]
[{"$f":"+Tabla1[[#This Row],[Suma Asegurada Fija]]&Tabla1[[#This Row],[Exposición Fija]]&Tabla1[[#This Row],[Edad Mínima]]","v":"25000802"},"Paquete 80 días / $25,000.00 / 2 - 17 Años",0,0,25000,80,2,17,17,"Viajero","0705 - Pólizas Viajeras","07 - Accidentes Personales",0,0,12.24,100,0,"A","Básico","$5,000 Muerte Accidental + $25,000 Adelanto por Desmembramiento e ITP + $2,500 Gastos Médicos"]
[{"$f":"+Tabla1[[#This Row],[Suma Asegurada Fija]]&Tabla1[[#This Row],[Exposición Fija]]&Tabla1[[#This Row],[Edad Mínima]]","v":"250001202"},"Paquete 120 días / $25,000.00 / 2 - 17 Años",0,0,25000,120,2,17,17,"Viajero","0705 - Pólizas Viajeras","07 - Accidentes Personales",0,0,14.59,100,0,"A","Básico","$5,000 Muerte Accidental + $25,000 Adelanto por Desmembramiento e ITP + $2,500 Gastos Médicos"]
[{"$f":"+Tabla1[[#This Row],[Suma Asegurada Fija]]&Tabla1[[#This Row],[Exposición Fija]]&Tabla1[[#This Row],[Edad Mínima]]","v":"50000366"},"Paquete 3 días / $50,000.00 / 66 - 75 Años",0,0,50000,3,66,70,70,"Viajero","0705 - Pólizas Viajeras","07 - Accidentes Personales",0,0,2.74,0,0,"A","Básico","Solo cobertura de Muerte Accidental $50,000"]
[{"$f":"+Tabla1[[#This Row],[Suma Asegurada Fija]]&Tabla1[[#This Row],[Exposición Fija]]&Tabla1[[#This Row],[Edad Mínima]]","v":"50000566"},"Paquete 5 días / $50,000.00 / 66 - 75 Años",0,0,50000,5,66,70,70,"Viajero","0705 - Pólizas Viajeras","07 - Accidentes Personales",0,0,3.78,0,0,"A","Básico","Solo cobertura de Muerte Accidental $50,000"]
[{"$f":"+Tabla1[[#This Row],[Suma Asegurada Fija]]&Tabla1[[#This Row],[Exposición Fija]]&Tabla1[[#This Row],[Edad Mínima]]","v":"50000766"},"Paquete 7 días / $50,000.00 / 66 - 75 Años",0,0,50000,7,66,70,70,"Viajero","0705 - Pólizas Viajeras","07 - Accidentes Personales",0,0,4.41,0,0,"A","Básico","Solo cobertura de Muerte Accidental $50,000"]
[{"$f":"+Tabla1[[#This Row],[Suma Asegurada Fija]]&Tabla1[[#This Row],[Exposición Fija]]&Tabla1[[#This Row],[Edad Mínima]]","v":"500001066"},"Paquete 10 días / $50,000.00 / 66 - 75 Años",0,0,50000,10,66,70,70,"Viajero","0705 - Pólizas Viajeras","07 - Accidentes Personales",0,0,5.2,0,0,"A","Básico","Solo cobertura de Muerte Accidental $50,000"]
[{"$f":"+Tabla1[[#This Row],[Suma Asegurada Fija]]&Tabla1[[#This Row],[Exposición Fija]]&Tabla1[[#This Row],[Edad Mínima]]","v":"500001466"},"Paquete 14 días / $50,000.00 / 66 - 75 Años",0,0,50000,14,66,70,70,"Viajero","0705 - Pólizas Viajeras","07 - Accidentes Personales",0,0,6.06,0,0,"A","Básico","Solo cobertura de Muerte Accidental $50,000"]
[{"$f":"+Tabla1[[#This Row],[Suma Asegurada Fija]]&Tabla1[[#This Row],[Exposición Fija]]&Tabla1[[#This Row],[Edad Mínima]]","v":"500002166"},"Paquete 21 días / $50,000.00 / 66 - 75 Años",0,0,50000,21,66,70,70,"Viajero","0705 - Pólizas Viajeras","07 - Accidentes Personales",0,0,7.72,0,0,"A","Básico","Solo cobertura de Muerte Accidental $50,000"]
[{"$f":"+Tabla1[[#This Row],[Suma Asegurada Fija]]&Tabla1[[#This Row],[Exposición Fija]]&Tabla1[[#This Row],[Edad Mínima]]","v":"500003066"},"Paquete 30 días / $50,000.00 / 66 - 75 Años",0,0,50000,30,66,70,70,"Viajero","0705 - Pólizas Viajeras","07 - Accidentes Personales",0,0,9.58,0,0,"A","Básico","Solo cobertura de Muerte Accidental $50,000"]
[{"$f":"+Tabla1[[#This Row],[Suma Asegurada Fija]]&Tabla1[[#This Row],[Exposición Fija]]&Tabla1[[#This Row],[Edad Mínima]]","v":"500008066"},"Paquete 80 días / $50,000.00 / 66 - 75 Años",0,0,50000,80,66,70,70,"Viajero","0705 - Pólizas Viajeras","07 - Accidentes Personales",0,0,14.89,0,0,"A","Básico","Solo cobertura de Muerte Accidental $50,000"]
[{"$f":"+Tabla1[[#This Row],[Suma Asegurada Fija]]&Tabla1[[#This Row],[Exposición Fija]]&Tabla1[[#This Row],[Edad Mínima]]","v":"5000012066"},"Paquete 120 días / $50,000.00 / 66 - 75 Años",0,0,50000,120,66,70,70,"Viajero","0705 - Pólizas Viajeras","07 - Accidentes Personales",0,0,19.95,0,0,"A","Básico","Solo cobertura de Muerte Accidental $50,000"]
[{"$f":"+Tabla1[[#This Row],[Producto]]&Tabla1[[#This Row],[Cobertura]]&Tabla1[[#This Row],[Clasificación Riesgo]]","v":"Colectivo de VidaMuerte AccidentalA"},"Muerte Accidental",1000,100000,0,0,18,65,70,"Colectivo de Vida","0601 - Grupo","06 - Colectivo de Vida",0,0.72,0,0,0,"A","Adicional"]
[{"$f":"+Tabla1[[#This Row],[Producto]]&Tabla1[[#This Row],[Cobertura]]&Tabla1[[#This Row],[Clasificación Riesgo]]","v":"Colectivo de VidaMuerte AccidentalB"},"Muerte Accidental",1000,100000,0,0,18,65,70,"Colectivo de Vida","0601 - Grupo","06 - Colectivo de Vida",0,1.1200000000000001,0,0,0,"B","Adicional"]
[{"$f":"+Tabla1[[#This Row],[Producto]]&Tabla1[[#This Row],[Cobertura]]&Tabla1[[#This Row],[Clasificación Riesgo]]","v":"Colectivo de VidaMuerte AccidentalC"},"Muerte Accidental",1000,100000,0,0,18,65,70,"Colectivo de Vida","0601 - Grupo","06 - Colectivo de Vida",0,1.54,0,0,0,"C","Adicional"]
[{"$f":"+Tabla1[[#This Row],[Producto]]&Tabla1[[#This Row],[Cobertura]]&Tabla1[[#This Row],[Clasificación Riesgo]]","v":"Colectivo de VidaAdelanto por Incapacidad Total y Permanente por AccidenteA"},"Adelanto por Incapacidad Total y Permanente por Accidente",0,0,"Suma Asegurada de Muerte por cualquier causa",0,18,65,70,"Colectivo de Vida","0601 - Grupo","06 - Colectivo de Vida",0,0.84,0,0,0,"A","Adicional"]
[{"$f":"+Tabla1[[#This Row],[Producto]]&Tabla1[[#This Row],[Cobertura]]&Tabla1[[#This Row],[Clasificación Riesgo]]","v":"Colectivo de VidaAdelanto por Incapacidad Total y Permanente por AccidenteB"},"Adelanto por Incapacidad Total y Permanente por Accidente",0,0,"Suma Asegurada de Muerte por cualquier causa",0,18,65,70,"Colectivo de Vida","0601 - Grupo","06 - Colectivo de Vida",0,1.05,0,0,0,"B","Adicional"]
[{"$f":"+Tabla1[[#This Row],[Producto]]&Tabla1[[#This Row],[Cobertura]]&Tabla1[[#This Row],[Clasificación Riesgo]]","v":"Colectivo de VidaAdelanto por Incapacidad Total y Permanente por AccidenteC"},"Adelanto por Incapacidad Total y Permanente por Accidente",0,0,"Suma Asegurada de Muerte por cualquier causa",0,18,65,70,"Colectivo de Vida","0601 - Grupo","06 - Colectivo de Vida",0,1.26,0,0,0,"C","Adicional"]
[null,"Adelanto del Básico por Cancer",1000,6000,"20% del Beneficio Básico",0,18,65,70,"Colectivo de Vida","0601 - Grupo","06 - Colectivo de Vida",0,0.42,0,0,0,"A","Adicional"]
[null,"Adelanto del Básico por Cancer",1000,6000,"20% del Beneficio Básico",0,18,65,70,"Colectivo de Vida","0601 - Grupo","06 - Colectivo de Vida",0,0.42,0,0,0,"B","Adicional"]
[null,"Adelanto del Básico por Cancer",1000,6000,"20% del Beneficio Básico",0,18,65,70,"Colectivo de Vida","0601 - Grupo","06 - Colectivo de Vida",0,0.42,0,0,0,"C","Adicional"]
[null,"Pago Adicional por Cancer",1000,6000,"20% del Beneficio Básico",0,18,65,70,"Colectivo de Vida","0601 - Grupo","06 - Colectivo de Vida",0,2.76,0,0,0,"A","Adicional"]
[null,"Pago Adicional por Cancer",1000,6000,"20% del Beneficio Básico",0,18,65,70,"Colectivo de Vida","0601 - Grupo","06 - Colectivo de Vida",0,2.76,0,0,0,"B","Adicional"]
[null,"Pago Adicional por Cancer",1000,6000,"20% del Beneficio Básico",0,18,65,70,"Colectivo de Vida","0601 - Grupo","06 - Colectivo de Vida",0,2.76,0,0,0,"C","Adicional"]
[null,"Adelanto por Gastos Funerarios",1000,3000,"20% del Beneficio Básico",0,18,65,70,"Colectivo de Vida","0601 - Grupo","06 - Colectivo de Vida",0,0,0,0,0,"A","Adicional","Se ofrece sin costo"]
[null,"Adelanto por Gastos Funerarios",1000,3000,"20% del Beneficio Básico",0,18,65,70,"Colectivo de Vida","0601 - Grupo","06 - Colectivo de Vida",0,0,0,0,0,"B","Adicional","Se ofrece sin costo"]
[null,"Adelanto por Gastos Funerarios",1000,3000,"20% del Beneficio Básico",0,18,65,70,"Colectivo de Vida","0601 - Grupo","06 - Colectivo de Vida",0,0,0,0,0,"C","Adicional","Se ofrece sin costo"]
[null,"Pago Adicional por Gastos Funerarios",1000,3000,"20% del Beneficio Básico",0,18,65,70,"Colectivo de Vida","0601 - Grupo","06 - Colectivo de Vida",0,0,0,0,0,"A","Adicional","Se ofrece en base a la tasa de muerte por cualquier causa del básico"]
[null,"Pago Adicional por Gastos Funerarios",1000,3000,"20% del Beneficio Básico",0,18,65,70,"Colectivo de Vida","0601 - Grupo","06 - Colectivo de Vida",0,0,0,0,0,"B","Adicional","Se ofrece en base a la tasa de muerte por cualquier causa del básico"]
[null,"Pago Adicional por Gastos Funerarios",1000,3000,"20% del Beneficio Básico",0,18,65,70,"Colectivo de Vida","0601 - Grupo","06 - Colectivo de Vida",0,0,0,0,0,"C","Adicional","Se ofrece en base a la tasa de muerte por cualquier causa del básico"]
[{"$f":"+Tabla1[[#This Row],[Producto]]&Tabla1[[#This Row],[Cobertura]]&Tabla1[[#This Row],[Clasificación Riesgo]]","v":"Colectivo de VidaMuerte en Transporte PúblicoA"},"Muerte en Transporte Público",0,0,"Suma Asegurada de Muerte por cualquier causa",0,18,65,70,"Colectivo de Vida","0601 - Grupo","06 - Colectivo de Vida",0,0.36,0,0,100000,"A","Adicional"]
[{"$f":"+Tabla1[[#This Row],[Producto]]&Tabla1[[#This Row],[Cobertura]]&Tabla1[[#This Row],[Clasificación Riesgo]]","v":"Colectivo de VidaMuerte en Transporte PúblicoB"},"Muerte en Transporte Público",0,0,"Suma Asegurada de Muerte por cualquier causa",0,18,65,70,"Colectivo de Vida","0601 - Grupo","06 - Colectivo de Vida",0,0.56000000000000005,0,0,100000,"B","Adicional"]
[{"$f":"+Tabla1[[#This Row],[Producto]]&Tabla1[[#This Row],[Cobertura]]&Tabla1[[#This Row],[Clasificación Riesgo]]","v":"Colectivo de VidaMuerte en Transporte PúblicoC"},"Muerte en Transporte Público",0,0,"Suma Asegurada de Muerte por cualquier causa",0,18,65,70,"Colectivo de Vida","0601 - Grupo","06 - Colectivo de Vida",0,0.77,0,0,100000,"C","Adicional"]
[{"$f":"+Tabla1[[#This Row],[Producto]]&Tabla1[[#This Row],[Cobertura]]&Tabla1[[#This Row],[Clasificación Riesgo]]","v":"Colectivo de VidaMuerte Natural CónyugeA"},"Muerte Natural Cónyuge",0,0,"30% del Beneficio Básico",0,18,65,70,"Colectivo de Vida","0601 - Grupo","06 - Colectivo de Vida",0,0.15,0,0,0,"A","Adicional"]
[{"$f":"+Tabla1[[#This Row],[Producto]]&Tabla1[[#This Row],[Cobertura]]&Tabla1[[#This Row],[Clasificación Riesgo]]","v":"Colectivo de VidaMuerte Natural CónyugeB"},"Muerte Natural Cónyuge",0,0,"30% del Beneficio Básico",0,18,65,70,"Colectivo de Vida","0601 - Grupo","06 - Colectivo de Vida",0,0.2,0,0,0,"B","Adicional"]
[{"$f":"+Tabla1[[#This Row],[Producto]]&Tabla1[[#This Row],[Cobertura]]&Tabla1[[#This Row],[Clasificación Riesgo]]","v":"Colectivo de VidaMuerte Natural CónyugeC"},"Muerte Natural Cónyuge",0,0,"30% del Beneficio Básico",0,18,65,70,"Colectivo de Vida","0601 - Grupo","06 - Colectivo de Vida",0,0.25,0,0,0,"C","Adicional"]
[{"$f":"+Tabla1[[#This Row],[Producto]]&Tabla1[[#This Row],[Cobertura]]&Tabla1[[#This Row],[Clasificación Riesgo]]","v":"Colectivo de VidaMuerte Natural HijosA"},"Muerte Natural Hijos",0,0,"30% del Beneficio Básico",0,18,65,70,"Colectivo de Vida","0601 - Grupo","06 - Colectivo de Vida",0,0.1,0,0,0,"A","Adicional"]
[{"$f":"+Tabla1[[#This Row],[Producto]]&Tabla1[[#This Row],[Cobertura]]&Tabla1[[#This Row],[Clasificación Riesgo]]","v":"Colectivo de VidaMuerte Natural HijosB"},"Muerte Natural Hijos",0,0,"30% del Beneficio Básico",0,18,65,70,"Colectivo de Vida","0601 - Grupo","06 - Colectivo de Vida",0,0.15,0,0,0,"B","Adicional"]
[{"$f":"+Tabla1[[#This Row],[Producto]]&Tabla1[[#This Row],[Cobertura]]&Tabla1[[#This Row],[Clasificación Riesgo]]","v":"Colectivo de VidaMuerte Natural HijosC"},"Muerte Natural Hijos",0,0,"30% del Beneficio Básico",0,18,65,70,"Colectivo de Vida","0601 - Grupo","06 - Colectivo de Vida",0,0.2,0,0,0,"C","Adicional"]
[null,"Adelanto por Enfermedades Graves",1000,6000,"35% del Beneficio Básico",0,18,65,70,"Colectivo de Vida","0601 - Grupo","06 - Colectivo de Vida",0,0.21,0,0,0,"A","Adicional"]
[null,"Adelanto por Enfermedades Graves",1000,6000,"35% del Beneficio Básico",0,18,65,70,"Colectivo de Vida","0601 - Grupo","06 - Colectivo de Vida",0,0.21,0,0,0,"B","Adicional"]
[null,"Adelanto por Enfermedades Graves",1000,6000,"35% del Beneficio Básico",0,18,65,70,"Colectivo de Vida","0601 - Grupo","06 - Colectivo de Vida",0,0.21,0,0,0,"C","Adicional"]
[{"$f":"+Tabla1[[#This Row],[Producto]]&Tabla1[[#This Row],[Cobertura]]&Tabla1[[#This Row],[Suma Asegurada Fija]]&Tabla1[[#This Row],[Clasificación Riesgo]]","v":"Colectivo de VidaGastos Médicos500A"},"Gastos Médicos",0,0,500,0,17,65,70,"Colectivo de Vida","0601 - Grupo","06 - Colectivo de Vida",0,0,8.1999999999999993,25,0,"A","Adicional","Cobertura máxima del 10% de la Suma Asegurada en Muerte Accidental"]
[{"$f":"+Tabla1[[#This Row],[Producto]]&Tabla1[[#This Row],[Cobertura]]&Tabla1[[#This Row],[Suma Asegurada Fija]]&Tabla1[[#This Row],[Clasificación Riesgo]]","v":"Colectivo de VidaGastos Médicos500B"},"Gastos Médicos",0,0,500,0,17,65,70,"Colectivo de Vida","0601 - Grupo","06 - Colectivo de Vida",0,0,12,25,0,"B","Adicional","Cobertura máxima del 10% de la Suma Asegurada en Muerte Accidental"]
[{"$f":"+Tabla1[[#This Row],[Producto]]&Tabla1[[#This Row],[Cobertura]]&Tabla1[[#This Row],[Suma Asegurada Fija]]&Tabla1[[#This Row],[Clasificación Riesgo]]","v":"Colectivo de VidaGastos Médicos500C"},"Gastos Médicos",0,0,500,0,17,65,70,"Colectivo de Vida","0601 - Grupo","06 - Colectivo de Vida",0,0,16,25,0,"C","Adicional","Cobertura máxima del 10% de la Suma Asegurada en Muerte Accidental"]
[{"$f":"+Tabla1[[#This Row],[Producto]]&Tabla1[[#This Row],[Cobertura]]&Tabla1[[#This Row],[Suma Asegurada Fija]]&Tabla1[[#This Row],[Clasificación Riesgo]]","v":"Colectivo de VidaGastos Médicos1000A"},"Gastos Médicos",0,0,1000,0,17,65,70,"Colectivo de Vida","0601 - Grupo","06 - Colectivo de Vida",0,0,12,25,0,"A","Adicional","Cobertura máxima del 10% de la Suma Asegurada en Muerte Accidental"]
[{"$f":"+Tabla1[[#This Row],[Producto]]&Tabla1[[#This Row],[Cobertura]]&Tabla1[[#This Row],[Suma Asegurada Fija]]&Tabla1[[#This Row],[Clasificación Riesgo]]","v":"Colectivo de VidaGastos Médicos1000B"},"Gastos Médicos",0,0,1000,0,17,65,70,"Colectivo de Vida","0601 - Grupo","06 - Colectivo de Vida",0,0,21.58,25,0,"B","Adicional","Cobertura máxima del 10% de la Suma Asegurada en Muerte Accidental"]
[{"$f":"+Tabla1[[#This Row],[Producto]]&Tabla1[[#This Row],[Cobertura]]&Tabla1[[#This Row],[Suma Asegurada Fija]]&Tabla1[[#This Row],[Clasificación Riesgo]]","v":"Colectivo de VidaGastos Médicos1000C"},"Gastos Médicos",0,0,1000,0,17,65,70,"Colectivo de Vida","0601 - Grupo","06 - Colectivo de Vida",0,0,26,25,0,"C","Adicional","Cobertura máxima del 10% de la Suma Asegurada en Muerte Accidental"]
[{"$f":"+Tabla1[[#This Row],[Producto]]&Tabla1[[#This Row],[Cobertura]]&Tabla1[[#This Row],[Suma Asegurada Fija]]&Tabla1[[#This Row],[Clasificación Riesgo]]","v":"Colectivo de VidaGastos Médicos1500A"},"Gastos Médicos",0,0,1500,0,17,65,70,"Colectivo de Vida","0601 - Grupo","06 - Colectivo de Vida",0,0,16,50,0,"A","Adicional","Cobertura máxima del 10% de la Suma Asegurada en Muerte Accidental"]
[{"$f":"+Tabla1[[#This Row],[Producto]]&Tabla1[[#This Row],[Cobertura]]&Tabla1[[#This Row],[Suma Asegurada Fija]]&Tabla1[[#This Row],[Clasificación Riesgo]]","v":"Colectivo de VidaGastos Médicos1500B"},"Gastos Médicos",0,0,1500,0,17,65,70,"Colectivo de Vida","0601 - Grupo","06 - Colectivo de Vida",0,0,27,50,0,"B","Adicional","Cobertura máxima del 10% de la Suma Asegurada en Muerte Accidental"]
[{"$f":"+Tabla1[[#This Row],[Producto]]&Tabla1[[#This Row],[Cobertura]]&Tabla1[[#This Row],[Suma Asegurada Fija]]&Tabla1[[#This Row],[Clasificación Riesgo]]","v":"Colectivo de VidaGastos Médicos1500C"},"Gastos Médicos",0,0,1500,0,17,65,70,"Colectivo de Vida","0601 - Grupo","06 - Colectivo de Vida",0,0,36,50,0,"C","Adicional","Cobertura máxima del 10% de la Suma Asegurada en Muerte Accidental"]
[{"$f":"+Tabla1[[#This Row],[Producto]]&Tabla1[[#This Row],[Cobertura]]&Tabla1[[#This Row],[Suma Asegurada Fija]]&Tabla1[[#This Row],[Clasificación Riesgo]]","v":"Colectivo de VidaGastos Médicos2000A"},"Gastos Médicos",0,0,2000,0,17,65,70,"Colectivo de Vida","0601 - Grupo","06 - Colectivo de Vida",0,0,21,50,0,"A","Adicional","Cobertura máxima del 10% de la Suma Asegurada en Muerte Accidental"]
[{"$f":"+Tabla1[[#This Row],[Producto]]&Tabla1[[#This Row],[Cobertura]]&Tabla1[[#This Row],[Suma Asegurada Fija]]&Tabla1[[#This Row],[Clasificación Riesgo]]","v":"Colectivo de VidaGastos Médicos2000B"},"Gastos Médicos",0,0,2000,0,17,65,70,"Colectivo de Vida","0601 - Grupo","06 - Colectivo de Vida",0,0,39.5,50,0,"B","Adicional","Cobertura máxima del 10% de la Suma Asegurada en Muerte Accidental"]
[{"$f":"+Tabla1[[#This Row],[Producto]]&Tabla1[[#This Row],[Cobertura]]&Tabla1[[#This Row],[Suma Asegurada Fija]]&Tabla1[[#This Row],[Clasificación Riesgo]]","v":"Colectivo de VidaGastos Médicos2000C"},"Gastos Médicos",0,0,2000,0,17,65,70,"Colectivo de Vida","0601 - Grupo","06 - Colectivo de Vida",0,0,46.5,50,0,"C","Adicional","Cobertura máxima del 10% de la Suma Asegurada en Muerte Accidental"]
[{"$f":"+Tabla1[[#This Row],[Producto]]&Tabla1[[#This Row],[Cobertura]]&Tabla1[[#This Row],[Suma Asegurada Fija]]&Tabla1[[#This Row],[Clasificación Riesgo]]","v":"Colectivo de VidaGastos Médicos2500A"},"Gastos Médicos",0,0,2500,0,17,65,70,"Colectivo de Vida","0601 - Grupo","06 - Colectivo de Vida",0,0,25,50,0,"A","Adicional","Cobertura máxima del 10% de la Suma Asegurada en Muerte Accidental"]
[{"$f":"+Tabla1[[#This Row],[Producto]]&Tabla1[[#This Row],[Cobertura]]&Tabla1[[#This Row],[Suma Asegurada Fija]]&Tabla1[[#This Row],[Clasificación Riesgo]]","v":"Colectivo de VidaGastos Médicos2500B"},"Gastos Médicos",0,0,2500,0,17,65,70,"Colectivo de Vida","0601 - Grupo","06 - Colectivo de Vida",0,0,45,50,0,"B","Adicional","Cobertura máxima del 10% de la Suma Asegurada en Muerte Accidental"]
[{"$f":"+Tabla1[[#This Row],[Producto]]&Tabla1[[#This Row],[Cobertura]]&Tabla1[[#This Row],[Suma Asegurada Fija]]&Tabla1[[#This Row],[Clasificación Riesgo]]","v":"Colectivo de VidaGastos Médicos2500C"},"Gastos Médicos",0,0,2500,0,17,65,70,"Colectivo de Vida","0601 - Grupo","06 - Colectivo de Vida",0,0,56.5,50,0,"C","Adicional","Cobertura máxima del 10% de la Suma Asegurada en Muerte Accidental"]
[{"$f":"+Tabla1[[#This Row],[Producto]]&Tabla1[[#This Row],[Cobertura]]&Tabla1[[#This Row],[Suma Asegurada Fija]]&Tabla1[[#This Row],[Clasificación Riesgo]]","v":"Colectivo de VidaGastos Médicos3000A"},"Gastos Médicos",0,0,3000,0,17,65,70,"Colectivo de Vida","0601 - Grupo","06 - Colectivo de Vida",0,0,30,100,0,"A","Adicional","Cobertura máxima del 10% de la Suma Asegurada en Muerte Accidental"]
[{"$f":"+Tabla1[[#This Row],[Producto]]&Tabla1[[#This Row],[Cobertura]]&Tabla1[[#This Row],[Suma Asegurada Fija]]&Tabla1[[#This Row],[Clasificación Riesgo]]","v":"Colectivo de VidaGastos Médicos3000B"},"Gastos Médicos",0,0,3000,0,17,65,70,"Colectivo de Vida","0601 - Grupo","06 - Colectivo de Vida",0,0,53.5,100,0,"B","Adicional","Cobertura máxima del 10% de la Suma Asegurada en Muerte Accidental"]
[{"$f":"+Tabla1[[#This Row],[Producto]]&Tabla1[[#This Row],[Cobertura]]&Tabla1[[#This Row],[Suma Asegurada Fija]]&Tabla1[[#This Row],[Clasificación Riesgo]]","v":"Colectivo de VidaGastos Médicos3000C"},"Gastos Médicos",0,0,3000,0,17,65,70,"Colectivo de Vida","0601 - Grupo","06 - Colectivo de Vida",0,0,68,100,0,"C","Adicional","Cobertura máxima del 10% de la Suma Asegurada en Muerte Accidental"]
[{"$f":"+Tabla1[[#This Row],[Producto]]&Tabla1[[#This Row],[Cobertura]]&Tabla1[[#This Row],[Suma Asegurada Fija]]&Tabla1[[#This Row],[Clasificación Riesgo]]","v":"Colectivo de VidaGastos Médicos4000A"},"Gastos Médicos",0,0,4000,0,17,65,70,"Colectivo de Vida","0601 - Grupo","06 - Colectivo de Vida",0,0,40.5,100,0,"A","Adicional","Cobertura máxima del 10% de la Suma Asegurada en Muerte Accidental"]
[{"$f":"+Tabla1[[#This Row],[Producto]]&Tabla1[[#This Row],[Cobertura]]&Tabla1[[#This Row],[Suma Asegurada Fija]]&Tabla1[[#This Row],[Clasificación Riesgo]]","v":"Colectivo de VidaGastos Médicos4000B"},"Gastos Médicos",0,0,4000,0,17,65,70,"Colectivo de Vida","0601 - Grupo","06 - Colectivo de Vida",0,0,70.5,100,0,"B","Adicional","Cobertura máxima del 10% de la Suma Asegurada en Muerte Accidental"]
[{"$f":"+Tabla1[[#This Row],[Producto]]&Tabla1[[#This Row],[Cobertura]]&Tabla1[[#This Row],[Suma Asegurada Fija]]&Tabla1[[#This Row],[Clasificación Riesgo]]","v":"Colectivo de VidaGastos Médicos4000C"},"Gastos Médicos",0,0,4000,0,17,65,70,"Colectivo de Vida","0601 - Grupo","06 - Colectivo de Vida",0,0,93.5,100,0,"C","Adicional","Cobertura máxima del 10% de la Suma Asegurada en Muerte Accidental"]
[{"$f":"+Tabla1[[#This Row],[Producto]]&Tabla1[[#This Row],[Cobertura]]&Tabla1[[#This Row],[Suma Asegurada Fija]]&Tabla1[[#This Row],[Clasificación Riesgo]]","v":"Colectivo de VidaGastos Médicos5000A"},"Gastos Médicos",0,0,5000,0,17,65,70,"Colectivo de Vida","0601 - Grupo","06 - Colectivo de Vida",0,0,48.5,100,0,"A","Adicional","Cobertura máxima del 10% de la Suma Asegurada en Muerte Accidental"]
[{"$f":"+Tabla1[[#This Row],[Producto]]&Tabla1[[#This Row],[Cobertura]]&Tabla1[[#This Row],[Suma Asegurada Fija]]&Tabla1[[#This Row],[Clasificación Riesgo]]","v":"Colectivo de VidaGastos Médicos5000B"},"Gastos Médicos",0,0,5000,0,17,65,70,"Colectivo de Vida","0601 - Grupo","06 - Colectivo de Vida",0,0,85,100,0,"B","Adicional","Cobertura máxima del 10% de la Suma Asegurada en Muerte Accidental"]
[{"$f":"+Tabla1[[#This Row],[Producto]]&Tabla1[[#This Row],[Cobertura]]&Tabla1[[#This Row],[Suma Asegurada Fija]]&Tabla1[[#This Row],[Clasificación Riesgo]]","v":"Colectivo de VidaGastos Médicos5000C"},"Gastos Médicos",0,0,5000,0,17,65,70,"Colectivo de Vida","0601 - Grupo","06 - Colectivo de Vida",0,0,112,100,0,"C","Adicional","Cobertura máxima del 10% de la Suma Asegurada en Muerte Accidental"]
[{"$f":"+Tabla1[[#This Row],[Producto]]&Tabla1[[#This Row],[Cobertura]]&Tabla1[[#This Row],[Suma Asegurada Fija]]&Tabla1[[#This Row],[Clasificación Riesgo]]","v":"Colectivo de VidaGastos Médicos6000A"},"Gastos Médicos",0,0,6000,0,17,65,70,"Colectivo de Vida","0601 - Grupo","06 - Colectivo de Vida",0,0,58.5,100,0,"A","Adicional","Cobertura máxima del 10% de la Suma Asegurada en Muerte Accidental"]
[{"$f":"+Tabla1[[#This Row],[Producto]]&Tabla1[[#This Row],[Cobertura]]&Tabla1[[#This Row],[Suma Asegurada Fija]]&Tabla1[[#This Row],[Clasificación Riesgo]]","v":"Colectivo de VidaGastos Médicos6000B"},"Gastos Médicos",0,0,6000,0,17,65,70,"Colectivo de Vida","0601 - Grupo","06 - Colectivo de Vida",0,0,102.6,100,0,"B","Adicional","Cobertura máxima del 10% de la Suma Asegurada en Muerte Accidental"]
[{"$f":"+Tabla1[[#This Row],[Producto]]&Tabla1[[#This Row],[Cobertura]]&Tabla1[[#This Row],[Suma Asegurada Fija]]&Tabla1[[#This Row],[Clasificación Riesgo]]","v":"Colectivo de VidaGastos Médicos6000C"},"Gastos Médicos",0,0,6000,0,17,65,70,"Colectivo de Vida","0601 - Grupo","06 - Colectivo de Vida",0,0,137.76,100,0,"C","Adicional","Cobertura máxima del 10% de la Suma Asegurada en Muerte Accidental"]
[{"$f":"+Tabla1[[#This Row],[Producto]]&Tabla1[[#This Row],[Cobertura]]&Tabla1[[#This Row],[Suma Asegurada Fija]]&Tabla1[[#This Row],[Clasificación Riesgo]]","v":"Colectivo de VidaGastos Médicos7000A"},"Gastos Médicos",0,0,7000,0,17,65,70,"Colectivo de Vida","0601 - Grupo","06 - Colectivo de Vida",0,0,68.25,100,0,"A","Adicional","Cobertura máxima del 10% de la Suma Asegurada en Muerte Accidental"]
[{"$f":"+Tabla1[[#This Row],[Producto]]&Tabla1[[#This Row],[Cobertura]]&Tabla1[[#This Row],[Suma Asegurada Fija]]&Tabla1[[#This Row],[Clasificación Riesgo]]","v":"Colectivo de VidaGastos Médicos7000B"},"Gastos Médicos",0,0,7000,0,17,65,70,"Colectivo de Vida","0601 - Grupo","06 - Colectivo de Vida",0,0,119.7,100,0,"B","Adicional","Cobertura máxima del 10% de la Suma Asegurada en Muerte Accidental"]
[{"$f":"+Tabla1[[#This Row],[Producto]]&Tabla1[[#This Row],[Cobertura]]&Tabla1[[#This Row],[Suma Asegurada Fija]]&Tabla1[[#This Row],[Clasificación Riesgo]]","v":"Colectivo de VidaGastos Médicos7000C"},"Gastos Médicos",0,0,7000,0,17,65,70,"Colectivo de Vida","0601 - Grupo","06 - Colectivo de Vida",0,0,160.72,100,0,"C","Adicional","Cobertura máxima del 10% de la Suma Asegurada en Muerte Accidental"]
[{"$f":"+Tabla1[[#This Row],[Producto]]&Tabla1[[#This Row],[Cobertura]]&Tabla1[[#This Row],[Suma Asegurada Fija]]&Tabla1[[#This Row],[Clasificación Riesgo]]","v":"Colectivo de VidaGastos Médicos8000A"},"Gastos Médicos",0,0,8000,0,17,65,70,"Colectivo de Vida","0601 - Grupo","06 - Colectivo de Vida",0,0,78,100,0,"A","Adicional","Cobertura máxima del 10% de la Suma Asegurada en Muerte Accidental"]
[{"$f":"+Tabla1[[#This Row],[Producto]]&Tabla1[[#This Row],[Cobertura]]&Tabla1[[#This Row],[Suma Asegurada Fija]]&Tabla1[[#This Row],[Clasificación Riesgo]]","v":"Colectivo de VidaGastos Médicos8000B"},"Gastos Médicos",0,0,8000,0,17,65,70,"Colectivo de Vida","0601 - Grupo","06 - Colectivo de Vida",0,0,136.80000000000001,100,0,"B","Adicional","Cobertura máxima del 10% de la Suma Asegurada en Muerte Accidental"]
[{"$f":"+Tabla1[[#This Row],[Producto]]&Tabla1[[#This Row],[Cobertura]]&Tabla1[[#This Row],[Suma Asegurada Fija]]&Tabla1[[#This Row],[Clasificación Riesgo]]","v":"Colectivo de VidaGastos Médicos8000C"},"Gastos Médicos",0,0,8000,0,17,65,70,"Colectivo de Vida","0601 - Grupo","06 - Colectivo de Vida",0,0,183.68,100,0,"C","Adicional","Cobertura máxima del 10% de la Suma Asegurada en Muerte Accidental"]
[{"$f":"+Tabla1[[#This Row],[Producto]]&Tabla1[[#This Row],[Cobertura]]&Tabla1[[#This Row],[Suma Asegurada Fija]]&Tabla1[[#This Row],[Clasificación Riesgo]]","v":"Colectivo de VidaGastos Médicos9000A"},"Gastos Médicos",0,0,9000,0,17,65,70,"Colectivo de Vida","0601 - Grupo","06 - Colectivo de Vida",0,0,87.75,100,0,"A","Adicional","Cobertura máxima del 10% de la Suma Asegurada en Muerte Accidental"]
[{"$f":"+Tabla1[[#This Row],[Producto]]&Tabla1[[#This Row],[Cobertura]]&Tabla1[[#This Row],[Suma Asegurada Fija]]&Tabla1[[#This Row],[Clasificación Riesgo]]","v":"Colectivo de VidaGastos Médicos9000B"},"Gastos Médicos",0,0,9000,0,17,65,70,"Colectivo de Vida","0601 - Grupo","06 - Colectivo de Vida",0,0,153.9,100,0,"B","Adicional","Cobertura máxima del 10% de la Suma Asegurada en Muerte Accidental"]
[{"$f":"+Tabla1[[#This Row],[Producto]]&Tabla1[[#This Row],[Cobertura]]&Tabla1[[#This Row],[Suma Asegurada Fija]]&Tabla1[[#This Row],[Clasificación Riesgo]]","v":"Colectivo de VidaGastos Médicos9000C"},"Gastos Médicos",0,0,9000,0,17,65,70,"Colectivo de Vida","0601 - Grupo","06 - Colectivo de Vida",0,0,206.64,100,0,"C","Adicional","Cobertura máxima del 10% de la Suma Asegurada en Muerte Accidental"]
[{"$f":"+Tabla1[[#This Row],[Producto]]&Tabla1[[#This Row],[Cobertura]]&Tabla1[[#This Row],[Suma Asegurada Fija]]&Tabla1[[#This Row],[Clasificación Riesgo]]","v":"Colectivo de VidaGastos Médicos10000A"},"Gastos Médicos",0,0,10000,0,17,65,70,"Colectivo de Vida","0601 - Grupo","06 - Colectivo de Vida",0,0,97.5,100,0,"A","Adicional","Cobertura máxima del 10% de la Suma Asegurada en Muerte Accidental"]
[{"$f":"+Tabla1[[#This Row],[Producto]]&Tabla1[[#This Row],[Cobertura]]&Tabla1[[#This Row],[Suma Asegurada Fija]]&Tabla1[[#This Row],[Clasificación Riesgo]]","v":"Colectivo de VidaGastos Médicos10000B"},"Gastos Médicos",0,0,10000,0,17,65,70,"Colectivo de Vida","0601 - Grupo","06 - Colectivo de Vida",0,0,171,100,0,"B","Adicional","Cobertura máxima del 10% de la Suma Asegurada en Muerte Accidental"]
[{"$f":"+Tabla1[[#This Row],[Producto]]&Tabla1[[#This Row],[Cobertura]]&Tabla1[[#This Row],[Suma Asegurada Fija]]&Tabla1[[#This Row],[Clasificación Riesgo]]","v":"Colectivo de VidaGastos Médicos10000C"},"Gastos Médicos",0,0,10000,0,17,65,70,"Colectivo de Vida","0601 - Grupo","06 - Colectivo de Vida",0,0,229.6,100,0,"C","Adicional","Cobertura máxima del 10% de la Suma Asegurada en Muerte Accidental"]
[{"$f":"+Tabla1[[#This Row],[Producto]]&Tabla1[[#This Row],[Cobertura]]&Tabla1[[#This Row],[Suma Asegurada Fija]]&Tabla1[[#This Row],[Clasificación Riesgo]]","v":"Colectivo de VidaGastos Médicos11000A"},"Gastos Médicos",0,0,11000,0,17,65,70,"Colectivo de Vida","0601 - Grupo","06 - Colectivo de Vida",0,0,107.25,100,0,"A","Adicional","Cobertura máxima del 10% de la Suma Asegurada en Muerte Accidental"]
[{"$f":"+Tabla1[[#This Row],[Producto]]&Tabla1[[#This Row],[Cobertura]]&Tabla1[[#This Row],[Suma Asegurada Fija]]&Tabla1[[#This Row],[Clasificación Riesgo]]","v":"Colectivo de VidaGastos Médicos11000B"},"Gastos Médicos",0,0,11000,0,17,65,70,"Colectivo de Vida","0601 - Grupo","06 - Colectivo de Vida",0,0,188.1,100,0,"B","Adicional","Cobertura máxima del 10% de la Suma Asegurada en Muerte Accidental"]
[{"$f":"+Tabla1[[#This Row],[Producto]]&Tabla1[[#This Row],[Cobertura]]&Tabla1[[#This Row],[Suma Asegurada Fija]]&Tabla1[[#This Row],[Clasificación Riesgo]]","v":"Colectivo de VidaGastos Médicos11000C"},"Gastos Médicos",0,0,11000,0,17,65,70,"Colectivo de Vida","0601 - Grupo","06 - Colectivo de Vida",0,0,252.56,100,0,"C","Adicional","Cobertura máxima del 10% de la Suma Asegurada en Muerte Accidental"]
[{"$f":"+Tabla1[[#This Row],[Producto]]&Tabla1[[#This Row],[Cobertura]]&Tabla1[[#This Row],[Suma Asegurada Fija]]&Tabla1[[#This Row],[Clasificación Riesgo]]","v":"Colectivo de VidaGastos Médicos12000A"},"Gastos Médicos",0,0,12000,0,17,65,70,"Colectivo de Vida","0601 - Grupo","06 - Colectivo de Vida",0,0,117,100,0,"A","Adicional","Cobertura máxima del 10% de la Suma Asegurada en Muerte Accidental"]
[{"$f":"+Tabla1[[#This Row],[Producto]]&Tabla1[[#This Row],[Cobertura]]&Tabla1[[#This Row],[Suma Asegurada Fija]]&Tabla1[[#This Row],[Clasificación Riesgo]]","v":"Colectivo de VidaGastos Médicos12000B"},"Gastos Médicos",0,0,12000,0,17,65,70,"Colectivo de Vida","0601 - Grupo","06 - Colectivo de Vida",0,0,205.20000000000002,100,0,"B","Adicional","Cobertura máxima del 10% de la Suma Asegurada en Muerte Accidental"]
[{"$f":"+Tabla1[[#This Row],[Producto]]&Tabla1[[#This Row],[Cobertura]]&Tabla1[[#This Row],[Suma Asegurada Fija]]&Tabla1[[#This Row],[Clasificación Riesgo]]","v":"Colectivo de VidaGastos Médicos12000C"},"Gastos Médicos",0,0,12000,0,17,65,70,"Colectivo de Vida","0601 - Grupo","06 - Colectivo de Vida",0,0,275.52,100,0,"C","Adicional","Cobertura máxima del 10% de la Suma Asegurada en Muerte Accidental"]
[{"$f":"+Tabla1[[#This Row],[Producto]]&Tabla1[[#This Row],[Cobertura]]&Tabla1[[#This Row],[Suma Asegurada Fija]]&Tabla1[[#This Row],[Clasificación Riesgo]]","v":"Colectivo de VidaGastos Médicos13000A"},"Gastos Médicos",0,0,13000,0,17,65,70,"Colectivo de Vida","0601 - Grupo","06 - Colectivo de Vida",0,0,126.75,100,0,"A","Adicional","Cobertura máxima del 10% de la Suma Asegurada en Muerte Accidental"]
[{"$f":"+Tabla1[[#This Row],[Producto]]&Tabla1[[#This Row],[Cobertura]]&Tabla1[[#This Row],[Suma Asegurada Fija]]&Tabla1[[#This Row],[Clasificación Riesgo]]","v":"Colectivo de VidaGastos Médicos13000B"},"Gastos Médicos",0,0,13000,0,17,65,70,"Colectivo de Vida","0601 - Grupo","06 - Colectivo de Vida",0,0,222.3,100,0,"B","Adicional","Cobertura máxima del 10% de la Suma Asegurada en Muerte Accidental"]
[{"$f":"+Tabla1[[#This Row],[Producto]]&Tabla1[[#This Row],[Cobertura]]&Tabla1[[#This Row],[Suma Asegurada Fija]]&Tabla1[[#This Row],[Clasificación Riesgo]]","v":"Colectivo de VidaGastos Médicos13000C"},"Gastos Médicos",0,0,13000,0,17,65,70,"Colectivo de Vida","0601 - Grupo","06 - Colectivo de Vida",0,0,298.48,100,0,"C","Adicional","Cobertura máxima del 10% de la Suma Asegurada en Muerte Accidental"]
[{"$f":"+Tabla1[[#This Row],[Producto]]&Tabla1[[#This Row],[Cobertura]]&Tabla1[[#This Row],[Suma Asegurada Fija]]&Tabla1[[#This Row],[Clasificación Riesgo]]","v":"Colectivo de VidaGastos Médicos14000A"},"Gastos Médicos",0,0,14000,0,17,65,70,"Colectivo de Vida","0601 - Grupo","06 - Colectivo de Vida",0,0,136.5,100,0,"A","Adicional","Cobertura máxima del 10% de la Suma Asegurada en Muerte Accidental"]
[{"$f":"+Tabla1[[#This Row],[Producto]]&Tabla1[[#This Row],[Cobertura]]&Tabla1[[#This Row],[Suma Asegurada Fija]]&Tabla1[[#This Row],[Clasificación Riesgo]]","v":"Colectivo de VidaGastos Médicos14000B"},"Gastos Médicos",0,0,14000,0,17,65,70,"Colectivo de Vida","0601 - Grupo","06 - Colectivo de Vida",0,0,239.40000000000003,100,0,"B","Adicional","Cobertura máxima del 10% de la Suma Asegurada en Muerte Accidental"]
[{"$f":"+Tabla1[[#This Row],[Producto]]&Tabla1[[#This Row],[Cobertura]]&Tabla1[[#This Row],[Suma Asegurada Fija]]&Tabla1[[#This Row],[Clasificación Riesgo]]","v":"Colectivo de VidaGastos Médicos14000C"},"Gastos Médicos",0,0,14000,0,17,65,70,"Colectivo de Vida","0601 - Grupo","06 - Colectivo de Vida",0,0,321.44,100,0,"C","Adicional","Cobertura máxima del 10% de la Suma Asegurada en Muerte Accidental"]
[{"$f":"+Tabla1[[#This Row],[Producto]]&Tabla1[[#This Row],[Cobertura]]&Tabla1[[#This Row],[Suma Asegurada Fija]]&Tabla1[[#This Row],[Clasificación Riesgo]]","v":"Colectivo de VidaGastos Médicos15000A"},"Gastos Médicos",0,0,15000,0,17,65,70,"Colectivo de Vida","0601 - Grupo","06 - Colectivo de Vida",0,0,146.25,100,0,"A","Adicional","Cobertura máxima del 10% de la Suma Asegurada en Muerte Accidental"]
[{"$f":"+Tabla1[[#This Row],[Producto]]&Tabla1[[#This Row],[Cobertura]]&Tabla1[[#This Row],[Suma Asegurada Fija]]&Tabla1[[#This Row],[Clasificación Riesgo]]","v":"Colectivo de VidaGastos Médicos15000B"},"Gastos Médicos",0,0,15000,0,17,65,70,"Colectivo de Vida","0601 - Grupo","06 - Colectivo de Vida",0,0,256.5,100,0,"B","Adicional","Cobertura máxima del 10% de la Suma Asegurada en Muerte Accidental"]
[{"$f":"+Tabla1[[#This Row],[Producto]]&Tabla1[[#This Row],[Cobertura]]&Tabla1[[#This Row],[Suma Asegurada Fija]]&Tabla1[[#This Row],[Clasificación Riesgo]]","v":"Colectivo de VidaGastos Médicos15000C"},"Gastos Médicos",0,0,15000,0,17,65,70,"Colectivo de Vida","0601 - Grupo","06 - Colectivo de Vida",0,0,344.40000000000003,100,0,"C","Adicional","Cobertura máxima del 10% de la Suma Asegurada en Muerte Accidental"]
[{"$f":"+Tabla1[[#This Row],[Producto]]&Tabla1[[#This Row],[Cobertura]]&Tabla1[[#This Row],[Suma Asegurada Fija]]&Tabla1[[#This Row],[Clasificación Riesgo]]","v":"Colectivo de VidaGastos Médicos16000A"},"Gastos Médicos",0,0,16000,0,17,65,70,"Colectivo de Vida","0601 - Grupo","06 - Colectivo de Vida",0,0,156,100,0,"A","Adicional","Cobertura máxima del 10% de la Suma Asegurada en Muerte Accidental"]
[{"$f":"+Tabla1[[#This Row],[Producto]]&Tabla1[[#This Row],[Cobertura]]&Tabla1[[#This Row],[Suma Asegurada Fija]]&Tabla1[[#This Row],[Clasificación Riesgo]]","v":"Colectivo de VidaGastos Médicos16000B"},"Gastos Médicos",0,0,16000,0,17,65,70,"Colectivo de Vida","0601 - Grupo","06 - Colectivo de Vida",0,0,273.60000000000002,100,0,"B","Adicional","Cobertura máxima del 10% de la Suma Asegurada en Muerte Accidental"]
[{"$f":"+Tabla1[[#This Row],[Producto]]&Tabla1[[#This Row],[Cobertura]]&Tabla1[[#This Row],[Suma Asegurada Fija]]&Tabla1[[#This Row],[Clasificación Riesgo]]","v":"Colectivo de VidaGastos Médicos16000C"},"Gastos Médicos",0,0,16000,0,17,65,70,"Colectivo de Vida","0601 - Grupo","06 - Colectivo de Vida",0,0,367.36,100,0,"C","Adicional","Cobertura máxima del 10% de la Suma Asegurada en Muerte Accidental"]
[{"$f":"+Tabla1[[#This Row],[Producto]]&Tabla1[[#This Row],[Cobertura]]&Tabla1[[#This Row],[Suma Asegurada Fija]]&Tabla1[[#This Row],[Clasificación Riesgo]]","v":"Colectivo de VidaGastos Médicos17000A"},"Gastos Médicos",0,0,17000,0,17,65,70,"Colectivo de Vida","0601 - Grupo","06 - Colectivo de Vida",0,0,165.75,100,0,"A","Adicional","Cobertura máxima del 10% de la Suma Asegurada en Muerte Accidental"]
[{"$f":"+Tabla1[[#This Row],[Producto]]&Tabla1[[#This Row],[Cobertura]]&Tabla1[[#This Row],[Suma Asegurada Fija]]&Tabla1[[#This Row],[Clasificación Riesgo]]","v":"Colectivo de VidaGastos Médicos17000B"},"Gastos Médicos",0,0,17000,0,17,65,70,"Colectivo de Vida","0601 - Grupo","06 - Colectivo de Vida",0,0,290.70000000000005,100,0,"B","Adicional","Cobertura máxima del 10% de la Suma Asegurada en Muerte Accidental"]
[{"$f":"+Tabla1[[#This Row],[Producto]]&Tabla1[[#This Row],[Cobertura]]&Tabla1[[#This Row],[Suma Asegurada Fija]]&Tabla1[[#This Row],[Clasificación Riesgo]]","v":"Colectivo de VidaGastos Médicos17000C"},"Gastos Médicos",0,0,17000,0,17,65,70,"Colectivo de Vida","0601 - Grupo","06 - Colectivo de Vida",0,0,390.32,100,0,"C","Adicional","Cobertura máxima del 10% de la Suma Asegurada en Muerte Accidental"]
[{"$f":"+Tabla1[[#This Row],[Producto]]&Tabla1[[#This Row],[Cobertura]]&Tabla1[[#This Row],[Suma Asegurada Fija]]&Tabla1[[#This Row],[Clasificación Riesgo]]","v":"Colectivo de VidaGastos Médicos18000A"},"Gastos Médicos",0,0,18000,0,17,65,70,"Colectivo de Vida","0601 - Grupo","06 - Colectivo de Vida",0,0,175.5,100,0,"A","Adicional","Cobertura máxima del 10% de la Suma Asegurada en Muerte Accidental"]
[{"$f":"+Tabla1[[#This Row],[Producto]]&Tabla1[[#This Row],[Cobertura]]&Tabla1[[#This Row],[Suma Asegurada Fija]]&Tabla1[[#This Row],[Clasificación Riesgo]]","v":"Colectivo de VidaGastos Médicos18000B"},"Gastos Médicos",0,0,18000,0,17,65,70,"Colectivo de Vida","0601 - Grupo","06 - Colectivo de Vida",0,0,307.8,100,0,"B","Adicional","Cobertura máxima del 10% de la Suma Asegurada en Muerte Accidental"]
[{"$f":"+Tabla1[[#This Row],[Producto]]&Tabla1[[#This Row],[Cobertura]]&Tabla1[[#This Row],[Suma Asegurada Fija]]&Tabla1[[#This Row],[Clasificación Riesgo]]","v":"Colectivo de VidaGastos Médicos18000C"},"Gastos Médicos",0,0,18000,0,17,65,70,"Colectivo de Vida","0601 - Grupo","06 - Colectivo de Vida",0,0,413.28000000000003,100,0,"C","Adicional","Cobertura máxima del 10% de la Suma Asegurada en Muerte Accidental"]
[{"$f":"+Tabla1[[#This Row],[Producto]]&Tabla1[[#This Row],[Cobertura]]&Tabla1[[#This Row],[Suma Asegurada Fija]]&Tabla1[[#This Row],[Clasificación Riesgo]]","v":"Colectivo de VidaGastos Médicos19000A"},"Gastos Médicos",0,0,19000,0,17,65,70,"Colectivo de Vida","0601 - Grupo","06 - Colectivo de Vida",0,0,185.25,100,0,"A","Adicional","Cobertura máxima del 10% de la Suma Asegurada en Muerte Accidental"]
[{"$f":"+Tabla1[[#This Row],[Producto]]&Tabla1[[#This Row],[Cobertura]]&Tabla1[[#This Row],[Suma Asegurada Fija]]&Tabla1[[#This Row],[Clasificación Riesgo]]","v":"Colectivo de VidaGastos Médicos19000B"},"Gastos Médicos",0,0,19000,0,17,65,70,"Colectivo de Vida","0601 - Grupo","06 - Colectivo de Vida",0,0,324.90000000000003,100,0,"B","Adicional","Cobertura máxima del 10% de la Suma Asegurada en Muerte Accidental"]
[{"$f":"+Tabla1[[#This Row],[Producto]]&Tabla1[[#This Row],[Cobertura]]&Tabla1[[#This Row],[Suma Asegurada Fija]]&Tabla1[[#This Row],[Clasificación Riesgo]]","v":"Colectivo de VidaGastos Médicos19000C"},"Gastos Médicos",0,0,19000,0,17,65,70,"Colectivo de Vida","0601 - Grupo","06 - Colectivo de Vida",0,0,436.24,100,0,"C","Adicional","Cobertura máxima del 10% de la Suma Asegurada en Muerte Accidental"]
[{"$f":"+Tabla1[[#This Row],[Producto]]&Tabla1[[#This Row],[Cobertura]]&Tabla1[[#This Row],[Suma Asegurada Fija]]&Tabla1[[#This Row],[Clasificación Riesgo]]","v":"Colectivo de VidaGastos Médicos20000A"},"Gastos Médicos",0,0,20000,0,17,65,70,"Colectivo de Vida","0601 - Grupo","06 - Colectivo de Vida",0,0,195,100,0,"A","Adicional","Cobertura máxima del 10% de la Suma Asegurada en Muerte Accidental"]
[{"$f":"+Tabla1[[#This Row],[Producto]]&Tabla1[[#This Row],[Cobertura]]&Tabla1[[#This Row],[Suma Asegurada Fija]]&Tabla1[[#This Row],[Clasificación Riesgo]]","v":"Colectivo de VidaGastos Médicos20000B"},"Gastos Médicos",0,0,20000,0,17,65,70,"Colectivo de Vida","0601 - Grupo","06 - Colectivo de Vida",0,0,342,100,0,"B","Adicional","Cobertura máxima del 10% de la Suma Asegurada en Muerte Accidental"]
[{"$f":"+Tabla1[[#This Row],[Producto]]&Tabla1[[#This Row],[Cobertura]]&Tabla1[[#This Row],[Suma Asegurada Fija]]&Tabla1[[#This Row],[Clasificación Riesgo]]","v":"Colectivo de VidaGastos Médicos20000C"},"Gastos Médicos",0,0,20000,0,17,65,70,"Colectivo de Vida","0601 - Grupo","06 - Colectivo de Vida",0,0,459.20000000000005,100,0,"C","Adicional","Cobertura máxima del 10% de la Suma Asegurada en Muerte Accidental"]
[{"$f":"+Tabla1[[#This Row],[Producto]]&Tabla1[[#This Row],[Cobertura]]&Tabla1[[#This Row],[Suma Asegurada Fija]]&Tabla1[[#This Row],[Clasificación Riesgo]]","v":"Colectivo de VidaGastos Médicos21000A"},"Gastos Médicos",0,0,21000,0,17,65,70,"Colectivo de Vida","0601 - Grupo","06 - Colectivo de Vida",0,0,204.75,100,0,"A","Adicional","Cobertura máxima del 10% de la Suma Asegurada en Muerte Accidental"]
[{"$f":"+Tabla1[[#This Row],[Producto]]&Tabla1[[#This Row],[Cobertura]]&Tabla1[[#This Row],[Suma Asegurada Fija]]&Tabla1[[#This Row],[Clasificación Riesgo]]","v":"Colectivo de VidaGastos Médicos21000B"},"Gastos Médicos",0,0,21000,0,17,65,70,"Colectivo de Vida","0601 - Grupo","06 - Colectivo de Vida",0,0,359.1,100,0,"B","Adicional","Cobertura máxima del 10% de la Suma Asegurada en Muerte Accidental"]
[{"$f":"+Tabla1[[#This Row],[Producto]]&Tabla1[[#This Row],[Cobertura]]&Tabla1[[#This Row],[Suma Asegurada Fija]]&Tabla1[[#This Row],[Clasificación Riesgo]]","v":"Colectivo de VidaGastos Médicos21000C"},"Gastos Médicos",0,0,21000,0,17,65,70,"Colectivo de Vida","0601 - Grupo","06 - Colectivo de Vida",0,0,482.16,100,0,"C","Adicional","Cobertura máxima del 10% de la Suma Asegurada en Muerte Accidental"]
[{"$f":"+Tabla1[[#This Row],[Producto]]&Tabla1[[#This Row],[Cobertura]]&Tabla1[[#This Row],[Suma Asegurada Fija]]&Tabla1[[#This Row],[Clasificación Riesgo]]","v":"Colectivo de VidaGastos Médicos22000A"},"Gastos Médicos",0,0,22000,0,17,65,70,"Colectivo de Vida","0601 - Grupo","06 - Colectivo de Vida",0,0,214.5,100,0,"A","Adicional","Cobertura máxima del 10% de la Suma Asegurada en Muerte Accidental"]
[{"$f":"+Tabla1[[#This Row],[Producto]]&Tabla1[[#This Row],[Cobertura]]&Tabla1[[#This Row],[Suma Asegurada Fija]]&Tabla1[[#This Row],[Clasificación Riesgo]]","v":"Colectivo de VidaGastos Médicos22000B"},"Gastos Médicos",0,0,22000,0,17,65,70,"Colectivo de Vida","0601 - Grupo","06 - Colectivo de Vida",0,0,376.20000000000005,100,0,"B","Adicional","Cobertura máxima del 10% de la Suma Asegurada en Muerte Accidental"]
[{"$f":"+Tabla1[[#This Row],[Producto]]&Tabla1[[#This Row],[Cobertura]]&Tabla1[[#This Row],[Suma Asegurada Fija]]&Tabla1[[#This Row],[Clasificación Riesgo]]","v":"Colectivo de VidaGastos Médicos22000C"},"Gastos Médicos",0,0,22000,0,17,65,70,"Colectivo de Vida","0601 - Grupo","06 - Colectivo de Vida",0,0,505.12,100,0,"C","Adicional","Cobertura máxima del 10% de la Suma Asegurada en Muerte Accidental"]
[{"$f":"+Tabla1[[#This Row],[Producto]]&Tabla1[[#This Row],[Cobertura]]&Tabla1[[#This Row],[Suma Asegurada Fija]]&Tabla1[[#This Row],[Clasificación Riesgo]]","v":"Colectivo de VidaGastos Médicos23000A"},"Gastos Médicos",0,0,23000,0,17,65,70,"Colectivo de Vida","0601 - Grupo","06 - Colectivo de Vida",0,0,224.25,100,0,"A","Adicional","Cobertura máxima del 10% de la Suma Asegurada en Muerte Accidental"]
[{"$f":"+Tabla1[[#This Row],[Producto]]&Tabla1[[#This Row],[Cobertura]]&Tabla1[[#This Row],[Suma Asegurada Fija]]&Tabla1[[#This Row],[Clasificación Riesgo]]","v":"Colectivo de VidaGastos Médicos23000B"},"Gastos Médicos",0,0,23000,0,17,65,70,"Colectivo de Vida","0601 - Grupo","06 - Colectivo de Vida",0,0,393.3,100,0,"B","Adicional","Cobertura máxima del 10% de la Suma Asegurada en Muerte Accidental"]
[{"$f":"+Tabla1[[#This Row],[Producto]]&Tabla1[[#This Row],[Cobertura]]&Tabla1[[#This Row],[Suma Asegurada Fija]]&Tabla1[[#This Row],[Clasificación Riesgo]]","v":"Colectivo de VidaGastos Médicos23000C"},"Gastos Médicos",0,0,23000,0,17,65,70,"Colectivo de Vida","0601 - Grupo","06 - Colectivo de Vida",0,0,528.08000000000004,100,0,"C","Adicional","Cobertura máxima del 10% de la Suma Asegurada en Muerte Accidental"]
[{"$f":"+Tabla1[[#This Row],[Producto]]&Tabla1[[#This Row],[Cobertura]]&Tabla1[[#This Row],[Suma Asegurada Fija]]&Tabla1[[#This Row],[Clasificación Riesgo]]","v":"Colectivo de VidaGastos Médicos24000A"},"Gastos Médicos",0,0,24000,0,17,65,70,"Colectivo de Vida","0601 - Grupo","06 - Colectivo de Vida",0,0,234,100,0,"A","Adicional","Cobertura máxima del 10% de la Suma Asegurada en Muerte Accidental"]
[{"$f":"+Tabla1[[#This Row],[Producto]]&Tabla1[[#This Row],[Cobertura]]&Tabla1[[#This Row],[Suma Asegurada Fija]]&Tabla1[[#This Row],[Clasificación Riesgo]]","v":"Colectivo de VidaGastos Médicos24000B"},"Gastos Médicos",0,0,24000,0,17,65,70,"Colectivo de Vida","0601 - Grupo","06 - Colectivo de Vida",0,0,410.40000000000003,100,0,"B","Adicional","Cobertura máxima del 10% de la Suma Asegurada en Muerte Accidental"]
[{"$f":"+Tabla1[[#This Row],[Producto]]&Tabla1[[#This Row],[Cobertura]]&Tabla1[[#This Row],[Suma Asegurada Fija]]&Tabla1[[#This Row],[Clasificación Riesgo]]","v":"Colectivo de VidaGastos Médicos24000C"},"Gastos Médicos",0,0,24000,0,17,65,70,"Colectivo de Vida","0601 - Grupo","06 - Colectivo de Vida",0,0,551.04,100,0,"C","Adicional","Cobertura máxima del 10% de la Suma Asegurada en Muerte Accidental"]
[{"$f":"+Tabla1[[#This Row],[Producto]]&Tabla1[[#This Row],[Cobertura]]&Tabla1[[#This Row],[Suma Asegurada Fija]]&Tabla1[[#This Row],[Clasificación Riesgo]]","v":"Colectivo de VidaGastos Médicos25000A"},"Gastos Médicos",0,0,25000,0,17,65,70,"Colectivo de Vida","0601 - Grupo","06 - Colectivo de Vida",0,0,243.75,100,0,"A","Adicional","Cobertura máxima del 10% de la Suma Asegurada en Muerte Accidental"]
[{"$f":"+Tabla1[[#This Row],[Producto]]&Tabla1[[#This Row],[Cobertura]]&Tabla1[[#This Row],[Suma Asegurada Fija]]&Tabla1[[#This Row],[Clasificación Riesgo]]","v":"Colectivo de VidaGastos Médicos25000B"},"Gastos Médicos",0,0,25000,0,17,65,70,"Colectivo de Vida","0601 - Grupo","06 - Colectivo de Vida",0,0,427.50000000000006,100,0,"B","Adicional","Cobertura máxima del 10% de la Suma Asegurada en Muerte Accidental"]
[{"$f":"+Tabla1[[#This Row],[Producto]]&Tabla1[[#This Row],[Cobertura]]&Tabla1[[#This Row],[Suma Asegurada Fija]]&Tabla1[[#This Row],[Clasificación Riesgo]]","v":"Colectivo de VidaGastos Médicos25000C"},"Gastos Médicos",0,0,25000,0,17,65,70,"Colectivo de Vida","0601 - Grupo","06 - Colectivo de Vida",0,0,574,100,0,"C","Adicional","Cobertura máxima del 10% de la Suma Asegurada en Muerte Accidental"]
[{"$f":"+Tabla1[[#This Row],[Producto]]&Tabla1[[#This Row],[Cobertura]]&Tabla1[[#This Row],[Suma Asegurada Fija]]&Tabla1[[#This Row],[Clasificación Riesgo]]","v":"Colectivo de VidaGastos Médicos26000A"},"Gastos Médicos",0,0,26000,0,17,65,70,"Colectivo de Vida","0601 - Grupo","06 - Colectivo de Vida",0,0,253.5,100,0,"A","Adicional","Cobertura máxima del 10% de la Suma Asegurada en Muerte Accidental"]
[{"$f":"+Tabla1[[#This Row],[Producto]]&Tabla1[[#This Row],[Cobertura]]&Tabla1[[#This Row],[Suma Asegurada Fija]]&Tabla1[[#This Row],[Clasificación Riesgo]]","v":"Colectivo de VidaGastos Médicos26000B"},"Gastos Médicos",0,0,26000,0,17,65,70,"Colectivo de Vida","0601 - Grupo","06 - Colectivo de Vida",0,0,444.6,100,0,"B","Adicional","Cobertura máxima del 10% de la Suma Asegurada en Muerte Accidental"]
[{"$f":"+Tabla1[[#This Row],[Producto]]&Tabla1[[#This Row],[Cobertura]]&Tabla1[[#This Row],[Suma Asegurada Fija]]&Tabla1[[#This Row],[Clasificación Riesgo]]","v":"Colectivo de VidaGastos Médicos26000C"},"Gastos Médicos",0,0,26000,0,17,65,70,"Colectivo de Vida","0601 - Grupo","06 - Colectivo de Vida",0,0,596.96,100,0,"C","Adicional","Cobertura máxima del 10% de la Suma Asegurada en Muerte Accidental"]
[{"$f":"+Tabla1[[#This Row],[Producto]]&Tabla1[[#This Row],[Cobertura]]&Tabla1[[#This Row],[Suma Asegurada Fija]]&Tabla1[[#This Row],[Clasificación Riesgo]]","v":"Colectivo de VidaGastos Médicos27000A"},"Gastos Médicos",0,0,27000,0,17,65,70,"Colectivo de Vida","0601 - Grupo","06 - Colectivo de Vida",0,0,263.25,100,0,"A","Adicional","Cobertura máxima del 10% de la Suma Asegurada en Muerte Accidental"]
[{"$f":"+Tabla1[[#This Row],[Producto]]&Tabla1[[#This Row],[Cobertura]]&Tabla1[[#This Row],[Suma Asegurada Fija]]&Tabla1[[#This Row],[Clasificación Riesgo]]","v":"Colectivo de VidaGastos Médicos27000B"},"Gastos Médicos",0,0,27000,0,17,65,70,"Colectivo de Vida","0601 - Grupo","06 - Colectivo de Vida",0,0,461.70000000000005,100,0,"B","Adicional","Cobertura máxima del 10% de la Suma Asegurada en Muerte Accidental"]
[{"$f":"+Tabla1[[#This Row],[Producto]]&Tabla1[[#This Row],[Cobertura]]&Tabla1[[#This Row],[Suma Asegurada Fija]]&Tabla1[[#This Row],[Clasificación Riesgo]]","v":"Colectivo de VidaGastos Médicos27000C"},"Gastos Médicos",0,0,27000,0,17,65,70,"Colectivo de Vida","0601 - Grupo","06 - Colectivo de Vida",0,0,619.92000000000007,100,0,"C","Adicional","Cobertura máxima del 10% de la Suma Asegurada en Muerte Accidental"]
[{"$f":"+Tabla1[[#This Row],[Producto]]&Tabla1[[#This Row],[Cobertura]]&Tabla1[[#This Row],[Suma Asegurada Fija]]&Tabla1[[#This Row],[Clasificación Riesgo]]","v":"Colectivo de VidaGastos Médicos28000A"},"Gastos Médicos",0,0,28000,0,17,65,70,"Colectivo de Vida","0601 - Grupo","06 - Colectivo de Vida",0,0,273,100,0,"A","Adicional","Cobertura máxima del 10% de la Suma Asegurada en Muerte Accidental"]
[{"$f":"+Tabla1[[#This Row],[Producto]]&Tabla1[[#This Row],[Cobertura]]&Tabla1[[#This Row],[Suma Asegurada Fija]]&Tabla1[[#This Row],[Clasificación Riesgo]]","v":"Colectivo de VidaGastos Médicos28000B"},"Gastos Médicos",0,0,28000,0,17,65,70,"Colectivo de Vida","0601 - Grupo","06 - Colectivo de Vida",0,0,478.80000000000007,100,0,"B","Adicional","Cobertura máxima del 10% de la Suma Asegurada en Muerte Accidental"]
[{"$f":"+Tabla1[[#This Row],[Producto]]&Tabla1[[#This Row],[Cobertura]]&Tabla1[[#This Row],[Suma Asegurada Fija]]&Tabla1[[#This Row],[Clasificación Riesgo]]","v":"Colectivo de VidaGastos Médicos28000C"},"Gastos Médicos",0,0,28000,0,17,65,70,"Colectivo de Vida","0601 - Grupo","06 - Colectivo de Vida",0,0,642.88,100,0,"C","Adicional","Cobertura máxima del 10% de la Suma Asegurada en Muerte Accidental"]
[{"$f":"+Tabla1[[#This Row],[Producto]]&Tabla1[[#This Row],[Cobertura]]&Tabla1[[#This Row],[Suma Asegurada Fija]]&Tabla1[[#This Row],[Clasificación Riesgo]]","v":"Colectivo de VidaGastos Médicos29000A"},"Gastos Médicos",0,0,29000,0,17,65,70,"Colectivo de Vida","0601 - Grupo","06 - Colectivo de Vida",0,0,282.75,100,0,"A","Adicional","Cobertura máxima del 10% de la Suma Asegurada en Muerte Accidental"]
[{"$f":"+Tabla1[[#This Row],[Producto]]&Tabla1[[#This Row],[Cobertura]]&Tabla1[[#This Row],[Suma Asegurada Fija]]&Tabla1[[#This Row],[Clasificación Riesgo]]","v":"Colectivo de VidaGastos Médicos29000B"},"Gastos Médicos",0,0,29000,0,17,65,70,"Colectivo de Vida","0601 - Grupo","06 - Colectivo de Vida",0,0,495.90000000000003,100,0,"B","Adicional","Cobertura máxima del 10% de la Suma Asegurada en Muerte Accidental"]
[{"$f":"+Tabla1[[#This Row],[Producto]]&Tabla1[[#This Row],[Cobertura]]&Tabla1[[#This Row],[Suma Asegurada Fija]]&Tabla1[[#This Row],[Clasificación Riesgo]]","v":"Colectivo de VidaGastos Médicos29000C"},"Gastos Médicos",0,0,29000,0,17,65,70,"Colectivo de Vida","0601 - Grupo","06 - Colectivo de Vida",0,0,665.84,100,0,"C","Adicional","Cobertura máxima del 10% de la Suma Asegurada en Muerte Accidental"]
[{"$f":"+Tabla1[[#This Row],[Producto]]&Tabla1[[#This Row],[Cobertura]]&Tabla1[[#This Row],[Suma Asegurada Fija]]&Tabla1[[#This Row],[Clasificación Riesgo]]","v":"Colectivo de VidaGastos Médicos30000A"},"Gastos Médicos",0,0,30000,0,17,65,70,"Colectivo de Vida","0601 - Grupo","06 - Colectivo de Vida",0,0,292.5,100,0,"A","Adicional","Cobertura máxima del 10% de la Suma Asegurada en Muerte Accidental"]
[{"$f":"+Tabla1[[#This Row],[Producto]]&Tabla1[[#This Row],[Cobertura]]&Tabla1[[#This Row],[Suma Asegurada Fija]]&Tabla1[[#This Row],[Clasificación Riesgo]]","v":"Colectivo de VidaGastos Médicos30000B"},"Gastos Médicos",0,0,30000,0,17,65,70,"Colectivo de Vida","0601 - Grupo","06 - Colectivo de Vida",0,0,513,100,0,"B","Adicional","Cobertura máxima del 10% de la Suma Asegurada en Muerte Accidental"]
[{"$f":"+Tabla1[[#This Row],[Producto]]&Tabla1[[#This Row],[Cobertura]]&Tabla1[[#This Row],[Suma Asegurada Fija]]&Tabla1[[#This Row],[Clasificación Riesgo]]","v":"Colectivo de VidaGastos Médicos30000C"},"Gastos Médicos",0,0,30000,0,17,65,70,"Colectivo de Vida","0601 - Grupo","06 - Colectivo de Vida",0,0,688.80000000000007,100,0,"C","Adicional","Cobertura máxima del 10% de la Suma Asegurada en Muerte Accidental"]
[{"$f":"+Tabla1[[#This Row],[Producto]]&Tabla1[[#This Row],[Cobertura]]&Tabla1[[#This Row],[Suma Asegurada Fija]]&Tabla1[[#This Row],[Clasificación Riesgo]]","v":"Colectivo de VidaGastos Médicos0A"},"Gastos Médicos",10001,30000,0,0,17,65,70,"Colectivo de Vida","0601 - Grupo","06 - Colectivo de Vida",0,9.75,0,100,30000,"A","Adicional","Cobertura máxima del 10% de la Suma Asegurada en Muerte Accidental"]
[{"$f":"+Tabla1[[#This Row],[Producto]]&Tabla1[[#This Row],[Cobertura]]&Tabla1[[#This Row],[Suma Asegurada Fija]]&Tabla1[[#This Row],[Clasificación Riesgo]]","v":"Colectivo de VidaGastos Médicos0B"},"Gastos Médicos",10001,30000,0,0,17,65,70,"Colectivo de Vida","0601 - Grupo","06 - Colectivo de Vida",0,17.100000000000001,0,100,30000,"B","Adicional","Cobertura máxima del 10% de la Suma Asegurada en Muerte Accidental"]
[{"$f":"+Tabla1[[#This Row],[Producto]]&Tabla1[[#This Row],[Cobertura]]&Tabla1[[#This Row],[Suma Asegurada Fija]]&Tabla1[[#This Row],[Clasificación Riesgo]]","v":"Colectivo de VidaGastos Médicos0C"},"Gastos Médicos",10001,30000,0,0,17,65,70,"Colectivo de Vida","0601 - Grupo","06 - Colectivo de Vida",0,22.96,0,100,30000,"C","Adicional","Cobertura máxima del 10% de la Suma Asegurada en Muerte Accidental"]
[{"$f":"+Tabla1[[#This Row],[Producto]]&Tabla1[[#This Row],[Cobertura]]&Tabla1[[#This Row],[Suma Asegurada Fija]]","v":"Colectivo de VidaRenta Diaria por Hospitalización por Accidente25"},"Renta Diaria por Hospitalización por Accidente",0,0,25,0,18,65,70,"Colectivo de Vida","0601 - Grupo","06 - Colectivo de Vida",0,0,23,"3 días","60 días","A","Adicional"]
[{"$f":"+Tabla1[[#This Row],[Producto]]&Tabla1[[#This Row],[Cobertura]]&Tabla1[[#This Row],[Suma Asegurada Fija]]","v":"Colectivo de VidaRenta Diaria por Hospitalización por Accidente25"},"Renta Diaria por Hospitalización por Accidente",0,0,25,0,18,65,70,"Colectivo de Vida","0601 - Grupo","06 - Colectivo de Vida",0,0,23,"3 días","60 días","B","Adicional"]
[{"$f":"+Tabla1[[#This Row],[Producto]]&Tabla1[[#This Row],[Cobertura]]&Tabla1[[#This Row],[Suma Asegurada Fija]]","v":"Colectivo de VidaRenta Diaria por Hospitalización por Accidente25"},"Renta Diaria por Hospitalización por Accidente",0,0,25,0,18,65,70,"Colectivo de Vida","0601 - Grupo","06 - Colectivo de Vida",0,0,23,"3 días","60 días","C","Adicional"]
[{"$f":"+Tabla1[[#This Row],[Producto]]&Tabla1[[#This Row],[Cobertura]]&Tabla1[[#This Row],[Suma Asegurada Fija]]","v":"Colectivo de VidaRenta Diaria por Hospitalización por Accidente50"},"Renta Diaria por Hospitalización por Accidente",0,0,50,0,18,65,70,"Colectivo de Vida","0601 - Grupo","06 - Colectivo de Vida",0,0,49,"3 días","60 días","A","Adicional"]
[{"$f":"+Tabla1[[#This Row],[Producto]]&Tabla1[[#This Row],[Cobertura]]&Tabla1[[#This Row],[Suma Asegurada Fija]]","v":"Colectivo de VidaRenta Diaria por Hospitalización por Accidente50"},"Renta Diaria por Hospitalización por Accidente",0,0,50,0,18,65,70,"Colectivo de Vida","0601 - Grupo","06 - Colectivo de Vida",0,0,49,"3 días","60 días","B","Adicional"]
[{"$f":"+Tabla1[[#This Row],[Producto]]&Tabla1[[#This Row],[Cobertura]]&Tabla1[[#This Row],[Suma Asegurada Fija]]","v":"Colectivo de VidaRenta Diaria por Hospitalización por Accidente50"},"Renta Diaria por Hospitalización por Accidente",0,0,50,0,18,65,70,"Colectivo de Vida","0601 - Grupo","06 - Colectivo de Vida",0,0,49,"3 días","60 días","C","Adicional"]
[{"$f":"+Tabla1[[#This Row],[Producto]]&Tabla1[[#This Row],[Cobertura]]&Tabla1[[#This Row],[Suma Asegurada Fija]]","v":"Colectivo de VidaRenta Diaria por Hospitalización por Accidente100"},"Renta Diaria por Hospitalización por Accidente",0,0,100,0,18,65,70,"Colectivo de Vida","0601 - Grupo","06 - Colectivo de Vida",0,0,100,"3 días","60 días","A","Adicional"]
[{"$f":"+Tabla1[[#This Row],[Producto]]&Tabla1[[#This Row],[Cobertura]]&Tabla1[[#This Row],[Suma Asegurada Fija]]","v":"Colectivo de VidaRenta Diaria por Hospitalización por Accidente100"},"Renta Diaria por Hospitalización por Accidente",0,0,100,0,18,65,70,"Colectivo de Vida","0601 - Grupo","06 - Colectivo de Vida",0,0,100,"3 días","60 días","B","Adicional"]
[{"$f":"+Tabla1[[#This Row],[Producto]]&Tabla1[[#This Row],[Cobertura]]&Tabla1[[#This Row],[Suma Asegurada Fija]]","v":"Colectivo de VidaRenta Diaria por Hospitalización por Accidente100"},"Renta Diaria por Hospitalización por Accidente",0,0,100,0,18,65,70,"Colectivo de Vida","0601 - Grupo","06 - Colectivo de Vida",0,0,100,"3 días","60 días","C","Adicional"]
[{"$f":"+Tabla1[[#This Row],[Producto]]&Tabla1[[#This Row],[Cobertura]]&Tabla1[[#This Row],[Clasificación Riesgo]]","v":"Colectivo de VidaRenta Diaria por Incapacidad Temporal por AccidenteA"},"Renta Diaria por Incapacidad Temporal por Accidente",1,30,0,0,18,65,70,"Colectivo de Vida","0601 - Grupo","06 - Colectivo de Vida",0,2.5,0,"5 días","60 días","A","Adicional"]
[{"$f":"+Tabla1[[#This Row],[Producto]]&Tabla1[[#This Row],[Cobertura]]&Tabla1[[#This Row],[Clasificación Riesgo]]","v":"Colectivo de VidaRenta Diaria por Incapacidad Temporal por AccidenteB"},"Renta Diaria por Incapacidad Temporal por Accidente",1,30,0,0,18,65,70,"Colectivo de Vida","0601 - Grupo","06 - Colectivo de Vida",0,4,0,"5 días","60 días","B","Adicional"]
[{"$f":"+Tabla1[[#This Row],[Producto]]&Tabla1[[#This Row],[Cobertura]]&Tabla1[[#This Row],[Clasificación Riesgo]]","v":"Colectivo de VidaRenta Diaria por Incapacidad Temporal por AccidenteC"},"Renta Diaria por Incapacidad Temporal por Accidente",1,30,0,0,18,65,70,"Colectivo de Vida","0601 - Grupo","06 - Colectivo de Vida",0,6,0,"5 días","60 días","C","Adicional"]
[null,"Servicio de Emergencia Odontológica sin Endodoncia",0,0,0,0,2,65,70,"Colectivo de Vida","0601 - Grupo","06 - Colectivo de Vida",0,0,8.07,0,0,"A","Adicional"]
[null,"Servicio de Emergencia Odontológica Completa",0,0,0,0,2,65,70,"Colectivo de Vida","0601 - Grupo","06 - Colectivo de Vida",0,0,11.87,0,0,"A","Adicional"]
[null,"Servicio de Emergencia Odontológica Completa + Prevención",0,0,0,0,2,65,70,"Colectivo de Vida","0601 - Grupo","06 - Colectivo de Vida",0,0,44.38,0,0,"A","Adicional"]
[null,"Servicio Odontológico Amplio sin Endodoncia",0,0,0,0,2,65,70,"Colectivo de Vida","0601 - Grupo","06 - Colectivo de Vida",0,0,73.81,0,0,"A","Adicional"]
[null,"Servicio Odontológico Amplio",0,0,0,0,2,65,70,"Colectivo de Vida","0601 - Grupo","06 - Colectivo de Vida",0,0,89.79,0,0,"A","Adicional"]
[null,"Servicio de Emergencia Odontológica sin Endodoncia Familiar",0,0,0,0,2,65,70,"Colectivo de Vida","0601 - Grupo","06 - Colectivo de Vida",0,0,28.243253234750465,0,0,"A","Adicional"]
[null,"Servicio de Emergencia Odontológica Completa Familiar",0,0,0,0,2,65,70,"Colectivo de Vida","0601 - Grupo","06 - Colectivo de Vida",0,0,41.534195933456559,0,0,"A","Adicional"]
[null,"Servicio de Emergencia Odontológica Completa + Prevención Familiar",0,0,0,0,2,65,70,"Colectivo de Vida","0601 - Grupo","06 - Colectivo de Vida",0,0,155.33789279112756,0,0,"A","Adicional"]
[null,"Servicio Odontológico Amplio sin Endodoncia Familiar",0,0,0,0,2,65,70,"Colectivo de Vida","0601 - Grupo","06 - Colectivo de Vida",0,0,258.34269870609978,0,0,"A","Adicional"]
[null,"Servicio Odontológico Amplio Familiar",0,0,0,0,2,65,70,"Colectivo de Vida","0601 - Grupo","06 - Colectivo de Vida",0,0,314.24772643253237,0,0,"A","Adicional"]
[null,"Servicio de Asistencia Médica Móvil",0,0,0,0,2,65,70,"Colectivo de Vida","0601 - Grupo","06 - Colectivo de Vida",0,0,1.98,0,0,"A","Adicional"]
[null,"Servicio de Orientación Médica",0,0,0,0,2,65,70,"Colectivo de Vida","0601 - Grupo","06 - Colectivo de Vida",0,0,6.6,0,0,"A","Adicional"]
[null,"Asistencia Funeraria Nacional Individual",0,0,0,0,2,65,70,"Colectivo de Vida","0601 - Grupo","06 - Colectivo de Vida",0,0,9.76,0,0,"A","Adicional"]
[null,"Asistencia Funeraria Individual con Repatriación",0,0,0,0,2,65,70,"Colectivo de Vida","0601 - Grupo","06 - Colectivo de Vida",0,0,14.64,0,0,"A","Adicional"]
[null,"Asistencia Funeraria con Expatriación",0,0,0,0,2,65,70,"Colectivo de Vida","0601 - Grupo","06 - Colectivo de Vida",0,0,19.739999999999998,0,0,"A","Adicional"]
[null,"Asistencia Funeraria Nacional Familiar",0,0,0,0,2,65,70,"Colectivo de Vida","0601 - Grupo","06 - Colectivo de Vida",0,0,70.98,0,0,"A","Adicional"]
[null,"Asistencia Funeraria Nacional Familiar + Progenitores",0,0,0,0,2,65,70,"Colectivo de Vida","0601 - Grupo","06 - Colectivo de Vida",0,0,155.05000000000001,0,0,"A","Adicional"]
[{"$f":"+Tabla1[[#This Row],[Producto]]&Tabla1[[#This Row],[Cobertura]]&Tabla1[[#This Row],[Clasificación Riesgo]]","v":"Colectivo de Saldo DeudoresMuerte AccidentalA"},"Muerte Accidental",1000,100000,0,0,18,65,70,"Colectivo de Saldo Deudores","0602 - Deudores","06 - Colectivo de Vida",0,0.72,0,0,0,"A","Adicional"]
[{"$f":"+Tabla1[[#This Row],[Producto]]&Tabla1[[#This Row],[Cobertura]]&Tabla1[[#This Row],[Clasificación Riesgo]]","v":"Colectivo de Saldo DeudoresMuerte AccidentalB"},"Muerte Accidental",1000,100000,0,0,18,65,70,"Colectivo de Saldo Deudores","0602 - Deudores","06 - Colectivo de Vida",0,1.1200000000000001,0,0,0,"B","Adicional"]
[{"$f":"+Tabla1[[#This Row],[Producto]]&Tabla1[[#This Row],[Cobertura]]&Tabla1[[#This Row],[Clasificación Riesgo]]","v":"Colectivo de Saldo DeudoresMuerte AccidentalC"},"Muerte Accidental",1000,100000,0,0,18,65,70,"Colectivo de Saldo Deudores","0602 - Deudores","06 - Colectivo de Vida",0,1.54,0,0,0,"C","Adicional"]
[{"$f":"+Tabla1[[#This Row],[Producto]]&Tabla1[[#This Row],[Cobertura]]&Tabla1[[#This Row],[Clasificación Riesgo]]","v":"Colectivo de Saldo DeudoresAdelanto por Incapacidad Total y Permanente por AccidenteA"},"Adelanto por Incapacidad Total y Permanente por Accidente",0,0,"Suma Asegurada de Muerte por cualquier causa",0,18,65,70,"Colectivo de Saldo Deudores","0602 - Deudores","06 - Colectivo de Vida",0,0.84,0,0,0,"A","Adicional"]
[{"$f":"+Tabla1[[#This Row],[Producto]]&Tabla1[[#This Row],[Cobertura]]&Tabla1[[#This Row],[Clasificación Riesgo]]","v":"Colectivo de Saldo DeudoresAdelanto por Incapacidad Total y Permanente por AccidenteB"},"Adelanto por Incapacidad Total y Permanente por Accidente",0,0,"Suma Asegurada de Muerte por cualquier causa",0,18,65,70,"Colectivo de Saldo Deudores","0602 - Deudores","06 - Colectivo de Vida",0,1.05,0,0,0,"B","Adicional"]
[{"$f":"+Tabla1[[#This Row],[Producto]]&Tabla1[[#This Row],[Cobertura]]&Tabla1[[#This Row],[Clasificación Riesgo]]","v":"Colectivo de Saldo DeudoresAdelanto por Incapacidad Total y Permanente por AccidenteC"},"Adelanto por Incapacidad Total y Permanente por Accidente",0,0,"Suma Asegurada de Muerte por cualquier causa",0,18,65,70,"Colectivo de Saldo Deudores","0602 - Deudores","06 - Colectivo de Vida",0,1.26,0,0,0,"C","Adicional"]
[{"$f":"+Tabla1[[#This Row],[Producto]]&Tabla1[[#This Row],[Cobertura]]&Tabla1[[#This Row],[Clasificación Riesgo]]","v":"Colectivo de Saldo DeudoresAdelanto del Básico por CancerA"},"Adelanto del Básico por Cancer",1000,6000,"20% del Beneficio Básico",0,18,65,70,"Colectivo de Saldo Deudores","0602 - Deudores","06 - Colectivo de Vida",0,0.42,0,0,0,"A","Adicional"]
[{"$f":"+Tabla1[[#This Row],[Producto]]&Tabla1[[#This Row],[Cobertura]]&Tabla1[[#This Row],[Clasificación Riesgo]]","v":"Colectivo de Saldo DeudoresAdelanto del Básico por CancerB"},"Adelanto del Básico por Cancer",1000,6000,"20% del Beneficio Básico",0,18,65,70,"Colectivo de Saldo Deudores","0602 - Deudores","06 - Colectivo de Vida",0,0.42,0,0,0,"B","Adicional"]
[{"$f":"+Tabla1[[#This Row],[Producto]]&Tabla1[[#This Row],[Cobertura]]&Tabla1[[#This Row],[Clasificación Riesgo]]","v":"Colectivo de Saldo DeudoresAdelanto del Básico por CancerC"},"Adelanto del Básico por Cancer",1000,6000,"20% del Beneficio Básico",0,18,65,70,"Colectivo de Saldo Deudores","0602 - Deudores","06 - Colectivo de Vida",0,0.42,0,0,0,"C","Adicional"]
[{"$f":"+Tabla1[[#This Row],[Producto]]&Tabla1[[#This Row],[Cobertura]]&Tabla1[[#This Row],[Clasificación Riesgo]]","v":"Colectivo de Saldo DeudoresPago Adicional por CancerA"},"Pago Adicional por Cancer",1000,6000,"20% del Beneficio Básico",0,18,65,70,"Colectivo de Saldo Deudores","0602 - Deudores","06 - Colectivo de Vida",0,2.76,0,0,0,"A","Adicional"]
[{"$f":"+Tabla1[[#This Row],[Producto]]&Tabla1[[#This Row],[Cobertura]]&Tabla1[[#This Row],[Clasificación Riesgo]]","v":"Colectivo de Saldo DeudoresPago Adicional por CancerB"},"Pago Adicional por Cancer",1000,6000,"20% del Beneficio Básico",0,18,65,70,"Colectivo de Saldo Deudores","0602 - Deudores","06 - Colectivo de Vida",0,2.76,0,0,0,"B","Adicional"]
[{"$f":"+Tabla1[[#This Row],[Producto]]&Tabla1[[#This Row],[Cobertura]]&Tabla1[[#This Row],[Clasificación Riesgo]]","v":"Colectivo de Saldo DeudoresPago Adicional por CancerC"},"Pago Adicional por Cancer",1000,6000,"20% del Beneficio Básico",0,18,65,70,"Colectivo de Saldo Deudores","0602 - Deudores","06 - Colectivo de Vida",0,2.76,0,0,0,"C","Adicional"]
[null,"Adelanto por Gastos Funerarios",1000,3000,"20% del Beneficio Básico",0,18,65,70,"Colectivo de Saldo Deudores","0602 - Deudores","06 - Colectivo de Vida",0,0,0,0,0,"A","Adicional","Se ofrece sin costo"]
[null,"Adelanto por Gastos Funerarios",1000,3000,"20% del Beneficio Básico",0,18,65,70,"Colectivo de Saldo Deudores","0602 - Deudores","06 - Colectivo de Vida",0,0,0,0,0,"B","Adicional","Se ofrece sin costo"]
[null,"Adelanto por Gastos Funerarios",1000,3000,"20% del Beneficio Básico",0,18,65,70,"Colectivo de Saldo Deudores","0602 - Deudores","06 - Colectivo de Vida",0,0,0,0,0,"C","Adicional","Se ofrece sin costo"]
[{"$f":"+Tabla1[[#This Row],[Producto]]&Tabla1[[#This Row],[Cobertura]]&Tabla1[[#This Row],[Clasificación Riesgo]]","v":"Colectivo de Saldo DeudoresPago Adicional por Gastos FunerariosA"},"Pago Adicional por Gastos Funerarios",1000,3000,"20% del Beneficio Básico",0,18,65,70,"Colectivo de Saldo Deudores","0602 - Deudores","06 - Colectivo de Vida",0,0,0,0,0,"A","Adicional","Se ofrece en base a la tasa de muerte por cualquier causa del básico"]
[{"$f":"+Tabla1[[#This Row],[Producto]]&Tabla1[[#This Row],[Cobertura]]&Tabla1[[#This Row],[Clasificación Riesgo]]","v":"Colectivo de Saldo DeudoresPago Adicional por Gastos FunerariosB"},"Pago Adicional por Gastos Funerarios",1000,3000,"20% del Beneficio Básico",0,18,65,70,"Colectivo de Saldo Deudores","0602 - Deudores","06 - Colectivo de Vida",0,0,0,0,0,"B","Adicional","Se ofrece en base a la tasa de muerte por cualquier causa del básico"]
[{"$f":"+Tabla1[[#This Row],[Producto]]&Tabla1[[#This Row],[Cobertura]]&Tabla1[[#This Row],[Clasificación Riesgo]]","v":"Colectivo de Saldo DeudoresPago Adicional por Gastos FunerariosC"},"Pago Adicional por Gastos Funerarios",1000,3000,"20% del Beneficio Básico",0,18,65,70,"Colectivo de Saldo Deudores","0602 - Deudores","06 - Colectivo de Vida",0,0,0,0,0,"C","Adicional","Se ofrece en base a la tasa de muerte por cualquier causa del básico"]
[{"$f":"+Tabla1[[#This Row],[Producto]]&Tabla1[[#This Row],[Cobertura]]&Tabla1[[#This Row],[Clasificación Riesgo]]","v":"Colectivo de Saldo DeudoresMuerte en Transporte PúblicoA"},"Muerte en Transporte Público",0,0,"Suma Asegurada de Muerte por cualquier causa",0,18,65,70,"Colectivo de Saldo Deudores","0602 - Deudores","06 - Colectivo de Vida",0,0.36,0,0,100000,"A","Adicional"]
[{"$f":"+Tabla1[[#This Row],[Producto]]&Tabla1[[#This Row],[Cobertura]]&Tabla1[[#This Row],[Clasificación Riesgo]]","v":"Colectivo de Saldo DeudoresMuerte en Transporte PúblicoB"},"Muerte en Transporte Público",0,0,"Suma Asegurada de Muerte por cualquier causa",0,18,65,70,"Colectivo de Saldo Deudores","0602 - Deudores","06 - Colectivo de Vida",0,0.56000000000000005,0,0,100000,"B","Adicional"]
[{"$f":"+Tabla1[[#This Row],[Producto]]&Tabla1[[#This Row],[Cobertura]]&Tabla1[[#This Row],[Clasificación Riesgo]]","v":"Colectivo de Saldo DeudoresMuerte en Transporte PúblicoC"},"Muerte en Transporte Público",0,0,"Suma Asegurada de Muerte por cualquier causa",0,18,65,70,"Colectivo de Saldo Deudores","0602 - Deudores","06 - Colectivo de Vida",0,0.77,0,0,100000,"C","Adicional"]
[{"$f":"+Tabla1[[#This Row],[Producto]]&Tabla1[[#This Row],[Cobertura]]&Tabla1[[#This Row],[Clasificación Riesgo]]","v":"Colectivo de Saldo DeudoresMuerte Natural CónyugeA"},"Muerte Natural Cónyuge",0,0,"30% del Beneficio Básico",0,18,65,70,"Colectivo de Saldo Deudores","0602 - Deudores","06 - Colectivo de Vida",0,0.15,0,0,0,"A","Adicional"]
[{"$f":"+Tabla1[[#This Row],[Producto]]&Tabla1[[#This Row],[Cobertura]]&Tabla1[[#This Row],[Clasificación Riesgo]]","v":"Colectivo de Saldo DeudoresMuerte Natural CónyugeB"},"Muerte Natural Cónyuge",0,0,"30% del Beneficio Básico",0,18,65,70,"Colectivo de Saldo Deudores","0602 - Deudores","06 - Colectivo de Vida",0,0.2,0,0,0,"B","Adicional"]
[{"$f":"+Tabla1[[#This Row],[Producto]]&Tabla1[[#This Row],[Cobertura]]&Tabla1[[#This Row],[Clasificación Riesgo]]","v":"Colectivo de Saldo DeudoresMuerte Natural CónyugeC"},"Muerte Natural Cónyuge",0,0,"30% del Beneficio Básico",0,18,65,70,"Colectivo de Saldo Deudores","0602 - Deudores","06 - Colectivo de Vida",0,0.25,0,0,0,"C","Adicional"]
[{"$f":"+Tabla1[[#This Row],[Producto]]&Tabla1[[#This Row],[Cobertura]]&Tabla1[[#This Row],[Clasificación Riesgo]]","v":"Colectivo de Saldo DeudoresMuerte Natural HijosA"},"Muerte Natural Hijos",0,0,"30% del Beneficio Básico",0,18,65,70,"Colectivo de Saldo Deudores","0602 - Deudores","06 - Colectivo de Vida",0,0.1,0,0,0,"A","Adicional"]
[{"$f":"+Tabla1[[#This Row],[Producto]]&Tabla1[[#This Row],[Cobertura]]&Tabla1[[#This Row],[Clasificación Riesgo]]","v":"Colectivo de Saldo DeudoresMuerte Natural HijosB"},"Muerte Natural Hijos",0,0,"30% del Beneficio Básico",0,18,65,70,"Colectivo de Saldo Deudores","0602 - Deudores","06 - Colectivo de Vida",0,0.15,0,0,0,"B","Adicional"]
[{"$f":"+Tabla1[[#This Row],[Producto]]&Tabla1[[#This Row],[Cobertura]]&Tabla1[[#This Row],[Clasificación Riesgo]]","v":"Colectivo de Saldo DeudoresMuerte Natural HijosC"},"Muerte Natural Hijos",0,0,"30% del Beneficio Básico",0,18,65,70,"Colectivo de Saldo Deudores","0602 - Deudores","06 - Colectivo de Vida",0,0.2,0,0,0,"C","Adicional"]
[{"$f":"+Tabla1[[#This Row],[Producto]]&Tabla1[[#This Row],[Cobertura]]&Tabla1[[#This Row],[Clasificación Riesgo]]","v":"Colectivo de Saldo DeudoresAdelanto por Enfermedades GravesA"},"Adelanto por Enfermedades Graves",1000,6000,"35% del Beneficio Básico",0,18,65,70,"Colectivo de Saldo Deudores","0602 - Deudores","06 - Colectivo de Vida",0,0.21,0,0,0,"A","Adicional"]
[{"$f":"+Tabla1[[#This Row],[Producto]]&Tabla1[[#This Row],[Cobertura]]&Tabla1[[#This Row],[Clasificación Riesgo]]","v":"Colectivo de Saldo DeudoresAdelanto por Enfermedades GravesB"},"Adelanto por Enfermedades Graves",1000,6000,"35% del Beneficio Básico",0,18,65,70,"Colectivo de Saldo Deudores","0602 - Deudores","06 - Colectivo de Vida",0,0.21,0,0,0,"B","Adicional"]
[{"$f":"+Tabla1[[#This Row],[Producto]]&Tabla1[[#This Row],[Cobertura]]&Tabla1[[#This Row],[Clasificación Riesgo]]","v":"Colectivo de Saldo DeudoresAdelanto por Enfermedades GravesC"},"Adelanto por Enfermedades Graves",1000,6000,"35% del Beneficio Básico",0,18,65,70,"Colectivo de Saldo Deudores","0602 - Deudores","06 - Colectivo de Vida",0,0.21,0,0,0,"C","Adicional"]
[{"$f":"+Tabla1[[#This Row],[Producto]]&Tabla1[[#This Row],[Cobertura]]&Tabla1[[#This Row],[Suma Asegurada Fija]]&Tabla1[[#This Row],[Clasificación Riesgo]]","v":"Colectivo de Saldo DeudoresGastos Médicos500A"},"Gastos Médicos",0,0,500,0,18,65,70,"Colectivo de Saldo Deudores","0602 - Deudores","06 - Colectivo de Vida",0,0,8.1999999999999993,25,0,"A","Adicional","Cobertura máxima del 10% de la Suma Asegurada en Muerte Accidental"]
[{"$f":"+Tabla1[[#This Row],[Producto]]&Tabla1[[#This Row],[Cobertura]]&Tabla1[[#This Row],[Suma Asegurada Fija]]&Tabla1[[#This Row],[Clasificación Riesgo]]","v":"Colectivo de Saldo DeudoresGastos Médicos500B"},"Gastos Médicos",0,0,500,0,18,65,70,"Colectivo de Saldo Deudores","0602 - Deudores","06 - Colectivo de Vida",0,0,12,25,0,"B","Adicional","Cobertura máxima del 10% de la Suma Asegurada en Muerte Accidental"]
[{"$f":"+Tabla1[[#This Row],[Producto]]&Tabla1[[#This Row],[Cobertura]]&Tabla1[[#This Row],[Suma Asegurada Fija]]&Tabla1[[#This Row],[Clasificación Riesgo]]","v":"Colectivo de Saldo DeudoresGastos Médicos500C"},"Gastos Médicos",0,0,500,0,18,65,70,"Colectivo de Saldo Deudores","0602 - Deudores","06 - Colectivo de Vida",0,0,16,25,0,"C","Adicional","Cobertura máxima del 10% de la Suma Asegurada en Muerte Accidental"]
[{"$f":"+Tabla1[[#This Row],[Producto]]&Tabla1[[#This Row],[Cobertura]]&Tabla1[[#This Row],[Suma Asegurada Fija]]&Tabla1[[#This Row],[Clasificación Riesgo]]","v":"Colectivo de Saldo DeudoresGastos Médicos1000A"},"Gastos Médicos",0,0,1000,0,18,65,70,"Colectivo de Saldo Deudores","0602 - Deudores","06 - Colectivo de Vida",0,0,12,25,0,"A","Adicional","Cobertura máxima del 10% de la Suma Asegurada en Muerte Accidental"]
[{"$f":"+Tabla1[[#This Row],[Producto]]&Tabla1[[#This Row],[Cobertura]]&Tabla1[[#This Row],[Suma Asegurada Fija]]&Tabla1[[#This Row],[Clasificación Riesgo]]","v":"Colectivo de Saldo DeudoresGastos Médicos1000B"},"Gastos Médicos",0,0,1000,0,18,65,70,"Colectivo de Saldo Deudores","0602 - Deudores","06 - Colectivo de Vida",0,0,21.58,25,0,"B","Adicional","Cobertura máxima del 10% de la Suma Asegurada en Muerte Accidental"]
[{"$f":"+Tabla1[[#This Row],[Producto]]&Tabla1[[#This Row],[Cobertura]]&Tabla1[[#This Row],[Suma Asegurada Fija]]&Tabla1[[#This Row],[Clasificación Riesgo]]","v":"Colectivo de Saldo DeudoresGastos Médicos1000C"},"Gastos Médicos",0,0,1000,0,18,65,70,"Colectivo de Saldo Deudores","0602 - Deudores","06 - Colectivo de Vida",0,0,26,25,0,"C","Adicional","Cobertura máxima del 10% de la Suma Asegurada en Muerte Accidental"]
[{"$f":"+Tabla1[[#This Row],[Producto]]&Tabla1[[#This Row],[Cobertura]]&Tabla1[[#This Row],[Suma Asegurada Fija]]&Tabla1[[#This Row],[Clasificación Riesgo]]","v":"Colectivo de Saldo DeudoresGastos Médicos1500A"},"Gastos Médicos",0,0,1500,0,18,65,70,"Colectivo de Saldo Deudores","0602 - Deudores","06 - Colectivo de Vida",0,0,16,50,0,"A","Adicional","Cobertura máxima del 10% de la Suma Asegurada en Muerte Accidental"]
[{"$f":"+Tabla1[[#This Row],[Producto]]&Tabla1[[#This Row],[Cobertura]]&Tabla1[[#This Row],[Suma Asegurada Fija]]&Tabla1[[#This Row],[Clasificación Riesgo]]","v":"Colectivo de Saldo DeudoresGastos Médicos1500B"},"Gastos Médicos",0,0,1500,0,18,65,70,"Colectivo de Saldo Deudores","0602 - Deudores","06 - Colectivo de Vida",0,0,27,50,0,"B","Adicional","Cobertura máxima del 10% de la Suma Asegurada en Muerte Accidental"]
[{"$f":"+Tabla1[[#This Row],[Producto]]&Tabla1[[#This Row],[Cobertura]]&Tabla1[[#This Row],[Suma Asegurada Fija]]&Tabla1[[#This Row],[Clasificación Riesgo]]","v":"Colectivo de Saldo DeudoresGastos Médicos1500C"},"Gastos Médicos",0,0,1500,0,18,65,70,"Colectivo de Saldo Deudores","0602 - Deudores","06 - Colectivo de Vida",0,0,36,50,0,"C","Adicional","Cobertura máxima del 10% de la Suma Asegurada en Muerte Accidental"]
[{"$f":"+Tabla1[[#This Row],[Producto]]&Tabla1[[#This Row],[Cobertura]]&Tabla1[[#This Row],[Suma Asegurada Fija]]&Tabla1[[#This Row],[Clasificación Riesgo]]","v":"Colectivo de Saldo DeudoresGastos Médicos2000A"},"Gastos Médicos",0,0,2000,0,18,65,70,"Colectivo de Saldo Deudores","0602 - Deudores","06 - Colectivo de Vida",0,0,21,50,0,"A","Adicional","Cobertura máxima del 10% de la Suma Asegurada en Muerte Accidental"]
[{"$f":"+Tabla1[[#This Row],[Producto]]&Tabla1[[#This Row],[Cobertura]]&Tabla1[[#This Row],[Suma Asegurada Fija]]&Tabla1[[#This Row],[Clasificación Riesgo]]","v":"Colectivo de Saldo DeudoresGastos Médicos2000B"},"Gastos Médicos",0,0,2000,0,18,65,70,"Colectivo de Saldo Deudores","0602 - Deudores","06 - Colectivo de Vida",0,0,39.5,50,0,"B","Adicional","Cobertura máxima del 10% de la Suma Asegurada en Muerte Accidental"]
[{"$f":"+Tabla1[[#This Row],[Producto]]&Tabla1[[#This Row],[Cobertura]]&Tabla1[[#This Row],[Suma Asegurada Fija]]&Tabla1[[#This Row],[Clasificación Riesgo]]","v":"Colectivo de Saldo DeudoresGastos Médicos2000C"},"Gastos Médicos",0,0,2000,0,18,65,70,"Colectivo de Saldo Deudores","0602 - Deudores","06 - Colectivo de Vida",0,0,46.5,50,0,"C","Adicional","Cobertura máxima del 10% de la Suma Asegurada en Muerte Accidental"]
[{"$f":"+Tabla1[[#This Row],[Producto]]&Tabla1[[#This Row],[Cobertura]]&Tabla1[[#This Row],[Suma Asegurada Fija]]&Tabla1[[#This Row],[Clasificación Riesgo]]","v":"Colectivo de Saldo DeudoresGastos Médicos2500A"},"Gastos Médicos",0,0,2500,0,18,65,70,"Colectivo de Saldo Deudores","0602 - Deudores","06 - Colectivo de Vida",0,0,25,50,0,"A","Adicional","Cobertura máxima del 10% de la Suma Asegurada en Muerte Accidental"]
[{"$f":"+Tabla1[[#This Row],[Producto]]&Tabla1[[#This Row],[Cobertura]]&Tabla1[[#This Row],[Suma Asegurada Fija]]&Tabla1[[#This Row],[Clasificación Riesgo]]","v":"Colectivo de Saldo DeudoresGastos Médicos2500B"},"Gastos Médicos",0,0,2500,0,18,65,70,"Colectivo de Saldo Deudores","0602 - Deudores","06 - Colectivo de Vida",0,0,45,50,0,"B","Adicional","Cobertura máxima del 10% de la Suma Asegurada en Muerte Accidental"]
[{"$f":"+Tabla1[[#This Row],[Producto]]&Tabla1[[#This Row],[Cobertura]]&Tabla1[[#This Row],[Suma Asegurada Fija]]&Tabla1[[#This Row],[Clasificación Riesgo]]","v":"Colectivo de Saldo DeudoresGastos Médicos2500C"},"Gastos Médicos",0,0,2500,0,18,65,70,"Colectivo de Saldo Deudores","0602 - Deudores","06 - Colectivo de Vida",0,0,56.5,50,0,"C","Adicional","Cobertura máxima del 10% de la Suma Asegurada en Muerte Accidental"]
[{"$f":"+Tabla1[[#This Row],[Producto]]&Tabla1[[#This Row],[Cobertura]]&Tabla1[[#This Row],[Suma Asegurada Fija]]&Tabla1[[#This Row],[Clasificación Riesgo]]","v":"Colectivo de Saldo DeudoresGastos Médicos3000A"},"Gastos Médicos",0,0,3000,0,18,65,70,"Colectivo de Saldo Deudores","0602 - Deudores","06 - Colectivo de Vida",0,0,30,100,0,"A","Adicional","Cobertura máxima del 10% de la Suma Asegurada en Muerte Accidental"]
[{"$f":"+Tabla1[[#This Row],[Producto]]&Tabla1[[#This Row],[Cobertura]]&Tabla1[[#This Row],[Suma Asegurada Fija]]&Tabla1[[#This Row],[Clasificación Riesgo]]","v":"Colectivo de Saldo DeudoresGastos Médicos3000B"},"Gastos Médicos",0,0,3000,0,18,65,70,"Colectivo de Saldo Deudores","0602 - Deudores","06 - Colectivo de Vida",0,0,53.5,100,0,"B","Adicional","Cobertura máxima del 10% de la Suma Asegurada en Muerte Accidental"]
[{"$f":"+Tabla1[[#This Row],[Producto]]&Tabla1[[#This Row],[Cobertura]]&Tabla1[[#This Row],[Suma Asegurada Fija]]&Tabla1[[#This Row],[Clasificación Riesgo]]","v":"Colectivo de Saldo DeudoresGastos Médicos3000C"},"Gastos Médicos",0,0,3000,0,18,65,70,"Colectivo de Saldo Deudores","0602 - Deudores","06 - Colectivo de Vida",0,0,68,100,0,"C","Adicional","Cobertura máxima del 10% de la Suma Asegurada en Muerte Accidental"]
[{"$f":"+Tabla1[[#This Row],[Producto]]&Tabla1[[#This Row],[Cobertura]]&Tabla1[[#This Row],[Suma Asegurada Fija]]&Tabla1[[#This Row],[Clasificación Riesgo]]","v":"Colectivo de Saldo DeudoresGastos Médicos4000A"},"Gastos Médicos",0,0,4000,0,18,65,70,"Colectivo de Saldo Deudores","0602 - Deudores","06 - Colectivo de Vida",0,0,40.5,100,0,"A","Adicional","Cobertura máxima del 10% de la Suma Asegurada en Muerte Accidental"]
[{"$f":"+Tabla1[[#This Row],[Producto]]&Tabla1[[#This Row],[Cobertura]]&Tabla1[[#This Row],[Suma Asegurada Fija]]&Tabla1[[#This Row],[Clasificación Riesgo]]","v":"Colectivo de Saldo DeudoresGastos Médicos4000B"},"Gastos Médicos",0,0,4000,0,18,65,70,"Colectivo de Saldo Deudores","0602 - Deudores","06 - Colectivo de Vida",0,0,70.5,100,0,"B","Adicional","Cobertura máxima del 10% de la Suma Asegurada en Muerte Accidental"]
[{"$f":"+Tabla1[[#This Row],[Producto]]&Tabla1[[#This Row],[Cobertura]]&Tabla1[[#This Row],[Suma Asegurada Fija]]&Tabla1[[#This Row],[Clasificación Riesgo]]","v":"Colectivo de Saldo DeudoresGastos Médicos4000C"},"Gastos Médicos",0,0,4000,0,18,65,70,"Colectivo de Saldo Deudores","0602 - Deudores","06 - Colectivo de Vida",0,0,93.5,100,0,"C","Adicional","Cobertura máxima del 10% de la Suma Asegurada en Muerte Accidental"]
[{"$f":"+Tabla1[[#This Row],[Producto]]&Tabla1[[#This Row],[Cobertura]]&Tabla1[[#This Row],[Suma Asegurada Fija]]&Tabla1[[#This Row],[Clasificación Riesgo]]","v":"Colectivo de Saldo DeudoresGastos Médicos5000A"},"Gastos Médicos",0,0,5000,0,18,65,70,"Colectivo de Saldo Deudores","0602 - Deudores","06 - Colectivo de Vida",0,0,48.5,100,0,"A","Adicional","Cobertura máxima del 10% de la Suma Asegurada en Muerte Accidental"]
[{"$f":"+Tabla1[[#This Row],[Producto]]&Tabla1[[#This Row],[Cobertura]]&Tabla1[[#This Row],[Suma Asegurada Fija]]&Tabla1[[#This Row],[Clasificación Riesgo]]","v":"Colectivo de Saldo DeudoresGastos Médicos5000B"},"Gastos Médicos",0,0,5000,0,18,65,70,"Colectivo de Saldo Deudores","0602 - Deudores","06 - Colectivo de Vida",0,0,85,100,0,"B","Adicional","Cobertura máxima del 10% de la Suma Asegurada en Muerte Accidental"]
[{"$f":"+Tabla1[[#This Row],[Producto]]&Tabla1[[#This Row],[Cobertura]]&Tabla1[[#This Row],[Suma Asegurada Fija]]&Tabla1[[#This Row],[Clasificación Riesgo]]","v":"Colectivo de Saldo DeudoresGastos Médicos5000C"},"Gastos Médicos",0,0,5000,0,18,65,70,"Colectivo de Saldo Deudores","0602 - Deudores","06 - Colectivo de Vida",0,0,112,100,0,"C","Adicional","Cobertura máxima del 10% de la Suma Asegurada en Muerte Accidental"]
[{"$f":"+Tabla1[[#This Row],[Producto]]&Tabla1[[#This Row],[Cobertura]]&Tabla1[[#This Row],[Suma Asegurada Fija]]&Tabla1[[#This Row],[Clasificación Riesgo]]","v":"Colectivo de Saldo DeudoresGastos Médicos6000A"},"Gastos Médicos",0,0,6000,0,18,65,70,"Colectivo de Saldo Deudores","0602 - Deudores","06 - Colectivo de Vida",0,0,58.5,100,0,"A","Adicional","Cobertura máxima del 10% de la Suma Asegurada en Muerte Accidental"]
[{"$f":"+Tabla1[[#This Row],[Producto]]&Tabla1[[#This Row],[Cobertura]]&Tabla1[[#This Row],[Suma Asegurada Fija]]&Tabla1[[#This Row],[Clasificación Riesgo]]","v":"Colectivo de Saldo DeudoresGastos Médicos6000B"},"Gastos Médicos",0,0,6000,0,18,65,70,"Colectivo de Saldo Deudores","0602 - Deudores","06 - Colectivo de Vida",0,0,102.6,100,0,"B","Adicional","Cobertura máxima del 10% de la Suma Asegurada en Muerte Accidental"]
[{"$f":"+Tabla1[[#This Row],[Producto]]&Tabla1[[#This Row],[Cobertura]]&Tabla1[[#This Row],[Suma Asegurada Fija]]&Tabla1[[#This Row],[Clasificación Riesgo]]","v":"Colectivo de Saldo DeudoresGastos Médicos6000C"},"Gastos Médicos",0,0,6000,0,18,65,70,"Colectivo de Saldo Deudores","0602 - Deudores","06 - Colectivo de Vida",0,0,137.76,100,0,"C","Adicional","Cobertura máxima del 10% de la Suma Asegurada en Muerte Accidental"]
[{"$f":"+Tabla1[[#This Row],[Producto]]&Tabla1[[#This Row],[Cobertura]]&Tabla1[[#This Row],[Suma Asegurada Fija]]&Tabla1[[#This Row],[Clasificación Riesgo]]","v":"Colectivo de Saldo DeudoresGastos Médicos7000A"},"Gastos Médicos",0,0,7000,0,18,65,70,"Colectivo de Saldo Deudores","0602 - Deudores","06 - Colectivo de Vida",0,0,68.25,100,0,"A","Adicional","Cobertura máxima del 10% de la Suma Asegurada en Muerte Accidental"]
[{"$f":"+Tabla1[[#This Row],[Producto]]&Tabla1[[#This Row],[Cobertura]]&Tabla1[[#This Row],[Suma Asegurada Fija]]&Tabla1[[#This Row],[Clasificación Riesgo]]","v":"Colectivo de Saldo DeudoresGastos Médicos7000B"},"Gastos Médicos",0,0,7000,0,18,65,70,"Colectivo de Saldo Deudores","0602 - Deudores","06 - Colectivo de Vida",0,0,119.7,100,0,"B","Adicional","Cobertura máxima del 10% de la Suma Asegurada en Muerte Accidental"]
[{"$f":"+Tabla1[[#This Row],[Producto]]&Tabla1[[#This Row],[Cobertura]]&Tabla1[[#This Row],[Suma Asegurada Fija]]&Tabla1[[#This Row],[Clasificación Riesgo]]","v":"Colectivo de Saldo DeudoresGastos Médicos7000C"},"Gastos Médicos",0,0,7000,0,18,65,70,"Colectivo de Saldo Deudores","0602 - Deudores","06 - Colectivo de Vida",0,0,160.72,100,0,"C","Adicional","Cobertura máxima del 10% de la Suma Asegurada en Muerte Accidental"]
[{"$f":"+Tabla1[[#This Row],[Producto]]&Tabla1[[#This Row],[Cobertura]]&Tabla1[[#This Row],[Suma Asegurada Fija]]&Tabla1[[#This Row],[Clasificación Riesgo]]","v":"Colectivo de Saldo DeudoresGastos Médicos8000A"},"Gastos Médicos",0,0,8000,0,18,65,70,"Colectivo de Saldo Deudores","0602 - Deudores","06 - Colectivo de Vida",0,0,78,100,0,"A","Adicional","Cobertura máxima del 10% de la Suma Asegurada en Muerte Accidental"]
[{"$f":"+Tabla1[[#This Row],[Producto]]&Tabla1[[#This Row],[Cobertura]]&Tabla1[[#This Row],[Suma Asegurada Fija]]&Tabla1[[#This Row],[Clasificación Riesgo]]","v":"Colectivo de Saldo DeudoresGastos Médicos8000B"},"Gastos Médicos",0,0,8000,0,18,65,70,"Colectivo de Saldo Deudores","0602 - Deudores","06 - Colectivo de Vida",0,0,136.80000000000001,100,0,"B","Adicional","Cobertura máxima del 10% de la Suma Asegurada en Muerte Accidental"]
[{"$f":"+Tabla1[[#This Row],[Producto]]&Tabla1[[#This Row],[Cobertura]]&Tabla1[[#This Row],[Suma Asegurada Fija]]&Tabla1[[#This Row],[Clasificación Riesgo]]","v":"Colectivo de Saldo DeudoresGastos Médicos8000C"},"Gastos Médicos",0,0,8000,0,18,65,70,"Colectivo de Saldo Deudores","0602 - Deudores","06 - Colectivo de Vida",0,0,183.68,100,0,"C","Adicional","Cobertura máxima del 10% de la Suma Asegurada en Muerte Accidental"]
[{"$f":"+Tabla1[[#This Row],[Producto]]&Tabla1[[#This Row],[Cobertura]]&Tabla1[[#This Row],[Suma Asegurada Fija]]&Tabla1[[#This Row],[Clasificación Riesgo]]","v":"Colectivo de Saldo DeudoresGastos Médicos9000A"},"Gastos Médicos",0,0,9000,0,18,65,70,"Colectivo de Saldo Deudores","0602 - Deudores","06 - Colectivo de Vida",0,0,87.75,100,0,"A","Adicional","Cobertura máxima del 10% de la Suma Asegurada en Muerte Accidental"]
[{"$f":"+Tabla1[[#This Row],[Producto]]&Tabla1[[#This Row],[Cobertura]]&Tabla1[[#This Row],[Suma Asegurada Fija]]&Tabla1[[#This Row],[Clasificación Riesgo]]","v":"Colectivo de Saldo DeudoresGastos Médicos9000B"},"Gastos Médicos",0,0,9000,0,18,65,70,"Colectivo de Saldo Deudores","0602 - Deudores","06 - Colectivo de Vida",0,0,153.9,100,0,"B","Adicional","Cobertura máxima del 10% de la Suma Asegurada en Muerte Accidental"]
[{"$f":"+Tabla1[[#This Row],[Producto]]&Tabla1[[#This Row],[Cobertura]]&Tabla1[[#This Row],[Suma Asegurada Fija]]&Tabla1[[#This Row],[Clasificación Riesgo]]","v":"Colectivo de Saldo DeudoresGastos Médicos9000C"},"Gastos Médicos",0,0,9000,0,18,65,70,"Colectivo de Saldo Deudores","0602 - Deudores","06 - Colectivo de Vida",0,0,206.64,100,0,"C","Adicional","Cobertura máxima del 10% de la Suma Asegurada en Muerte Accidental"]
[{"$f":"+Tabla1[[#This Row],[Producto]]&Tabla1[[#This Row],[Cobertura]]&Tabla1[[#This Row],[Suma Asegurada Fija]]&Tabla1[[#This Row],[Clasificación Riesgo]]","v":"Colectivo de Saldo DeudoresGastos Médicos10000A"},"Gastos Médicos",0,0,10000,0,18,65,70,"Colectivo de Saldo Deudores","0602 - Deudores","06 - Colectivo de Vida",0,0,97.5,100,0,"A","Adicional","Cobertura máxima del 10% de la Suma Asegurada en Muerte Accidental"]
[{"$f":"+Tabla1[[#This Row],[Producto]]&Tabla1[[#This Row],[Cobertura]]&Tabla1[[#This Row],[Suma Asegurada Fija]]&Tabla1[[#This Row],[Clasificación Riesgo]]","v":"Colectivo de Saldo DeudoresGastos Médicos10000B"},"Gastos Médicos",0,0,10000,0,18,65,70,"Colectivo de Saldo Deudores","0602 - Deudores","06 - Colectivo de Vida",0,0,171,100,0,"B","Adicional","Cobertura máxima del 10% de la Suma Asegurada en Muerte Accidental"]
[{"$f":"+Tabla1[[#This Row],[Producto]]&Tabla1[[#This Row],[Cobertura]]&Tabla1[[#This Row],[Suma Asegurada Fija]]&Tabla1[[#This Row],[Clasificación Riesgo]]","v":"Colectivo de Saldo DeudoresGastos Médicos10000C"},"Gastos Médicos",0,0,10000,0,18,65,70,"Colectivo de Saldo Deudores","0602 - Deudores","06 - Colectivo de Vida",0,0,229.6,100,0,"C","Adicional","Cobertura máxima del 10% de la Suma Asegurada en Muerte Accidental"]
[{"$f":"+Tabla1[[#This Row],[Producto]]&Tabla1[[#This Row],[Cobertura]]&Tabla1[[#This Row],[Suma Asegurada Fija]]&Tabla1[[#This Row],[Clasificación Riesgo]]","v":"Colectivo de Saldo DeudoresGastos Médicos0A"},"Gastos Médicos",5001,30000,0,0,18,65,70,"Colectivo de Saldo Deudores","0602 - Deudores","06 - Colectivo de Vida",0,9.75,0,100,30000,"A","Adicional","Cobertura máxima del 10% de la Suma Asegurada en Muerte Accidental"]
[{"$f":"+Tabla1[[#This Row],[Producto]]&Tabla1[[#This Row],[Cobertura]]&Tabla1[[#This Row],[Suma Asegurada Fija]]&Tabla1[[#This Row],[Clasificación Riesgo]]","v":"Colectivo de Saldo DeudoresGastos Médicos0B"},"Gastos Médicos",5001,30000,0,0,18,65,70,"Colectivo de Saldo Deudores","0602 - Deudores","06 - Colectivo de Vida",0,17.100000000000001,0,100,30000,"B","Adicional","Cobertura máxima del 10% de la Suma Asegurada en Muerte Accidental"]
[{"$f":"+Tabla1[[#This Row],[Producto]]&Tabla1[[#This Row],[Cobertura]]&Tabla1[[#This Row],[Suma Asegurada Fija]]&Tabla1[[#This Row],[Clasificación Riesgo]]","v":"Colectivo de Saldo DeudoresGastos Médicos0C"},"Gastos Médicos",5001,30000,0,0,18,65,70,"Colectivo de Saldo Deudores","0602 - Deudores","06 - Colectivo de Vida",0,22.96,0,100,30000,"C","Adicional","Cobertura máxima del 10% de la Suma Asegurada en Muerte Accidental"]
[{"$f":"+Tabla1[[#This Row],[Producto]]&Tabla1[[#This Row],[Cobertura]]&Tabla1[[#This Row],[Clasificación Riesgo]]","v":"Colectivo de Saldo DeudoresRenta Diaria por Incapacidad Temporal por AccidenteA"},"Renta Diaria por Incapacidad Temporal por Accidente",1,30,0,0,18,65,70,"Colectivo de Saldo Deudores","0602 - Deudores","06 - Colectivo de Vida",0,2.5,0,"5 días","60 días","A","Adicional"]
[{"$f":"+Tabla1[[#This Row],[Producto]]&Tabla1[[#This Row],[Cobertura]]&Tabla1[[#This Row],[Clasificación Riesgo]]","v":"Colectivo de Saldo DeudoresRenta Diaria por Incapacidad Temporal por AccidenteB"},"Renta Diaria por Incapacidad Temporal por Accidente",1,30,0,0,18,65,70,"Colectivo de Saldo Deudores","0602 - Deudores","06 - Colectivo de Vida",0,4,0,"5 días","60 días","B","Adicional"]
[{"$f":"+Tabla1[[#This Row],[Producto]]&Tabla1[[#This Row],[Cobertura]]&Tabla1[[#This Row],[Clasificación Riesgo]]","v":"Colectivo de Saldo DeudoresRenta Diaria por Incapacidad Temporal por AccidenteC"},"Renta Diaria por Incapacidad Temporal por Accidente",1,30,0,0,18,65,70,"Colectivo de Saldo Deudores","0602 - Deudores","06 - Colectivo de Vida",0,6,0,"5 días","60 días","C","Adicional"]
[{"$f":"+Tabla1[[#This Row],[Producto]]&Tabla1[[#This Row],[Cobertura]]&Tabla1[[#This Row],[Suma Asegurada Fija]]","v":"Colectivo de Saldo DeudoresRenta Diaria por Hospitalización por Accidente25"},"Renta Diaria por Hospitalización por Accidente",0,0,25,0,18,65,70,"Colectivo de Saldo Deudores","0602 - Deudores","06 - Colectivo de Vida",0,0,23,"3 días","60 días","A","Adicional"]
[{"$f":"+Tabla1[[#This Row],[Producto]]&Tabla1[[#This Row],[Cobertura]]&Tabla1[[#This Row],[Suma Asegurada Fija]]","v":"Colectivo de Saldo DeudoresRenta Diaria por Hospitalización por Accidente25"},"Renta Diaria por Hospitalización por Accidente",0,0,25,0,18,65,70,"Colectivo de Saldo Deudores","0602 - Deudores","06 - Colectivo de Vida",0,0,23,"3 días","60 días","B","Adicional"]
[{"$f":"+Tabla1[[#This Row],[Producto]]&Tabla1[[#This Row],[Cobertura]]&Tabla1[[#This Row],[Suma Asegurada Fija]]","v":"Colectivo de Saldo DeudoresRenta Diaria por Hospitalización por Accidente25"},"Renta Diaria por Hospitalización por Accidente",0,0,25,0,18,65,70,"Colectivo de Saldo Deudores","0602 - Deudores","06 - Colectivo de Vida",0,0,23,"3 días","60 días","C","Adicional"]
[{"$f":"+Tabla1[[#This Row],[Producto]]&Tabla1[[#This Row],[Cobertura]]&Tabla1[[#This Row],[Suma Asegurada Fija]]","v":"Colectivo de Saldo DeudoresRenta Diaria por Hospitalización por Accidente50"},"Renta Diaria por Hospitalización por Accidente",0,0,50,0,18,65,70,"Colectivo de Saldo Deudores","0602 - Deudores","06 - Colectivo de Vida",0,0,49,"3 días","60 días","A","Adicional"]
[{"$f":"+Tabla1[[#This Row],[Producto]]&Tabla1[[#This Row],[Cobertura]]&Tabla1[[#This Row],[Suma Asegurada Fija]]","v":"Colectivo de Saldo DeudoresRenta Diaria por Hospitalización por Accidente50"},"Renta Diaria por Hospitalización por Accidente",0,0,50,0,18,65,70,"Colectivo de Saldo Deudores","0602 - Deudores","06 - Colectivo de Vida",0,0,49,"3 días","60 días","B","Adicional"]
[{"$f":"+Tabla1[[#This Row],[Producto]]&Tabla1[[#This Row],[Cobertura]]&Tabla1[[#This Row],[Suma Asegurada Fija]]","v":"Colectivo de Saldo DeudoresRenta Diaria por Hospitalización por Accidente50"},"Renta Diaria por Hospitalización por Accidente",0,0,50,0,18,65,70,"Colectivo de Saldo Deudores","0602 - Deudores","06 - Colectivo de Vida",0,0,49,"3 días","60 días","C","Adicional"]
[{"$f":"+Tabla1[[#This Row],[Producto]]&Tabla1[[#This Row],[Cobertura]]&Tabla1[[#This Row],[Suma Asegurada Fija]]","v":"Colectivo de Saldo DeudoresRenta Diaria por Hospitalización por Accidente100"},"Renta Diaria por Hospitalización por Accidente",0,0,100,0,18,65,70,"Colectivo de Saldo Deudores","0602 - Deudores","06 - Colectivo de Vida",0,0,100,"3 días","60 días","A","Adicional"]
[{"$f":"+Tabla1[[#This Row],[Producto]]&Tabla1[[#This Row],[Cobertura]]&Tabla1[[#This Row],[Suma Asegurada Fija]]","v":"Colectivo de Saldo DeudoresRenta Diaria por Hospitalización por Accidente100"},"Renta Diaria por Hospitalización por Accidente",0,0,100,0,18,65,70,"Colectivo de Saldo Deudores","0602 - Deudores","06 - Colectivo de Vida",0,0,100,"3 días","60 días","B","Adicional"]
[{"$f":"+Tabla1[[#This Row],[Producto]]&Tabla1[[#This Row],[Cobertura]]&Tabla1[[#This Row],[Suma Asegurada Fija]]","v":"Colectivo de Saldo DeudoresRenta Diaria por Hospitalización por Accidente100"},"Renta Diaria por Hospitalización por Accidente",0,0,100,0,18,65,70,"Colectivo de Saldo Deudores","0602 - Deudores","06 - Colectivo de Vida",0,0,100,"3 días","60 días","C","Adicional"]
[null,"Asistencia Funeraria Nacional Individual",0,0,0,0,2,69,100,"Asistencia Funeraria","0709 - Asistencia Funeraria","06 - Colectivo de Vida",0,0,9.76,0,0,"A","Básico"]
[null,"Asistencia Funeraria Individual con Repatriación",0,0,0,0,2,69,100,"Asistencia Funeraria","0709 - Asistencia Funeraria","06 - Colectivo de Vida",0,0,14.64,0,0,"A","Básico"]
[null,"Asistencia Funeraria con Expatriación",0,0,0,0,2,69,100,"Asistencia Funeraria","0709 - Asistencia Funeraria","06 - Colectivo de Vida",0,0,19.739999999999998,0,0,"A","Básico"]
[null,"Asistencia Funeraria Nacional Familiar",0,0,0,0,2,69,100,"Asistencia Funeraria","0709 - Asistencia Funeraria","06 - Colectivo de Vida",0,0,70.98,0,0,"A","Básico"]
[null,"Asistencia Funeraria Nacional Familiar + Progenitores",0,0,0,0,2,69,100,"Asistencia Funeraria","0709 - Asistencia Funeraria","06 - Colectivo de Vida",0,0,155.05000000000001,0,0,"A","Básico"]

{"sheet":"Calculador","index":14,"n_rows":54,"n_cols":37,"rows_kept":54,"cut":false,"hidden":true,"merged":[[55,1,55,6],[43,1,43,5],[44,1,44,5],[45,1,45,5],[46,1,46,5],[47,1,47,5],[48,1,48,5],[49,1,49,5],[50,1,50,5],[51,1,51,5],[52,1,52,5],[53,1,53,5],[41,1,41,2],[46,21,46,26],[1,30,1,36],[3,30,3,31],[4,30,4,31],[5,30,5,31],[7,30,7,34],[8,30,8,34],[9,30,9,34],[10,30,10,34],[11,30,11,34],[12,30,12,34],[13,30,13,34],[40,21,40,26],[41,21,41,26],[38,21,38,26],[30,21,30,22],[31,21,31,22],[32,21,32,22],[34,21,34,26],[28,11,28,17],[30,11,30,15],[31,11,31,15],[32,11,32,15],[33,11,33,15],[37,1,37,7],[39,1,39,2],[40,1,40,2],[30,1,30,5],[31,1,31,5],[32,1,32,5],[33,1,33,5],[13,21,13,25],[28,1,28,7],[28,21,28,27],[8,21,8,25],[9,21,9,25],[10,21,10,25],[11,21,11,25],[12,21,12,25],[14,1,14,7],[15,1,15,7],[16,1,16,7],[17,1,17,7],[18,1,18,7],[19,1,19,7],[20,1,20,7],[21,1,21,7],[1,21,1,27],[3,21,3,22],[4,21,4,22],[5,21,5,22],[7,21,7,25],[5,1,5,2],[13,1,13,7],[7,1,7,7],[8,1,8,7],[9,1,9,7],[10,1,10,7],[11,1,11,7],[12,1,12,7],[22,1,22,7],[23,1,23,7],[13,11,13,15],[1,11,1,17],[3,11,3,12],[4,11,4,12],[5,11,5,12],[7,11,7,15],[8,11,8,15],[9,11,9,15],[10,11,10,15],[11,11,11,15],[12,11,12,15],[1,1,1,7],[3,1,3,2],[4,1,4,2]]}
[]
[null,"AP Individual",null,null,null,null,null,null,null,null,null,"Colectivo de AP",null,null,null,null,null,null,null,null,null,"PTA (Asiento)",null,null,null,null,null,null,null,null,"Crucero"]
[null,"Datos",null,null,null,null,null,null,null,null,null,"Datos",null,null,null,null,null,null,null,null,null,"Datos",null,null,null,null,null,null,null,null,"Datos"]
[null,"Días de Cobertura:",null,{"$f":"+'AP Individual'!C10","v":365},null,null,null,null,null,null,null,"Edad Promedio:",null,{"$f":"+'AP Colectivo'!C10","v":40},null,null,null,null,null,null,null,"Edad Promedio:",null,{"$f":"+'AP Colectivo'!M10","v":0},null,null,null,null,null,null,"Edad:",null,{"$f":"+Crucero!C10","v":25},{"$f":"+IF(AND(AG4>=17,AG4<60),17,IF(AND(AG4>=61,AG4<70),61,IF(AND(Calculador!AG4>=71,Calculador!AG4<75),71,\"\")))","v":17}]
[null,"Edad:",null,{"$f":"+'AP Individual'!C12","v":20},null,null,null,null,null,null,null,"Clasificación:",null,{"$f":"+'AP Colectivo'!C12","v":"B"},null,null,null,null,null,null,null,"Clasificación:",null,{"$f":"+'AP Colectivo'!M12","v":0},null,null,null,null,null,null,"Días de Cobertura",null,{"$f":"+Crucero!C12","v":3}]
[null,"Clasificación:",null,{"$f":"+'AP Individual'!C14","v":"C"},null,null,null,null,null,null,null,"Cantidad de Asegurados:",null,{"$f":"+'AP Colectivo'!C14","v":50},null,"Días de Cobertura:",null,{"$f":"+'AP Colectivo'!G14","v":365},null,null,null,"Cantidad de Asegurados:",null,{"$f":"+'AP Colectivo'!M14","v":0},null,"Días de Cobertura:",null,{"$f":"+'AP Colectivo'!Q14","v":0}]
[]
[null,"Muerte Accidental",null,null,null,null,null,null,{"$f":"+VLOOKUP(J8,'Coberturas AP - CV'!$A$2:$N$1048576,14,FALSE)","v":2.2000000000000002},{"$f":"+B2&B8&IF(AND(D5>0,D5<61),17,IF(AND(D5>60,D5<71),61,71))&$D$6","v":"AP IndividualMuerte Accidental17C"},null,"Muerte Accidental",null,null,null,null,{"$f":"+VLOOKUP(R8,'Coberturas AP - CV'!$A$220:$N$228,14,FALSE)","v":1.6},{"$f":"+L2&L8&IF(AND(N4>0,N4<61),17,IF(AND(N4>60,N4<71),61,71))&N5","v":"Colectivo de APMuerte Accidental17B"},null,null,null,"Muerte Accidental",null,null,null,null,{"$f":"+'Coberturas AP - CV'!$N$190","v":1},null,null,null,"Muerte Accidental",null,null,null,null,{"$f":"+VLOOKUP(AK8,'Coberturas AP - CV'!$A$372:$O$404,14,FALSE)","v":1},{"$f":"+AE2&AE8&AH4","v":"CruceroMuerte Accidental17"}]
[null,"Beneficio de Homicidio Doloso",null,null,null,null,null,null,{"$f":"IF(OR(D6=\"A\",D6=\"B\"),0.25,0.3)","v":0.3},null,null,"Beneficio de Homicidio Doloso",null,null,null,null,{"$f":"IF(OR(N5=\"A\",N5=\"B\"),0.25,0.3)","v":0.25},null,null,null,null,"Gastos Médicos por Accidente",null,null,null,null,{"$f":"+VLOOKUP(AB9,'Coberturas AP - CV'!A199:O214,15,FALSE)","v":{"$error":"#N/A"}},{"$f":"'Coberturas AP - CV'!M199&'Coberturas AP - CV'!B199&'AP PTA (Asiento)'!F19","v":"PasajeroGastos Médicos0"},null,null,"Gastos Médicos por Accidente",null,null,null,null,{"$f":"+VLOOKUP(AK9,'Coberturas AP - CV'!$A$372:$O$404,15,FALSE)","v":{"$error":"#N/A"}},{"$f":"+AE2&'Coberturas AP - CV'!B377&Crucero!F19","v":"CruceroGastos Médicos"}]
[null,"Gastos Médicos por Accidente",null,null,null,null,null,null,{"$f":"VLOOKUP('Coberturas AP - CV'!$B$29&'AP Individual'!$H$25&Calculador!$D$6,'Coberturas AP - CV'!$A$2:$S$130,15,FALSE)","v":{"$error":"#N/A"}},null,null,"Muerte en Transporte Público",null,null,null,null,{"$f":"+VLOOKUP(R10,'Coberturas AP - CV'!A232:N234,14,FALSE)","v":0.32},{"$f":"+L10&N5","v":"Muerte en Transporte PúblicoB"},null,null,null,"Renta Diaria por Incapacidad Temporal por Accidente",null,null,null,null,{"$f":"+'Coberturas AP - CV'!$N$217","v":2.5}]
[null,"Muerte Accidental en Avión Privado",null,null,null,null,null,null,0.5,null,null,"Gastos Médicos por Accidente",null,null,null,null,{"$f":"+VLOOKUP(R11,'Coberturas AP - CV'!$A$247:$O$348,15,FALSE)","v":{"$error":"#N/A"}},{"$f":"+'Coberturas AP - CV'!B247&'AP Colectivo'!$F$25&Calculador!N5","v":"Gastos MédicosB"}]
[null,"Muerte en Accidente de Tránsito",null,null,null,null,null,null,0.15,null,null,"Renta Diaria por Incapacidad Temporal por Accidente",null,null,null,null,{"$f":"+VLOOKUP(R12,'Coberturas AP - CV'!A349:N351,14,FALSE)","v":4},{"$f":"+L12&N5","v":"Renta Diaria por Incapacidad Temporal por AccidenteB"},null,null,null,"Muerte Accidental",null,null,null,null,{"$f":"+'Coberturas AP - CV'!$N$191","v":1.6},{"$f":"+V12&X5","v":"Muerte Accidental0"}]
[null,"Muerte como Conductor en Accidente de Tránsito",null,null,null,null,null,null,0.15,null,null,"Renta Diaria por Hospitalización por Accidente",null,null,null,null,{"$f":"+VLOOKUP(R13,'Coberturas AP - CV'!$A$352:$O$360,15,FALSE)","v":{"$error":"#N/A"}},{"$f":"+L13&'AP Colectivo'!$F$27&Calculador!$N$5","v":"Renta Diaria por Hospitalización por AccidenteB"},null,null,null,"Gastos Médicos por Accidente",null,null,null,null,{"$f":"+VLOOKUP(AB13,'Coberturas AP - CV'!A200:O216,15,FALSE)","v":{"$error":"#N/A"}},{"$f":"'Coberturas AP - CV'!$M$200&'Coberturas AP - CV'!B200&'AP PTA (Asiento)'!F31","v":"ConductorGastos Médicos0"}]
[null,"Muerte en Cajero Automático",null,null,null,null,null,null,0.15,null,null,"Servicio de Asistencia Médica Móvil",null,null,null,null,1.98,null,null,null,null,"Renta Diaria por Incapacidad Temporal por Accidente",null,null,null,null,{"$f":"+'Coberturas AP - CV'!$N$218","v":4}]
[null,"Renta Diaria por Incapacidad Temporal por Accidente",null,null,null,null,null,null,{"$f":"+IF(D6=\"A\",2.5,IF(D6=\"B\",4,6))","v":6},null,null,"Servicio de Orientación Médica",null,null,null,null,6.6]
[null,"Renta Diaria por Hospitalización por Accidente",null,null,null,null,null,null,{"$f":"+IF(J16=25,23,IF(J16=50,49,IF(J16=100,100)))","v":false},{"$f":"+'AP Individual'!H31","v":0},null,{"$f":"+'AP Colectivo'!A30","v":"Servicio de Emergencia Odontológica Completa Familiar"},null,null,null,null,{"$f":"+VLOOKUP(L16,'Coberturas AP - CV'!$B$361:$O$364,14,FALSE)","v":16.61}]
[null,"Renta Diaria por Hospitalización en Cuidados Intensivos por Accidente",null,null,null,null,null,null,{"$f":"+IF(J17=25,12.5,IF(J17=50,25,IF(J17=100,50)))","v":false},{"$f":"+'AP Individual'!H32","v":0},null,{"$f":"+'AP Colectivo'!A31","v":"Asistencia Funeraria Nacional Familiar"},null,null,null,null,{"$f":"+VLOOKUP(L17,'Coberturas AP - CV'!$B$367:$O$371,14,FALSE)","v":70.98}]
[null,"Renta Diaria por Hospitalización ambos cónyuges por Accidente",null,null,null,null,null,null,{"$f":"+IF(J18=25,12.5,IF(J18=50,25,IF(J18=100,50)))","v":false},{"$f":"+'AP Individual'!H33","v":0}]
[null,"Renta Anual al cónyuge en caso de Muerte Accidental",null,null,null,null,null,null,0.5]
[null,"Renta Anual por escolaridad en caso de Muerte Accidental",null,null,null,null,null,null,0.25]
[null,"Servicio de Asistencia Médica Móvil",null,null,null,null,null,null,1.98]
[null,"Servicio de Orientación Médica",null,null,null,null,null,null,6.6]
[null,{"$f":"+'AP Individual'!A38","v":"Servicio de Emergencia Odontológica Completa Familiar"},null,null,null,null,null,null,{"$f":"+VLOOKUP(B23,'Coberturas AP - CV'!$B$1:$T$733,14,FALSE)","v":16.61}]
[null,{"$f":"+'AP Individual'!A39","v":"Asistencia Funeraria Nacional Familiar"},null,null,null,null,null,null,{"$f":"+VLOOKUP(B24,'Coberturas AP - CV'!$B$1:$T$733,14,FALSE)","v":70.98}]
[]
[]
[]
[]
[null,"Escolar",null,null,null,null,null,null,null,null,null,"Viajero",null,null,null,null,null,null,null,null,null,"Colectivo de Vida"]
[null,null,null,null,null,null,null,null,null,null,null,null,null,null,null,null,null,null,null,null,null,"Datos"]
[null,"Muerte Accidental",null,null,null,null,{"$f":"+'Coberturas AP - CV'!$N$405","v":0.55000000000000004},null,null,null,null,"Edad",null,null,null,null,{"$f":"+'AP Viajero'!C10","v":30}]
[null,"Desmembramiento por Accidente",null,null,null,null,{"$f":"+'Coberturas AP - CV'!$N$407","v":0.45},{"$f":"'Coberturas AP - CV'!#REF!&'Coberturas AP - CV'!#REF!&'AP PTA (Asiento)'!#REF!","v":{"$error":"#REF!"}},null,null,null,"rango de edad",null,null,null,null,{"$f":"+IF(AND(Q31>=2,Q31<18),2,IF(AND(Q31>=18,Q31<66),18,IF(AND(Calculador!Q31>=66,Calculador!Q31<76),66,\"\")))","v":18},null,null,null,null,"Edad Promedio:",null,{"$f":"+'Colectivo de Vida'!C10","v":40}]
[null,"Gastos Médicos por Accidente",null,null,null,null,{"$f":"+VLOOKUP(H33,'Coberturas AP - CV'!A408:O418,15,FALSE)","v":8.1999999999999993},{"$f":"+Calculador!B29&'Coberturas AP - CV'!$B$408&'AP Escolar'!$F$19","v":"EscolarGastos Médicos500"},null,null,null,"Concatenado",null,null,null,null,{"$f":"'AP Viajero'!G10&'AP Viajero'!C12&Calculador!Q32","v":"150000518"},null,null,null,null,"Clasificación:",null,{"$f":"+'Colectivo de Vida'!C12","v":"C"}]
[null,"Servicio de Asistencia Médica Móvil",null,null,null,null,{"$f":"+'Coberturas AP - CV'!$O$419","v":1.98},null,null,null,null,"Prima",null,null,null,null,{"$f":"+VLOOKUP(Q33,'Coberturas AP - CV'!$A$420:$O$482,15,FALSE)","v":9.16}]
[null,null,null,null,null,null,null,null,null,null,null,null,null,null,null,null,null,null,null,null,null,"Muerte por Cualquier Causa",null,null,null,null,null,null,{"$f":"+VLOOKUP(X32,'CSG1960'!$A$3:$D$48,3,FALSE)/(1-'Colectivo de Vida'!$E$37)","v":3.3499999999999996}]
[null,null,null,null,null,null,null,null,null,null,null,null,null,null,null,null,null,null,null,null,null,"Muerte Accidental",null,null,null,null,null,null,{"$f":"+VLOOKUP(AD36,'Coberturas AP - CV'!$A$483:$N$494,14,FALSE)","v":1.54},{"$f":"+$V$29&V36&$X$33","v":"Colectivo de VidaMuerte AccidentalC"}]
[null,null,null,null,null,null,null,null,null,null,null,null,null,null,null,null,null,null,null,null,null,"Adelanto por Incapacidad Total y Permanente por Accidente",null,null,null,null,null,null,{"$f":"+VLOOKUP(AD37,'Coberturas AP - CV'!$A$483:$N$494,14,FALSE)","v":1.26},"Colectivo de VidaAdelanto por Incapacidad Total y Permanente por AccidenteC"]
[null,"Colectivo de Saldo Deudores",null,null,null,null,null,null,null,null,null,null,null,null,null,null,null,null,null,null,null,"Adelanto del Básico por Cancer",null,null,null,null,null,null,{"$f":"+'Coberturas AP - CV'!$N$489","v":0.42},"Colectivo de VidaAdelanto del Básico por CancerC"]
[null,"Datos",null,null,null,null,null,null,null,null,null,null,null,null,null,null,null,null,null,null,null,"Pago Adicional por Cancer",null,null,null,null,null,null,{"$f":"+'Coberturas AP - CV'!$N$492","v":2.76},"Colectivo de VidaPago Adicional por CancerC"]
[null,null,null,null,null,null,null,null,null,null,null,null,null,null,null,null,null,null,null,null,null,"Muerte en Transporte Público",null,null,null,null,null,null,{"$f":"+VLOOKUP(AD40,'Coberturas AP - CV'!$A$483:$O$643,14,FALSE)","v":0.77},{"$f":"+$V$29&V40&$X$33","v":"Colectivo de VidaMuerte en Transporte PúblicoC"}]
[null,"Edad Promedio:",null,{"$f":"+'Saldo Deudor'!C10","v":30},null,null,null,null,null,null,null,null,null,null,null,null,null,null,null,null,null,"Muerte Natural Cónyuge",null,null,null,null,null,null,{"$f":"+VLOOKUP(AD41,'Coberturas AP - CV'!$A$483:$O$643,14,FALSE)","v":0.25},{"$f":"+$V$29&V41&$X$33","v":"Colectivo de VidaMuerte Natural CónyugeC"}]
[null,"Clasificación:",null,{"$f":"+'Saldo Deudor'!C12","v":"A"},null,null,null,null,null,null,null,null,null,null,null,null,null,null,null,null,null,"Muerte Natural Hijos",null,null,null,null,null,null,{"$f":"+VLOOKUP(AD42,'Coberturas AP - CV'!$A$483:$O$643,14,FALSE)","v":0.2},{"$f":"+$V$29&V42&$X$33","v":"Colectivo de VidaMuerte Natural HijosC"}]
[null,null,null,null,null,null,null,null,null,null,null,null,null,null,null,null,null,null,null,null,null,"Gastos Médicos por Accidente",null,null,null,null,null,null,{"$f":"+VLOOKUP(AD43,'Coberturas AP - CV'!$A$483:$O$643,15,FALSE)","v":{"$error":"#N/A"}},{"$f":"+V29&'Coberturas AP - CV'!$B$513&'Colectivo de Vida'!$G$29&$X$33","v":"Colectivo de VidaGastos MédicosC"}]
[null,"Muerte por Cualquier Causa",null,null,null,null,null,null,{"$f":"+VLOOKUP(D41,'CSG1960'!$A$3:$D$48,3,FALSE)/(1-'Saldo Deudor'!C30)","v":2},null,null,null,null,null,null,null,null,null,null,null,null,"Renta Diaria por Hospitalización por Accidente",null,null,null,null,null,null,{"$f":"+VLOOKUP(AD44,'Coberturas AP - CV'!$A$483:$O$643,15,FALSE)","v":{"$error":"#N/A"}},{"$f":"+$V$29&$V$44&'Colectivo de Vida'!G30","v":"Colectivo de VidaRenta Diaria por Hospitalización por Accidente"}]
[null,null,null,null,null,null,null,null,null,null,null,null,null,null,null,null,null,null,null,null,null,"Renta Diaria por Incapacidad Temporal por Accidente",null,null,null,null,null,null,{"$f":"+VLOOKUP(AD45,'Coberturas AP - CV'!$A$483:$O$643,14,FALSE)","v":6},{"$f":"+$V$29&$V$45&X33","v":"Colectivo de VidaRenta Diaria por Incapacidad Temporal por AccidenteC"}]
[null,"Muerte Accidental",null,null,null,null,null,null,{"$f":"+VLOOKUP(J46,'Coberturas AP - CV'!$A$644:$O$727,14,FALSE)","v":0.72},{"$f":"+$B$38&B46&$D$42","v":"Colectivo de Saldo DeudoresMuerte AccidentalA"},null,null,null,null,null,null,null,null,null,null,null,"Servicio de Asistencia Médica Móvil",null,null,null,null,null,null,{"$f":"+'Coberturas AP - CV'!$O$637","v":1.98}]
[null,"Adelanto por Incapacidad Total y Permanente por Accidente",null,null,null,null,null,null,{"$f":"+VLOOKUP(J47,'Coberturas AP - CV'!$A$644:$O$727,14,FALSE)","v":0.84},{"$f":"+$B$38&B47&$D$42","v":"Colectivo de Saldo DeudoresAdelanto por Incapacidad Total y Permanente por AccidenteA"},null,null,null,null,null,null,null,null,null,null,null,"Servicio de Orientación Médica",null,null,null,null,null,null,{"$f":"+'Coberturas AP - CV'!O638","v":6.6}]
[null,"Adelanto del Básico por Cancer",null,null,null,null,null,null,{"$f":"+VLOOKUP(J48,'Coberturas AP - CV'!$A$644:$O$727,14,FALSE)","v":0.42},"Colectivo de Saldo DeudoresAdelanto del Básico por CancerA",null,null,null,null,null,null,null,null,null,null,null,{"$f":"+'Colectivo de Vida'!A34","v":"Servicio de Emergencia Odontológica sin Endodoncia"},null,null,null,null,null,null,{"$f":"+VLOOKUP(V48,'Coberturas AP - CV'!$B$627:$O$643,14,FALSE)","v":8.07}]
[null,"Pago Adicional por Cancer",null,null,null,null,null,null,{"$f":"+VLOOKUP(J49,'Coberturas AP - CV'!$A$644:$O$727,14,FALSE)","v":2.76},"Colectivo de Saldo DeudoresPago Adicional por CancerA",null,null,null,null,null,null,null,null,null,null,null,{"$f":"+'Colectivo de Vida'!A35","v":"Asistencia Funeraria Nacional Individual"},null,null,null,null,null,null,{"$f":"+VLOOKUP(V49,'Coberturas AP - CV'!$B$627:$O$643,14,FALSE)","v":9.76}]
[null,"Pago Adicional por Gastos Funerarios",null,null,null,null,null,null,{"$f":"+VLOOKUP(J50,'Coberturas AP - CV'!$A$644:$O$727,14,FALSE)","v":0},"Colectivo de Saldo DeudoresPago Adicional por Gastos FunerariosA"]
[null,"Muerte en Transporte Público",null,null,null,null,null,null,{"$f":"+VLOOKUP(J51,'Coberturas AP - CV'!$A$644:$O$727,14,FALSE)","v":0.36},"Colectivo de Saldo DeudoresMuerte en Transporte PúblicoA"]
[null,"Muerte Natural Cónyuge",null,null,null,null,null,null,{"$f":"+VLOOKUP(J52,'Coberturas AP - CV'!$A$644:$O$727,14,FALSE)","v":0.15},"Colectivo de Saldo DeudoresMuerte Natural CónyugeA"]
[null,"Muerte Natural Hijos",null,null,null,null,null,null,{"$f":"+VLOOKUP(J53,'Coberturas AP - CV'!$A$644:$O$727,14,FALSE)","v":0.1},"Colectivo de Saldo DeudoresMuerte Natural HijosA"]
[null,"Adelanto por Enfermedades Graves",null,null,null,null,null,null,{"$f":"+VLOOKUP(J54,'Coberturas AP - CV'!$A$644:$O$727,14,FALSE)","v":0.21},"Colectivo de Saldo DeudoresAdelanto por Enfermedades GravesA"]

{"sheet":"CSG1960","index":15,"n_rows":48,"n_cols":4,"rows_kept":48,"cut":false,"hidden":true,"merged":[[0,0,0,3]]}
["TABLA CSG 1960  AL 50%"]
["Edad","Tasa Anual al 100%","Tasa Anual al 50%","Tasa Mensual al 50%"]
[20,2.09,1.0449999999999999,8.7083333333333332E-2]
[21,2.14,1.07,8.9166666666666672E-2]
[22,2.1800000000000002,1.0900000000000001,9.0833333333333335E-2]
[23,2.21,1.105,9.2083333333333336E-2]
[24,2.2400000000000002,1.1200000000000001,9.3333333333333338E-2]
[25,2.2599999999999998,1.1299999999999999,9.4166666666666662E-2]
[26,2.2799999999999998,1.1399999999999999,9.4999999999999987E-2]
[27,2.2999999999999998,1.1499999999999999,9.5833333333333326E-2]
[28,2.33,1.165,9.7083333333333341E-2]
[29,2.36,1.18,9.8333333333333328E-2]
[30,2.4,1.2,9.9999999999999992E-2]
[31,2.4500000000000002,1.2250000000000001,0.10208333333333335]
[32,2.5099999999999998,1.2549999999999999,0.10458333333333332]
[33,2.6,1.3,0.10833333333333334]
[34,2.71,1.355,0.11291666666666667]
[35,2.85,1.425,0.11875000000000001]
[36,3.02,1.51,0.12583333333333332]
[37,3.21,1.605,0.13375000000000001]
[38,3.45,1.7250000000000001,0.14375000000000002]
[39,3.72,1.86,0.155]
[40,4.0199999999999996,2.0099999999999998,0.16749999999999998]
[41,4.37,2.1850000000000001,0.18208333333333335]
[42,4.75,2.375,0.19791666666666666]
[43,5.18,2.59,0.21583333333333332]
[44,5.64,2.82,0.23499999999999999]
[45,6.15,3.0750000000000002,0.25625000000000003]
[46,6.7,3.35,0.27916666666666667]
[47,7.31,3.6549999999999998,0.30458333333333332]
[48,7.98,3.99,0.33250000000000002]
[49,8.7200000000000006,4.3600000000000003,0.36333333333333334]
[50,9.52,4.76,0.39666666666666667]
[51,10.4,5.2,0.43333333333333335]
[52,11.37,5.6849999999999996,0.47374999999999995]
[53,12.44,6.22,0.51833333333333331]
[54,13.61,6.8049999999999997,0.56708333333333327]
[55,14.88,7.44,0.62]
[56,16.239999999999998,8.1199999999999992,0.67666666666666664]
[57,17.7,8.85,0.73749999999999993]
[58,19.239999999999998,9.6199999999999992,0.80166666666666664]
[59,20.87,10.435,0.86958333333333337]
[60,22.62,11.31,0.9425]
[61,24.51,12.255000000000001,1.02125]
[62,26.6,13.3,1.1083333333333334]
[63,28.86,14.43,1.2024999999999999]
[64,31.31,15.654999999999999,1.3045833333333332]
[65,34,17,1.4166666666666667]